Workbook

Sheet Library (hidden)
A1: 274 | B1: YPD | C1: INC-A | D1: INC-B | E1: INC-C | F1: REL-A | G1: REL-B | H1: REL-C | I1: SLR | J1: CBC | K1: MAT | L1: FIN | M1: AOI-A | N1: AOI-B | O1: AOI-C | P1: ASE-A | Q1: ASE-B | R1: ASE-C | S1: AOR | T1: MCA | U1: AIL | V1: Emp-A | W1: Emp-B | X1: MOR | Y1: SSE | Z1: FSE | AA1: LUN | AB1: SPS | AC1: FPS | AD1: NI2 | AE1: NI1 | AF1: NIC2Vol | AG1: NicEx | AH1: PRO | AI1: FOR | AJ1: TCR | AK1: TRU | AL1: CGT | AM1: NRD | AN1: CAL
A2: 1 | B2: 2 | C2: 2 | D2: 1 | E2: 1 | F2: 2 | G2: 1 | H2: 1 | I2: 1 | J2: 1 | K2: 2 | L2: 1 | M2: 1 | N2: 1 | O2: 1 | P2: 1 | Q2: 1 | R2: 1 | S2: 1 | T2: 1 | U2: 1 | V2: 2 | W2: 1 | X2: 1 | Y2: 1 | Z2: 1 | AA2: 1 | AB2: 1 | AC2: 1 | AD2: 1 | AE2: 1 | AF2: 1 | AG2: 1 | AH2: 2 | AI2: 1 | AJ2: 1 | AK2: 1 | AL2: 1 | AM2: 1 | AN2: 1
A3: 2 | B3: 3 | C3: 3 | D3: 1 | E3: 1 | F3: 1 | G3: 1 | H3: 1 | I3: 1 | J3: 1 | K3: 3 | L3: 1 | M3: 1 | N3: 1 | O3: 1 | P3: 1 | Q3: 1 | R3: 1 | S3: 1 | T3: 1 | U3: 1 | V3: 3 | W3: 1 | X3: 1 | Y3: 1 | Z3: 1 | AA3: 1 | AB3: 1 | AC3: 1 | AD3: 1 | AE3: 1 | AF3: 1 | AG3: 1 | AH3: 3 | AI3: 1 | AJ3: 1 | AK3: 1 | AL3: 1 | AM3: 1 | AN3: 3
A4: 3 | B4: 4 | C4: 4 | D4: 1 | E4: 1 | F4: 4 | G4: 4 | H4: 1 | I4: 1 | J4: 1 | K4: 4 | L4: 4 | M4: 1 | N4: 1 | O4: 1 | P4: 1 | Q4: 1 | R4: 1 | S4: 1 | T4: 1 | U4: 1 | V4: 4 | W4: 1 | X4: 1 | Y4: 1 | Z4: 4 | AA4: 1 | AB4: 1 | AC4: 1 | AD4: 4 | AE4: 4 | AF4: 1 | AG4: 1 | AH4: 1 | AI4: 1 | AJ4: 1 | AK4: 1 | AL4: 1 | AM4: 1 | AN4: 4
A5: 4 | B5: 5 | C5: 5 | D5: 1 | E5: 1 | F5: 1 | G5: 1 | H5: 1 | I5: 5 | J5: 1 | K5: 1 | L5: 1 | M5: 1 | N5: 1 | O5: 1 | P5: 1 | Q5: 1 | R5: 1 | S5: 1 | T5: 1 | U5: 1 | V5: 5 | W5: 1 | X5: 1 | Y5: 1 | Z5: 1 | AA5: 1 | AB5: 1 | AC5: 1 | AD5: 1 | AE5: 1 | AF5: 1 | AG5: 1 | AH5: 1 | AI5: 1 | AJ5: 1 | AK5: 1 | AL5: 1 | AM5: 1 | AN5: 1
A6: 5 | B6: 6 | C6: 6 | D6: 1 | E6: 1 | F6: 6 | G6: 1 | H6: 1 | I6: 1 | J6: 1 | K6: 6 | L6: 1 | M6: 1 | N6: 1 | O6: 1 | P6: 1 | Q6: 1 | R6: 1 | S6: 1 | T6: 1 | U6: 1 | V6: 1 | W6: 1 | X6: 1 | Y6: 1 | Z6: 6 | AA6: 1 | AB6: 1 | AC6: 1 | AD6: 6 | AE6: 1 | AF6: 1 | AG6: 1 | AH6: 1 | AI6: 1 | AJ6: 1 | AK6: 1 | AL6: 1 | AM6: 1 | AN6: 1
A7: 6 | B7: 7 | C7: 7 | D7: 7 | E7: 1 | F7: 1 | G7: 1 | H7: 1 | I7: 1 | J7: 1 | K7: 7 | L7: 1 | M7: 1 | N7: 1 | O7: 1 | P7: 1 | Q7: 1 | R7: 1 | S7: 1 | T7: 1 | U7: 1 | V7: 1 | W7: 1 | X7: 1 | Y7: 1 | Z7: 1 | AA7: 1 | AB7: 1 | AC7: 1 | AD7: 1 | AE7: 1 | AF7: 1 | AG7: 1 | AH7: 1 | AI7: 1 | AJ7: 1 | AK7: 1 | AL7: 1 | AM7: 1 | AN7: 1
A8: 7 | B8: 8 | C8: 1 | D8: 8 | E8: 1 | F8: 8 | G8: 1 | H8: 1 | I8: 1 | J8: 1 | K8: 1 | L8: 1 | M8: 1 | N8: 1 | O8: 1 | P8: 1 | Q8: 1 | R8: 1 | S8: 1 | T8: 8 | U8: 1 | V8: 8 | W8: 1 | X8: 1 | Y8: 1 | Z8: 1 | AA8: 1 | AB8: 1 | AC8: 1 | AD8: 1 | AE8: 1 | AF8: 1 | AG8: 1 | AH8: 1 | AI8: 1 | AJ8: 1 | AK8: 1 | AL8: 1 | AM8: 1 | AN8: 8
A9: 8 | B9: 9 | C9: 9 | D9: 9 | E9: 1 | F9: 1 | G9: 1 | H9: 1 | I9: 1 | J9: 1 | K9: 1 | L9: 1 | M9: 1 | N9: 1 | O9: 1 | P9: 1 | Q9: 1 | R9: 1 | S9: 1 | T9: 9 | U9: 1 | V9: 1 | W9: 1 | X9: 1 | Y9: 1 | Z9: 9 | AA9: 1 | AB9: 1 | AC9: 1 | AD9: 1 | AE9: 1 | AF9: 1 | AG9: 9 | AH9: 1 | AI9: 1 | AJ9: 1 | AK9: 1 | AL9: 1 | AM9: 1 | AN9: 1
A10: 9 | B10: 10 | C10: 10 | D10: 1 | E10: 10 | F10: 1 | G10: 10 | H10: 1 | I10: 10 | J10: 1 | K10: 1 | L10: 1 | M10: 1 | N10: 1 | O10: 1 | P10: 1 | Q10: 1 | R10: 1 | S10: 1 | T10: 1 | U10: 1 | V10: 1 | W10: 1 | X10: 1 | Y10: 10 | Z10: 1 | AA10: 1 | AB10: 1 | AC10: 1 | AD10: 10 | AE10: 10 | AF10: 10 | AG10: 1 | AH10: 10 | AI10: 1 | AJ10: 1 | AK10: 1 | AL10: 1 | AM10: 1 | AN10: 1
A11: 10 | B11: 11 | C11: 11 | D11: 11 | E11: 1 | F11: 1 | G11: 11 | H11: 1 | I11: 1 | J11: 1 | K11: 1 | L11: 1 | M11: 1 | N11: 1 | O11: 1 | P11: 1 | Q11: 1 | R11: 1 | S11: 1 | T11: 1 | U11: 1 | V11: 1 | W11: 1 | X11: 1 | Y11: 1 | Z11: 1 | AA11: 1 | AB11: 1 | AC11: 1 | AD11: 1 | AE11: 1 | AF11: 1 | AG11: 1 | AH11: 1 | AI11: 1 | AJ11: 1 | AK11: 1 | AL11: 1 | AM11: 1 | AN11: 1
A12: 11 | B12: 12 | C12: 12 | D12: 12 | E12: 1 | F12: 12 | G12: 12 | H12: 1 | I12: 1 | J12: 1 | K12: 1 | L12: 1 | M12: 1 | N12: 1 | O12: 1 | P12: 1 | Q12: 1 | R12: 1 | S12: 1 | T12: 1 | U12: 1 | V12: 12 | W12: 1 | X12: 1 | Y12: 1 | Z12: 1 | AA12: 1 | AB12: 1 | AC12: 1 | AD12: 1 | AE12: 1 | AF12: 1 | AG12: 1 | AH12: 12 | AI12: 1 | AJ12: 1 | AK12: 1 | AL12: 1 | AM12: 1 | AN12: 12
A13: 12 | B13: 13 | C13: 13 | D13: 13 | E13: 13 | F13: 1 | G13: 1 | H13: 1 | I13: 1 | J13: 1 | K13: 1 | L13: 1 | M13: 1 | N13: 1 | O13: 1 | P13: 1 | Q13: 1 | R13: 1 | S13: 1 | T13: 1 | U13: 1 | V13: 1 | W13: 1 | X13: 1 | Y13: 1 | Z13: 1 | AA13: 1 | AB13: 1 | AC13: 1 | AD13: 1 | AE13: 1 | AF13: 1 | AG13: 1 | AH13: 1 | AI13: 1 | AJ13: 1 | AK13: 1 | AL13: 1 | AM13: 1 | AN13: 1
A14: 13 | B14: 14 | C14: 14 | D14: 14 | E14: 14 | F14: 14 | G14: 14 | H14: 1 | I14: 1 | J14: 1 | K14: 1 | L14: 14 | M14: 1 | N14: 1 | O14: 1 | P14: 1 | Q14: 1 | R14: 1 | S14: 1 | T14: 14 | U14: 1 | V14: 14 | W14: 1 | X14: 1 | Y14: 14 | Z14: 1 | AA14: 1 | AB14: 1 | AC14: 1 | AD14: 1 | AE14: 14 | AF14: 1 | AG14: 14 | AH14: 14 | AI14: 1 | AJ14: 1 | AK14: 1 | AL14: 1 | AM14: 1 | AN14: 14
A15: 14 | B15: 15 | C15: 15 | D15: 1 | E15: 1 | F15: 1 | G15: 1 | H15: 1 | I15: 15 | J15: 1 | K15: 1 | L15: 1 | M15: 1 | N15: 1 | O15: 1 | P15: 1 | Q15: 1 | R15: 1 | S15: 1 | T15: 1 | U15: 1 | V15: 15 | W15: 1 | X15: 1 | Y15: 1 | Z15: 1 | AA15: 1 | AB15: 1 | AC15: 1 | AD15: 1 | AE15: 1 | AF15: 1 | AG15: 1 | AH15: 1 | AI15: 1 | AJ15: 1 | AK15: 1 | AL15: 1 | AM15: 1 | AN15: 15
A16: 15 | B16: 16 | C16: 16 | D16: 1 | E16: 1 | F16: 16 | G16: 1 | H16: 1 | I16: 16 | J16: 1 | K16: 1 | L16: 1 | M16: 1 | N16: 1 | O16: 1 | P16: 1 | Q16: 1 | R16: 1 | S16: 1 | T16: 1 | U16: 1 | V16: 1 | W16: 1 | X16: 1 | Y16: 1 | Z16: 16 | AA16: 1 | AB16: 1 | AC16: 1 | AD16: 16 | AE16: 1 | AF16: 1 | AG16: 1 | AH16: 1 | AI16: 1 | AJ16: 1 | AK16: 1 | AL16: 1 | AM16: 1 | AN16: 1
A17: 16 | B17: 17 | C17: 17 | D17: 17 | E17: 1 | F17: 1 | G17: 1 | H17: 17 | I17: 1 | J17: 1 | K17: 1 | L17: 1 | M17: 1 | N17: 1 | O17: 1 | P17: 1 | Q17: 1 | R17: 1 | S17: 1 | T17: 1 | U17: 1 | V17: 1 | W17: 1 | X17: 1 | Y17: 1 | Z17: 1 | AA17: 1 | AB17: 1 | AC17: 1 | AD17: 1 | AE17: 1 | AF17: 1 | AG17: 1 | AH17: 17 | AI17: 1 | AJ17: 1 | AK17: 1 | AL17: 1 | AM17: 1 | AN17: 1
A18: 17 | B18: 18 | C18: 18 | D18: 1 | E18: 1 | F18: 18 | G18: 1 | H18: 1 | I18: 18 | J18: 1 | K18: 1 | L18: 1 | M18: 1 | N18: 1 | O18: 1 | P18: 1 | Q18: 1 | R18: 1 | S18: 1 | T18: 1 | U18: 1 | V18: 18 | W18: 1 | X18: 1 | Y18: 1 | Z18: 1 | AA18: 1 | AB18: 1 | AC18: 1 | AD18: 1 | AE18: 1 | AF18: 1 | AG18: 1 | AH18: 18 | AI18: 1 | AJ18: 1 | AK18: 1 | AL18: 1 | AM18: 1 | AN18: 18
A19: 18 | B19: 19 | C19: 19 | D19: 1 | E19: 1 | F19: 1 | G19: 1 | H19: 1 | I19: 1 | J19: 1 | K19: 1 | L19: 1 | M19: 1 | N19: 1 | O19: 1 | P19: 1 | Q19: 1 | R19: 1 | S19: 1 | T19: 1 | U19: 1 | V19: 19 | W19: 1 | X19: 1 | Y19: 1 | Z19: 1 | AA19: 1 | AB19: 1 | AC19: 1 | AD19: 1 | AE19: 1 | AF19: 1 | AG19: 1 | AH19: 1 | AI19: 1 | AJ19: 1 | AK19: 1 | AL19: 1 | AM19: 1 | AN19: 19
A20: 19 | B20: 20 | C20: 20 | D20: 20 | E20: 1 | F20: 1 | G20: 20 | H20: 1 | I20: 1 | J20: 1 | K20: 1 | L20: 1 | M20: 1 | N20: 1 | O20: 1 | P20: 1 | Q20: 1 | R20: 1 | S20: 1 | T20: 1 | U20: 1 | V20: 20 | W20: 1 | X20: 1 | Y20: 1 | Z20: 1 | AA20: 1 | AB20: 1 | AC20: 1 | AD20: 1 | AE20: 1 | AF20: 1 | AG20: 1 | AH20: 1 | AI20: 1 | AJ20: 1 | AK20: 1 | AL20: 1 | AM20: 1 | AN20: 1
A21: 20 | B21: 21 | C21: 21 | D21: 1 | E21: 1 | F21: 21 | G21: 1 | H21: 1 | I21: 1 | J21: 1 | K21: 21 | L21: 1 | M21: 1 | N21: 1 | O21: 1 | P21: 1 | Q21: 1 | R21: 1 | S21: 1 | T21: 1 | U21: 1 | V21: 21 | W21: 1 | X21: 1 | Y21: 1 | Z21: 1 | AA21: 1 | AB21: 1 | AC21: 1 | AD21: 1 | AE21: 1 | AF21: 1 | AG21: 1 | AH21: 1 | AI21: 1 | AJ21: 1 | AK21: 1 | AL21: 1 | AM21: 1 | AN21: 1
A22: 21 | B22: 22 | C22: 22 | D22: 1 | E22: 1 | F22: 1 | G22: 1 | H22: 1 | I22: 22 | J22: 1 | K22: 1 | L22: 1 | M22: 1 | N22: 1 | O22: 1 | P22: 1 | Q22: 1 | R22: 1 | S22: 1 | T22: 1 | U22: 1 | V22: 22 | W22: 1 | X22: 1 | Y22: 1 | Z22: 1 | AA22: 1 | AB22: 1 | AC22: 1 | AD22: 1 | AE22: 1 | AF22: 1 | AG22: 1 | AH22: 1 | AI22: 1 | AJ22: 1 | AK22: 1 | AL22: 1 | AM22: 1 | AN22: 1
A23: 22 | B23: 23 | C23: 23 | D23: 1 | E23: 1 | F23: 1 | G23: 1 | H23: 1 | I23: 1 | J23: 1 | K23: 1 | L23: 1 | M23: 1 | N23: 1 | O23: 1 | P23: 1 | Q23: 1 | R23: 1 | S23: 1 | T23: 1 | U23: 1 | V23: 23 | W23: 1 | X23: 1 | Y23: 23 | Z23: 1 | AA23: 1 | AB23: 1 | AC23: 1 | AD23: 23 | AE23: 23 | AF23: 1 | AG23: 1 | AH23: 1 | AI23: 1 | AJ23: 1 | AK23: 1 | AL23: 1 | AM23: 1 | AN23: 1
A24: 23 | B24: 24 | C24: 24 | D24: 1 | E24: 1 | F24: 24 | G24: 1 | H24: 1 | I24: 1 | J24: 1 | K24: 24 | L24: 1 | M24: 1 | N24: 1 | O24: 1 | P24: 1 | Q24: 1 | R24: 1 | S24: 1 | T24: 1 | U24: 1 | V24: 24 | W24: 1 | X24: 1 | Y24: 1 | Z24: 24 | AA24: 1 | AB24: 1 | AC24: 1 | AD24: 24 | AE24: 1 | AF24: 1 | AG24: 1 | AH24: 24 | AI24: 1 | AJ24: 1 | AK24: 1 | AL24: 1 | AM24: 1 | AN24: 24
A25: 24 | B25: 25 | C25: 25 | D25: 25 | E25: 25 | F25: 1 | G25: 1 | H25: 25 | I25: 1 | J25: 1 | K25: 1 | L25: 1 | M25: 1 | N25: 1 | O25: 1 | P25: 1 | Q25: 1 | R25: 1 | S25: 1 | T25: 1 | U25: 1 | V25: 1 | W25: 1 | X25: 1 | Y25: 1 | Z25: 1 | AA25: 1 | AB25: 1 | AC25: 1 | AD25: 1 | AE25: 1 | AF25: 1 | AG25: 1 | AH25: 1 | AI25: 1 | AJ25: 1 | AK25: 1 | AL25: 1 | AM25: 1 | AN25: 1
A26: 25 | B26: 26 | C26: 26 | D26: 26 | E26: 26 | F26: 1 | G26: 1 | H26: 1 | I26: 1 | J26: 1 | K26: 26 | L26: 1 | M26: 1 | N26: 1 | O26: 1 | P26: 1 | Q26: 1 | R26: 1 | S26: 1 | T26: 1 | U26: 1 | V26: 26 | W26: 1 | X26: 1 | Y26: 26 | Z26: 26 | AA26: 1 | AB26: 1 | AC26: 1 | AD26: 26 | AE26: 26 | AF26: 1 | AG26: 1 | AH26: 26 | AI26: 1 | AJ26: 1 | AK26: 1 | AL26: 1 | AM26: 1 | AN26: 1
A27: 26 | B27: 27 | C27: 27 | D27: 1 | E27: 1 | F27: 1 | G27: 27 | H27: 1 | I27: 1 | J27: 1 | K27: 27 | L27: 1 | M27: 1 | N27: 1 | O27: 1 | P27: 1 | Q27: 1 | R27: 1 | S27: 1 | T27: 1 | U27: 1 | V27: 27 | W27: 1 | X27: 1 | Y27: 1 | Z27: 1 | AA27: 1 | AB27: 1 | AC27: 1 | AD27: 1 | AE27: 1 | AF27: 1 | AG27: 1 | AH27: 1 | AI27: 1 | AJ27: 1 | AK27: 1 | AL27: 1 | AM27: 1 | AN27: 1
A28: 27 | B28: 28 | C28: 28 | D28: 1 | E28: 1 | F28: 1 | G28: 28 | H28: 28 | I28: 1 | J28: 1 | K28: 28 | L28: 1 | M28: 1 | N28: 1 | O28: 1 | P28: 1 | Q28: 1 | R28: 1 | S28: 1 | T28: 1 | U28: 1 | V28: 28 | W28: 1 | X28: 1 | Y28: 1 | Z28: 28 | AA28: 1 | AB28: 1 | AC28: 1 | AD28: 1 | AE28: 1 | AF28: 1 | AG28: 1 | AH28: 28 | AI28: 1 | AJ28: 1 | AK28: 1 | AL28: 1 | AM28: 1 | AN28: 1
A29: 28 | B29: 29 | C29: 29 | D29: 29 | E29: 1 | F29: 1 | G29: 29 | H29: 1 | I29: 1 | J29: 1 | K29: 1 | L29: 1 | M29: 1 | N29: 1 | O29: 1 | P29: 1 | Q29: 1 | R29: 1 | S29: 1 | T29: 1 | U29: 1 | V29: 1 | W29: 1 | X29: 1 | Y29: 1 | Z29: 1 | AA29: 1 | AB29: 1 | AC29: 1 | AD29: 1 | AE29: 1 | AF29: 1 | AG29: 1 | AH29: 1 | AI29: 1 | AJ29: 1 | AK29: 1 | AL29: 1 | AM29: 1 | AN29: 1
A30: 29 | B30: 30 | C30: 30 | D30: 1 | E30: 30 | F30: 30 | G30: 1 | H30: 1 | I30: 30 | J30: 1 | K30: 1 | L30: 1 | M30: 1 | N30: 1 | O30: 1 | P30: 1 | Q30: 1 | R30: 1 | S30: 1 | T30: 1 | U30: 1 | V30: 30 | W30: 1 | X30: 1 | Y30: 1 | Z30: 1 | AA30: 1 | AB30: 1 | AC30: 1 | AD30: 1 | AE30: 1 | AF30: 1 | AG30: 1 | AH30: 1 | AI30: 1 | AJ30: 1 | AK30: 1 | AL30: 1 | AM30: 1 | AN30: 1
A31: 30 | B31: 31 | C31: 31 | D31: 1 | E31: 1 | F31: 31 | G31: 1 | H31: 1 | I31: 1 | J31: 1 | K31: 1 | L31: 1 | M31: 1 | N31: 1 | O31: 1 | P31: 1 | Q31: 1 | R31: 1 | S31: 1 | T31: 1 | U31: 1 | V31: 31 | W31: 1 | X31: 1 | Y31: 1 | Z31: 31 | AA31: 1 | AB31: 1 | AC31: 1 | AD31: 31 | AE31: 31 | AF31: 1 | AG31: 1 | AH31: 1 | AI31: 1 | AJ31: 1 | AK31: 1 | AL31: 1 | AM31: 1 | AN31: 31
A32: 31 | B32: 32 | C32: 1 | D32: 32 | E32: 1 | F32: 32 | G32: 1 | H32: 1 | I32: 32 | J32: 1 | K32: 1 | L32: 1 | M32: 1 | N32: 1 | O32: 1 | P32: 1 | Q32: 1 | R32: 1 | S32: 1 | T32: 1 | U32: 1 | V32: 32 | W32: 1 | X32: 1 | Y32: 32 | Z32: 1 | AA32: 1 | AB32: 1 | AC32: 1 | AD32: 32 | AE32: 1 | AF32: 1 | AG32: 1 | AH32: 1 | AI32: 1 | AJ32: 1 | AK32: 1 | AL32: 1 | AM32: 1 | AN32: 1
A33: 32 | B33: 33 | C33: 33 | D33: 1 | E33: 1 | F33: 33 | G33: 33 | H33: 1 | I33: 33 | J33: 1 | K33: 1 | L33: 1 | M33: 1 | N33: 1 | O33: 1 | P33: 1 | Q33: 1 | R33: 1 | S33: 33 | T33: 1 | U33: 1 | V33: 33 | W33: 1 | X33: 1 | Y33: 1 | Z33: 33 | AA33: 1 | AB33: 1 | AC33: 1 | AD33: 33 | AE33: 33 | AF33: 1 | AG33: 1 | AH33: 1 | AI33: 1 | AJ33: 1 | AK33: 1 | AL33: 1 | AM33: 1 | AN33: 1
A34: 33 | B34: 34 | C34: 34 | D34: 1 | E34: 1 | F34: 1 | G34: 1 | H34: 1 | I34: 34 | J34: 1 | K34: 1 | L34: 1 | M34: 1 | N34: 1 | O34: 1 | P34: 1 | Q34: 1 | R34: 1 | S34: 1 | T34: 1 | U34: 1 | V34: 34 | W34: 1 | X34: 1 | Y34: 1 | Z34: 34 | AA34: 1 | AB34: 1 | AC34: 1 | AD34: 34 | AE34: 1 | AF34: 1 | AG34: 1 | AH34: 34 | AI34: 1 | AJ34: 1 | AK34: 1 | AL34: 1 | AM34: 1 | AN34: 1
A35: 34 | B35: 35 | C35: 35 | D35: 1 | E35: 1 | F35: 35 | G35: 1 | H35: 1 | I35: 1 | J35: 1 | K35: 1 | L35: 1 | M35: 1 | N35: 1 | O35: 1 | P35: 1 | Q35: 1 | R35: 1 | S35: 1 | T35: 1 | U35: 1 | V35: 35 | W35: 1 | X35: 1 | Y35: 1 | Z35: 1 | AA35: 1 | AB35: 1 | AC35: 1 | AD35: 1 | AE35: 1 | AF35: 1 | AG35: 1 | AH35: 1 | AI35: 1 | AJ35: 1 | AK35: 1 | AL35: 1 | AM35: 1 | AN35: 35
A36: 35 | B36: 36 | C36: 36 | D36: 1 | E36: 36 | F36: 1 | G36: 1 | H36: 1 | I36: 1 | J36: 1 | K36: 1 | L36: 1 | M36: 1 | N36: 36 | O36: 1 | P36: 1 | Q36: 1 | R36: 1 | S36: 1 | T36: 1 | U36: 1 | V36: 36 | W36: 1 | X36: 1 | Y36: 1 | Z36: 36 | AA36: 1 | AB36: 1 | AC36: 1 | AD36: 36 | AE36: 1 | AF36: 36 | AG36: 1 | AH36: 1 | AI36: 1 | AJ36: 1 | AK36: 1 | AL36: 1 | AM36: 1 | AN36: 1
A37: 36 | B37: 37 | C37: 37 | D37: 37 | E37: 1 | F37: 1 | G37: 1 | H37: 1 | I37: 1 | J37: 1 | K37: 1 | L37: 1 | M37: 1 | N37: 1 | O37: 1 | P37: 1 | Q37: 1 | R37: 1 | S37: 1 | T37: 37 | U37: 1 | V37: 1 | W37: 1 | X37: 1 | Y37: 1 | Z37: 37 | AA37: 1 | AB37: 1 | AC37: 1 | AD37: 1 | AE37: 1 | AF37: 1 | AG37: 1 | AH37: 37 | AI37: 1 | AJ37: 1 | AK37: 1 | AL37: 1 | AM37: 1 | AN37: 1
A38: 37 | B38: 38 | C38: 38 | D38: 38 | E38: 38 | F38: 1 | G38: 38 | H38: 1 | I38: 1 | J38: 1 | K38: 38 | L38: 1 | M38: 1 | N38: 1 | O38: 1 | P38: 1 | Q38: 1 | R38: 1 | S38: 1 | T38: 1 | U38: 1 | V38: 1 | W38: 1 | X38: 1 | Y38: 1 | Z38: 1 | AA38: 1 | AB38: 1 | AC38: 1 | AD38: 1 | AE38: 1 | AF38: 1 | AG38: 1 | AH38: 38 | AI38: 1 | AJ38: 1 | AK38: 1 | AL38: 1 | AM38: 1 | AN38: 1
A39: 38 | B39: 39 | C39: 39 | D39: 1 | E39: 1 | F39: 1 | G39: 39 | H39: 1 | I39: 1 | J39: 1 | K39: 1 | L39: 39 | M39: 1 | N39: 1 | O39: 1 | P39: 1 | Q39: 1 | R39: 1 | S39: 1 | T39: 1 | U39: 1 | V39: 39 | W39: 1 | X39: 1 | Y39: 1 | Z39: 39 | AA39: 1 | AB39: 1 | AC39: 1 | AD39: 39 | AE39: 1 | AF39: 1 | AG39: 1 | AH39: 1 | AI39: 1 | AJ39: 1 | AK39: 1 | AL39: 1 | AM39: 1 | AN39: 1
A40: 39 | B40: 40 | C40: 40 | D40: 1 | E40: 1 | F40: 40 | G40: 1 | H40: 1 | I40: 1 | J40: 1 | K40: 1 | L40: 1 | M40: 1 | N40: 1 | O40: 1 | P40: 1 | Q40: 1 | R40: 1 | S40: 1 | T40: 1 | U40: 1 | V40: 40 | W40: 1 | X40: 1 | Y40: 1 | Z40: 1 | AA40: 1 | AB40: 1 | AC40: 1 | AD40: 1 | AE40: 1 | AF40: 1 | AG40: 1 | AH40: 40 | AI40: 1 | AJ40: 1 | AK40: 1 | AL40: 1 | AM40: 1 | AN40: 1
A41: 40 | B41: 41 | C41: 41 | D41: 41 | E41: 1 | F41: 1 | G41: 41 | H41: 1 | I41: 1 | J41: 1 | K41: 1 | L41: 1 | M41: 1 | N41: 1 | O41: 1 | P41: 1 | Q41: 1 | R41: 1 | S41: 1 | T41: 1 | U41: 1 | V41: 41 | W41: 1 | X41: 1 | Y41: 1 | Z41: 1 | AA41: 1 | AB41: 1 | AC41: 1 | AD41: 1 | AE41: 1 | AF41: 1 | AG41: 1 | AH41: 41 | AI41: 1 | AJ41: 1 | AK41: 1 | AL41: 1 | AM41: 1 | AN41: 1
A42: 41 | B42: 42 | C42: 42 | D42: 1 | E42: 42 | F42: 42 | G42: 1 | H42: 1 | I42: 42 | J42: 1 | K42: 1 | L42: 1 | M42: 1 | N42: 42 | O42: 1 | P42: 1 | Q42: 1 | R42: 1 | S42: 1 | T42: 1 | U42: 1 | V42: 42 | W42: 42 | X42: 1 | Y42: 1 | Z42: 1 | AA42: 1 | AB42: 1 | AC42: 1 | AD42: 1 | AE42: 1 | AF42: 1 | AG42: 1 | AH42: 42 | AI42: 1 | AJ42: 1 | AK42: 1 | AL42: 1 | AM42: 1 | AN42: 1
A43: 42 | B43: 43 | C43: 43 | D43: 1 | E43: 1 | F43: 1 | G43: 1 | H43: 1 | I43: 1 | J43: 1 | K43: 43 | L43: 1 | M43: 1 | N43: 1 | O43: 1 | P43: 1 | Q43: 1 | R43: 1 | S43: 1 | T43: 1 | U43: 1 | V43: 43 | W43: 1 | X43: 1 | Y43: 43 | Z43: 1 | AA43: 1 | AB43: 1 | AC43: 1 | AD43: 43 | AE43: 43 | AF43: 43 | AG43: 1 | AH43: 1 | AI43: 1 | AJ43: 1 | AK43: 1 | AL43: 1 | AM43: 1 | AN43: 1
A44: 43 | B44: 44 | C44: 44 | D44: 1 | E44: 1 | F44: 1 | G44: 1 | H44: 44 | I44: 1 | J44: 1 | K44: 44 | L44: 1 | M44: 1 | N44: 1 | O44: 1 | P44: 1 | Q44: 1 | R44: 1 | S44: 1 | T44: 1 | U44: 1 | V44: 44 | W44: 1 | X44: 1 | Y44: 1 | Z44: 1 | AA44: 1 | AB44: 1 | AC44: 1 | AD44: 1 | AE44: 1 | AF44: 1 | AG44: 1 | AH44: 1 | AI44: 1 | AJ44: 1 | AK44: 1 | AL44: 44 | AM44: 1 | AN44: 1
A45: 44 | B45: 45 | C45: 1 | D45: 1 | E45: 1 | F45: 1 | G45: 1 | H45: 1 | I45: 45 | J45: 1 | K45: 45 | L45: 1 | M45: 1 | N45: 1 | O45: 1 | P45: 1 | Q45: 1 | R45: 1 | S45: 1 | T45: 1 | U45: 1 | V45: 1 | W45: 1 | X45: 1 | Y45: 45 | Z45: 45 | AA45: 1 | AB45: 1 | AC45: 1 | AD45: 45 | AE45: 1 | AF45: 1 | AG45: 1 | AH45: 1 | AI45: 1 | AJ45: 1 | AK45: 45 | AL45: 1 | AM45: 1 | AN45: 1
A46: 45 | B46: 46 | C46: 1 | D46: 1 | E46: 1 | F46: 1 | G46: 1 | H46: 1 | I46: 1 | J46: 1 | K46: 1 | L46: 1 | M46: 1 | N46: 46 | O46: 1 | P46: 1 | Q46: 1 | R46: 1 | S46: 1 | T46: 46 | U46: 1 | V46: 1 | W46: 1 | X46: 1 | Y46: 1 | Z46: 1 | AA46: 1 | AB46: 1 | AC46: 1 | AD46: 1 | AE46: 1 | AF46: 1 | AG46: 1 | AH46: 46 | AI46: 46 | AJ46: 1 | AK46: 1 | AL46: 1 | AM46: 1 | AN46: 1
A47: 46 | B47: 47 | C47: 47 | D47: 47 | E47: 1 | F47: 1 | G47: 1 | H47: 1 | I47: 1 | J47: 1 | K47: 1 | L47: 1 | M47: 1 | N47: 1 | O47: 1 | P47: 1 | Q47: 1 | R47: 1 | S47: 1 | T47: 1 | U47: 1 | V47: 1 | W47: 1 | X47: 1 | Y47: 1 | Z47: 1 | AA47: 1 | AB47: 1 | AC47: 1 | AD47: 1 | AE47: 1 | AF47: 1 | AG47: 1 | AH47: 1 | AI47: 1 | AJ47: 1 | AK47: 1 | AL47: 1 | AM47: 47 | AN47: 1
A48: 47 | B48: 48 | C48: 48 | D48: 48 | E48: 1 | F48: 1 | G48: 1 | H48: 1 | I48: 1 | J48: 1 | K48: 1 | L48: 1 | M48: 1 | N48: 1 | O48: 1 | P48: 1 | Q48: 1 | R48: 1 | S48: 1 | T48: 1 | U48: 1 | V48: 1 | W48: 1 | X48: 1 | Y48: 1 | Z48: 1 | AA48: 1 | AB48: 1 | AC48: 1 | AD48: 1 | AE48: 1 | AF48: 1 | AG48: 1 | AH48: 48 | AI48: 1 | AJ48: 1 | AK48: 1 | AL48: 48 | AM48: 48 | AN48: 1
A49: 48 | B49: 49 | C49: 49 | D49: 49 | E49: 1 | F49: 1 | G49: 1 | H49: 1 | I49: 1 | J49: 1 | K49: 49 | L49: 1 | M49: 1 | N49: 1 | O49: 1 | P49: 1 | Q49: 1 | R49: 1 | S49: 1 | T49: 1 | U49: 1 | V49: 1 | W49: 1 | X49: 1 | Y49: 1 | Z49: 1 | AA49: 1 | AB49: 1 | AC49: 1 | AD49: 1 | AE49: 1 | AF49: 1 | AG49: 1 | AH49: 49 | AI49: 1 | AJ49: 1 | AK49: 1 | AL49: 1 | AM49: 49 | AN49: 1
A50: 49 | B50: 50 | C50: 1 | D50: 1 | E50: 1 | F50: 1 | G50: 1 | H50: 1 | I50: 1 | J50: 1 | K50: 1 | L50: 50 | M50: 1 | N50: 1 | O50: 1 | P50: 50 | Q50: 1 | R50: 1 | S50: 50 | T50: 1 | U50: 1 | V50: 50 | W50: 50 | X50: 1 | Y50: 1 | Z50: 1 | AA50: 1 | AB50: 1 | AC50: 1 | AD50: 1 | AE50: 1 | AF50: 1 | AG50: 1 | AH50: 1 | AI50: 1 | AJ50: 1 | AK50: 1 | AL50: 1 | AM50: 1 | AN50: 50
A51: 50 | B51: 51 | C51: 1 | D51: 1 | E51: 1 | F51: 1 | G51: 1 | H51: 1 | I51: 1 | J51: 1 | K51: 1 | L51: 1 | M51: 1 | N51: 1 | O51: 1 | P51: 1 | Q51: 1 | R51: 1 | S51: 1 | T51: 1 | U51: 1 | V51: 51 | W51: 51 | X51: 1 | Y51: 1 | Z51: 1 | AA51: 1 | AB51: 1 | AC51: 51 | AD51: 51 | AE51: 51 | AF51: 51 | AG51: 1 | AH51: 1 | AI51: 51 | AJ51: 51 | AK51: 1 | AL51: 51 | AM51: 1 | AN51: 1
A52: 51 | B52: 52 | C52: 1 | D52: 1 | E52: 1 | F52: 52 | G52: 1 | H52: 1 | I52: 52 | J52: 1 | K52: 1 | L52: 1 | M52: 1 | N52: 1 | O52: 1 | P52: 1 | Q52: 52 | R52: 1 | S52: 52 | T52: 1 | U52: 1 | V52: 52 | W52: 1 | X52: 1 | Y52: 1 | Z52: 1 | AA52: 1 | AB52: 52 | AC52: 52 | AD52: 52 | AE52: 1 | AF52: 1 | AG52: 1 | AH52: 1 | AI52: 52 | AJ52: 52 | AK52: 52 | AL52: 1 | AM52: 1 | AN52: 1
A53: 52 | B53: 53 | C53: 53 | D53: 53 | E53: 53 | F53: 53 | G53: 53 | H53: 1 | I53: 1 | J53: 1 | K53: 1 | L53: 53 | M53: 53 | N53: 53 | O53: 53 | P53: 53 | Q53: 53 | R53: 53 | S53: 53 | T53: 53 | U53: 1 | V53: 53 | W53: 53 | X53: 1 | Y53: 53 | Z53: 1 | AA53: 1 | AB53: 53 | AC53: 53 | AD53: 53 | AE53: 53 | AF53: 1 | AG53: 1 | AH53: 53 | AI53: 53 | AJ53: 53 | AK53: 53 | AL53: 53 | AM53: 1 | AN53: 1
A54: 53 | B54: 54 | C54: 54 | D54: 1 | E54: 1 | F54: 1 | G54: 1 | H54: 1 | I54: 54 | J54: 1 | K54: 1 | L54: 1 | M54: 1 | N54: 1 | O54: 1 | P54: 1 | Q54: 54 | R54: 1 | S54: 1 | T54: 1 | U54: 1 | V54: 54 | W54: 1 | X54: 1 | Y54: 54 | Z54: 1 | AA54: 1 | AB54: 1 | AC54: 1 | AD54: 54 | AE54: 1 | AF54: 1 | AG54: 1 | AH54: 1 | AI54: 1 | AJ54: 1 | AK54: 1 | AL54: 1 | AM54: 1 | AN54: 1
A55: 54 | B55: 55 | C55: 55 | D55: 1 | E55: 1 | F55: 55 | G55: 1 | H55: 1 | I55: 55 | J55: 1 | K55: 1 | L55: 1 | M55: 1 | N55: 1 | O55: 1 | P55: 1 | Q55: 1 | R55: 1 | S55: 1 | T55: 1 | U55: 1 | V55: 55 | W55: 55 | X55: 1 | Y55: 1 | Z55: 1 | AA55: 1 | AB55: 1 | AC55: 1 | AD55: 1 | AE55: 1 | AF55: 1 | AG55: 1 | AH55: 1 | AI55: 1 | AJ55: 1 | AK55: 1 | AL55: 1 | AM55: 1 | AN55: 1
A56: 55 | B56: 56 | C56: 56 | D56: 56 | E56: 1 | F56: 1 | G56: 56 | H56: 1 | I56: 1 | J56: 1 | K56: 1 | L56: 1 | M56: 1 | N56: 56 | O56: 1 | P56: 1 | Q56: 1 | R56: 1 | S56: 1 | T56: 1 | U56: 1 | V56: 1 | W56: 1 | X56: 1 | Y56: 1 | Z56: 1 | AA56: 1 | AB56: 1 | AC56: 1 | AD56: 1 | AE56: 1 | AF56: 1 | AG56: 1 | AH56: 1 | AI56: 1 | AJ56: 1 | AK56: 1 | AL56: 56 | AM56: 1 | AN56: 1
A57: 56 | B57: 57 | C57: 57 | D57: 1 | E57: 1 | F57: 1 | G57: 1 | H57: 1 | I57: 1 | J57: 1 | K57: 1 | L57: 1 | M57: 1 | N57: 57 | O57: 1 | P57: 1 | Q57: 1 | R57: 1 | S57: 1 | T57: 1 | U57: 1 | V57: 57 | W57: 1 | X57: 1 | Y57: 1 | Z57: 1 | AA57: 1 | AB57: 1 | AC57: 1 | AD57: 1 | AE57: 1 | AF57: 1 | AG57: 57 | AH57: 1 | AI57: 1 | AJ57: 1 | AK57: 1 | AL57: 1 | AM57: 1 | AN57: 1
A58: 57 | B58: 58 | C58: 58 | D58: 1 | E58: 1 | F58: 1 | G58: 58 | H58: 1 | I58: 1 | J58: 1 | K58: 1 | L58: 1 | M58: 1 | N58: 1 | O58: 1 | P58: 1 | Q58: 1 | R58: 1 | S58: 58 | T58: 1 | U58: 1 | V58: 58 | W58: 58 | X58: 1 | Y58: 1 | Z58: 1 | AA58: 1 | AB58: 1 | AC58: 1 | AD58: 58 | AE58: 1 | AF58: 1 | AG58: 1 | AH58: 1 | AI58: 1 | AJ58: 1 | AK58: 1 | AL58: 1 | AM58: 1 | AN58: 1
A59: 58 | B59: 59 | C59: 1 | D59: 1 | E59: 1 | F59: 1 | G59: 1 | H59: 1 | I59: 1 | J59: 1 | K59: 1 | L59: 1 | M59: 1 | N59: 1 | O59: 1 | P59: 1 | Q59: 1 | R59: 1 | S59: 1 | T59: 1 | U59: 1 | V59: 1 | W59: 1 | X59: 1 | Y59: 1 | Z59: 59 | AA59: 1 | AB59: 1 | AC59: 1 | AD59: 59 | AE59: 1 | AF59: 1 | AG59: 1 | AH59: 1 | AI59: 59 | AJ59: 59 | AK59: 1 | AL59: 1 | AM59: 1 | AN59: 1
A60: 59 | B60: 60 | C60: 60 | D60: 1 | E60: 1 | F60: 1 | G60: 1 | H60: 1 | I60: 1 | J60: 1 | K60: 1 | L60: 1 | M60: 1 | N60: 1 | O60: 1 | P60: 1 | Q60: 1 | R60: 1 | S60: 60 | T60: 1 | U60: 1 | V60: 1 | W60: 1 | X60: 1 | Y60: 1 | Z60: 1 | AA60: 1 | AB60: 1 | AC60: 1 | AD60: 1 | AE60: 1 | AF60: 1 | AG60: 1 | AH60: 60 | AI60: 1 | AJ60: 1 | AK60: 1 | AL60: 1 | AM60: 60 | AN60: 1
A61: 60 | B61: 61 | C61: 61 | D61: 1 | E61: 1 | F61: 1 | G61: 61 | H61: 1 | I61: 1 | J61: 1 | K61: 1 | L61: 1 | M61: 1 | N61: 61 | O61: 1 | P61: 1 | Q61: 1 | R61: 1 | S61: 1 | T61: 1 | U61: 1 | V61: 1 | W61: 1 | X61: 1 | Y61: 1 | Z61: 1 | AA61: 1 | AB61: 1 | AC61: 1 | AD61: 1 | AE61: 1 | AF61: 1 | AG61: 1 | AH61: 1 | AI61: 1 | AJ61: 1 | AK61: 61 | AL61: 1 | AM61: 1 | AN61: 1
A62: 61 | B62: 62 | C62: 62 | D62: 62 | E62: 1 | F62: 1 | G62: 1 | H62: 1 | I62: 1 | J62: 1 | K62: 1 | L62: 1 | M62: 1 | N62: 62 | O62: 1 | P62: 1 | Q62: 1 | R62: 1 | S62: 1 | T62: 1 | U62: 1 | V62: 62 | W62: 1 | X62: 1 | Y62: 1 | Z62: 1 | AA62: 1 | AB62: 1 | AC62: 1 | AD62: 1 | AE62: 1 | AF62: 1 | AG62: 1 | AH62: 1 | AI62: 1 | AJ62: 1 | AK62: 1 | AL62: 1 | AM62: 1 | AN62: 1
A63: 62 | B63: 63 | C63: 63 | D63: 63 | E63: 1 | F63: 1 | G63: 63 | H63: 1 | I63: 1 | J63: 1 | K63: 1 | L63: 1 | M63: 1 | N63: 1 | O63: 1 | P63: 1 | Q63: 1 | R63: 1 | S63: 1 | T63: 63 | U63: 1 | V63: 1 | W63: 1 | X63: 1 | Y63: 1 | Z63: 1 | AA63: 1 | AB63: 1 | AC63: 1 | AD63: 1 | AE63: 1 | AF63: 1 | AG63: 1 | AH63: 1 | AI63: 1 | AJ63: 1 | AK63: 1 | AL63: 1 | AM63: 1 | AN63: 1
A64: 63 | B64: 64 | C64: 64 | D64: 1 | E64: 1 | F64: 1 | G64: 1 | H64: 64 | I64: 1 | J64: 1 | K64: 1 | L64: 64 | M64: 1 | N64: 64 | O64: 1 | P64: 1 | Q64: 1 | R64: 1 | S64: 64 | T64: 1 | U64: 1 | V64: 64 | W64: 1 | X64: 1 | Y64: 1 | Z64: 1 | AA64: 1 | AB64: 1 | AC64: 1 | AD64: 1 | AE64: 1 | AF64: 1 | AG64: 1 | AH64: 1 | AI64: 1 | AJ64: 1 | AK64: 1 | AL64: 1 | AM64: 1 | AN64: 1
A65: 64 | B65: 65 | C65: 1 | D65: 65 | E65: 65 | F65: 1 | G65: 65 | H65: 1 | I65: 1 | J65: 1 | K65: 1 | L65: 1 | M65: 1 | N65: 1 | O65: 1 | P65: 1 | Q65: 1 | R65: 1 | S65: 1 | T65: 1 | U65: 1 | V65: 1 | W65: 1 | X65: 1 | Y65: 1 | Z65: 65 | AA65: 1 | AB65: 1 | AC65: 1 | AD65: 1 | AE65: 1 | AF65: 1 | AG65: 65 | AH65: 1 | AI65: 1 | AJ65: 1 | AK65: 1 | AL65: 65 | AM65: 1 | AN65: 1
A66: 65 | B66: 66 | C66: 66 | D66: 66 | E66: 66 | F66: 1 | G66: 1 | H66: 1 | I66: 1 | J66: 1 | K66: 1 | L66: 1 | M66: 1 | N66: 1 | O66: 1 | P66: 1 | Q66: 1 | R66: 1 | S66: 1 | T66: 1 | U66: 1 | V66: 1 | W66: 1 | X66: 1 | Y66: 1 | Z66: 1 | AA66: 1 | AB66: 1 | AC66: 1 | AD66: 1 | AE66: 1 | AF66: 1 | AG66: 1 | AH66: 1 | AI66: 1 | AJ66: 1 | AK66: 1 | AL66: 1 | AM66: 1 | AN66: 1
A67: 66 | B67: 67 | C67: 67 | D67: 67 | E67: 67 | F67: 1 | G67: 67 | H67: 1 | I67: 1 | J67: 1 | K67: 1 | L67: 1 | M67: 1 | N67: 1 | O67: 1 | P67: 1 | Q67: 1 | R67: 1 | S67: 1 | T67: 1 | U67: 1 | V67: 1 | W67: 1 | X67: 1 | Y67: 1 | Z67: 1 | AA67: 1 | AB67: 1 | AC67: 1 | AD67: 1 | AE67: 1 | AF67: 1 | AG67: 1 | AH67: 1 | AI67: 1 | AJ67: 1 | AK67: 1 | AL67: 1 | AM67: 1 | AN67: 1
A68: 67 | B68: 68 | C68: 68 | D68: 68 | E68: 68 | F68: 1 | G68: 1 | H68: 1 | I68: 1 | J68: 1 | K68: 1 | L68: 1 | M68: 1 | N68: 1 | O68: 68 | P68: 1 | Q68: 1 | R68: 1 | S68: 1 | T68: 1 | U68: 1 | V68: 68 | W68: 1 | X68: 1 | Y68: 1 | Z68: 1 | AA68: 1 | AB68: 1 | AC68: 1 | AD68: 1 | AE68: 1 | AF68: 1 | AG68: 1 | AH68: 1 | AI68: 1 | AJ68: 1 | AK68: 1 | AL68: 1 | AM68: 1 | AN68: 1
A69: 68 | B69: 69 | C69: 69 | D69: 1 | E69: 1 | F69: 1 | G69: 1 | H69: 1 | I69: 1 | J69: 1 | K69: 1 | L69: 1 | M69: 1 | N69: 1 | O69: 1 | P69: 1 | Q69: 1 | R69: 1 | S69: 1 | T69: 1 | U69: 1 | V69: 1 | W69: 1 | X69: 1 | Y69: 1 | Z69: 1 | AA69: 1 | AB69: 1 | AC69: 1 | AD69: 1 | AE69: 1 | AF69: 1 | AG69: 1 | AH69: 69 | AI69: 1 | AJ69: 1 | AK69: 1 | AL69: 69 | AM69: 1 | AN69: 1
A70: 69 | B70: 70 | C70: 70 | D70: 70 | E70: 70 | F70: 1 | G70: 70 | H70: 1 | I70: 1 | J70: 1 | K70: 1 | L70: 1 | M70: 70 | N70: 1 | O70: 1 | P70: 1 | Q70: 1 | R70: 1 | S70: 1 | T70: 1 | U70: 1 | V70: 1 | W70: 1 | X70: 1 | Y70: 1 | Z70: 1 | AA70: 1 | AB70: 1 | AC70: 1 | AD70: 1 | AE70: 1 | AF70: 1 | AG70: 1 | AH70: 1 | AI70: 1 | AJ70: 1 | AK70: 1 | AL70: 70 | AM70: 1 | AN70: 1
A71: 70 | B71: 71 | C71: 71 | D71: 71 | E71: 1 | F71: 1 | G71: 1 | H71: 1 | I71: 1 | J71: 1 | K71: 1 | L71: 1 | M71: 1 | N71: 1 | O71: 1 | P71: 1 | Q71: 1 | R71: 1 | S71: 1 | T71: 71 | U71: 1 | V71: 1 | W71: 1 | X71: 1 | Y71: 71 | Z71: 1 | AA71: 1 | AB71: 1 | AC71: 1 | AD71: 1 | AE71: 1 | AF71: 1 | AG71: 71 | AH71: 71 | AI71: 1 | AJ71: 1 | AK71: 1 | AL71: 1 | AM71: 1 | AN71: 1
A72: 71 | B72: 72 | C72: 72 | D72: 1 | E72: 1 | F72: 1 | G72: 1 | H72: 1 | I72: 1 | J72: 1 | K72: 1 | L72: 1 | M72: 1 | N72: 1 | O72: 1 | P72: 1 | Q72: 1 | R72: 1 | S72: 1 | T72: 72 | U72: 1 | V72: 1 | W72: 1 | X72: 1 | Y72: 1 | Z72: 1 | AA72: 1 | AB72: 1 | AC72: 1 | AD72: 1 | AE72: 1 | AF72: 1 | AG72: 1 | AH72: 1 | AI72: 1 | AJ72: 1 | AK72: 1 | AL72: 72 | AM72: 1 | AN72: 1
A73: 72 | B73: 73 | C73: 73 | D73: 73 | E73: 73 | F73: 1 | G73: 1 | H73: 1 | I73: 1 | J73: 1 | K73: 1 | L73: 1 | M73: 1 | N73: 1 | O73: 1 | P73: 1 | Q73: 1 | R73: 1 | S73: 1 | T73: 73 | U73: 1 | V73: 1 | W73: 1 | X73: 1 | Y73: 1 | Z73: 1 | AA73: 1 | AB73: 1 | AC73: 1 | AD73: 1 | AE73: 1 | AF73: 1 | AG73: 1 | AH73: 73 | AI73: 1 | AJ73: 1 | AK73: 1 | AL73: 1 | AM73: 1 | AN73: 1
A74: 73 | B74: 74 | C74: 74 | D74: 74 | E74: 1 | F74: 1 | G74: 74 | H74: 1 | I74: 1 | J74: 1 | K74: 1 | L74: 1 | M74: 1 | N74: 1 | O74: 1 | P74: 1 | Q74: 1 | R74: 1 | S74: 1 | T74: 74 | U74: 1 | V74: 1 | W74: 1 | X74: 1 | Y74: 1 | Z74: 74 | AA74: 1 | AB74: 1 | AC74: 1 | AD74: 1 | AE74: 1 | AF74: 1 | AG74: 1 | AH74: 1 | AI74: 1 | AJ74: 1 | AK74: 1 | AL74: 1 | AM74: 1 | AN74: 1
A75: 74 | B75: 75 | C75: 75 | D75: 75 | E75: 1 | F75: 1 | G75: 75 | H75: 1 | I75: 1 | J75: 1 | K75: 1 | L75: 1 | M75: 1 | N75: 1 | O75: 1 | P75: 1 | Q75: 1 | R75: 1 | S75: 1 | T75: 1 | U75: 1 | V75: 1 | W75: 1 | X75: 1 | Y75: 1 | Z75: 1 | AA75: 1 | AB75: 1 | AC75: 1 | AD75: 1 | AE75: 1 | AF75: 1 | AG75: 1 | AH75: 1 | AI75: 1 | AJ75: 1 | AK75: 1 | AL75: 75 | AM75: 1 | AN75: 1
A76: 75 | B76: 76 | C76: 76 | D76: 76 | E76: 1 | F76: 1 | G76: 1 | H76: 1 | I76: 1 | J76: 1 | K76: 1 | L76: 1 | M76: 1 | N76: 1 | O76: 1 | P76: 1 | Q76: 1 | R76: 1 | S76: 1 | T76: 76 | U76: 1 | V76: 1 | W76: 1 | X76: 1 | Y76: 1 | Z76: 1 | AA76: 1 | AB76: 1 | AC76: 1 | AD76: 1 | AE76: 1 | AF76: 1 | AG76: 1 | AH76: 1 | AI76: 1 | AJ76: 1 | AK76: 1 | AL76: 1 | AM76: 1 | AN76: 1
A77: 76 | B77: 77 | C77: 77 | D77: 1 | E77: 1 | F77: 1 | G77: 77 | H77: 1 | I77: 1 | J77: 1 | K77: 1 | L77: 1 | M77: 1 | N77: 1 | O77: 1 | P77: 1 | Q77: 1 | R77: 1 | S77: 77 | T77: 1 | U77: 1 | V77: 1 | W77: 1 | X77: 1 | Y77: 77 | Z77: 77 | AA77: 1 | AB77: 1 | AC77: 77 | AD77: 77 | AE77: 1 | AF77: 1 | AG77: 1 | AH77: 77 | AI77: 77 | AJ77: 1 | AK77: 1 | AL77: 1 | AM77: 1 | AN77: 1
A78: 77 | B78: 78 | C78: 1 | D78: 1 | E78: 1 | F78: 78 | G78: 1 | H78: 1 | I78: 1 | J78: 1 | K78: 1 | L78: 1 | M78: 1 | N78: 78 | O78: 1 | P78: 1 | Q78: 1 | R78: 1 | S78: 78 | T78: 1 | U78: 1 | V78: 1 | W78: 1 | X78: 1 | Y78: 1 | Z78: 1 | AA78: 1 | AB78: 1 | AC78: 78 | AD78: 1 | AE78: 1 | AF78: 1 | AG78: 1 | AH78: 78 | AI78: 1 | AJ78: 1 | AK78: 78 | AL78: 1 | AM78: 1 | AN78: 1
A79: 78 | B79: 79 | C79: 1 | D79: 79 | E79: 1 | F79: 1 | G79: 79 | H79: 1 | I79: 1 | J79: 1 | K79: 1 | L79: 1 | M79: 1 | N79: 1 | O79: 1 | P79: 1 | Q79: 1 | R79: 1 | S79: 1 | T79: 1 | U79: 1 | V79: 79 | W79: 1 | X79: 1 | Y79: 1 | Z79: 79 | AA79: 1 | AB79: 1 | AC79: 79 | AD79: 1 | AE79: 1 | AF79: 1 | AG79: 1 | AH79: 79 | AI79: 1 | AJ79: 1 | AK79: 1 | AL79: 79 | AM79: 1 | AN79: 1
A80: 79 | B80: 80 | C80: 1 | D80: 1 | E80: 1 | F80: 80 | G80: 1 | H80: 1 | I80: 1 | J80: 1 | K80: 1 | L80: 1 | M80: 1 | N80: 1 | O80: 1 | P80: 1 | Q80: 1 | R80: 1 | S80: 1 | T80: 1 | U80: 80 | V80: 80 | W80: 80 | X80: 1 | Y80: 1 | Z80: 1 | AA80: 1 | AB80: 1 | AC80: 80 | AD80: 1 | AE80: 1 | AF80: 1 | AG80: 1 | AH80: 1 | AI80: 1 | AJ80: 1 | AK80: 1 | AL80: 1 | AM80: 1 | AN80: 1
A81: 80 | B81: 81 | C81: 81 | D81: 81 | E81: 1 | F81: 81 | G81: 1 | H81: 1 | I81: 1 | J81: 1 | K81: 1 | L81: 1 | M81: 1 | N81: 1 | O81: 1 | P81: 1 | Q81: 1 | R81: 1 | S81: 1 | T81: 81 | U81: 1 | V81: 81 | W81: 1 | X81: 1 | Y81: 1 | Z81: 81 | AA81: 1 | AB81: 1 | AC81: 1 | AD81: 1 | AE81: 81 | AF81: 1 | AG81: 81 | AH81: 1 | AI81: 1 | AJ81: 1 | AK81: 1 | AL81: 1 | AM81: 1 | AN81: 1
A82: 81 | B82: 82 | C82: 82 | D82: 82 | E82: 1 | F82: 1 | G82: 82 | H82: 82 | I82: 1 | J82: 1 | K82: 1 | L82: 1 | M82: 1 | N82: 1 | O82: 1 | P82: 1 | Q82: 1 | R82: 1 | S82: 1 | T82: 1 | U82: 1 | V82: 1 | W82: 1 | X82: 1 | Y82: 1 | Z82: 1 | AA82: 1 | AB82: 1 | AC82: 82 | AD82: 1 | AE82: 1 | AF82: 1 | AG82: 1 | AH82: 1 | AI82: 1 | AJ82: 1 | AK82: 1 | AL82: 1 | AM82: 1 | AN82: 1
A83: 82 | B83: 83 | C83: 83 | D83: 83 | E83: 83 | F83: 83 | G83: 83 | H83: 1 | I83: 1 | J83: 1 | K83: 1 | L83: 1 | M83: 1 | N83: 1 | O83: 1 | P83: 1 | Q83: 1 | R83: 1 | S83: 1 | T83: 1 | U83: 1 | V83: 83 | W83: 1 | X83: 1 | Y83: 1 | Z83: 83 | AA83: 1 | AB83: 1 | AC83: 83 | AD83: 1 | AE83: 83 | AF83: 1 | AG83: 83 | AH83: 83 | AI83: 1 | AJ83: 1 | AK83: 1 | AL83: 1 | AM83: 1 | AN83: 1
A84: 83 | B84: 84 | C84: 84 | D84: 84 | E84: 1 | F84: 1 | G84: 84 | H84: 1 | I84: 1 | J84: 1 | K84: 1 | L84: 1 | M84: 84 | N84: 1 | O84: 1 | P84: 1 | Q84: 1 | R84: 1 | S84: 84 | T84: 1 | U84: 1 | V84: 1 | W84: 1 | X84: 84 | Y84: 84 | Z84: 1 | AA84: 1 | AB84: 84 | AC84: 84 | AD84: 1 | AE84: 1 | AF84: 1 | AG84: 84 | AH84: 84 | AI84: 1 | AJ84: 1 | AK84: 1 | AL84: 1 | AM84: 1 | AN84: 84
A85: 84 | B85: 85 | C85: 85 | D85: 1 | E85: 1 | F85: 1 | G85: 1 | H85: 1 | I85: 1 | J85: 1 | K85: 1 | L85: 1 | M85: 1 | N85: 85 | O85: 1 | P85: 1 | Q85: 1 | R85: 1 | S85: 1 | T85: 1 | U85: 1 | V85: 1 | W85: 1 | X85: 1 | Y85: 1 | Z85: 1 | AA85: 1 | AB85: 1 | AC85: 1 | AD85: 1 | AE85: 1 | AF85: 1 | AG85: 1 | AH85: 1 | AI85: 85 | AJ85: 1 | AK85: 1 | AL85: 1 | AM85: 85 | AN85: 1
A86: 85 | B86: 86 | C86: 86 | D86: 86 | E86: 1 | F86: 1 | G86: 1 | H86: 1 | I86: 1 | J86: 1 | K86: 1 | L86: 86 | M86: 1 | N86: 1 | O86: 1 | P86: 1 | Q86: 1 | R86: 1 | S86: 1 | T86: 1 | U86: 1 | V86: 1 | W86: 1 | X86: 1 | Y86: 1 | Z86: 86 | AA86: 1 | AB86: 1 | AC86: 86 | AD86: 1 | AE86: 1 | AF86: 1 | AG86: 1 | AH86: 1 | AI86: 1 | AJ86: 1 | AK86: 1 | AL86: 1 | AM86: 1 | AN86: 1
A87: 86 | B87: 87 | C87: 87 | D87: 1 | E87: 1 | F87: 87 | G87: 87 | H87: 1 | I87: 1 | J87: 1 | K87: 1 | L87: 1 | M87: 1 | N87: 1 | O87: 1 | P87: 1 | Q87: 1 | R87: 1 | S87: 1 | T87: 1 | U87: 87 | V87: 1 | W87: 1 | X87: 1 | Y87: 1 | Z87: 87 | AA87: 1 | AB87: 1 | AC87: 1 | AD87: 87 | AE87: 1 | AF87: 1 | AG87: 1 | AH87: 1 | AI87: 1 | AJ87: 1 | AK87: 1 | AL87: 1 | AM87: 1 | AN87: 1
A88: 87 | B88: 88 | C88: 1 | D88: 88 | E88: 88 | F88: 88 | G88: 88 | H88: 1 | I88: 1 | J88: 1 | K88: 1 | L88: 1 | M88: 1 | N88: 1 | O88: 1 | P88: 1 | Q88: 1 | R88: 1 | S88: 1 | T88: 1 | U88: 1 | V88: 1 | W88: 1 | X88: 1 | Y88: 1 | Z88: 88 | AA88: 1 | AB88: 1 | AC88: 1 | AD88: 1 | AE88: 1 | AF88: 1 | AG88: 1 | AH88: 1 | AI88: 1 | AJ88: 1 | AK88: 1 | AL88: 1 | AM88: 1 | AN88: 1
A89: 88 | B89: 89 | C89: 89 | D89: 89 | E89: 1 | F89: 1 | G89: 89 | H89: 1 | I89: 1 | J89: 1 | K89: 1 | L89: 1 | M89: 1 | N89: 1 | O89: 1 | P89: 1 | Q89: 1 | R89: 1 | S89: 1 | T89: 1 | U89: 1 | V89: 89 | W89: 89 | X89: 1 | Y89: 1 | Z89: 89 | AA89: 1 | AB89: 1 | AC89: 1 | AD89: 1 | AE89: 1 | AF89: 1 | AG89: 89 | AH89: 89 | AI89: 1 | AJ89: 1 | AK89: 1 | AL89: 1 | AM89: 1 | AN89: 1
A90: 89 | B90: 90 | C90: 1 | D90: 1 | E90: 1 | F90: 1 | G90: 1 | H90: 1 | I90: 1 | J90: 1 | K90: 90 | L90: 1 | M90: 1 | N90: 1 | O90: 1 | P90: 1 | Q90: 1 | R90: 1 | S90: 1 | T90: 1 | U90: 1 | V90: 90 | W90: 1 | X90: 1 | Y90: 90 | Z90: 90 | AA90: 1 | AB90: 1 | AC90: 1 | AD90: 90 | AE90: 90 | AF90: 90 | AG90: 1 | AH90: 1 | AI90: 1 | AJ90: 1 | AK90: 1 | AL90: 1 | AM90: 1 | AN90: 1
A91: 90 | B91: 91 | C91: 91 | D91: 91 | E91: 91 | F91: 1 | G91: 1 | H91: 1 | I91: 1 | J91: 1 | K91: 1 | L91: 1 | M91: 1 | N91: 1 | O91: 1 | P91: 1 | Q91: 1 | R91: 1 | S91: 1 | T91: 1 | U91: 1 | V91: 1 | W91: 1 | X91: 1 | Y91: 91 | Z91: 91 | AA91: 1 | AB91: 1 | AC91: 91 | AD91: 1 | AE91: 1 | AF91: 1 | AG91: 91 | AH91: 1 | AI91: 1 | AJ91: 1 | AK91: 1 | AL91: 1 | AM91: 1 | AN91: 1
A92: 91 | B92: 92 | C92: 1 | D92: 1 | E92: 1 | F92: 1 | G92: 92 | H92: 1 | I92: 1 | J92: 1 | K92: 1 | L92: 1 | M92: 1 | N92: 1 | O92: 1 | P92: 1 | Q92: 92 | R92: 92 | S92: 1 | T92: 1 | U92: 92 | V92: 92 | W92: 1 | X92: 1 | Y92: 1 | Z92: 1 | AA92: 1 | AB92: 1 | AC92: 1 | AD92: 1 | AE92: 1 | AF92: 1 | AG92: 1 | AH92: 92 | AI92: 1 | AJ92: 1 | AK92: 1 | AL92: 92 | AM92: 1 | AN92: 1
A93: 92 | B93: 93 | C93: 93 | D93: 1 | E93: 1 | F93: 93 | G93: 93 | H93: 1 | I93: 1 | J93: 1 | K93: 1 | L93: 1 | M93: 1 | N93: 93 | O93: 1 | P93: 1 | Q93: 1 | R93: 1 | S93: 93 | T93: 1 | U93: 1 | V93: 1 | W93: 1 | X93: 1 | Y93: 1 | Z93: 93 | AA93: 1 | AB93: 1 | AC93: 1 | AD93: 93 | AE93: 1 | AF93: 1 | AG93: 1 | AH93: 93 | AI93: 1 | AJ93: 1 | AK93: 1 | AL93: 1 | AM93: 1 | AN93: 1
A94: 93 | B94: 94 | C94: 94 | D94: 1 | E94: 1 | F94: 94 | G94: 94 | H94: 1 | I94: 1 | J94: 1 | K94: 1 | L94: 1 | M94: 1 | N94: 94 | O94: 1 | P94: 1 | Q94: 1 | R94: 1 | S94: 94 | T94: 1 | U94: 1 | V94: 1 | W94: 1 | X94: 1 | Y94: 1 | Z94: 94 | AA94: 1 | AB94: 1 | AC94: 1 | AD94: 94 | AE94: 1 | AF94: 1 | AG94: 1 | AH94: 94 | AI94: 1 | AJ94: 1 | AK94: 1 | AL94: 1 | AM94: 1 | AN94: 1
A95: 94 | B95: 95 | C95: 95 | D95: 1 | E95: 95 | F95: 95 | G95: 95 | H95: 1 | I95: 1 | J95: 1 | K95: 1 | L95: 95 | M95: 1 | N95: 95 | O95: 95 | P95: 1 | Q95: 1 | R95: 1 | S95: 1 | T95: 1 | U95: 1 | V95: 1 | W95: 1 | X95: 95 | Y95: 1 | Z95: 1 | AA95: 1 | AB95: 1 | AC95: 1 | AD95: 1 | AE95: 1 | AF95: 1 | AG95: 1 | AH95: 95 | AI95: 95 | AJ95: 95 | AK95: 1 | AL95: 95 | AM95: 1 | AN95: 95
A96: 95 | B96: 96 | C96: 1 | D96: 1 | E96: 1 | F96: 96 | G96: 1 | H96: 1 | I96: 1 | J96: 1 | K96: 1 | L96: 96 | M96: 96 | N96: 1 | O96: 96 | P96: 1 | Q96: 1 | R96: 1 | S96: 1 | T96: 1 | U96: 1 | V96: 1 | W96: 1 | X96: 1 | Y96: 1 | Z96: 96 | AA96: 1 | AB96: 1 | AC96: 1 | AD96: 96 | AE96: 1 | AF96: 1 | AG96: 1 | AH96: 1 | AI96: 1 | AJ96: 1 | AK96: 1 | AL96: 1 | AM96: 1 | AN96: 1
A97: 96 | B97: 97 | C97: 1 | D97: 97 | E97: 1 | F97: 97 | G97: 97 | H97: 1 | I97: 1 | J97: 1 | K97: 1 | L97: 97 | M97: 97 | N97: 1 | O97: 97 | P97: 1 | Q97: 1 | R97: 3 | S97: 97 | T97: 1 | U97: 1 | V97: 97 | W97: 1 | X97: 1 | Y97: 1 | Z97: 97 | AA97: 1 | AB97: 1 | AC97: 1 | AD97: 97 | AE97: 97 | AF97: 1 | AG97: 1 | AH97: 97 | AI97: 1 | AJ97: 1 | AK97: 1 | AL97: 1 | AM97: 1 | AN97: 1
A98: 97 | B98: 98 | C98: 1 | D98: 1 | E98: 98 | F98: 98 | G98: 98 | H98: 1 | I98: 1 | J98: 1 | K98: 1 | L98: 98 | M98: 98 | N98: 1 | O98: 1 | P98: 1 | Q98: 1 | R98: 1 | S98: 98 | T98: 1 | U98: 1 | V98: 1 | W98: 1 | X98: 1 | Y98: 1 | Z98: 1 | AA98: 1 | AB98: 98 | AC98: 1 | AD98: 98 | AE98: 1 | AF98: 1 | AG98: 1 | AH98: 1 | AI98: 1 | AJ98: 1 | AK98: 1 | AL98: 1 | AM98: 1 | AN98: 1
A99: 98 | B99: 99 | C99: 99 | D99: 99 | E99: 99 | F99: 1 | G99: 1 | H99: 1 | I99: 1 | J99: 1 | K99: 1 | L99: 1 | M99: 99 | N99: 99 | O99: 1 | P99: 1 | Q99: 1 | R99: 1 | S99: 1 | T99: 1 | U99: 1 | V99: 1 | W99: 1 | X99: 1 | Y99: 1 | Z99: 1 | AA99: 1 | AB99: 99 | AC99: 1 | AD99: 99 | AE99: 1 | AF99: 99 | AG99: 1 | AH99: 1 | AI99: 1 | AJ99: 1 | AK99: 1 | AL99: 1 | AM99: 1 | AN99: 1
A100: 99 | B100: 100 | C100: 100 | D100: 1 | E100: 1 | F100: 100 | G100: 100 | H100: 100 | I100: 1 | J100: 1 | K100: 1 | L100: 1 | M100: 1 | N100: 100 | O100: 1 | P100: 1 | Q100: 1 | R100: 1 | S100: 1 | T100: 1 | U100: 1 | V100: 1 | W100: 1 | X100: 1 | Y100: 1 | Z100: 1 | AA100: 1 | AB100: 1 | AC100: 100 | AD100: 100 | AE100: 1 | AF100: 1 | AG100: 1 | AH100: 1 | AI100: 1 | AJ100: 1 | AK100: 1 | AL100: 1 | AM100: 1 | AN100: 1
A101: 100 | B101: 101 | C101: 101 | D101: 1 | E101: 1 | F101: 1 | G101: 101 | H101: 1 | I101: 1 | J101: 1 | K101: 1 | L101: 1 | M101: 1 | N101: 1 | O101: 1 | P101: 1 | Q101: 1 | R101: 1 | S101: 1 | T101: 1 | U101: 1 | V101: 1 | W101: 1 | X101: 1 | Y101: 1 | Z101: 1 | AA101: 1 | AB101: 1 | AC101: 101 | AD101: 101 | AE101: 1 | AF101: 1 | AG101: 1 | AH101: 101 | AI101: 1 | AJ101: 1 | AK101: 1 | AL101: 1 | AM101: 1 | AN101: 1
A102: 101 | B102: 102 | C102: 102 | D102: 1 | E102: 1 | F102: 1 | G102: 102 | H102: 1 | I102: 1 | J102: 1 | K102: 1 | L102: 1 | M102: 1 | N102: 102 | O102: 102 | P102: 1 | Q102: 1 | R102: 1 | S102: 102 | T102: 1 | U102: 1 | V102: 1 | W102: 1 | X102: 1 | Y102: 1 | Z102: 1 | AA102: 1 | AB102: 1 | AC102: 102 | AD102: 102 | AE102: 1 | AF102: 1 | AG102: 1 | AH102: 102 | AI102: 1 | AJ102: 1 | AK102: 1 | AL102: 102 | AM102: 1 | AN102: 1
A103: 102 | B103: 103 | C103: 103 | D103: 1 | E103: 1 | F103: 1 | G103: 103 | H103: 1 | I103: 103 | J103: 1 | K103: 1 | L103: 1 | M103: 1 | N103: 1 | O103: 1 | P103: 1 | Q103: 1 | R103: 1 | S103: 1 | T103: 1 | U103: 1 | V103: 103 | W103: 103 | X103: 1 | Y103: 1 | Z103: 1 | AA103: 1 | AB103: 1 | AC103: 1 | AD103: 1 | AE103: 1 | AF103: 1 | AG103: 1 | AH103: 1 | AI103: 1 | AJ103: 1 | AK103: 1 | AL103: 1 | AM103: 1 | AN103: 103
A104: 103 | B104: 104 | C104: 1 | D104: 1 | E104: 1 | F104: 1 | G104: 104 | H104: 1 | I104: 1 | J104: 1 | K104: 1 | L104: 104 | M104: 1 | N104: 104 | O104: 1 | P104: 1 | Q104: 1 | R104: 1 | S104: 104 | T104: 1 | U104: 1 | V104: 1 | W104: 1 | X104: 1 | Y104: 1 | Z104: 104 | AA104: 1 | AB104: 1 | AC104: 1 | AD104: 104 | AE104: 1 | AF104: 1 | AG104: 1 | AH104: 104 | AI104: 1 | AJ104: 1 | AK104: 1 | AL104: 104 | AM104: 1 | AN104: 1
A105: 104 | B105: 105 | C105: 1 | D105: 1 | E105: 1 | F105: 1 | G105: 105 | H105: 1 | I105: 1 | J105: 1 | K105: 1 | L105: 1 | M105: 1 | N105: 105 | O105: 1 | P105: 1 | Q105: 1 | R105: 1 | S105: 1 | T105: 1 | U105: 1 | V105: 105 | W105: 1 | X105: 1 | Y105: 105 | Z105: 1 | AA105: 1 | AB105: 105 | AC105: 1 | AD105: 105 | AE105: 1 | AF105: 1 | AG105: 1 | AH105: 1 | AI105: 1 | AJ105: 1 | AK105: 1 | AL105: 1 | AM105: 1 | AN105: 1
A106: 105 | B106: 106 | C106: 106 | D106: 106 | E106: 1 | F106: 1 | G106: 1 | H106: 1 | I106: 1 | J106: 1 | K106: 1 | L106: 1 | M106: 1 | N106: 106 | O106: 1 | P106: 1 | Q106: 1 | R106: 1 | S106: 1 | T106: 1 | U106: 1 | V106: 106 | W106: 1 | X106: 1 | Y106: 1 | Z106: 1 | AA106: 1 | AB106: 1 | AC106: 1 | AD106: 1 | AE106: 1 | AF106: 1 | AG106: 1 | AH106: 1 | AI106: 1 | AJ106: 1 | AK106: 1 | AL106: 1 | AM106: 1 | AN106: 1
A107: 106 | B107: 107 | C107: 107 | D107: 1 | E107: 1 | F107: 1 | G107: 1 | H107: 1 | I107: 1 | J107: 1 | K107: 1 | L107: 1 | M107: 1 | N107: 107 | O107: 1 | P107: 1 | Q107: 107 | R107: 1 | S107: 1 | T107: 1 | U107: 1 | V107: 107 | W107: 1 | X107: 1 | Y107: 1 | Z107: 1 | AA107: 1 | AB107: 1 | AC107: 1 | AD107: 1 | AE107: 1 | AF107: 1 | AG107: 1 | AH107: 1 | AI107: 1 | AJ107: 1 | AK107: 1 | AL107: 1 | AM107: 1 | AN107: 1
A108: 107 | B108: 108 | C108: 108 | D108: 1 | E108: 1 | F108: 108 | G108: 1 | H108: 1 | I108: 1 | J108: 1 | K108: 1 | L108: 1 | M108: 1 | N108: 108 | O108: 1 | P108: 1 | Q108: 1 | R108: 1 | S108: 1 | T108: 1 | U108: 1 | V108: 1 | W108: 1 | X108: 1 | Y108: 1 | Z108: 1 | AA108: 1 | AB108: 108 | AC108: 1 | AD108: 108 | AE108: 1 | AF108: 1 | AG108: 1 | AH108: 1 | AI108: 1 | AJ108: 1 | AK108: 1 | AL108: 108 | AM108: 1 | AN108: 1
A109: 108 | B109: 109 | C109: 1 | D109: 109 | E109: 1 | F109: 1 | G109: 1 | H109: 1 | I109: 1 | J109: 1 | K109: 1 | L109: 1 | M109: 109 | N109: 109 | O109: 109 | P109: 1 | Q109: 1 | R109: 1 | S109: 109 | T109: 1 | U109: 1 | V109: 1 | W109: 1 | X109: 1 | Y109: 1 | Z109: 1 | AA109: 1 | AB109: 1 | AC109: 109 | AD109: 1 | AE109: 1 | AF109: 1 | AG109: 109 | AH109: 1 | AI109: 1 | AJ109: 1 | AK109: 109 | AL109: 1 | AM109: 1 | AN109: 1
A110: 109 | B110: 110 | C110: 1 | D110: 110 | E110: 1 | F110: 1 | G110: 1 | H110: 1 | I110: 1 | J110: 1 | K110: 1 | L110: 1 | M110: 1 | N110: 1 | O110: 110 | P110: 1 | Q110: 1 | R110: 1 | S110: 110 | T110: 1 | U110: 1 | V110: 110 | W110: 110 | X110: 1 | Y110: 1 | Z110: 1 | AA110: 1 | AB110: 1 | AC110: 1 | AD110: 1 | AE110: 1 | AF110: 1 | AG110: 1 | AH110: 110 | AI110: 110 | AJ110: 110 | AK110: 1 | AL110: 1 | AM110: 1 | AN110: 1
A111: 110 | B111: 111 | C111: 1 | D111: 1 | E111: 1 | F111: 111 | G111: 111 | H111: 1 | I111: 111 | J111: 1 | K111: 1 | L111: 111 | M111: 1 | N111: 1 | O111: 1 | P111: 1 | Q111: 1 | R111: 1 | S111: 111 | T111: 1 | U111: 1 | V111: 1 | W111: 1 | X111: 1 | Y111: 1 | Z111: 111 | AA111: 1 | AB111: 1 | AC111: 111 | AD111: 111 | AE111: 1 | AF111: 1 | AG111: 1 | AH111: 1 | AI111: 1 | AJ111: 1 | AK111: 111 | AL111: 111 | AM111: 1 | AN111: 1
A112: 111 | B112: 112 | C112: 1 | D112: 1 | E112: 1 | F112: 1 | G112: 1 | H112: 1 | I112: 1 | J112: 1 | K112: 1 | L112: 1 | M112: 1 | N112: 1 | O112: 1 | P112: 1 | Q112: 1 | R112: 1 | S112: 1 | T112: 1 | U112: 1 | V112: 112 | W112: 1 | X112: 112 | Y112: 1 | Z112: 1 | AA112: 1 | AB112: 1 | AC112: 1 | AD112: 1 | AE112: 1 | AF112: 1 | AG112: 1 | AH112: 1 | AI112: 1 | AJ112: 1 | AK112: 112 | AL112: 1 | AM112: 1 | AN112: 112
A113: 112 | B113: 113 | C113: 113 | D113: 1 | E113: 1 | F113: 1 | G113: 1 | H113: 1 | I113: 1 | J113: 1 | K113: 1 | L113: 1 | M113: 1 | N113: 1 | O113: 1 | P113: 1 | Q113: 113 | R113: 1 | S113: 1 | T113: 1 | U113: 1 | V113: 113 | W113: 113 | X113: 1 | Y113: 1 | Z113: 1 | AA113: 1 | AB113: 1 | AC113: 1 | AD113: 1 | AE113: 1 | AF113: 1 | AG113: 1 | AH113: 113 | AI113: 1 | AJ113: 1 | AK113: 1 | AL113: 1 | AM113: 1 | AN113: 113
A114: 113 | B114: 114 | C114: 114 | D114: 1 | E114: 114 | F114: 1 | G114: 114 | H114: 1 | I114: 1 | J114: 1 | K114: 1 | L114: 1 | M114: 1 | N114: 1 | O114: 1 | P114: 1 | Q114: 1 | R114: 1 | S114: 1 | T114: 1 | U114: 1 | V114: 1 | W114: 1 | X114: 1 | Y114: 1 | Z114: 1 | AA114: 1 | AB114: 114 | AC114: 114 | AD114: 114 | AE114: 1 | AF114: 1 | AG114: 1 | AH114: 114 | AI114: 114 | AJ114: 114 | AK114: 114 | AL114: 114 | AM114: 1 | AN114: 1
A115: 114 | B115: 115 | C115: 1 | D115: 1 | E115: 1 | F115: 1 | G115: 1 | H115: 1 | I115: 1 | J115: 1 | K115: 1 | L115: 1 | M115: 1 | N115: 1 | O115: 1 | P115: 115 | Q115: 1 | R115: 1 | S115: 1 | T115: 1 | U115: 1 | V115: 1 | W115: 1 | X115: 1 | Y115: 115 | Z115: 1 | AA115: 1 | AB115: 1 | AC115: 1 | AD115: 115 | AE115: 1 | AF115: 1 | AG115: 1 | AH115: 1 | AI115: 1 | AJ115: 1 | AK115: 1 | AL115: 1 | AM115: 1 | AN115: 1
A116: 115 | B116: 116 | C116: 1 | D116: 116 | E116: 1 | F116: 1 | G116: 1 | H116: 1 | I116: 1 | J116: 1 | K116: 1 | L116: 1 | M116: 1 | N116: 1 | O116: 1 | P116: 1 | Q116: 1 | R116: 1 | S116: 1 | T116: 1 | U116: 1 | V116: 1 | W116: 1 | X116: 1 | Y116: 116 | Z116: 116 | AA116: 1 | AB116: 1 | AC116: 1 | AD116: 116 | AE116: 1 | AF116: 1 | AG116: 1 | AH116: 1 | AI116: 1 | AJ116: 1 | AK116: 1 | AL116: 116 | AM116: 1 | AN116: 1
A117: 116 | B117: 117 | C117: 117 | D117: 117 | E117: 1 | F117: 1 | G117: 1 | H117: 1 | I117: 1 | J117: 1 | K117: 1 | L117: 1 | M117: 1 | N117: 117 | O117: 1 | P117: 1 | Q117: 1 | R117: 1 | S117: 1 | T117: 1 | U117: 1 | V117: 1 | W117: 1 | X117: 1 | Y117: 1 | Z117: 1 | AA117: 1 | AB117: 1 | AC117: 1 | AD117: 1 | AE117: 1 | AF117: 1 | AG117: 1 | AH117: 1 | AI117: 1 | AJ117: 1 | AK117: 1 | AL117: 1 | AM117: 1 | AN117: 1
A118: 117 | B118: 118 | C118: 118 | D118: 1 | E118: 118 | F118: 1 | G118: 1 | H118: 1 | I118: 1 | J118: 1 | K118: 1 | L118: 1 | M118: 1 | N118: 118 | O118: 1 | P118: 1 | Q118: 1 | R118: 1 | S118: 1 | T118: 1 | U118: 1 | V118: 1 | W118: 1 | X118: 1 | Y118: 1 | Z118: 1 | AA118: 1 | AB118: 1 | AC118: 1 | AD118: 1 | AE118: 1 | AF118: 1 | AG118: 1 | AH118: 1 | AI118: 1 | AJ118: 1 | AK118: 1 | AL118: 1 | AM118: 1 | AN118: 1
A119: 118 | B119: 119 | C119: 119 | D119: 1 | E119: 1 | F119: 1 | G119: 1 | H119: 1 | I119: 1 | J119: 1 | K119: 1 | L119: 1 | M119: 1 | N119: 1 | O119: 1 | P119: 1 | Q119: 1 | R119: 1 | S119: 1 | T119: 1 | U119: 1 | V119: 1 | W119: 1 | X119: 1 | Y119: 1 | Z119: 1 | AA119: 1 | AB119: 1 | AC119: 1 | AD119: 1 | AE119: 1 | AF119: 1 | AG119: 1 | AH119: 119 | AI119: 1 | AJ119: 1 | AK119: 119 | AL119: 1 | AM119: 1 | AN119: 1
A120: 119 | B120: 120 | C120: 120 | D120: 1 | E120: 1 | F120: 1 | G120: 1 | H120: 120 | I120: 1 | J120: 1 | K120: 1 | L120: 1 | M120: 1 | N120: 1 | O120: 1 | P120: 1 | Q120: 1 | R120: 1 | S120: 1 | T120: 120 | U120: 1 | V120: 1 | W120: 1 | X120: 1 | Y120: 1 | Z120: 1 | AA120: 1 | AB120: 1 | AC120: 1 | AD120: 1 | AE120: 1 | AF120: 1 | AG120: 1 | AH120: 1 | AI120: 1 | AJ120: 1 | AK120: 1 | AL120: 1 | AM120: 120 | AN120: 1
A121: 120 | B121: 121 | C121: 121 | D121: 1 | E121: 1 | F121: 1 | G121: 1 | H121: 1 | I121: 1 | J121: 1 | K121: 1 | L121: 1 | M121: 1 | N121: 1 | O121: 1 | P121: 1 | Q121: 1 | R121: 1 | S121: 1 | T121: 1 | U121: 1 | V121: 121 | W121: 1 | X121: 1 | Y121: 1 | Z121: 1 | AA121: 1 | AB121: 1 | AC121: 1 | AD121: 1 | AE121: 1 | AF121: 1 | AG121: 1 | AH121: 1 | AI121: 121 | AJ121: 121 | AK121: 1 | AL121: 1 | AM121: 121 | AN121: 1
A122: 121 | B122: 122 | C122: 122 | D122: 1 | E122: 1 | F122: 1 | G122: 1 | H122: 1 | I122: 122 | J122: 1 | K122: 1 | L122: 1 | M122: 1 | N122: 1 | O122: 1 | P122: 1 | Q122: 1 | R122: 1 | S122: 1 | T122: 1 | U122: 1 | V122: 122 | W122: 1 | X122: 1 | Y122: 1 | Z122: 1 | AA122: 1 | AB122: 122 | AC122: 1 | AD122: 122 | AE122: 1 | AF122: 1 | AG122: 1 | AH122: 1 | AI122: 1 | AJ122: 1 | AK122: 1 | AL122: 1 | AM122: 1 | AN122: 122
A123: 122 | B123: 123 | C123: 1 | D123: 123 | E123: 1 | F123: 1 | G123: 1 | H123: 1 | I123: 123 | J123: 1 | K123: 1 | L123: 1 | M123: 1 | N123: 1 | O123: 1 | P123: 123 | Q123: 1 | R123: 1 | S123: 1 | T123: 1 | U123: 1 | V123: 123 | W123: 1 | X123: 1 | Y123: 123 | Z123: 1 | AA123: 1 | AB123: 1 | AC123: 1 | AD123: 1 | AE123: 1 | AF123: 1 | AG123: 1 | AH123: 1 | AI123: 1 | AJ123: 1 | AK123: 1 | AL123: 1 | AM123: 1 | AN123: 1
A124: 123 | B124: 124 | C124: 124 | D124: 124 | E124: 1 | F124: 1 | G124: 124 | H124: 1 | I124: 1 | J124: 1 | K124: 1 | L124: 1 | M124: 1 | N124: 1 | O124: 1 | P124: 1 | Q124: 1 | R124: 1 | S124: 1 | T124: 124 | U124: 124 | V124: 1 | W124: 1 | X124: 1 | Y124: 1 | Z124: 1 | AA124: 1 | AB124: 1 | AC124: 1 | AD124: 1 | AE124: 1 | AF124: 1 | AG124: 1 | AH124: 124 | AI124: 1 | AJ124: 1 | AK124: 1 | AL124: 1 | AM124: 1 | AN124: 1
A125: 124 | B125: 125 | C125: 125 | D125: 1 | E125: 1 | F125: 1 | G125: 1 | H125: 1 | I125: 1 | J125: 1 | K125: 1 | L125: 1 | M125: 1 | N125: 1 | O125: 1 | P125: 1 | Q125: 1 | R125: 1 | S125: 1 | T125: 125 | U125: 1 | V125: 1 | W125: 1 | X125: 1 | Y125: 125 | Z125: 1 | AA125: 1 | AB125: 1 | AC125: 1 | AD125: 1 | AE125: 1 | AF125: 1 | AG125: 125 | AH125: 1 | AI125: 1 | AJ125: 1 | AK125: 1 | AL125: 1 | AM125: 1 | AN125: 1
A126: 125 | B126: 126 | C126: 126 | D126: 1 | E126: 1 | F126: 1 | G126: 1 | H126: 1 | I126: 1 | J126: 1 | K126: 1 | L126: 1 | M126: 1 | N126: 1 | O126: 126 | P126: 1 | Q126: 1 | R126: 1 | S126: 1 | T126: 126 | U126: 1 | V126: 1 | W126: 1 | X126: 1 | Y126: 1 | Z126: 1 | AA126: 1 | AB126: 1 | AC126: 1 | AD126: 1 | AE126: 1 | AF126: 1 | AG126: 1 | AH126: 1 | AI126: 1 | AJ126: 1 | AK126: 1 | AL126: 1 | AM126: 1 | AN126: 1
A127: 126 | B127: 127 | C127: 1 | D127: 127 | E127: 127 | F127: 1 | G127: 1 | H127: 1 | I127: 1 | J127: 1 | K127: 1 | L127: 1 | M127: 1 | N127: 1 | O127: 1 | P127: 127 | Q127: 1 | R127: 1 | S127: 1 | T127: 127 | U127: 1 | V127: 1 | W127: 1 | X127: 1 | Y127: 1 | Z127: 1 | AA127: 1 | AB127: 1 | AC127: 1 | AD127: 1 | AE127: 1 | AF127: 1 | AG127: 1 | AH127: 1 | AI127: 1 | AJ127: 1 | AK127: 1 | AL127: 1 | AM127: 1 | AN127: 1
A128: 127 | B128: 128 | C128: 128 | D128: 1 | E128: 1 | F128: 1 | G128: 1 | H128: 1 | I128: 1 | J128: 1 | K128: 1 | L128: 1 | M128: 1 | N128: 1 | O128: 1 | P128: 1 | Q128: 1 | R128: 1 | S128: 1 | T128: 1 | U128: 1 | V128: 128 | W128: 1 | X128: 128 | Y128: 1 | Z128: 128 | AA128: 1 | AB128: 1 | AC128: 1 | AD128: 1 | AE128: 1 | AF128: 1 | AG128: 1 | AH128: 1 | AI128: 1 | AJ128: 1 | AK128: 1 | AL128: 1 | AM128: 1 | AN128: 1
A129: 128 | B129: 129 | C129: 129 | D129: 1 | E129: 1 | F129: 1 | G129: 129 | H129: 1 | I129: 1 | J129: 1 | K129: 1 | L129: 1 | M129: 1 | N129: 1 | O129: 1 | P129: 1 | Q129: 1 | R129: 1 | S129: 1 | T129: 1 | U129: 1 | V129: 1 | W129: 1 | X129: 129 | Y129: 1 | Z129: 1 | AA129: 1 | AB129: 1 | AC129: 1 | AD129: 1 | AE129: 1 | AF129: 1 | AG129: 1 | AH129: 1 | AI129: 1 | AJ129: 1 | AK129: 1 | AL129: 1 | AM129: 1 | AN129: 1
A130: 129 | B130: 130 | C130: 130 | D130: 1 | E130: 130 | F130: 1 | G130: 1 | H130: 1 | I130: 1 | J130: 1 | K130: 1 | L130: 1 | M130: 1 | N130: 1 | O130: 1 | P130: 1 | Q130: 1 | R130: 1 | S130: 1 | T130: 1 | U130: 1 | V130: 1 | W130: 1 | X130: 130 | Y130: 1 | Z130: 1 | AA130: 1 | AB130: 1 | AC130: 1 | AD130: 1 | AE130: 1 | AF130: 1 | AG130: 1 | AH130: 1 | AI130: 1 | AJ130: 1 | AK130: 1 | AL130: 1 | AM130: 1 | AN130: 1
A131: 130 | B131: 131 | C131: 1 | D131: 1 | E131: 1 | F131: 1 | G131: 1 | H131: 1 | I131: 1 | J131: 1 | K131: 1 | L131: 1 | M131: 1 | N131: 1 | O131: 1 | P131: 1 | Q131: 1 | R131: 1 | S131: 1 | T131: 1 | U131: 1 | V131: 131 | W131: 1 | X131: 1 | Y131: 131 | Z131: 1 | AA131: 1 | AB131: 1 | AC131: 1 | AD131: 1 | AE131: 131 | AF131: 1 | AG131: 131 | AH131: 1 | AI131: 1 | AJ131: 1 | AK131: 1 | AL131: 131 | AM131: 1 | AN131: 1
A132: 131 | B132: 132 | C132: 1 | D132: 1 | E132: 132 | F132: 1 | G132: 1 | H132: 1 | I132: 1 | J132: 1 | K132: 1 | L132: 1 | M132: 1 | N132: 1 | O132: 1 | P132: 1 | Q132: 1 | R132: 1 | S132: 1 | T132: 1 | U132: 1 | V132: 132 | W132: 132 | X132: 1 | Y132: 132 | Z132: 1 | AA132: 1 | AB132: 1 | AC132: 1 | AD132: 132 | AE132: 132 | AF132: 132 | AG132: 1 | AH132: 1 | AI132: 1 | AJ132: 1 | AK132: 1 | AL132: 132 | AM132: 1 | AN132: 1
A133: 132 | B133: 133 | C133: 133 | D133: 1 | E133: 1 | F133: 1 | G133: 1 | H133: 1 | I133: 1 | J133: 1 | K133: 1 | L133: 1 | M133: 1 | N133: 1 | O133: 1 | P133: 1 | Q133: 1 | R133: 1 | S133: 1 | T133: 1 | U133: 1 | V133: 1 | W133: 1 | X133: 1 | Y133: 1 | Z133: 133 | AA133: 1 | AB133: 1 | AC133: 1 | AD133: 133 | AE133: 1 | AF133: 1 | AG133: 1 | AH133: 1 | AI133: 1 | AJ133: 1 | AK133: 1 | AL133: 1 | AM133: 1 | AN133: 1
A134: 133 | B134: 134 | C134: 1 | D134: 1 | E134: 1 | F134: 1 | G134: 1 | H134: 1 | I134: 1 | J134: 1 | K134: 1 | L134: 1 | M134: 1 | N134: 1 | O134: 1 | P134: 1 | Q134: 1 | R134: 1 | S134: 1 | T134: 1 | U134: 1 | V134: 134 | W134: 1 | X134: 1 | Y134: 1 | Z134: 134 | AA134: 1 | AB134: 1 | AC134: 1 | AD134: 134 | AE134: 134 | AF134: 134 | AG134: 1 | AH134: 1 | AI134: 134 | AJ134: 1 | AK134: 1 | AL134: 134 | AM134: 1 | AN134: 1
A135: 134 | B135: 135 | C135: 135 | D135: 1 | E135: 1 | F135: 1 | G135: 1 | H135: 1 | I135: 1 | J135: 1 | K135: 1 | L135: 135 | M135: 1 | N135: 1 | O135: 1 | P135: 1 | Q135: 1 | R135: 1 | S135: 1 | T135: 1 | U135: 1 | V135: 135 | W135: 1 | X135: 1 | Y135: 1 | Z135: 1 | AA135: 1 | AB135: 1 | AC135: 135 | AD135: 135 | AE135: 135 | AF135: 1 | AG135: 1 | AH135: 1 | AI135: 1 | AJ135: 1 | AK135: 1 | AL135: 135 | AM135: 1 | AN135: 1
A136: 135 | B136: 136 | C136: 1 | D136: 1 | E136: 1 | F136: 1 | G136: 1 | H136: 1 | I136: 1 | J136: 1 | K136: 1 | L136: 1 | M136: 1 | N136: 1 | O136: 1 | P136: 1 | Q136: 1 | R136: 1 | S136: 1 | T136: 1 | U136: 1 | V136: 136 | W136: 1 | X136: 1 | Y136: 1 | Z136: 136 | AA136: 1 | AB136: 1 | AC136: 136 | AD136: 1 | AE136: 136 | AF136: 1 | AG136: 136 | AH136: 1 | AI136: 1 | AJ136: 1 | AK136: 1 | AL136: 1 | AM136: 1 | AN136: 1
A137: 136 | B137: 137 | C137: 1 | D137: 1 | E137: 1 | F137: 1 | G137: 1 | H137: 1 | I137: 1 | J137: 1 | K137: 1 | L137: 1 | M137: 1 | N137: 137 | O137: 1 | P137: 1 | Q137: 1 | R137: 1 | S137: 1 | T137: 1 | U137: 1 | V137: 137 | W137: 1 | X137: 1 | Y137: 1 | Z137: 1 | AA137: 1 | AB137: 137 | AC137: 1 | AD137: 1 | AE137: 1 | AF137: 1 | AG137: 1 | AH137: 137 | AI137: 1 | AJ137: 1 | AK137: 1 | AL137: 1 | AM137: 1 | AN137: 1
A138: 137 | B138: 138 | C138: 138 | D138: 1 | E138: 1 | F138: 1 | G138: 1 | H138: 1 | I138: 138 | J138: 1 | K138: 1 | L138: 1 | M138: 1 | N138: 1 | O138: 1 | P138: 1 | Q138: 1 | R138: 1 | S138: 1 | T138: 1 | U138: 1 | V138: 138 | W138: 1 | X138: 1 | Y138: 1 | Z138: 1 | AA138: 1 | AB138: 138 | AC138: 1 | AD138: 1 | AE138: 1 | AF138: 1 | AG138: 1 | AH138: 1 | AI138: 1 | AJ138: 1 | AK138: 1 | AL138: 1 | AM138: 1 | AN138: 1
A139: 138 | B139: 139 | C139: 139 | D139: 1 | E139: 139 | F139: 139 | G139: 139 | H139: 1 | I139: 139 | J139: 1 | K139: 1 | L139: 1 | M139: 1 | N139: 1 | O139: 1 | P139: 1 | Q139: 1 | R139: 1 | S139: 1 | T139: 1 | U139: 139 | V139: 139 | W139: 1 | X139: 1 | Y139: 1 | Z139: 1 | AA139: 1 | AB139: 1 | AC139: 1 | AD139: 1 | AE139: 1 | AF139: 1 | AG139: 1 | AH139: 1 | AI139: 1 | AJ139: 1 | AK139: 1 | AL139: 1 | AM139: 1 | AN139: 1
A140: 139 | B140: 140 | C140: 1 | D140: 1 | E140: 1 | F140: 1 | G140: 1 | H140: 1 | I140: 1 | J140: 1 | K140: 1 | L140: 1 | M140: 1 | N140: 1 | O140: 1 | P140: 1 | Q140: 1 | R140: 1 | S140: 1 | T140: 1 | U140: 140 | V140: 1 | W140: 1 | X140: 1 | Y140: 1 | Z140: 140 | AA140: 1 | AB140: 1 | AC140: 1 | AD140: 140 | AE140: 1 | AF140: 1 | AG140: 1 | AH140: 1 | AI140: 1 | AJ140: 1 | AK140: 1 | AL140: 1 | AM140: 1 | AN140: 1
A141: 140 | B141: 141 | C141: 141 | D141: 1 | E141: 1 | F141: 1 | G141: 1 | H141: 1 | I141: 1 | J141: 1 | K141: 1 | L141: 1 | M141: 1 | N141: 1 | O141: 1 | P141: 1 | Q141: 1 | R141: 1 | S141: 1 | T141: 1 | U141: 141 | V141: 141 | W141: 1 | X141: 1 | Y141: 141 | Z141: 1 | AA141: 1 | AB141: 1 | AC141: 1 | AD141: 141 | AE141: 1 | AF141: 141 | AG141: 1 | AH141: 141 | AI141: 1 | AJ141: 1 | AK141: 1 | AL141: 141 | AM141: 1 | AN141: 1
A142: 141 | B142: 142 | C142: 1 | D142: 1 | E142: 1 | F142: 1 | G142: 1 | H142: 1 | I142: 1 | J142: 1 | K142: 1 | L142: 1 | M142: 1 | N142: 1 | O142: 1 | P142: 1 | Q142: 1 | R142: 1 | S142: 1 | T142: 1 | U142: 142 | V142: 142 | W142: 1 | X142: 1 | Y142: 1 | Z142: 1 | AA142: 1 | AB142: 1 | AC142: 1 | AD142: 1 | AE142: 1 | AF142: 1 | AG142: 1 | AH142: 1 | AI142: 142 | AJ142: 1 | AK142: 1 | AL142: 1 | AM142: 1 | AN142: 1
A143: 142 | B143: 143 | C143: 143 | D143: 1 | E143: 1 | F143: 1 | G143: 143 | H143: 1 | I143: 1 | J143: 1 | K143: 1 | L143: 1 | M143: 1 | N143: 1 | O143: 1 | P143: 1 | Q143: 1 | R143: 1 | S143: 1 | T143: 1 | U143: 143 | V143: 143 | W143: 1 | X143: 1 | Y143: 1 | Z143: 1 | AA143: 1 | AB143: 1 | AC143: 1 | AD143: 1 | AE143: 1 | AF143: 1 | AG143: 1 | AH143: 1 | AI143: 1 | AJ143: 1 | AK143: 1 | AL143: 143 | AM143: 1 | AN143: 1
A144: 143 | B144: 144 | C144: 144 | D144: 1 | E144: 1 | F144: 1 | G144: 1 | H144: 1 | I144: 1 | J144: 1 | K144: 1 | L144: 1 | M144: 1 | N144: 1 | O144: 1 | P144: 1 | Q144: 1 | R144: 1 | S144: 1 | T144: 1 | U144: 1 | V144: 1 | W144: 1 | X144: 1 | Y144: 1 | Z144: 1 | AA144: 144 | AB144: 1 | AC144: 1 | AD144: 144 | AE144: 1 | AF144: 1 | AG144: 1 | AH144: 1 | AI144: 1 | AJ144: 1 | AK144: 1 | AL144: 1 | AM144: 1 | AN144: 1
A145: 144 | B145: 145 | C145: 1 | D145: 1 | E145: 1 | F145: 1 | G145: 1 | H145: 1 | I145: 1 | J145: 1 | K145: 1 | L145: 1 | M145: 1 | N145: 1 | O145: 1 | P145: 1 | Q145: 1 | R145: 1 | S145: 1 | T145: 1 | U145: 1 | V145: 1 | W145: 1 | X145: 1 | Y145: 1 | Z145: 1 | AA145: 145 | AB145: 1 | AC145: 1 | AD145: 145 | AE145: 1 | AF145: 1 | AG145: 1 | AH145: 1 | AI145: 1 | AJ145: 1 | AK145: 1 | AL145: 145 | AM145: 1 | AN145: 1
A146: 145 | B146: 146 | C146: 1 | D146: 1 | E146: 1 | F146: 1 | G146: 1 | H146: 1 | I146: 1 | J146: 1 | K146: 1 | L146: 1 | M146: 1 | N146: 1 | O146: 1 | P146: 1 | Q146: 1 | R146: 1 | S146: 1 | T146: 1 | U146: 1 | V146: 1 | W146: 1 | X146: 1 | Y146: 1 | Z146: 1 | AA146: 146 | AB146: 1 | AC146: 1 | AD146: 1 | AE146: 1 | AF146: 1 | AG146: 146 | AH146: 1 | AI146: 1 | AJ146: 1 | AK146: 1 | AL146: 1 | AM146: 1 | AN146: 1
A147: 146 | B147: 147 | C147: 1 | D147: 147 | E147: 1 | F147: 1 | G147: 1 | H147: 1 | I147: 1 | J147: 1 | K147: 1 | L147: 1 | M147: 1 | N147: 147 | O147: 1 | P147: 1 | Q147: 1 | R147: 1 | S147: 1 | T147: 1 | U147: 1 | V147: 1 | W147: 1 | X147: 1 | Y147: 1 | Z147: 1 | AA147: 147 | AB147: 1 | AC147: 1 | AD147: 1 | AE147: 1 | AF147: 1 | AG147: 147 | AH147: 1 | AI147: 1 | AJ147: 1 | AK147: 1 | AL147: 1 | AM147: 1 | AN147: 1
A148: 147 | B148: 148 | C148: 1 | D148: 1 | E148: 1 | F148: 1 | G148: 1 | H148: 1 | I148: 1 | J148: 1 | K148: 1 | L148: 1 | M148: 1 | N148: 1 | O148: 1 | P148: 1 | Q148: 1 | R148: 1 | S148: 1 | T148: 1 | U148: 1 | V148: 1 | W148: 1 | X148: 1 | Y148: 1 | Z148: 1 | AA148: 148 | AB148: 1 | AC148: 1 | AD148: 148 | AE148: 1 | AF148: 148 | AG148: 1 | AH148: 148 | AI148: 1 | AJ148: 1 | AK148: 1 | AL148: 148 | AM148: 1 | AN148: 1
A149: 148 | B149: 149 | C149: 1 | D149: 1 | E149: 1 | F149: 1 | G149: 1 | H149: 1 | I149: 1 | J149: 1 | K149: 1 | L149: 1 | M149: 1 | N149: 1 | O149: 1 | P149: 1 | Q149: 1 | R149: 1 | S149: 1 | T149: 1 | U149: 149 | V149: 1 | W149: 1 | X149: 1 | Y149: 1 | Z149: 1 | AA149: 149 | AB149: 1 | AC149: 1 | AD149: 1 | AE149: 1 | AF149: 1 | AG149: 149 | AH149: 1 | AI149: 1 | AJ149: 1 | AK149: 1 | AL149: 149 | AM149: 1 | AN149: 1
A150: 149 | B150: 150 | C150: 1 | D150: 1 | E150: 1 | F150: 1 | G150: 1 | H150: 1 | I150: 150 | J150: 1 | K150: 1 | L150: 1 | M150: 1 | N150: 1 | O150: 1 | P150: 1 | Q150: 1 | R150: 1 | S150: 1 | T150: 1 | U150: 1 | V150: 1 | W150: 1 | X150: 1 | Y150: 1 | Z150: 1 | AA150: 150 | AB150: 1 | AC150: 1 | AD150: 150 | AE150: 1 | AF150: 1 | AG150: 1 | AH150: 1 | AI150: 1 | AJ150: 1 | AK150: 150 | AL150: 1 | AM150: 1 | AN150: 1
A151: 150 | B151: 151 | C151: 1 | D151: 1 | E151: 1 | F151: 1 | G151: 151 | H151: 1 | I151: 1 | J151: 1 | K151: 1 | L151: 1 | M151: 1 | N151: 1 | O151: 1 | P151: 1 | Q151: 1 | R151: 1 | S151: 1 | T151: 1 | U151: 1 | V151: 1 | W151: 1 | X151: 1 | Y151: 1 | Z151: 1 | AA151: 151 | AB151: 1 | AC151: 1 | AD151: 151 | AE151: 1 | AF151: 1 | AG151: 1 | AH151: 1 | AI151: 151 | AJ151: 151 | AK151: 1 | AL151: 1 | AM151: 1 | AN151: 1
A152: 151 | B152: 152 | C152: 1 | D152: 1 | E152: 1 | F152: 1 | G152: 1 | H152: 1 | I152: 1 | J152: 1 | K152: 1 | L152: 1 | M152: 1 | N152: 1 | O152: 1 | P152: 1 | Q152: 1 | R152: 1 | S152: 1 | T152: 1 | U152: 1 | V152: 1 | W152: 1 | X152: 1 | Y152: 1 | Z152: 152 | AA152: 152 | AB152: 1 | AC152: 1 | AD152: 152 | AE152: 1 | AF152: 1 | AG152: 1 | AH152: 1 | AI152: 1 | AJ152: 1 | AK152: 1 | AL152: 152 | AM152: 1 | AN152: 1
A153: 152 | B153: 153 | C153: 1 | D153: 1 | E153: 1 | F153: 1 | G153: 1 | H153: 1 | I153: 1 | J153: 1 | K153: 1 | L153: 1 | M153: 1 | N153: 1 | O153: 1 | P153: 1 | Q153: 1 | R153: 1 | S153: 1 | T153: 1 | U153: 1 | V153: 153 | W153: 1 | X153: 1 | Y153: 1 | Z153: 1 | AA153: 153 | AB153: 1 | AC153: 1 | AD153: 153 | AE153: 1 | AF153: 1 | AG153: 1 | AH153: 1 | AI153: 1 | AJ153: 1 | AK153: 1 | AL153: 1 | AM153: 1 | AN153: 1
A154: 153 | B154: 154 | C154: 154 | D154: 1 | E154: 154 | F154: 154 | G154: 1 | H154: 1 | I154: 1 | J154: 1 | K154: 1 | L154: 1 | M154: 1 | N154: 1 | O154: 1 | P154: 1 | Q154: 154 | R154: 1 | S154: 1 | T154: 1 | U154: 1 | V154: 1 | W154: 1 | X154: 1 | Y154: 1 | Z154: 1 | AA154: 154 | AB154: 1 | AC154: 154 | AD154: 154 | AE154: 1 | AF154: 1 | AG154: 1 | AH154: 1 | AI154: 1 | AJ154: 1 | AK154: 1 | AL154: 154 | AM154: 1 | AN154: 1
A155: 154 | B155: 155 | C155: 1 | D155: 155 | E155: 1 | F155: 1 | G155: 1 | H155: 1 | I155: 1 | J155: 1 | K155: 1 | L155: 1 | M155: 1 | N155: 1 | O155: 1 | P155: 1 | Q155: 1 | R155: 1 | S155: 1 | T155: 155 | U155: 1 | V155: 1 | W155: 1 | X155: 155 | Y155: 1 | Z155: 1 | AA155: 1 | AB155: 1 | AC155: 1 | AD155: 1 | AE155: 1 | AF155: 1 | AG155: 1 | AH155: 1 | AI155: 1 | AJ155: 1 | AK155: 1 | AL155: 1 | AM155: 1 | AN155: 1
A156: 155 | B156: 156 | C156: 156 | D156: 1 | E156: 156 | F156: 1 | G156: 1 | H156: 1 | I156: 1 | J156: 1 | K156: 1 | L156: 1 | M156: 1 | N156: 1 | O156: 1 | P156: 1 | Q156: 156 | R156: 1 | S156: 156 | T156: 1 | U156: 1 | V156: 156 | W156: 1 | X156: 1 | Y156: 1 | Z156: 1 | AA156: 1 | AB156: 1 | AC156: 1 | AD156: 1 | AE156: 1 | AF156: 1 | AG156: 1 | AH156: 1 | AI156: 1 | AJ156: 1 | AK156: 1 | AL156: 1 | AM156: 1 | AN156: 1
A157: 156 | B157: 157 | C157: 157 | D157: 1 | E157: 157 | F157: 1 | G157: 1 | H157: 1 | I157: 1 | J157: 1 | K157: 1 | L157: 1 | M157: 1 | N157: 1 | O157: 1 | P157: 1 | Q157: 1 | R157: 1 | S157: 1 | T157: 1 | U157: 1 | V157: 157 | W157: 1 | X157: 1 | Y157: 1 | Z157: 1 | AA157: 1 | AB157: 157 | AC157: 1 | AD157: 157 | AE157: 157 | AF157: 157 | AG157: 1 | AH157: 1 | AI157: 1 | AJ157: 1 | AK157: 1 | AL157: 1 | AM157: 1 | AN157: 1
A158: 157 | B158: 158 | C158: 158 | D158: 1 | E158: 1 | F158: 1 | G158: 1 | H158: 1 | I158: 1 | J158: 1 | K158: 1 | L158: 1 | M158: 1 | N158: 1 | O158: 1 | P158: 1 | Q158: 1 | R158: 1 | S158: 1 | T158: 1 | U158: 1 | V158: 1 | W158: 1 | X158: 1 | Y158: 158 | Z158: 1 | AA158: 1 | AB158: 1 | AC158: 1 | AD158: 158 | AE158: 1 | AF158: 158 | AG158: 1 | AH158: 1 | AI158: 1 | AJ158: 1 | AK158: 1 | AL158: 158 | AM158: 1 | AN158: 1
A159: 158 | B159: 159 | C159: 159 | D159: 1 | E159: 159 | F159: 1 | G159: 1 | H159: 1 | I159: 1 | J159: 1 | K159: 1 | L159: 1 | M159: 1 | N159: 1 | O159: 1 | P159: 1 | Q159: 1 | R159: 1 | S159: 1 | T159: 1 | U159: 1 | V159: 1 | W159: 1 | X159: 1 | Y159: 1 | Z159: 159 | AA159: 1 | AB159: 159 | AC159: 1 | AD159: 159 | AE159: 1 | AF159: 1 | AG159: 1 | AH159: 159 | AI159: 1 | AJ159: 1 | AK159: 1 | AL159: 159 | AM159: 1 | AN159: 1
A160: 159 | B160: 160 | C160: 160 | D160: 1 | E160: 1 | F160: 1 | G160: 1 | H160: 1 | I160: 1 | J160: 1 | K160: 1 | L160: 1 | M160: 1 | N160: 1 | O160: 1 | P160: 1 | Q160: 1 | R160: 1 | S160: 1 | T160: 1 | U160: 1 | V160: 1 | W160: 1 | X160: 1 | Y160: 160 | Z160: 1 | AA160: 1 | AB160: 1 | AC160: 1 | AD160: 160 | AE160: 1 | AF160: 160 | AG160: 1 | AH160: 1 | AI160: 1 | AJ160: 1 | AK160: 1 | AL160: 160 | AM160: 1 | AN160: 1
A161: 160 | B161: 161 | C161: 161 | D161: 1 | E161: 1 | F161: 1 | G161: 1 | H161: 1 | I161: 1 | J161: 1 | K161: 1 | L161: 161 | M161: 1 | N161: 1 | O161: 1 | P161: 1 | Q161: 1 | R161: 1 | S161: 1 | T161: 1 | U161: 1 | V161: 1 | W161: 1 | X161: 1 | Y161: 161 | Z161: 161 | AA161: 1 | AB161: 1 | AC161: 1 | AD161: 161 | AE161: 1 | AF161: 1 | AG161: 1 | AH161: 1 | AI161: 1 | AJ161: 1 | AK161: 1 | AL161: 161 | AM161: 1 | AN161: 1
A162: 161 | B162: 162 | C162: 1 | D162: 1 | E162: 1 | F162: 1 | G162: 1 | H162: 1 | I162: 1 | J162: 1 | K162: 1 | L162: 1 | M162: 1 | N162: 1 | O162: 1 | P162: 1 | Q162: 1 | R162: 1 | S162: 1 | T162: 1 | U162: 1 | V162: 1 | W162: 1 | X162: 1 | Y162: 1 | Z162: 1 | AA162: 1 | AB162: 162 | AC162: 1 | AD162: 162 | AE162: 1 | AF162: 162 | AG162: 1 | AH162: 1 | AI162: 1 | AJ162: 1 | AK162: 1 | AL162: 162 | AM162: 1 | AN162: 1
A163: 162 | B163: 163 | C163: 1 | D163: 1 | E163: 1 | F163: 1 | G163: 163 | H163: 1 | I163: 1 | J163: 1 | K163: 1 | L163: 1 | M163: 1 | N163: 1 | O163: 1 | P163: 1 | Q163: 1 | R163: 1 | S163: 1 | T163: 1 | U163: 1 | V163: 1 | W163: 1 | X163: 1 | Y163: 1 | Z163: 1 | AA163: 1 | AB163: 163 | AC163: 1 | AD163: 163 | AE163: 1 | AF163: 1 | AG163: 163 | AH163: 1 | AI163: 1 | AJ163: 1 | AK163: 1 | AL163: 163 | AM163: 1 | AN163: 1
A164: 163 | B164: 164 | C164: 1 | D164: 1 | E164: 1 | F164: 1 | G164: 1 | H164: 1 | I164: 1 | J164: 1 | K164: 1 | L164: 1 | M164: 1 | N164: 1 | O164: 1 | P164: 1 | Q164: 1 | R164: 1 | S164: 1 | T164: 1 | U164: 1 | V164: 1 | W164: 1 | X164: 1 | Y164: 1 | Z164: 1 | AA164: 1 | AB164: 1 | AC164: 164 | AD164: 164 | AE164: 1 | AF164: 1 | AG164: 1 | AH164: 1 | AI164: 1 | AJ164: 1 | AK164: 1 | AL164: 164 | AM164: 1 | AN164: 1
A165: 164 | B165: 165 | C165: 1 | D165: 1 | E165: 165 | F165: 1 | G165: 1 | H165: 1 | I165: 1 | J165: 1 | K165: 1 | L165: 1 | M165: 1 | N165: 165 | O165: 1 | P165: 1 | Q165: 1 | R165: 1 | S165: 1 | T165: 1 | U165: 1 | V165: 1 | W165: 1 | X165: 1 | Y165: 1 | Z165: 1 | AA165: 1 | AB165: 1 | AC165: 1 | AD165: 1 | AE165: 1 | AF165: 1 | AG165: 1 | AH165: 1 | AI165: 1 | AJ165: 1 | AK165: 1 | AL165: 165 | AM165: 1 | AN165: 1
A166: 165 | B166: 166 | C166: 166 | D166: 1 | E166: 1 | F166: 1 | G166: 166 | H166: 1 | I166: 1 | J166: 1 | K166: 1 | L166: 1 | M166: 1 | N166: 166 | O166: 1 | P166: 1 | Q166: 1 | R166: 1 | S166: 1 | T166: 1 | U166: 1 | V166: 166 | W166: 1 | X166: 1 | Y166: 1 | Z166: 1 | AA166: 1 | AB166: 1 | AC166: 1 | AD166: 1 | AE166: 1 | AF166: 1 | AG166: 1 | AH166: 1 | AI166: 1 | AJ166: 1 | AK166: 1 | AL166: 166 | AM166: 1 | AN166: 1
A167: 166 | B167: 167 | C167: 1 | D167: 1 | E167: 1 | F167: 1 | G167: 1 | H167: 1 | I167: 1 | J167: 1 | K167: 1 | L167: 1 | M167: 1 | N167: 167 | O167: 1 | P167: 1 | Q167: 1 | R167: 1 | S167: 1 | T167: 1 | U167: 1 | V167: 167 | W167: 1 | X167: 1 | Y167: 1 | Z167: 1 | AA167: 1 | AB167: 1 | AC167: 1 | AD167: 1 | AE167: 1 | AF167: 1 | AG167: 1 | AH167: 1 | AI167: 1 | AJ167: 1 | AK167: 1 | AL167: 167 | AM167: 1 | AN167: 1
A168: 167 | B168: 168 | C168: 1 | D168: 1 | E168: 1 | F168: 1 | G168: 1 | H168: 1 | I168: 1 | J168: 1 | K168: 1 | L168: 1 | M168: 1 | N168: 168 | O168: 1 | P168: 1 | Q168: 1 | R168: 1 | S168: 1 | T168: 1 | U168: 1 | V168: 168 | W168: 1 | X168: 1 | Y168: 1 | Z168: 1 | AA168: 1 | AB168: 1 | AC168: 1 | AD168: 1 | AE168: 1 | AF168: 1 | AG168: 1 | AH168: 1 | AI168: 1 | AJ168: 1 | AK168: 1 | AL168: 168 | AM168: 1 | AN168: 1
A169: 168 | B169: 169 | C169: 169 | D169: 1 | E169: 1 | F169: 1 | G169: 1 | H169: 1 | I169: 1 | J169: 1 | K169: 1 | L169: 1 | M169: 1 | N169: 1 | O169: 1 | P169: 1 | Q169: 1 | R169: 1 | S169: 169 | T169: 1 | U169: 1 | V169: 169 | W169: 1 | X169: 1 | Y169: 169 | Z169: 1 | AA169: 1 | AB169: 1 | AC169: 1 | AD169: 1 | AE169: 1 | AF169: 1 | AG169: 1 | AH169: 1 | AI169: 1 | AJ169: 1 | AK169: 1 | AL169: 169 | AM169: 1 | AN169: 1
A170: 169 | B170: 170 | C170: 170 | D170: 1 | E170: 1 | F170: 1 | G170: 1 | H170: 1 | I170: 1 | J170: 1 | K170: 1 | L170: 1 | M170: 1 | N170: 1 | O170: 1 | P170: 1 | Q170: 1 | R170: 1 | S170: 1 | T170: 1 | U170: 170 | V170: 170 | W170: 1 | X170: 1 | Y170: 1 | Z170: 1 | AA170: 1 | AB170: 1 | AC170: 1 | AD170: 1 | AE170: 1 | AF170: 1 | AG170: 1 | AH170: 1 | AI170: 1 | AJ170: 1 | AK170: 1 | AL170: 1 | AM170: 1 | AN170: 1
A171: 170 | B171: 171 | C171: 1 | D171: 1 | E171: 1 | F171: 1 | G171: 1 | H171: 1 | I171: 1 | J171: 1 | K171: 1 | L171: 1 | M171: 1 | N171: 171 | O171: 1 | P171: 1 | Q171: 171 | R171: 1 | S171: 1 | T171: 1 | U171: 1 | V171: 1 | W171: 1 | X171: 1 | Y171: 1 | Z171: 1 | AA171: 1 | AB171: 1 | AC171: 1 | AD171: 1 | AE171: 1 | AF171: 1 | AG171: 1 | AH171: 1 | AI171: 1 | AJ171: 1 | AK171: 1 | AL171: 1 | AM171: 1 | AN171: 1
A172: 171 | B172: 172 | C172: 1 | D172: 172 | E172: 1 | F172: 172 | G172: 172 | H172: 1 | I172: 1 | J172: 1 | K172: 1 | L172: 1 | M172: 1 | N172: 172 | O172: 1 | P172: 1 | Q172: 1 | R172: 1 | S172: 1 | T172: 1 | U172: 1 | V172: 1 | W172: 1 | X172: 1 | Y172: 1 | Z172: 1 | AA172: 1 | AB172: 1 | AC172: 1 | AD172: 1 | AE172: 1 | AF172: 1 | AG172: 1 | AH172: 1 | AI172: 1 | AJ172: 1 | AK172: 1 | AL172: 1 | AM172: 1 | AN172: 1
A173: 172 | B173: 173 | C173: 173 | D173: 173 | E173: 1 | F173: 1 | G173: 1 | H173: 1 | I173: 1 | J173: 1 | K173: 1 | L173: 1 | M173: 1 | N173: 1 | O173: 173 | P173: 1 | Q173: 1 | R173: 1 | S173: 1 | T173: 1 | U173: 1 | V173: 1 | W173: 1 | X173: 1 | Y173: 1 | Z173: 1 | AA173: 1 | AB173: 1 | AC173: 1 | AD173: 1 | AE173: 1 | AF173: 1 | AG173: 1 | AH173: 173 | AI173: 1 | AJ173: 1 | AK173: 1 | AL173: 1 | AM173: 173 | AN173: 1
A174: 173 | B174: 174 | C174: 174 | D174: 174 | E174: 1 | F174: 1 | G174: 1 | H174: 1 | I174: 1 | J174: 1 | K174: 1 | L174: 1 | M174: 1 | N174: 1 | O174: 174 | P174: 1 | Q174: 1 | R174: 1 | S174: 1 | T174: 1 | U174: 1 | V174: 1 | W174: 1 | X174: 1 | Y174: 1 | Z174: 1 | AA174: 1 | AB174: 1 | AC174: 1 | AD174: 1 | AE174: 1 | AF174: 1 | AG174: 1 | AH174: 174 | AI174: 1 | AJ174: 1 | AK174: 1 | AL174: 1 | AM174: 174 | AN174: 1
A175: 174 | B175: 175 | C175: 175 | D175: 175 | E175: 1 | F175: 1 | G175: 1 | H175: 1 | I175: 1 | J175: 1 | K175: 1 | L175: 1 | M175: 1 | N175: 1 | O175: 1 | P175: 1 | Q175: 1 | R175: 1 | S175: 1 | T175: 1 | U175: 1 | V175: 1 | W175: 1 | X175: 1 | Y175: 1 | Z175: 1 | AA175: 1 | AB175: 1 | AC175: 175 | AD175: 175 | AE175: 1 | AF175: 1 | AG175: 175 | AH175: 175 | AI175: 1 | AJ175: 1 | AK175: 1 | AL175: 1 | AM175: 175 | AN175: 1
A176: 175 | B176: 176 | C176: 176 | D176: 1 | E176: 1 | F176: 1 | G176: 1 | H176: 1 | I176: 1 | J176: 1 | K176: 1 | L176: 1 | M176: 1 | N176: 176 | O176: 1 | P176: 1 | Q176: 1 | R176: 1 | S176: 1 | T176: 1 | U176: 1 | V176: 176 | W176: 1 | X176: 1 | Y176: 1 | Z176: 1 | AA176: 1 | AB176: 1 | AC176: 1 | AD176: 1 | AE176: 1 | AF176: 1 | AG176: 1 | AH176: 1 | AI176: 1 | AJ176: 1 | AK176: 176 | AL176: 1 | AM176: 1 | AN176: 1
A177: 176 | B177: 177 | C177: 177 | D177: 1 | E177: 1 | F177: 1 | G177: 1 | H177: 1 | I177: 1 | J177: 1 | K177: 1 | L177: 1 | M177: 1 | N177: 1 | O177: 1 | P177: 1 | Q177: 1 | R177: 1 | S177: 1 | T177: 1 | U177: 177 | V177: 1 | W177: 1 | X177: 1 | Y177: 1 | Z177: 1 | AA177: 1 | AB177: 1 | AC177: 1 | AD177: 1 | AE177: 1 | AF177: 1 | AG177: 1 | AH177: 177 | AI177: 1 | AJ177: 1 | AK177: 1 | AL177: 1 | AM177: 1 | AN177: 1
A178: 177 | B178: 178 | C178: 178 | D178: 178 | E178: 178 | F178: 1 | G178: 1 | H178: 1 | I178: 1 | J178: 1 | K178: 1 | L178: 1 | M178: 1 | N178: 1 | O178: 178 | P178: 1 | Q178: 1 | R178: 1 | S178: 1 | T178: 178 | U178: 1 | V178: 1 | W178: 1 | X178: 1 | Y178: 1 | Z178: 1 | AA178: 1 | AB178: 1 | AC178: 1 | AD178: 1 | AE178: 1 | AF178: 1 | AG178: 1 | AH178: 1 | AI178: 1 | AJ178: 1 | AK178: 1 | AL178: 1 | AM178: 1 | AN178: 178
A179: 178 | B179: 179 | C179: 179 | D179: 179 | E179: 179 | F179: 1 | G179: 1 | H179: 1 | I179: 1 | J179: 1 | K179: 1 | L179: 1 | M179: 1 | N179: 1 | O179: 1 | P179: 1 | Q179: 1 | R179: 1 | S179: 1 | T179: 179 | U179: 1 | V179: 1 | W179: 1 | X179: 1 | Y179: 1 | Z179: 1 | AA179: 1 | AB179: 1 | AC179: 1 | AD179: 1 | AE179: 1 | AF179: 1 | AG179: 1 | AH179: 1 | AI179: 1 | AJ179: 1 | AK179: 1 | AL179: 1 | AM179: 1 | AN179: 1
A180: 179 | B180: 180 | C180: 180 | D180: 180 | E180: 180 | F180: 1 | G180: 1 | H180: 1 | I180: 1 | J180: 1 | K180: 1 | L180: 1 | M180: 1 | N180: 1 | O180: 1 | P180: 1 | Q180: 1 | R180: 1 | S180: 1 | T180: 180 | U180: 1 | V180: 1 | W180: 1 | X180: 1 | Y180: 1 | Z180: 1 | AA180: 1 | AB180: 1 | AC180: 1 | AD180: 1 | AE180: 1 | AF180: 1 | AG180: 1 | AH180: 1 | AI180: 1 | AJ180: 1 | AK180: 1 | AL180: 1 | AM180: 1 | AN180: 1
A181: 180 | B181: 181 | C181: 181 | D181: 181 | E181: 181 | F181: 1 | G181: 1 | H181: 1 | I181: 1 | J181: 1 | K181: 1 | L181: 1 | M181: 1 | N181: 1 | O181: 1 | P181: 1 | Q181: 1 | R181: 1 | S181: 1 | T181: 181 | U181: 1 | V181: 1 | W181: 1 | X181: 1 | Y181: 1 | Z181: 1 | AA181: 1 | AB181: 1 | AC181: 1 | AD181: 1 | AE181: 1 | AF181: 1 | AG181: 1 | AH181: 1 | AI181: 1 | AJ181: 1 | AK181: 1 | AL181: 1 | AM181: 1 | AN181: 1
A182: 181 | B182: 182 | C182: 182 | D182: 1 | E182: 1 | F182: 1 | G182: 1 | H182: 1 | I182: 182 | J182: 1 | K182: 1 | L182: 182 | M182: 1 | N182: 1 | O182: 1 | P182: 1 | Q182: 1 | R182: 1 | S182: 182 | T182: 1 | U182: 1 | V182: 182 | W182: 182 | X182: 1 | Y182: 1 | Z182: 1 | AA182: 1 | AB182: 1 | AC182: 1 | AD182: 1 | AE182: 1 | AF182: 1 | AG182: 1 | AH182: 1 | AI182: 1 | AJ182: 1 | AK182: 1 | AL182: 182 | AM182: 1 | AN182: 182
A183: 182 | B183: 183 | C183: 1 | D183: 1 | E183: 1 | F183: 1 | G183: 1 | H183: 1 | I183: 1 | J183: 1 | K183: 1 | L183: 1 | M183: 1 | N183: 1 | O183: 1 | P183: 1 | Q183: 1 | R183: 1 | S183: 1 | T183: 1 | U183: 1 | V183: 183 | W183: 183 | X183: 1 | Y183: 1 | Z183: 183 | AA183: 1 | AB183: 1 | AC183: 1 | AD183: 1 | AE183: 1 | AF183: 1 | AG183: 1 | AH183: 1 | AI183: 1 | AJ183: 1 | AK183: 1 | AL183: 1 | AM183: 1 | AN183: 1
A184: 183 | B184: 184 | C184: 184 | D184: 184 | E184: 1 | F184: 1 | G184: 1 | H184: 1 | I184: 1 | J184: 1 | K184: 1 | L184: 1 | M184: 1 | N184: 184 | O184: 1 | P184: 1 | Q184: 1 | R184: 1 | S184: 1 | T184: 1 | U184: 1 | V184: 1 | W184: 1 | X184: 1 | Y184: 1 | Z184: 1 | AA184: 1 | AB184: 1 | AC184: 1 | AD184: 1 | AE184: 1 | AF184: 1 | AG184: 1 | AH184: 184 | AI184: 1 | AJ184: 1 | AK184: 1 | AL184: 1 | AM184: 1 | AN184: 1
A185: 184 | B185: 185 | C185: 1 | D185: 1 | E185: 1 | F185: 1 | G185: 1 | H185: 1 | I185: 1 | J185: 1 | K185: 1 | L185: 1 | M185: 1 | N185: 1 | O185: 1 | P185: 1 | Q185: 1 | R185: 1 | S185: 1 | T185: 1 | U185: 1 | V185: 185 | W185: 1 | X185: 1 | Y185: 1 | Z185: 1 | AA185: 1 | AB185: 1 | AC185: 1 | AD185: 1 | AE185: 1 | AF185: 1 | AG185: 1 | AH185: 185 | AI185: 185 | AJ185: 185 | AK185: 1 | AL185: 1 | AM185: 1 | AN185: 1
A186: 185 | B186: 186 | C186: 186 | D186: 1 | E186: 1 | F186: 1 | G186: 1 | H186: 1 | I186: 186 | J186: 1 | K186: 1 | L186: 1 | M186: 1 | N186: 186 | O186: 1 | P186: 1 | Q186: 1 | R186: 1 | S186: 1 | T186: 1 | U186: 1 | V186: 1 | W186: 1 | X186: 1 | Y186: 1 | Z186: 1 | AA186: 1 | AB186: 1 | AC186: 1 | AD186: 1 | AE186: 1 | AF186: 1 | AG186: 1 | AH186: 186 | AI186: 1 | AJ186: 1 | AK186: 186 | AL186: 1 | AM186: 1 | AN186: 1
A187: 186 | B187: 187 | C187: 187 | D187: 187 | E187: 1 | F187: 1 | G187: 1 | H187: 1 | I187: 1 | J187: 1 | K187: 1 | L187: 1 | M187: 1 | N187: 1 | O187: 187 | P187: 1 | Q187: 1 | R187: 1 | S187: 1 | T187: 1 | U187: 187 | V187: 1 | W187: 1 | X187: 1 | Y187: 1 | Z187: 1 | AA187: 1 | AB187: 1 | AC187: 1 | AD187: 1 | AE187: 1 | AF187: 1 | AG187: 1 | AH187: 1 | AI187: 1 | AJ187: 1 | AK187: 1 | AL187: 1 | AM187: 1 | AN187: 1
A188: 187 | B188: 188 | C188: 1 | D188: 188 | E188: 1 | F188: 1 | G188: 1 | H188: 1 | I188: 1 | J188: 1 | K188: 1 | L188: 1 | M188: 1 | N188: 1 | O188: 1 | P188: 1 | Q188: 1 | R188: 1 | S188: 1 | T188: 1 | U188: 188 | V188: 1 | W188: 1 | X188: 1 | Y188: 188 | Z188: 1 | AA188: 1 | AB188: 1 | AC188: 1 | AD188: 188 | AE188: 1 | AF188: 1 | AG188: 188 | AH188: 1 | AI188: 1 | AJ188: 1 | AK188: 1 | AL188: 1 | AM188: 1 | AN188: 1
A189: 188 | B189: 189 | C189: 189 | D189: 1 | E189: 189 | F189: 1 | G189: 1 | H189: 1 | I189: 1 | J189: 1 | K189: 1 | L189: 1 | M189: 1 | N189: 189 | O189: 189 | P189: 1 | Q189: 1 | R189: 1 | S189: 1 | T189: 1 | U189: 189 | V189: 1 | W189: 1 | X189: 1 | Y189: 1 | Z189: 189 | AA189: 1 | AB189: 1 | AC189: 1 | AD189: 189 | AE189: 1 | AF189: 1 | AG189: 189 | AH189: 189 | AI189: 1 | AJ189: 1 | AK189: 1 | AL189: 1 | AM189: 1 | AN189: 1
A190: 189 | B190: 190 | C190: 1 | D190: 1 | E190: 1 | F190: 1 | G190: 1 | H190: 1 | I190: 1 | J190: 1 | K190: 1 | L190: 1 | M190: 1 | N190: 1 | O190: 1 | P190: 1 | Q190: 1 | R190: 1 | S190: 1 | T190: 1 | U190: 1 | V190: 190 | W190: 1 | X190: 1 | Y190: 1 | Z190: 1 | AA190: 1 | AB190: 1 | AC190: 1 | AD190: 1 | AE190: 1 | AF190: 1 | AG190: 1 | AH190: 1 | AI190: 1 | AJ190: 1 | AK190: 1 | AL190: 190 | AM190: 1 | AN190: 190
A191: 190 | B191: 191 | C191: 1 | D191: 1 | E191: 191 | F191: 191 | G191: 191 | H191: 1 | I191: 1 | J191: 1 | K191: 1 | L191: 1 | M191: 191 | N191: 1 | O191: 1 | P191: 1 | Q191: 1 | R191: 1 | S191: 191 | T191: 1 | U191: 1 | V191: 1 | W191: 1 | X191: 1 | Y191: 1 | Z191: 1 | AA191: 1 | AB191: 191 | AC191: 1 | AD191: 191 | AE191: 1 | AF191: 1 | AG191: 1 | AH191: 1 | AI191: 1 | AJ191: 1 | AK191: 1 | AL191: 1 | AM191: 1 | AN191: 1
A192: 191 | B192: 192 | C192: 1 | D192: 1 | E192: 192 | F192: 192 | G192: 192 | H192: 1 | I192: 1 | J192: 1 | K192: 1 | L192: 1 | M192: 192 | N192: 1 | O192: 1 | P192: 1 | Q192: 1 | R192: 1 | S192: 192 | T192: 1 | U192: 1 | V192: 1 | W192: 1 | X192: 1 | Y192: 1 | Z192: 1 | AA192: 1 | AB192: 192 | AC192: 1 | AD192: 192 | AE192: 1 | AF192: 1 | AG192: 1 | AH192: 1 | AI192: 1 | AJ192: 1 | AK192: 1 | AL192: 1 | AM192: 1 | AN192: 1
A193: 192 | B193: 193 | C193: 193 | D193: 1 | E193: 1 | F193: 1 | G193: 1 | H193: 1 | I193: 1 | J193: 193 | K193: 1 | L193: 1 | M193: 1 | N193: 1 | O193: 1 | P193: 1 | Q193: 1 | R193: 1 | S193: 1 | T193: 1 | U193: 1 | V193: 1 | W193: 1 | X193: 1 | Y193: 1 | Z193: 193 | AA193: 1 | AB193: 1 | AC193: 1 | AD193: 193 | AE193: 1 | AF193: 1 | AG193: 1 | AH193: 1 | AI193: 1 | AJ193: 1 | AK193: 1 | AL193: 1 | AM193: 1 | AN193: 1
A194: 193 | B194: 194 | C194: 194 | D194: 1 | E194: 1 | F194: 1 | G194: 1 | H194: 1 | I194: 1 | J194: 194 | K194: 1 | L194: 1 | M194: 1 | N194: 1 | O194: 1 | P194: 1 | Q194: 1 | R194: 1 | S194: 1 | T194: 1 | U194: 1 | V194: 194 | W194: 1 | X194: 1 | Y194: 194 | Z194: 1 | AA194: 1 | AB194: 1 | AC194: 1 | AD194: 194 | AE194: 194 | AF194: 1 | AG194: 1 | AH194: 1 | AI194: 1 | AJ194: 1 | AK194: 1 | AL194: 1 | AM194: 1 | AN194: 1
A195: 194 | B195: 195 | C195: 195 | D195: 1 | E195: 1 | F195: 1 | G195: 1 | H195: 1 | I195: 1 | J195: 195 | K195: 1 | L195: 1 | M195: 1 | N195: 1 | O195: 1 | P195: 1 | Q195: 1 | R195: 1 | S195: 195 | T195: 1 | U195: 1 | V195: 195 | W195: 1 | X195: 1 | Y195: 1 | Z195: 1 | AA195: 1 | AB195: 1 | AC195: 1 | AD195: 1 | AE195: 1 | AF195: 1 | AG195: 1 | AH195: 1 | AI195: 1 | AJ195: 1 | AK195: 1 | AL195: 1 | AM195: 1 | AN195: 1
A196: 195 | B196: 196 | C196: 1 | D196: 1 | E196: 1 | F196: 1 | G196: 196 | H196: 1 | I196: 1 | J196: 196 | K196: 1 | L196: 1 | M196: 1 | N196: 1 | O196: 1 | P196: 1 | Q196: 1 | R196: 1 | S196: 1 | T196: 1 | U196: 1 | V196: 196 | W196: 1 | X196: 1 | Y196: 196 | Z196: 1 | AA196: 1 | AB196: 1 | AC196: 1 | AD196: 196 | AE196: 196 | AF196: 1 | AG196: 1 | AH196: 1 | AI196: 1 | AJ196: 1 | AK196: 1 | AL196: 1 | AM196: 1 | AN196: 1
A197: 196 | B197: 197 | C197: 197 | D197: 1 | E197: 1 | F197: 197 | G197: 1 | H197: 1 | I197: 1 | J197: 197 | K197: 1 | L197: 1 | M197: 1 | N197: 1 | O197: 197 | P197: 1 | Q197: 1 | R197: 1 | S197: 1 | T197: 1 | U197: 1 | V197: 197 | W197: 1 | X197: 1 | Y197: 1 | Z197: 1 | AA197: 1 | AB197: 1 | AC197: 1 | AD197: 1 | AE197: 1 | AF197: 1 | AG197: 1 | AH197: 1 | AI197: 1 | AJ197: 1 | AK197: 1 | AL197: 1 | AM197: 1 | AN197: 197
A198: 197 | B198: 198 | C198: 198 | D198: 1 | E198: 198 | F198: 1 | G198: 198 | H198: 1 | I198: 1 | J198: 1 | K198: 1 | L198: 1 | M198: 1 | N198: 1 | O198: 1 | P198: 1 | Q198: 1 | R198: 1 | S198: 198 | T198: 1 | U198: 198 | V198: 198 | W198: 1 | X198: 1 | Y198: 1 | Z198: 1 | AA198: 1 | AB198: 1 | AC198: 1 | AD198: 1 | AE198: 1 | AF198: 1 | AG198: 1 | AH198: 1 | AI198: 1 | AJ198: 1 | AK198: 1 | AL198: 1 | AM198: 1 | AN198: 1
A199: 198 | B199: 199 | C199: 199 | D199: 199 | E199: 1 | F199: 1 | G199: 1 | H199: 199 | I199: 1 | J199: 1 | K199: 1 | L199: 1 | M199: 199 | N199: 1 | O199: 1 | P199: 1 | Q199: 1 | R199: 1 | S199: 1 | T199: 1 | U199: 199 | V199: 1 | W199: 1 | X199: 1 | Y199: 1 | Z199: 1 | AA199: 1 | AB199: 1 | AC199: 1 | AD199: 1 | AE199: 1 | AF199: 1 | AG199: 1 | AH199: 1 | AI199: 1 | AJ199: 1 | AK199: 1 | AL199: 1 | AM199: 1 | AN199: 1
A200: 199 | B200: 200 | C200: 200 | D200: 200 | E200: 1 | F200: 1 | G200: 1 | H200: 1 | I200: 200 | J200: 1 | K200: 1 | L200: 1 | M200: 1 | N200: 200 | O200: 200 | P200: 1 | Q200: 1 | R200: 1 | S200: 1 | T200: 1 | U200: 200 | V200: 1 | W200: 1 | X200: 1 | Y200: 1 | Z200: 200 | AA200: 1 | AB200: 1 | AC200: 1 | AD200: 1 | AE200: 1 | AF200: 1 | AG200: 1 | AH200: 1 | AI200: 1 | AJ200: 1 | AK200: 1 | AL200: 200 | AM200: 1 | AN200: 1
... 74 more rows

Sheet data (hidden)
A1: NS income (c1) | C1: Overview of the tax calculation process | E1: ="Calculate Tax and NIC "&tax_year -> Calculate Tax and NIC 2024-25
A2: Savings (c2) | C2: The main body of the calculation is contained within stages 1 to 12. Stages 14 to 29 may be required,
A3: Divs (c3) | C3: depending on the taxpayer’s circumstances. They are cross-referenced with various points within stages
A4: Status (c3a) | C4: 1 to 12. Only the end result of processing in stages 14 to 28 (13 is not currently used) are used within
A5: Deductions (c4) | C5: stages 1 to 12 but all boxes leading to the end result need to be calculated.
A6: Taxable (c5)
A7: tax it (c6) | C7: ="For example: "&'Tax adj (c9)'!I51&" requires a figure from box "&'allowances (c14c15)'!K148&" or "&'allowances (c14c15)'!K164&". To calculate box "&'allowances (c14c15)'!K148&" or "&'allowances (c14c15)'!K164&" not" -> For example: c9.16 requires a figure from box c15.20 or c15.21. To calculate box c15.20 or c15.21 not
A8: CDR (c7) | C8: ="only requires calculating "&'allowances (c14c15)'!K43&" onwards but also "&'allowances (c14c15)'!K5&" through "&'allowances (c14c15)'!K26&", as these are referenced in "&'allowances (c14c15)'!E58 -> only requires calculating c15.1 onwards but also c14.1 through c14.6, as these are referenced in c15.6
A9: tax it (c8) | C9: ="and "&'allowances (c14c15)'!E61&"." -> and c15.7.
A10: Tax adj (c9)
A11: Div Cr (c10) | C11: The annexes contain associated processing that is dependant on the calculation stages.
A12: tax paid (c11)
A13: Tax due (c12) | C13: Note where a box contains all instances then the rounding should be done on each instances.
A14: POAs (c13)
A15: allowances (c14c15) | C15: If NON UK RESIDENT (box NRD1 = Y)
A16: Class 4 NIC (c16) | C16: set calculation type = resident
A17: TSR (c17) | C17: ="Calculate boxes "&'NS income (c1)'!E5&" through "&'Tax due (c12)'!I5 -> Calculate boxes c1.1 through c12.1
A18: CG (c18) | C18: ="resident-result ("&'Tax due (c12)'!I14&") = "&'Tax due (c12)'!I5 -> resident-result (c12.1a) = c12.1
A19: RBC (c19) | C19: set calculation type = non-resident
A20: RBC & Cap (C20a) | C20: ="Calculate boxes "&'non-res (c91)'!C15&" through "&'non-res (c91)'!R119 -> Calculate boxes c91.1 through c91.35
A21: Notional (c21c23) | C21: ="Calculate boxes "&'Deductions (c4)'!Q23&" through "&'Tax due (c12)'!I5 -> Calculate boxes c4.4 through c12.1
A22: LLIR (c24) | C22: ="non-resident-result ("&'Tax due (c12)'!I18&") = "&'Tax due (c12)'!I5 -> non-resident-result (c12.1b) = c12.1
A23: Pensions (c25c26) | C23: If resident-result <= non-resident-result
A24: S loans(c27) | C24: end if
A25: CBC(c28) | C25: set calculation type = resident
A26: non-res (c91) | C26: ="Calculate boxes c1.1 through "&'Tax due (c12)'!I119 -> Calculate boxes c1.1 through c12.21
C27: end if
A28: EMP
A29: MOR | C29: Format SA302 and view screens (see Annex A)
A30: SE
A31: LUN | C31: If a digital Marriage Allowance transfer claim is in place and they are a Transferor or a Recipient the MAT_OUT
A32: PS | C32: ="or MAT_IN amount will be set and "&'Deductions (c4)'!H336&" or "&'Tax adj (c9)'!I75&" will be completed with the MAT amount." -> or MAT_IN amount will be set and c4.68 or c9.20 will be completed with the MAT amount.
A33: NI
A34: PRO | C34: ="Where there is not a digital Marriage Allowance transfer claim in place and the customer completes MAT"&'REL(2)'!C32 -> Where there is not a digital Marriage Allowance transfer claim in place and the customer completes MAT1-5
A35: FOR | C35: MAT_OUT amount will be set to "Y"
A36: TRU
A37: CGT | C37: ="For Class 2 there are no boxes on the SA Return. Pseudo Return boxes / centralised box will be required to populate "&'Class 4 NIC (c16)'!J192&"." -> For Class 2 there are no boxes on the SA Return. Pseudo Return boxes / centralised box will be required to populate c16.32.
A38: NRD | C38: Larger of all instances (SSECL2 OR FSECL2 OR SPSCL2 OR FPSCL2) OR LUNCL2 OR Total of centralised box
A39: CAL
A40: AOI | C40: For Class 4 there are no boxes for Class 1 earnings on the Return for the Reg100 Class 4 calculation.
A41: ASE | C41: ="Pseudo Return boxes will be required to populate "&'Class 4 NIC (c16)'!J110 -> Pseudo Return boxes will be required to populate c16.20
A42: AOR
A43: MCA | C43: Tax rates | F43: Reviewed | G43: Swiss Tax Credit
A44: AIL | C44: Employees' rate between threshold and upper earnings limit | D44: NIC1_rate | E44: 0.08 | G44: not for requirements
C45: Class 4 rate between lower profits limit and upper profits limit | D45: NIC_rate | E45: 0.06 | K45: used as
A46: C0 | C46: Class 4 rate above upper profits limit | D46: NIC_supp_rate | E46: 0.02 | G46: Grossing up factors | I46: D | J46: F | K46: *100/ | L46: P
A47: C1 | C47: Student Loan deduction rate | D47: Sloan_rate | E47: 0.09 | G47: Dividend old net to gross factor | H47: old_gross | I47: 1.111111111 | J47: 100/90 | K47: 90 | L47: 0.1
A48: C2 | C48: Postgraduate loan rate | D48: PGL_rate | E48: 0.06 | G48: Dividend net to gross factor | H48: divs_gross | I48: 1.095890411 | J48: 100/91.25 | K48: 91.25 | L48: 0.0875
A49: C3 | C49: Starting rate for savings | D49: SR_rate | E49: 0 | G49: Savings net to gross factor | H49: savings_gross | I49: 1.25 | J49: 100/80 | K49: 80 | L49: 0.2
A50: C4 | C50: Savings Nil rate | D50: SNil_rate | E50: 0 | G50: Non-savings net to gross factor | H50: NS_gross | I50: 1.25 | J50: 100/80 | K50: 80 | L50: 0.2
A51: C5 | C51: Old Basic Rate | D51: OLD_BR | E51: 0.22 | G51: Higher rate net to gross factor | H51: HR_gross | I51: 1.666666667 | J51: 100/60 | K51: 60 | L51: 0.4 | M51: used in calc?
A52: C6 | C52: Basic rate for savings | D52: SAVBR_rate | E52: 0.2 | G52: Non-savings net to gross old factor | H52: Gross_By_22 | I52: 1.282051282 | J52: 100/78 | K52: 78 | L52: 0.22
A53: C7 | C53: Higher rate for savings | D53: SAVHR_rate | E53: 0.4 | G53: Trust rate net to gross factor | H53: trust_gross | I53: 1.818181818 | J53: 100/55 | K53: 55 | L53: 0.45
A54: C8C9C10 | C54: Additional rate for savings | D54: SAVAHR_rate | E54: 0.45 | G54: Trust dividend rate net to gross factor | H54: trust_div_gross | I54: 1.648804617 | J54: 100/60.65 | K54: 60.65 | L54: 0.3935
C55: Basic rate UK rate for England Northern Ireland | D55: BR_rate | E55: 0.2 | G55: Gift aid | H55: gift_aid | I55: 1.25 | J55: 100/80 | K55: 80 | L55: 0.2
C56: Higher rate UK rate for England Northern Ireland | D56: HR_rate | E56: 0.4 | G56: Dividend old 7.5 net to gross | H56: divs_gross_old | I56: 1.081081081 | J56: 100/92.5 | K56: 92.5 | L56: 0.075
C57: Additional Rate UK rate for England and Northern Ireland | D57: AHR_rate | E57: 0.45
C58: Starter rate for Scotland | D58: SSR_rate | E58: 0.19
C59: Basic rate UK rate for Scotland | D59: SBR_rate | E59: 0.2
C60: Intermediate rate for Scotland | D60: SIR_rate | E60: 0.21
C61: Higher rate UK rate for Scotland | D61: SHR_rate | E61: 0.42
C62: Advanced rate for Scotland | D62: SAR_rate | E62: 0.45
C63: Additional Rate UK rate for Scotland | D63: SAHR_rate | E63: 0.48
C64: Basic rate for Wales | D64: WBR_rate | E64: 0.2
C65: Higher rate for Wales | D65: WHR_rate | E65: 0.4
C66: Additional Rate rate for Wales | D66: WAHR_rate | E66: 0.45
C67: Old Dividend rate | D67: Old_DIV_rate | E67: 0.075
C68: Lower Dividend rate | D68: Ldiv_rate | E68: 0.1
C69: Dividend Nil rate | D69: DivNil_rate | E69: 0
C70: Dividend Investment rate | D70: DivBR_rate | E70: 0.0875
C71: Dividend Higher rate | D71: DivHR_rate | E71: 0.3375
C72: Dividend Additional rate | D72: DivAR_rate | E72: 0.3935
C73: Venture Capital Trust shares rate | D73: VCT_rate | E73: 0.3
C74: Enterprise Investment Scheme rate | D74: EIS_rate | E74: 0.3
C75: Seed Enterprise Investment Scheme Relief rate | D75: SEIS_rate | E75: 0.5
C76: Community Investment Tax Relief rate | D76: CITR_rate | E76: 0.05
C77: Social Investment Tax Relief rate | D77: SITR_rate | E77: 0.3
C78: Reducing Allowances rate for MCA, Alimony etc | D78: A_rate | E78: 0.1
C79: Capital Gains Entrepreneurs rate | D79: ER_CGT_rate | E79: 0.1
C80: Capital Gains Lower rate | D80: Lower_CGT_rate | E80: 0.1
C81: Capital Gains Higher rate | D81: Upper_CGT_rate | E81: 0.2
C82: Post budget Capital Gains Lower rate | D82: Pb_Lower_CGT_rate | E82: 0.18
C83: Post budget Capital Gains Higher rate | D83: Pb_Upper_CGT_rate | E83: 0.24
C84: Capital Gains Lower rate Residential Property & Carried Interest | D84: Lower_CGT_rate_RP_CI | E84: 0.18
C85: Capital Gains Higher rate Residential Property & Carried Interest | D85: Upper_CGT_rate_RP_CI | E85: 0.24
C86: Capital Gains Lower rate Residential Property | D86: Lower_CGT_rate_RP | E86: 0.18
C87: Capital Gains Higher rate Residential Property | D87: Upper_CGT_rate_RP | E87: 0.24
C88: Carried Interest | D88: Lower_CGT_rate_CI | E88: 0.18
C89: Carried Interest | D89: Upper_CGT_rate_CI | E89: 0.28
C90: Overpaid SEISS and CJRS charge rate | D90: Charge_rate | E90: 1
J93: ="06/04/"&Tax_year_start -> 06/04/2024
J94: ="05/04/"&Tax_year_end -> 05/04/2025
K95: =J93-DAY(J93)+8-WEEKDAY(J93-DAY(J93)) -> 2024-04-07 | L95: ="First Sunday in April "&Tax_year_start -> First Sunday in April 2024
J96: week 1 | K96: =IF(K95+0<J93+0,K95+7,K95) -> 2024-04-07 | L96: ="First Sunday after 5 April "&Tax_year_start -> First Sunday after 5 April 2024
J97: week 52 | K97: =K96+357 -> 2025-03-30
C98: Rate Bands | J98: week 53 | K98: =K96+364 -> 2025-04-06 | L98: =IF(K98>K99,52,53) -> 52
C99: Savings Starting rate band | D99: SR_band | E99: 5000 | J99: last day | K99: =J94+0 -> 2025-04-05
C100: Scottish starter rate band | D100: SSR_band | E100: 2306
C101: Band between Savings rate & Basic rate | D101: SavBR_band | E101: 32700 | G101: =BR_band-SR_band -> 32700 | H101: =BR_band-SR_band | J101: 1 | K101: =K96 -> 2024-04-07 | L101: 27 | M101: =K126+7 -> 2024-10-06
C102: Basic rate band | D102: BR_band | E102: 37700 | J102: 2 | K102: =K101+7 -> 2024-04-14 | L102: 28 | M102: =M101+7 -> 2024-10-13
C103: Scottish Basic rate band | D103: SBR_band | E103: 11685 | G103: Ratified rate | H103: Announced December/Ratified March | J103: 3 | K103: =K102+7 -> 2024-04-21 | L103: 29 | M103: 2024-10-20
C104: Scottish intermediate rate band | D104: SIR_band | E104: 17101 | J104: 4 | K104: 2024-04-28 | L104: 30 | M104: 2024-10-27
C105: Band between Basic Rate & Higher rate | D105: HR_band | E105: 87440 | G105: =AHR_band-BR_band -> 87440 | H105: =AHR_band-BR_band | J105: 5 | K105: 2024-05-05 | L105: 31 | M105: 2024-11-03
C106: Scottish Band between Basic Rate & Higher rate | D106: SHR_band | E106: 31338 | G106: =SAHR_band-(SBR_band+SSR_band+SIR_band+SAVR_band) -> 31338 | H106: =SAHR_band-SBR_band | J106: 6 | K106: 2024-05-12 | L106: 32 | M106: 2024-11-10
C107: Scottish Advanced rate band | D107: SAR_band | E107: 62710 | G107: =SAHR_band-(SBR_band+SSR_band+SIR_band+SHR_band) -> 62710 | J107: 7 | K107: 2024-05-19 | L107: 33 | M107: 2024-11-17
C108: Additional rate band | D108: AHR_band | E108: 125140 | J108: 8 | K108: 2024-05-26 | L108: 34 | M108: 2024-11-24
C109: Scottish Additional rate band | D109: SAHR_band | E109: 125140 | J109: 9 | K109: 2024-06-02 | L109: 35 | M109: 2024-12-01
C110: Class 1 Primary Threshold (employee) | D110: Class1_PT | E110: 12570 | G110: not for requirements | J110: 10 | K110: 2024-06-09 | L110: 36 | M110: 2024-12-08
C111: Class 1 Upper Earnings Limit | D111: Class1_UEL | E111: 50270 | G111: not for requirements | J111: 11 | K111: 2024-06-16 | L111: 37 | M111: 2024-12-15
C112: Class 2 amount, per week | D112: NIC2_weekamt | E112: 3.45 | G112: 'Ordinary' rate | J112: 12 | K112: 2024-06-23 | L112: 38 | M112: 2024-12-22
C113: Class 2 annual limit | D113: NIC2_annual_limit | E113: 182.85 | G113: =NIC2_weekamt*53 -> 182.85 | H113: =NIC2_weekamt*53 | J113: 13 | K113: 2024-06-30 | L113: 39 | M113: 2024-12-29
C114: Class 2 amount, per week for Share fishermen | D114: NIC2SF_weekamt | E114: 4.1 | G114: Share Fisherman | J114: 14 | K114: 2024-07-07 | L114: 40 | M114: 2025-01-05
C115: Class 2 annual limit for Share fishermen | D115: NIC2SF_annual_limit | E115: 217.3 | G115: =NIC2SF_weekamt*53 -> 217.3 | H115: =NIC2SF_weekamt*53 | J115: 15 | K115: 2024-07-14 | L115: 41 | M115: 2025-01-12
C116: Class 2 NIC small profit theshhold | D116: NIC2_SPT | E116: 6725 | J116: 16 | K116: 2024-07-21 | L116: 42 | M116: 2025-01-19
C117: Class 2 Lower Profit Threshold | D117: NIC2_LPT | E117: 12570 | J117: 17 | K117: 2024-07-28 | L117: 43 | M117: 2025-01-26
C118: Upper earnings limit (weekly) | D118: NIC_UEL_Wk | E118: 967 | G118: Not for requirements | J118: 18 | K118: 2024-08-04 | L118: 44 | M118: 2025-02-02
C119: Primary earnings threshold (weekly) | D119: NIC_PT_Wk | E119: 242 | G119: Not for requirements | J119: 19 | K119: 2024-08-11 | L119: 45 | M119: 2025-02-09
C120: Class 4 NIC upper profit limit | D120: NIC_UEL | E120: 50270 | J120: 20 | K120: 2024-08-18 | L120: 46 | M120: 2025-02-16
C121: Class 4 NIC lower profit limit | D121: NIC_LEL | E121: 12570 | J121: 21 | K121: 2024-08-25 | L121: 47 | M121: =M120+7 -> 2025-02-23
C122: NIC rate band | D122: NIC_Band | E122: 37700 | G122: =NIC_UEL-NIC_LEL -> 37700 | H122: =NIC_UEL-NIC_LEL | J122: 22 | K122: 2024-09-01 | L122: 48 | M122: =M121+7 -> 2025-03-02
C123: Max Class 4 NIC charge | D123: max_NIC | E123: 3016 | G123: =NIC_Band*NIC_rate -> 2262 | H123: =NIC_Band*NIC_rate | J123: 23 | K123: 2024-09-08 | L123: 49 | M123: 2025-03-09
C124: Count Contribution weeks | D124: Max NIC2 weeks | E124: =IF(K98>K99,52,53) -> 52 | F124: NOT FOR REQUIREMENTS | J124: 24 | K124: 2024-09-15 | L124: 50 | M124: 2025-03-16
C125: Student Loan Threshold Plan 1 | D125: SL_limit1 | E125: 24990 | J125: 25 | K125: 2024-09-22 | L125: 51 | M125: =M124+7 -> 2025-03-23
C126: Student Loan Threshold Plan 2 | D126: SL_limit2 | E126: 27295 | J126: 26 | K126: =K125+7 -> 2024-09-29 | L126: 52 | M126: =M125+7 -> 2025-03-30
C127: Student Loan Threshold Plan 4 | D127: SL_limit4 | E127: 31395 | L127: 53 | M127: 2025-04-06 | N127: =IF(M127>M128,52,53) -> 52
C128: Postgraduate Loan Threshold | D128: PGL_limit | E128: 21000 | L128: last day | M128: =K99 -> 2025-04-05
C129: Student Loan Unearned Income Threshold | D129: SL_UIT | E129: 2000
C132: Misc | J132: =IF(ppr_extender<1000,ppr_extender,H133&","&IF(I133<10,"00"&I133,IF(I133<100,"0"&I133,I133))) -> 0
A133: BPA claimed | C133: POA threshold | D133: POA_limit | E133: 1000 | G133: ppr | H133: =TRUNC(ppr_extender/1000,0) -> 0 | I133: =ppr_extender-(H133*1000) -> 0 | J133: =IF(gift_extender<1000,gift_extender,H134&","&IF(I134<10,"00"&I134,IF(I134<100,"0"&I134,I134))) -> 0
C134: Resident Non-domicile Lower charge | D134: Res_non_dom_ch | E134: 30000 | G134: gift aid | H134: =TRUNC(gift_extender/1000,0) -> 0 | I134: =gift_extender-(H134*1000) -> 0 | J134: =IF(extended_BR<1000,extended_BR,H135&","&IF(I135<10,"00"&I135,IF(I135<100,"0"&I135,I135))) -> 37,700
C135: Resident Non-domicile Higher charge | D135: Res_non_dom_High_ch | E135: 60000 | G135: extended BR | H135: =TRUNC(extended_BR/1000,0) -> 37 | I135: =extended_BR-(H135*1000) -> 700 | J135: =IF((extended_BR+SR_band)<1000,(extended_BR+SR_band),H136&","&IF(I136<10,"00"&I136,IF(I136<100,"0"&I136,I136))) -> 42,700
C136: Non-domicile remittance basis allowance limit | D136: ND_limit | E136: 2000 | G136: HR limit | H136: =TRUNC((extended_BR+SR_band)/1000,0) -> 42 | I136: =(extended_BR+SR_band)-(H136*1000) -> 700 | J136: =IF((SR_band)<1000,(SR_band),H137&","&IF(I137<10,"00"&I137,IF(I137<100,"0"&I137,I137))) -> 5,000
C137: coded out limit | D137: coded_out_limit | E137: 3000 | G137: SR band | H137: =TRUNC((SR_band)/1000,0) -> 5 | I137: =(SR_band)-(H137*1000) -> 0
C138: Child Benefit Higher Rate Threshold | D138: CBC_HR_threshold | E138: 60000
C139: Child Benefit Taper | D139: CBC_taper | E139: 0.005
C140: Child Benefit rate | D140: CBC_rate | E140: 0.01
C142: Allowances
C143: Personal Allowance | D143: P_A | E143: 12570
C144: Age Allowance Income limit | D144: AA_limit | E144: 37000
C145: Tapered PA limit | D145: PA_taper_limit | E145: 100000
C146: Age Allowance Income limit excess | D146: AA_excess | E146: 0.5
C147: Personal Savings Allowance Basic Rate | D147: PSA_BR | E147: 1000
C148: Personal Savings Allowance Higher Rate | D148: PSA_HR | E148: 500
C149: Personal Savings Allowance Additional Higher Rate | D149: PSA_AHR | E149: 0
C150: Dividend Allowance | D150: DA | E150: 500
C151: Transferable personal allowance | D151: T_P_A | E151: 1260 | G151: =CEILING(P_A*10%,10) -> 1260
C152: Minimum MCA | D152: MCA | E152: 4280
C153: Half MCA | D153: MCA_2 | E153: 2140 | G153: =MCA/2 -> 2140
C154: Higher MCA | D154: H_MCA | E154: 11080
C155: Blind Person's Allowance | D155: BPA | E155: 3070
C156: Maintenance & Alimony | D156: SMP | E156: 4280 | G156: =MCA -> 4280 | H156: =MCA
C157: Capital Gains annual exempt amount | D157: CG_exempt | E157: 3000
C158: Deductions Cap | D158: Dedn_cap | E158: 50000
C159: Deductions taper | D159: Dedn_taper | E159: 0.25
C161: Dates | H161: Date stuff | I161: 1 | J161: January
C162: Year MCA due | D162: MCA_year | E162: 1935 | F162: 24 | H162: =NOW() -> 2024-12-20T16:58:50.070 | I162: 2 | J162: February
C163: Tax year start | D163: Tax_year_start | E163: =20&F162 -> 2024 | F163: 25 | H163: ='Add pages'!I5 -> 00:00:00 | I163: 3 | J163: March
C164: Tax year end | D164: Tax_year_end | E164: =20&F163 -> 2025 | F164: 26 | H164: =IF(H163=0,H162,H163) -> 45646.70752 | I164: 4 | J164: April
C165: BCD year | D165: BCD_year | E165: =20&F164 -> 2026 | H165: =DAY(H164)&" "&VLOOKUP(MONTH(H164),I161:J172,2)&" "&YEAR(H164) -> 20 December 2024 | I165: 5 | J165: May
A166: Taxpayer Age | I166: 6 | J166: June
I167: 7 | J167: July
I168: 8 | J168: August
C169: Tax Year | D169: Tax_year | E169: =Tax_year_start&"-"&F163 -> 2024-25 | I169: 9 | J169: September
C170: Next tax year | D170: next_year | E170: =Tax_year_end&"-"&F164 -> 2025-26 | I170: 10 | J170: October
A171: Wife's Age | C171: Last tax year | D171: last_year | E171: =Tax_year_start-1&"-"&F162 -> 2023-24 | I171: 11 | J171: November
I172: 12 | J172: December
C173: Pension Charges
A174: MCA | C174: LTA charge - Lump sum | D174: LTA_lump | E174: 0.55
C175: LTA charge - Pension | D175: LTA_pension | E175: 0.25 | H175: Welsh Date stuff | I175: 1 | J175: Ionawr
C176: Annual Allowance charge threshold | D176: Pen_AA_limit | E176: 60000 | H176: =NOW() -> 2024-12-20T16:58:50.070 | I176: 2 | J176: Chwefror
C177: Money Purchase Annual Allowance charge threshold (lower allowance) | D177: Pen_MPAA_limit | E177: 10000 | H177: ='Add pages'!I5 -> 00:00:00 | I177: 3 | J177: Mawrth
C178: Annual Allowance charge Rate | D178: Pen_AA_rate | E178: 0.4 | H178: =IF(H177=0,H176,H177) -> 45646.70752 | I178: 4 | J178: Ebrill
C179: Unauthorised payments | D179: Pen_Upayts | E179: 0.4 | H179: =DAY(H178)&" "&VLOOKUP(MONTH(H178),I175:J186,2)&" "&YEAR(H178) -> 20 Rhagfyr 2024 | I179: 5 | J179: Mai
C180: Unauthorised payments -surcharge | D180: Upayts_surcharge | E180: 0.55 | I180: 6 | J180: Mehefin
C181: Short service refund Lower Rate | D181: SSR_lower_rate | E181: 0.2 | I181: 7 | J181: Gorffennaf
C182: Short service refund Lower Rate band | D182: SSR_lower_band | E182: 20000 | I182: 8 | J182: Awst
B183: 1 | C183: Short service refund charge Higher Rate | D183: SSR_higher_rate | E183: 0.5 | I183: 9 | J183: Medi
B184: 2 | C184: Special lump sum death benefit Rate | D184: SLSDB_rate | E184: 0.45 | I184: 10 | J184: Hydref
B185: 3 | C185: Overseas Transfer Charge | D185: OTC_rate | E185: 0.25 | I185: 11 | J185: Tachwedd
C186: Minimum relevant earnings | D186: min_relevant_earns | E186: 3600 | I186: 12 | J186: Rhagfyr
A188: NIC | C188: MCA Age
A189: Class 4 Exempt | B189: 1 | C189: ="Before 6/4/"&MCA_year&" (age over "&Tax_year_start-MCA_year&")" -> Before 6/4/1935 (age over 89) | D189: =tp_age_ind=1 -> FALSE
B190: 2 | C190: ="After 6/4/"&MCA_year&" (age "&Tax_year_start-MCA_year&" or under)" -> After 6/4/1935 (age 89 or under) | D190: =tp_age_ind=2 -> TRUE
A192: Class 2 Voluntary Deductions | C192: MCA Claim Type
B193: 1 | C193: =IF(MCA_claim=1,"","1) Before 6/4/"&MCA_year) ->  | D193: =Wife_age_ind=1 -> FALSE | E193: ="over "&Tax_year_start-MCA_year -> over 89
B194: 2 | C194: =IF(MCA_claim=1,"","2) After 5/4/"&MCA_year&" or not present") ->  | D194: =Wife_age_ind=2 -> TRUE
B196: 1 | C196: 1) Not Claimed | D196: =MCA!F5=1 -> TRUE
B197: 2 | C197: ="2) husband / higher income partner (box "&MCA!$C$4&" present)" -> 2) husband / higher income partner (box 1 present) | D197: =MCA!F5=2 -> FALSE
B198: 3 | C198: ="3) wife / lower income partner (box "&MCA!$C$5&" present)" -> 3) wife / lower income partner (box 8 present) | D198: =MCA!F5=3 -> FALSE
B200: 1 | C200: =IF(mca_not_claimed,"","1) None to spouse/partner") ->  | D200: =MCA!F13=1 -> TRUE
B201: 2 | C201: =IF(MCA_claim>1,"2) 50% to spouse/partner (box "&MCA!$C$12&" ticked)","") ->  | D201: =MCA!F13=2 -> FALSE
B202: 3 | C202: =IF(MCA_claim>1,"3) All to spouse/partner (box "&MCA!$C$13&" ticked)","") ->  | D202: =MCA!F13=3 -> FALSE
C204: Older_spouse | D204: =MIN(tp_age_ind,Wife_age_ind) -> 2
C206: months not married | D206: =months_married-1 -> 0
C207: =IF(MCA!$F$5=1,"","1) "&'allowances (c14c15)'!C105) -> 
C208: =IF(MCA!$F$5=1,"","2) "&'allowances (c14c15)'!C106) -> 
C209: =IF(MCA!$F$5=1,"","3) "&'allowances (c14c15)'!C107) -> 
C210: =IF(MCA!$F$5=1,"","4) "&'allowances (c14c15)'!C108) -> 
C211: =IF(MCA!$F$5=1,"","5) "&'allowances (c14c15)'!C109) -> 
C212: =IF(MCA!$F$5=1,"","6) "&'allowances (c14c15)'!C110) -> 
... 13 more rows

Sheet Changes log
A1: Key
A2: Version change Prime colours per change log
A3: Roll forward annual changes OE
A4: Pension Tax Limits - Removing lifetime allowances
A5: Low Income Trust and Estates
A6: Restricting Charitable reliefs to UK Charities
A7: New Scottish Income Tax Band
A8: Low Earners Anomaly
A9: Basis Period Reform
A10: Crypto Assets
A11: Cash Basis Reform
A12: Basic Rate Divergence
A13: Fun 24 - NIC Reduction
A14: Payrolling BIKs and SA Student Loan calculation
A15: SA Criteria
A16: SRIT
A17: CGT rate change/carried interest
A18: WRIT
A20: Change Reason | B20: Worksheet changed | C20: What was changed | D20: Notes
A21: Changes v0.0.1 | B21: 2022-12-15
A22: v0.0.1 created | B22: NONE | C22: Taken from MTR_Tester-2022-23-V-v2.1.3 | D22: This is the baseline
A23: roll forward | B23: Changes Log | C23: Previous Year PY changes removed
A24: Basic rate divergence | B24: VBA | C24: Calculate_GA_tax_saving added
A25: Changes v0.1.0 | B25: 2024-01-17
A26: v0.1.0 created | B26: NONE
A27: Budget Rates and Allowances Updates. | B27: 'data' worksheet (hidden) | C27: years and data items that have changed highlighted
A28: Budget Rates and Allowances Updates. | B28: 'data' worksheet (hidden) | C28: NIC1_rate changed from "11.5%" to "8%"
A29: Budget Rates and Allowances Updates. | B29: 'data' worksheet (hidden) | C29: NIC_rate changed from "9%" to "6%"
A30: SRIT | B30: 'data' worksheet (hidden) | C30: SR_band changed from "2,162" to "2,306"
A31: SRIT | B31: 'data' worksheet (hidden) | C31: SBR_band changed from "10,956" to "11,685"
A32: SRIT | B32: 'data' worksheet (hidden) | C32: SIR_band changed from "17,974" to "17101"
A33: Budget Rates and Allowances Updates. | B33: 'data' worksheet (hidden) | C33: SAHR_rate changed from "47% to "48%"
A34: Budget Rates and Allowances Updates. | B34: 'data' worksheet (hidden) | C34: SHR_band changed from "94,048" to "31,338"
A35: Budget Rates and Allowances Updates. | B35: 'data' worksheet (hidden) | C35: max_NIC changed from "3,393" to "3,016"
A36: Budget Rates and Allowances Updates. | B36: 'data' worksheet (hidden) | C36: SL_limit1 changed from "22,015" to "24,990"
A37: Budget Rates and Allowances Updates. | B37: 'data' worksheet (hidden) | C37: SL_limit4 changed from "27,660" to "31,395"
A38: Budget Rates and Allowances Updates. | B38: 'data' worksheet (hidden) | C38: AA_limit changed from "34,600" to "37,000"
A39: Budget Rates and Allowances Updates. | B39: 'data' worksheet (hidden) | C39: DA changed from "1,000" to "500"
A40: Budget Rates and Allowances Updates. | B40: 'data' worksheet (hidden) | C40: MCA changed from "4,010" to "4,280"
A41: Budget Rates and Allowances Updates. | B41: 'data' worksheet (hidden) | C41: MCA_2 changed from "2,005" to "2,140"
A42: Budget Rates and Allowances Updates. | B42: 'data' worksheet (hidden) | C42: H_MCA changed from "10,375" to "11,080"
A43: Budget Rates and Allowances Updates. | B43: 'data' worksheet (hidden) | C43: BPA changed from "2,870" to "3,070"
A44: Budget Rates and Allowances Updates. | B44: 'data' worksheet (hidden) | C44: SMP changed from "4,010" to "4,280"
A45: Budget Rates and Allowances Updates. | B45: 'data' worksheet (hidden) | C45: CG_Exempt changed from "6,000" to "3,000"
A46: CGT rate change/carried interest | B46: 'data' worksheet (hidden) | C46: Lower_CGT_rate_RP_CI - struck through, no longer in use
A47: CGT rate change/carried interest | B47: 'data' worksheet (hidden) | C47: Upper_CGT_rate_RP_CI struck through, no longer in use
A48: CGT rate change/carried interest | B48: 'data' worksheet (hidden) | C48: Lower_CGT_rate_RP added
A49: CGT rate change/carried interest | B49: 'data' worksheet (hidden) | C49: Upper_CGT_rate_RP added
A50: CGT rate change/carried interest | B50: 'data' worksheet (hidden) | C50: Lower_CGT_rate_CI added
A51: CGT rate change/carried interest | B51: 'data' worksheet (hidden) | C51: Upper_CGT_rate_CI added
A52: New Scottish Income Tax Band | B52: 'data' worksheet (hidden) | C52: SAR_rate added
A53: New Scottish Income Tax Band | B53: 'data' worksheet (hidden) | C53: SAR_band added
A54: Changes v1.0.0 | B54: 2024-01-17
A55: Basic rate divergence | B55: Deductions (c4) | C55: c4.59 - formula in cell updated to include "-(IF(calc_GA_alt_c8_26,I253,0))"
A56: Basic rate divergence | B56: Deductions (c4) | C56: c4.62 - formula in cell updated to include "+IF(calc_GA_alt_c8_26,I253,0)"
A57: Basic rate divergence | B57: tax it (c8) | C57: new box c8.27
A58: Basic rate divergence | B58: tax it (c8) | C58: new box c8.28
A59: Basic rate divergence | B59: Tax adj (c9) | C59: new box c9.30a
A60: Basic rate divergence | B60: Tax adj (c9) | C60: new box c9.30b
A61: Basic rate divergence | B61: Tax adj (c9) | C61: new box c9.30c
A62: Basic rate divergence | B62: Tax adj (c9) | C62: c9.31 changed from "c9.1 minus (c9.14 + c9.15a + c9.19 + c9.21 + c9.23 + c9.23b + c9.28 + c9.29 + c9.30" to "c9.1 minus (c9.14 + c9.15a + c9.19 + c9.21 + c9.23 + c9.23b + c9.28 + c9.29 + c9.30 + c9.30c)"
A63: Basic rate divergence | B63: Tax adj (c9) | C63: c9.39e changed from "Set to zero" to "If c3a.4 < BR_rate (20%) c9.39e = c9.30b x c9.30a else c9.39e = 0 (zero) end if"
A64: Basic rate divergence | B64: Tax adj (c9) | C64: c9.39f changed from "Set to zero" to "lower of c8.28 and c9.39e"
A65: Basic rate divergence | B65: IRCX_template | C65: L69 - "BRD-reduction" added
A66: Basic rate divergence | B66: IRCX_template | C66: L80a - "BRD-charge" added
A67: Basic rate divergence | B67: SA302_template | C67: L69 added
A68: Basic rate divergence | B68: SA302_template | C68: L80a added
A69: New Scottish Income Tax Band | B69: Status (3a) | C69: new box c3a.3.1
A70: New Scottish Income Tax Band | B70: Status (3a) | C70: new box c3a.5a
A71: New Scottish Income Tax Band | B71: tax it (c6) | C71: new box c6.9.1
A72: New Scottish Income Tax Band | B72: tax it (c6) | C72: new box c6.9.2
A73: New Scottish Income Tax Band | B73: tax it (c6) | C73: c6.10 changed from "c6.1 minus (c6.2 + c6.6 + c6.7b + c6.9)" to "c6.1 minus (c3a.3a + c4.59)"
A74: New Scottish Income Tax Band | B74: tax it (c6) | C74: c6.20 changed from “(c3a.3a + c4.59) minus (c6.1 + c6.14 + c6.17c + c6.18)” to “((AHR_band (£125,140) + c4.59) minus minus (c6.1 + c6.14 + c6.17c + c6.18)”
A75: New Scottish Income Tax Band | B75: tax it (c6) | C75: c6.30 changed from “(c3a.3a + c4.59) minus (c6.1 + c6.11 + c6.27 + c6.28)” to “((AHR_band (£125,140) + c4.59) minus minus (c6.1 + c6.11 + c6.27 + c6.28)”
A76: New Scottish Income Tax Band | B76: tax it (c6) | C76: c6.42 changed from “(c3a.3a + c4.59) minus (c6.1 + c6.14 + c6.17c + c6.18)” to “lower of c6.8 and ((c3a.1a + c3a.2a + c3a.3 + c5.2) minus (c6.1 + c6.11 + c6.23 + c6.36 + c6.40 + c6.41b))”
A77: New Scottish Income Tax Band | B77: tax it (c6) | C77: new box c6.43.1
A78: New Scottish Income Tax Band | B78: tax it (c6) | C78: new box c6.43.2
A79: New Scottish Income Tax Band | B79: tax it (c6) | C79: c6.44 changed from “c6.35 minus (c6.36 + c6.40 + c6.41b + c6.43)” to “c6.35 minus (c6.36 + c6.40 + c6.41b + c6.43 + c6.43.2)”
A80: New Scottish Income Tax Band | B80: tax it (c6) | C80: c6.54 changed from “(c3a.3a + c4.59) minus (c6.1 + c6.11 + c6.23 + c6.35 + c6.48 + c6.51c + c6.52)” to “((AHR_band (£125,140) + c4.59) minus (c6.1 + c6.11 + c6.23 + c6.35 + c6.48 + c6.51c + c6.52)”
A81: New Scottish Income Tax Band | B81: Taxable (c5) | C81: c5.3a changed from "lower of c5.3 and c3a.1a" to "set to zero"
A82: New Scottish Income Tax Band | B82: Taxable (c5) | C82: c5.4 changed from "lower of (c5.3 minus c5.3a) and c5.2" to "set to zero"
A83: New Scottish Income Tax Band | B83: Taxable (c5) | C83: c5.4a changed from "lower of (c5.3 minus (c5.3a + c5.4)) and c3a.2a" to "set to zero"
A84: New Scottish Income Tax Band | B84: Taxable (c5) | C84: c5.5 changed from "lower of (c5.3 minus (c5.3a + c5.4 + c5.4a)) and c3a.3" to "set to zero"
A85: New Scottish Income Tax Band | B85: Taxable (c5) | C85: c5.6 changed from "c5.3 minus (c5.3a + c5.4 + c5.5 + c5.4a)" to "set to zero"
A86: New Scottish Income Tax Band | B86: Taxable (c5) | C86: c5.31 changed from "HR_band (£87,440) minus (c5.6 + c5.21)" to "AHR_band (£125,140) minus (c5.3 + c5.11)"
A87: New Scottish Income Tax Band | B87: Taxable (c5) | C87: c5.34a1 changed from "lower of c5.34a and (c3a.1a minus (c5.3 + c5.11 + c5.22))" to "set to zero"
A88: New Scottish Income Tax Band | B88: Taxable (c5) | C88: c5.34b changed from "lower of (c5.34a minus c5.34a1) and (c5.2 minus (c5.4 + c5.15 + c5.16 + c5.24 + c5.25))" to "set to zero"
A89: New Scottish Income Tax Band | B89: Taxable (c5) | C89: c5.34b1 changed from "lower of (c5.34a minus (c5.34a1 + c5.34b)) and (c3a.2a minus (c5.4 + c5.4a + c5.15 + c5.16 + c5.24 + c5.25))" to "set to zero"
A90: New Scottish Income Tax Band | B90: Taxable (c5) | C90: c5.34c changed from "lower of (c5.34a minus (c5.34a1 + c5.34b + c5.34b1)) and ((c3a.3a + c4.59) minus (c5.3 + c5.11 + c5.22 + c5.34a1 + c5.34b + c5.34b1))" to "set to zero"
A91: New Scottish Income Tax Band | B91: Taxable (c5) | C91: c5.34d changed from "c5.34a minus (c5.34a1 + c5.34b + c5.34b1 + c5.34c)" to "set to zero"
A92: New Scottish Income Tax Band | B92: Taxable (c5) | C92: c5.43a changed from "lower of c5.1 and c5.35" to "c5.37 minus c4.79"
A93: New Scottish Income Tax Band | B93: Taxable (c5) | C93: c5.43b changed from "lower of c5.12 and c5.1" to "lower of SR_band (£5,000) and (c5.35 minus c5.1)"
A94: New Scottish Income Tax Band | B94: Taxable (c5) | C94: c5.43c changed from "if c5.43b > 0 (zero) and (c5.6 + c5.21) > 0 (zero) c5.43c = c5.43a else c5.43c = lower of c5.1 and c5.6 end if" to "lower of c5.43a and (SR_band (£5,000) minus c5.43b)"
A95: New Scottish Income Tax Band | B95: Taxable (c5) | C95: c5.43d changed from "c5.6 + c5.21 + c5.34d" to "(SR_band (£5,000) minus c5.43b) minus c5.43c"
A96: New Scottish Income Tax Band | B96: Taxable (c5) | C96: c5.43e changed from "(c5.6 + c5.21 + c5.34d) minus c5.1" to "c5.43a minus c5.43c"
A97: New Scottish Income Tax Band | B97: Taxable (c5) | C97: c5.43f changed from "lower of c5.1 and c5.35" to "set to zero"
A98: New Scottish Income Tax Band | B98: Taxable (c5) | C98: c5.44 changed from "if c3a.1 = 2 and SAHR_rate (48%) > AHR_rate (45%) c5.44 = lower of c5.43f and (c5.43d minus c5.43e) else c5.44 = c5.43c end if" to "set to zero"
A99: New Scottish Income Tax Band | B99: Taxable (c5) | C99: c5.45 changed from "lower of (c5.1 minus c5.44) and c5.34d" to "set to zero"
A100: New Scottish Income Tax Band | B100: Taxable (c5) | C100: c5.45a changed from "c5.43d minus (c5.44 + c5.45)" to "set to zero"
A101: New Scottish Income Tax Band | B101: Taxable (c5) | C101: c5.45b changed from "c5.1 minus (c5.44 + c5.45)" to "set to zero"
A102: New Scottish Income Tax Band | B102: Taxable (c5) | C102: c5.45c changed from "lower of c5.45a and c5.45b" to "set to zero"
A103: New Scottish Income Tax Band | B103: Taxable (c5) | C103: c5.46 changed from "lower of c5.45c and (c5.11 minus (c5.15 + c5.19 + c5.20c))" to "set to zero"
A104: New Scottish Income Tax Band | B104: Taxable (c5) | C104: c5.47 changed from "c5.44 + c5.45 + c5.46" to "set to zero"
A105: New Scottish Income Tax Band | B105: Taxable (c5) | C105: c5.47a changed from "(c5.2a + HR_band (£87,440)) minus c4.74" to "set to zero"
A106: New Scottish Income Tax Band | B106: Taxable (c5) | C106: c5.48 changed from "lower of (c5.1 minus (c5.3a + c5.4 + c5.4a + c5.5 + c5.6 + c5.16 + c5.20 + c5.21)) and (c5.34 minus c5.47a)" to "set to zero"
A107: New Scottish Income Tax Band | B107: Taxable (c5) | C107: c5.48a changed from "lower of (c5.35 minus c5.44) and c5.5" to "c3a.1a + c3a.2a + c5.2"
A108: New Scottish Income Tax Band | B108: Taxable (c5) | C108: c5.48c changed from "lower of (c5.35 minus c5.44) and c5.6" to "c3a.1a + c3a.2a + c5.3"
A109: New Scottish Income Tax Band | B109: Taxable (c5) | C109: c5.48d changed from "lower of (c5.35 minus c5.44) and c5.7" to "c3a.1a + c3a.2a + c5.4"
A110: New Scottish Income Tax Band | B110: Taxable (c5) | C110: c5.49 changed from "lower of (c5.35 minus c5.44) and c5.8" to "if c5.43b = 0 (zero) and if c5.43c > 0 (zero) c5.49 = c5.48c else c5.49 = lower of c5.48c and c5.48d end if"
A111: New Scottish Income Tax Band | B111: Taxable (c5) | C111: c5.49a changed from "lower of (c5.36 minus c5.45) and c5.34c" to "lower of (c5.1 minus c5.49) and c5.36"
A112: New Scottish Income Tax Band | B112: Taxable (c5) | C112: c5.49b new box
A113: New Scottish Income Tax Band | B113: Taxable (c5) | C113: c5.50 changed from "lower of (c5.1 minus (c5.47 + c5.49)) and c5.49a" to "lower of c5.49a and c5.49b"
A114: New Scottish Income Tax Band | B114: Taxable (c5) | C114: c5.50.1 changed from "c3a.2b minus (c5.15 + c5.16)" to "set to zero"
A115: New Scottish Income Tax Band | B115: Taxable (c5) | C115: c5.50.2 changed from "(c5.35 + c5.37) minus (c5.47 + c5.48 + c5.49 + BR_band (£37,700) + c4.59)" to "set to zero"
A116: New Scottish Income Tax Band | B116: Taxable (c5) | C116: c5.50a changed from "lower of ((c5.19 + c5.20) minus c5.50.1) and (c5.11 minus (c4.79 + SR_band (£5,000) + c5.46))" to "lower of (c5.1 minus (c5.49 + c5.50)) and c5.37"
A117: New Scottish Income Tax Band | B117: Taxable (c5) | C117: c5.50b changed from "lower of c5.50a and (c5.1 minus (c5.44 + c5.45 + c5.49 + c5.50))" to "(c5.35 + c5.37) minus (BR_band (£37,700) + c4.59 + c5.49)"
A118: New Scottish Income Tax Band | B118: Taxable (c5) | C118: c5.50c changed from "lower of ((c5.19 + c5.20) minus c5.50.1) and (c5.1 minus (c5.47 + c5.49 + c5.50))" to "lower of c5.50a and c5.50b"
A119: New Scottish Income Tax Band | B119: Taxable (c5) | C119: c5.50d changed from "lower of c5.50c and (c5.11 minus c4.79)" to "set to zero"
A120: New Scottish Income Tax Band | B120: Taxable (c5) | C120: c5.51 changed from "if c5.3 minus c5.1 < SR_band (£5,000) c5.51 = lower of c5.50.2 and c5.50b else c5.51 = lower of c5.50.2 and c5.50d end if" to "lower of c5.43e and c5.50c"
A121: New Scottish Income Tax Band | B121: Taxable (c5) | C121: c5.52e changed from "lower of (c5.35 minus c5.44) and c5.4a" to "c5.1 minus (c5.52c + c5.52d)"
A122: New Scottish Income Tax Band | B122: Taxable (c5) | C122: c5.52e1 changed from "if c5.49 > 0 (zero) c5.52e1 = lower of (c5.35 minus c5.44) and (c5.49 + c5.52e) else c5.52e1 = lower of (c5.35 minus c5.44) and (c5.1 minus (c5.47 + c5.48)) end if" to "set to zero"
A123: New Scottish Income Tax Band | B123: Taxable (c5) | C123: c5.52f changed from "if c5.43b > 0 (zero) and (c5.5 + c5.20) > 0 (zero) c5.52f = c5.43a minus c5.44 else c5.52f = c5.52e1 end if" to "set to zero"
A124: New Scottish Income Tax Band | B124: Taxable (c5) | C124: c5.52g changed from "lower of (c5.1 minus (c5.47 + c5.48 + c5.50 + c5.52c)) and c5.52f" to "if c3a.1 = 2 and c5.35 minus c5.1 < SSR_band (£2,306) and c5.22 + c5.35 + c5.37 < c5.48a and c5.36 > 0 and c5.37 > 0 and c5.43d > 0) c5.52g = c5.35 minus (lower of SSR_band (£2,306) and c5.43d) else c5.52g = lower of (c5.35 minus c5.52d) and (c5.1 minus (c5.50 + c5.52c + c5.52d)) end if"
A125: New Scottish Income Tax Band | B125: Taxable (c5) | C125: c5.52h changed from "if c5.12 = 0 (zero) and c5.19 + c5.20c > 0 (zero) and (c5.3 + c5.11) minus (c5.1 minus (c5.47 + c5.48 + c5.50 + c5.52c + c5.52d)) > c5.2a c5.52h = lower of (c5.49 + c5.52e) and c5.52g else c5.52h = lower of (c5.35 minus c5.44) and (c5.1 minus (c5.47 + c5.48 + c5.50 + c5.52c + c5.52d)) end if" to "if c3a.1 <> 2 and c5.1 > 0 and c4.79 > 0 and c5.35 > (c5.2 minus c4.79) and (c5.35 + c5.37) minus c5.52e > c5.2 and c5.43a > 0 c5.52h = c5.49 else c5.52h = c5.52g end if"
A126: New Scottish Income Tax Band | B126: Taxable (c5) | C126: c5.52i changed from "c5.1 minus (c5.47 + c5.48 + c5.52h + c5.52c)" to "set to zero"
A127: New Scottish Income Tax Band | B127: Taxable (c5) | C127: c5.52j changed from "larger of ((c5.49 + c5.51) and c5.52h) minus c5.52h" to "set to zero"
A128: New Scottish Income Tax Band | B128: Taxable (c5) | C128: c5.52k changed from "lower of c5.52i and c5.52j" to "lower of c5.51 and (c5.1 minus (c5.50 + c5.52c + c5.52d + c5.52h))"
A129: New Scottish Income Tax Band | B129: Taxable (c5) | C129: c5.55.14a new box
A130: New Scottish Income Tax Band | B130: Taxable (c5) | C130: c5.55.26a new box
A131: New Scottish Income Tax Band | B131: Taxable (c5) | C131: c5.55.39a new box
A132: New Scottish Income Tax Band | B132: Taxable (c5) | C132: c5.55.42 changed from "c5.55.36 + c5.55.37 + c5.55.38 + c5.55.39 + c5.55.40 + c5.55.41" to "c5.55.36 + c5.55.37 + c5.55.38 + c5.55.39 + c5.55.39a + c5.55.40 + c5.55.41"
A133: New Scottish Income Tax Band | B133: Taxable (c5) | C133: c5.57 changed from "lower of (c5.56 and (c5.3a + c5.4 + c5.4a + c5.16))" to "lower of c5.56 and (c5.35 minus c5.52h)"
A134: New Scottish Income Tax Band | B134: Taxable (c5) | C134: c5.57a changed from "lower of (c5.56p and (((c5.3a + c5.4 + c5.4a) minus c5.56) + c5.16))" to "lower of c5.56p and ((c5.35 minus c5.56) + c5.43c)"
A135: New Scottish Income Tax Band | B135: Taxable (c5) | C135: c5.58a.1a new box
A136: New Scottish Income Tax Band | B136: Taxable (c5) | C136: c5.58a.1b new box
A137: New Scottish Income Tax Band | B137: Taxable (c5) | C137: c5.58a.1 changed from "lower of c5.50 and c5.56.1" to "lower of c5.58a.1a and c5.56.1"
A138: New Scottish Income Tax Band | B138: Taxable (c5) | C138: c5.58a.10 changed from "lower of (c5.36 minus c5.45) and (c3a.1a minus (c5.58a.2 + c5.58a.3 + c5.58a.4))" to "lower of (c5.36 minus c5.58a.1b) and (c3a.1a minus (c5.58a.2 + c5.58a.3 + c5.58a.4))"
A139: New Scottish Income Tax Band | B139: Taxable (c5) | C139: c5.58a.11 changed from "lower of (c5.36 minus (c5.45 + c5.58a.10)) and ((c3a.1a + c5.2) minus (c5.58a.2 + c5.58a.3 + c5.58a.4 + c5.58a.10))" to "lower of (c5.36 minus (c5.58a.1b + c5.58a.10)) and ((c3a.1a + c5.2) minus (c5.58a.2 + c5.58a.3 + c5.58a.4 + c5.58a.10))"
A140: New Scottish Income Tax Band | B140: Taxable (c5) | C140: c5.58a.12 changed from "lower of (c5.36 minus (c5.45 + c5.58a.10 + c5.58a.11)) and ((c3a.1a + c5.2 + c3a.2a) minus (c5.58a.2 + c5.58a.3 + c5.58a.4 + c5.58a.10 + c5.58a.11))" to "lower of (c5.36 minus (c5.58a.1b + c5.58a.10 + c5.58a.11)) and ((c3a.1a + c5.2 + c3a.2a) minus (c5.58a.2 + c5.58a.3 + c5.58a.4 + c5.58a.10 + c5.58a.11))"
A141: New Scottish Income Tax Band | B141: Taxable (c5) | C141: c5.58a.13 changed from "lower of (c5.36 minus (c5.45 + c5.58a.10 + c5.58a.11 + c5.58a.12)) and ((c3a.1a + c5.2 + c3a.2a + c3a.3) minus (c5.58a.2 + c5.58a.3 + c5.58a.4 + c5.58a.10 + c5.58a.11 + c5.58a.12))" to "lower of (c5.36 minus (c5.58a.1b + c5.58a.10 + c5.58a.11 + c5.58a.12)) and ((c3a.1a + c5.2 + c3a.2a + c3a.3) minus (c5.58a.2 + c5.58a.3 + c5.58a.4 + c5.58a.10 + c5.58a.11 + c5.58a.12))"
A142: New Scottish Income Tax Band | B142: Taxable (c5) | C142: c5.58a.13a new box
A143: New Scottish Income Tax Band | B143: Taxable (c5) | C143: c5.58a.14 changed from "(c5.58a.10 x c3a.3b) + (c5.58a.11 x c3a.4) + (c5.58a.12 x c3a.4a) + (c5.58a.13 x c3a.5)" to "(c5.58a.10 x c3a.3b) + (c5.58a.11 x c3a.4) + (c5.58a.12 x c3a.4a) + (c5.58a.13 x c3a.5) + (c5.58a.13a x c3a.5a)"
A144: New Scottish Income Tax Band | B144: Taxable (c5) | C144: c5.58a.15 changed from "lower of (c5.36 minus (c5.45 + c5.58a.1)) and (c3a.1a minus (c5.58a.2 + c5.58a.3 + c5.58a.4))" to "lower of (c5.36 minus (c5.58a.1b + c5.58a.1)) and (c3a.1a minus (c5.58a.2 + c5.58a.3 + c5.58a.4))
A145: New Scottish Income Tax Band | B145: Taxable (c5) | C145: c5.58a.16 changed from "lower of (c5.36 minus (c5.45 + c5.58a.1 + c5.58a.15)) and ((c3a.1a + c5.2) minus (c5.58a.2 + c5.58a.3 + c5.58a.4 + c5.58a.15))" to "lower of (c5.36 minus (c5.58a.1b + c5.58a.1 + c5.58a.15)) and ((c3a.1a + c5.2) minus (c5.58a.2 + c5.58a.3 + c5.58a.4 + c5.58a.15))
A146: New Scottish Income Tax Band | B146: Taxable (c5) | C146: c5.58a.17 changed from "lower of (c5.36 minus (c5.45 + c5.58a.1 + c5.58a.15 + c5.58a.16)) and ((c3a.1a + c5.2 + c3a.2a) minus (c5.58a.2 + c5.58a.3 + c5.58a.4 + c5.58a.15 + c5.58a.16))" to "lower of (c5.36 minus (c5.58a.1b + c5.58a.1 + c5.58a.15 + c5.58a.16)) and ((c3a.1a + c5.2 + c3a.2a) minus (c5.58a.2 + c5.58a.3 + c5.58a.4 + c5.58a.15 + c5.58a.16))
A147: New Scottish Income Tax Band | B147: Taxable (c5) | C147: c5.58a.18 changed from "lower of (c5.36 minus (c5.45 + c5.58a.1 + c5.58a.15 + c5.58a.16 + c5.58a.17)) and ((c3a.1a + c5.2 + c3a.2a + c3a.3) minus (c5.58a.2 + c5.58a.3 + c5.58a.4 + c5.58a.15 + c5.58a.16 + c5.58a.17))" to "lower of (c5.36 minus (c5.58a.1b + c5.58a.1 + c5.58a.15 + c5.58a.16 + c5.58a.17)) and ((c3a.1a + c5.2 + c3a.2a + c3a.3) minus (c5.58a.2 + c5.58a.3 + c5.58a.4 + c5.58a.15 + c5.58a.16 + c5.58a.17))
A148: New Scottish Income Tax Band | B148: Taxable (c5) | C148: c5.58a.18a new box
A149: New Scottish Income Tax Band | B149: Taxable (c5) | C149: c5.58a.19 changed from "(c5.58a.15 x c3a.3b) + (c5.58a.16 x c3a.4) + (c5.58a.17 x c3a.4a) + (c5.58a.18 x c3a.5)" to "(c5.58a.15 x c3a.3b) + (c5.58a.16 x c3a.4) + (c5.58a.17 x c3a.4a) + (c5.58a.18 x c3a.5) + (c5.58a.18a x c3a.5a)"
A150: New Scottish Income Tax Band | B150: Taxable (c5) | C150: c5.58a.25a new box
A151: New Scottish Income Tax Band | B151: Taxable (c5) | C151: c5.58a.40 changed from "lower of (c5.36 minus c5.45) and (c3a.1a minus (c5.58a.3 + c5.58a.4 + c5.58a.21))" to "lower of (c5.36 minus c5.58a.1b) and (c3a.1a minus (c5.58a.3 + c5.58a.4 + c5.58a.21))"
A152: New Scottish Income Tax Band | B152: Taxable (c5) | C152: c5.58a.41 changed from "lower of (c5.36 minus (c5.45 + c5.58a.40)) and ((c3a.1a + c5.2) minus (c5.58a.3 + c5.58a.4 + c5.58a.21 + c5.58a.40))" to "lower of (c5.36 minus (c5.58a.1b + c5.58a.40)) and ((c3a.1a + c5.2) minus (c5.58a.3 + c5.58a.4 + c5.58a.21 + c5.58a.40))"
A153: New Scottish Income Tax Band | B153: Taxable (c5) | C153: c5.58a.42 changed from "lower of (c5.36 minus (c5.45 + c5.58a.40 + c5.58a.41)) and ((c3a.1a + c5.2 + c3a.2a) minus (c5.58a.3 + c5.58a.4 + c5.58a.21 + c5.58a.40 + c5.58a.41))" to "lower of (c5.36 minus (c5.58a.1b + c5.58a.40 + c5.58a.41)) and ((c3a.1a + c5.2 + c3a.2a) minus (c5.58a.3 + c5.58a.4 + c5.58a.21 + c5.58a.40 + c5.58a.41))"
A154: New Scottish Income Tax Band | B154: Taxable (c5) | C154: c5.58a.43 changed from "lower of (c5.36 minus (c5.45 + c5.58a.40 + c5.58a.41 + c5.58a.42)) and ((c3a.1a + c5.2 + c3a.2a + c3a.3) minus (c5.58a.3 + c5.58a.4 + c5.58a.21 + c5.58a.40 + c5.58a.41 + c5.58a.42))" to "lower of (c5.36minus (c5.58a.1b + c5.58a.40 + c5.58a.41 + c5.58a.42)) and ((c3a.1a + c5.2 + c3a.2a + c3a.3) minus (c5.58a.3 + c5.58a.4 + c5.58a.21 + c5.58a.40 + c5.58a.41 + c5.58a.42))"
A155: New Scottish Income Tax Band | B155: Taxable (c5) | C155: c5.58a.43a new box
A156: New Scottish Income Tax Band | B156: Taxable (c5) | C156: c5.58a.44 changed from "((c5.58a.22 + c5.58a.40) x c3a.3b) + ((c5.58a.23 + c5.58a.41) x c3a.4) + ((c5.58a.24 + c5.58a.42) x c3a.4a) + ((c5.58a.25 + c5.58a.43) x c3a.5)" to "((c5.58a.22 + c5.58a.40) x c3a.3b) + ((c5.58a.23 + c5.58a.41) x c3a.4) + ((c5.58a.24 + c5.58a.42) x c3a.4a) + ((c5.58a.25 + c5.58a.43) x c3a.5) + ((c5.58a.25a + c5.58a.43a) x c3a.5a)"
A157: New Scottish Income Tax Band | B157: Taxable (c5) | C157: c5.58a.47 changed from "if c5.56 larger than 0 (zero) c5.58a.47 = (c5.55.23 x c3a.3b) + (c5.55.24 x c3a.4) + (c5.55.25 x c3a.4a) + (c5.55.26 x c3a.5) else c5.58a.47 = (c5.55.11 x c3a.3b) + (c5.55.12 x c3a.4) + (c5.55.13 x c3a.4a) + (c5.55.14 x c3a.5) end if" to "if c5.56 larger than 0 (zero) c5.58a.47 = (c5.55.23 x c3a.3b) + (c5.55.24 x c3a.4) + (c5.55.25 x c3a.4a) + (c5.55.26 x c3a.5) + (c5.55.26a x c3a.5a) else c5.58a.47 = (c5.55.11 x c3a.3b) + (c5.55.12 x c3a.4) + (c5.55.13 x c3a.4a) + (c5.55.14 x c3a.5) + (c5.55.14a x c3a.5a) end if"
A158: New Scottish Income Tax Band | B158: Taxable (c5) | C158: c5.58.53a new box
A159: New Scottish Income Tax Band | B159: Taxable (c5) | C159: c5.58.53b new box
A160: New Scottish Income Tax Band | B160: Taxable (c5) | C160: c5.58a.54 changed from "if c5.58a.53 greater than 0 (zero) lower of (c5.50 minus c5.58a.1) and (c5.58a.3 minus (c5.58a.27 + c5.58a.29 + c5.58a.33)) else lower of (c5.50 minus c5.58a.1) and (c5.56.2 minus (c5.56e1 + c5.56g + c5.56k)) end if" to "lower of c5.58a.53a and c5.58a.53b"
A161: New Scottish Income Tax Band | B161: Taxable (c5) | C161: c5.58a.57 changed from "c5.36 minus (c5.45 + (c5.58a.1 minus c5.58a.53))" to "c5.36 minus (c5.58a.1c + (c5.58a.1 minus c5.58a.53))"
A162: New Scottish Income Tax Band | B162: Taxable (c5) | C162: c5.58a.58 changed from "lower of (c5.36 minus c5.45) and (c3a.1a minus (c5.58a.3 + c5.58a.4 + c5.58a.55))" to "lower of (c5.36 minus c5.58a.1b) and (c3a.1a minus (c5.58a.3 + c5.58a.4 + c5.58a.55))"
A163: New Scottish Income Tax Band | B163: Taxable (c5) | C163: c5.58a.59 changed from "lower of (c5.36 minus (c5.45 + c5.58a.58)) and ((c3a.1a + c5.2) minus (c5.58a.3 + c5.58a.4 + c5.58a.10 + c5.58a.55))" to "lower of (c5.36 minus (c5.58a.1b + c5.58a.58)) and ((c3a.1a + c5.2) minus (c5.58a.3 + c5.58a.4 + c5.58a.10 + c5.58a.55))"
A164: New Scottish Income Tax Band | B164: Taxable (c5) | C164: c5.58a.60 changed from "lower of (c5.36 minus (c5.45 + c5.58a.58 + c5.58a.59)) and ((c3a.1a + c5.2 + c3a.2a) minus (c5.58a.3 + c5.58a.4 + c5.58a.55 + c5.58a.58 + c5.58a.59))" to "lower of (c5.36 minus (c5.58a.1b + c5.58a.58 + c5.58a.59)) and ((c3a.1a + c5.2 + c3a.2a) minus (c5.58a.3 + c5.58a.4 + c5.58a.55 + c5.58a.58 + c5.58a.59))"
A165: New Scottish Income Tax Band | B165: Taxable (c5) | C165: c5.58a.61 changed from "lower of (c5.36 minus (c5.45 + c5.58a.58 + c5.58a.59 + c5.58a.60)) and ((c3a.1a + c5.2 + c3a.2a + c3a.3) minus (c5.58a.3 + c5.58a.4 + c5.58a.55 + c5.58a.58 + c5.58a.59 + c5.58a.60))" to "lower of (c5.36 minus (c5.58a.1b + c5.58a.58 + c5.58a.59 + c5.58a.60)) and ((c3a.1a + c5.2 + c3a.2a + c3a.3) minus (c5.58a.3 + c5.58a.4 + c5.58a.55 + c5.58a.58 + c5.58a.59 + c5.58a.60))"
A166: New Scottish Income Tax Band | B166: Taxable (c5) | C166: c5.58a.61a new box
A167: New Scottish Income Tax Band | B167: Taxable (c5) | C167: c5.58a.62 changed from "(c5.58a.58 x c3a.3b) + (c5.58a.59 x c3a.4) + (c5.58a.60 x c3a.4a) + (c5.58a.61 x c3a.5)" to "(c5.58a.58 x c3a.3b) + (c5.58a.59 x c3a.4) + (c5.58a.60 x c3a.4a) + (c5.58a.61 x c3a.5) + (c5.58a.61a x c3a.5a)"
A168: New Scottish Income Tax Band | B168: Taxable (c5) | C168: c5.58a.63 changed from "lower of (c5.36 minus (c5.45 + c5.58a.54)) and (c3a.1a minus (c5.58a.3 + c5.58a.4 + c5.58a.55))" to "lower of (c5.36 minus (c5.58a.1b + c5.58a.54)) and (c3a.1a minus (c5.58a.3 + c5.58a.4 + c5.58a.55))"
A169: New Scottish Income Tax Band | B169: Taxable (c5) | C169: c5.58a.64 changed from "lower of (c5.36 minus (c5.45 + c5.58a.54 + c5.58a.63)) and ((c3a.1a + c5.2) minus (c5.58a.3 + c5.58a.4 + c5.58a.55 + c5.58a.63))" to "lower of (c5.36 minus (c5.58a.1b + c5.58a.54 + c5.58a.63)) and ((c3a.1a + c5.2) minus (c5.58a.3 + c5.58a.4 + c5.58a.55 + c5.58a.63))"
A170: New Scottish Income Tax Band | B170: Taxable (c5) | C170: c5.58a.65 changed from "lower of (c5.36 minus (c5.45 + c5.58a.54 + c5.58a.63 + c5.58a.64)) and ((c3a.1a + c5.2 + c3a.2a) minus (c5.58a.3 + c5.58a.4 + c5.58a.55 + c5.58a.63 + c5.58a.64))" to "lower of (c5.36 minus (c5.58a.1b + c5.58a.54 + c5.58a.63 + c5.58a.64)) and ((c3a.1a + c5.2 + c3a.2a) minus (c5.58a.3 + c5.58a.4 + c5.58a.55 + c5.58a.63 + c5.58a.64))"
A171: New Scottish Income Tax Band | B171: Taxable (c5) | C171: c5.58a.66 changed from "lower of (c5.36 minus (c5.45 + c5.58a.54 + c5.58a.63 + c5.58a.64 + c5.58a.65)) and ((c3a.1a + c5.2 + c3a.2a + c3a.3) minus (c5.58a.3 + c5.58a.4 + c5.58a.55 + c5.58a.63 + c5.58a.64 + c5.58a.65))" to "lower of (c5.36 minus (c5.58a.1b + c5.58a.54 + c5.58a.63 + c5.58a.64 + c5.58a.65)) and ((c3a.1a + c5.2 + c3a.2a + c3a.3) minus (c5.58a.3 + c5.58a.4 + c5.58a.55 + c5.58a.63 + c5.58a.64 + c5.58a.65))"
A172: New Scottish Income Tax Band | B172: Taxable (c5) | C172: c5.58a.66a new box
A173: New Scottish Income Tax Band | B173: Taxable (c5) | C173: c5.58a.67 changed from "(c5.58a.63 x c3a.3b) + (c5.58a.64 x c3a.4) + (c5.58a.65 x c3a.4a) + (c5.58a.66 x c3a.5)" to "(c5.58a.63 x c3a.3b) + (c5.58a.64 x c3a.4) + (c5.58a.65 x c3a.4a) + (c5.58a.66 x c3a.5) + (c5.58a.66a x c3a.5a)"
A174: New Scottish Income Tax Band | B174: Taxable (c5) | C174: c5.58a.86a new box
A175: New Scottish Income Tax Band | B175: Taxable (c5) | C175: c5.58a.87 changed from "(c5.58a.83 x c3a.3b) + (c5.58a.84 x c3a.4) + (c5.58a.85 x c3a.4a) + (c5.58a.86 x c3a.5)" to "(c5.58a.83 x c3a.3b) + (c5.58a.84 x c3a.4) + (c5.58a.85 x c3a.4a) + (c5.58a.86 x c3a.5) + (c5.58a.86a x c3a.5a)"
A176: New Scottish Income Tax Band | B176: Taxable (c5) | C176: c5.58f changed from "lower of c5.58d and (c5.3 + c5.16)" to "if c3a.1 <>if c3a.1 <> 2 and c5.35 minus c5.1 < SSR_band (£2,306) and c5.22 + c5.35 + c5.37 < c5.48a and c5.36 > 0 and c5.37 > 0 and c5.58f = c5.58f = lower of (c5.1 minus c5.52h) and c5.36 else c5.58f = 0 (zero)"
A177: New Scottish Income Tax Band | B177: Taxable (c5) | C177: c5.58g changed from "lower of (c5.58e and ((c5.3 minus c5.58d) + c5.16))" to "c5.36 and c5.58f"
A178: New Scottish Income Tax Band | B178: Taxable (c5) | C178: c5.58h changed from "lower of (c5.1 minus (c5.47 + c5.48 + c5.52h + c5.52l + c5.58 + c5.58a.53 + c5.58e)) and ((c5.58a.1 + c5.58a.54) minus (c5.58a.53 + c5.58e))" to "lower of (c5.1 minus (c5.52c + c5.52d + c5.52h + c5.52l + c5.58a.53 + c5.58e)) and ((c5.50 + c5.58g) minus (c5.58a.53 + c5.58e))"
A179: New Scottish Income Tax Band | B179: Taxable (c5) | C179: c5.58.1 changed from "c5.35 minus (c5.44 + c5.52h)" to "c5.35 minus c5.52h"
A180: New Scottish Income Tax Band | B180: Taxable (c5) | C180: c5.58.2 changed from "lower of c5.1 minus (c5.47 + c5.48 + c5.58i + c5.58k) and c5.58.1" to "lower of c5.1 minus (c5.58i + c5.58k) and c5.58.1"
A181: New Scottish Income Tax Band | B181: Taxable (c5) | C181: c5.58.3 changed from "lower of ((c5.4a + c5.5 + c5.6) minus (c5.44 + c5.52h)) and c5.58.2" to "set to zero"
A182: New Scottish Income Tax Band | B182: Taxable (c5) | C182: c5.58.4 changed from "larger of c5.56 and c5.58.3" to "set to zero"
A183: New Scottish Income Tax Band | B183: Taxable (c5) | C183: c5.58.5 changed from "lower of ((c5.4a + c5.5 + c5.6) minus (c5.44 + c5.52h)) and c5.58.4" to "set to zero"
A184: New Scottish Income Tax Band | B184: Taxable (c5) | C184: c5.58.6 changed from "lower of c5.58.2 and c5.58.5" to "set to zero"
A185: New Scottish Income Tax Band | B185: Taxable (c5) | C185: c5.58.8 changed from "lower of (c5.1 minus (c5.47 + c5.48 + c5.58e + c5.58i + c5.58k + c5.58.7)) and ((c5.34b1 + c5.34c + c5.34d) minus (c5.45 + c5.58h))" to "lower of (c5.1 minus (c5.56p + c5.58e + c5.58i + c5.58k + c5.58.7)) and (c5.36 minus c5.58h)"
A186: New Scottish Income Tax Band | B186: Taxable (c5) | C186: c5.58.10 changed from "c5.35 minus (c5.44 + c5.52h + c5.58.7)" to "c5.35 minus (c5.52h + c5.58.7)"
A187: New Scottish Income Tax Band | B187: Taxable (c5) | C187: c5.59 changed from "lower of c5.1 minus (c5.47 + c5.48 + c5.58i + c5.58k + c5.58.7 + c5.58.9) and c5.58.10" to "lower of c5.1 minus (c5.58i + c5.58k + c5.58.7 + c5.58.9) and c5.58.10"
A188: New Scottish Income Tax Band | B188: Taxable (c5) | C188: c5.60 changed from "lower of ((c5.4 + c5.4a + c5.5 + c5.6) minus (c5.44 + c5.52h + c5.58.7)) and c5.59" to "set to zero"
A189: New Scottish Income Tax Band | B189: Taxable (c5) | C189: c5.61 changed from "larger of (c5.56 minus c5.58.7) and c5.60" to "set to zero"
A190: New Scottish Income Tax Band | B190: Taxable (c5) | C190: c5.61a changed from "lower of ((c5.4 + c5.4a + c5.5 + c5.6) minus (c5.44 + c5.52h + c5.58.7)) and c5.61" to "set to zero"
A191: New Scottish Income Tax Band | B191: Taxable (c5) | C191: c5.62 changed from "lower of c5.59 and c5.61a" to "lower of c5.2 and c5.59"
A192: New Scottish Income Tax Band | B192: Taxable (c5) | C192: c5.63 changed from "lower of (c5.1 minus (c5.47 + c5.48 + c5.58e + c5.58i + c5.58k + c5.58.7 + c5.58.9 + c5.62)) and ((c5.34b + c5.34b1 + c5.34c + c5.34d) minus (c5.45 + c5.58h + c5.58.9))" to "lower of (c5.1 minus (c5.56p + c5.58e + c5.58i + c5.58k + c5.58.7 + c5.58.9 + c5.62)) and (c5.36 minus (c5.58h + c5.58.9))"
A193: New Scottish Income Tax Band | B193: Taxable (c5) | C193: c5.66.1 changed from "c5.35 minus (c5.44 + c5.52h + c5.58.7 + c5.62)" to "c5.35 minus (c5.52h + c5.58.7 + c5.62)"
A194: New Scottish Income Tax Band | B194: Taxable (c5) | C194: c5.66.2 changed from "lower of (c5.1 + c5.63a) minus (c5.47 + c5.48 + c5.58i + c5.58k + c5.65 + c5.66) and c5.66.1" to "lower of (c5.1 + c5.63a) minus (c5.58i + c5.58k + c5.65 + c5.66) and c5.66.1"
A195: New Scottish Income Tax Band | B195: Taxable (c5) | C195: c5.66.3 changed from "lower of ((c5.3a + c5.4 + c5.4a + c5.5 + c5.6) minus (c5.44 + c5.52h + c5.58.7 + c5.62)) and c5.66.2" to "set to zero"
A196: New Scottish Income Tax Band | B196: Taxable (c5) | C196: c5.66.4 changed from "larger of (c5.56 minus (c5.58.7 + c5.62)) and c5.66.3" to "set to zero"
A197: New Scottish Income Tax Band | B197: Taxable (c5) | C197: c5.66.5 changed from "lower of ((c5.3a + c5.4 + c5.4a + c5.5 + c5.6) minus (c5.44 + c5.52h + c5.58.7 + c5.62)) and c5.66.4" to "set to zero"
A198: New Scottish Income Tax Band | B198: Taxable (c5) | C198: c5.66.6 changed from "lower of c5.66.2 and c5.66.5" to "set to zero"
A199: New Scottish Income Tax Band | B199: Taxable (c5) | C199: c5.66.7 changed from "lower of c5.66.6 and c3a.1a" to "lower of c5.66.2 and c3a.1a"
A200: New Scottish Income Tax Band | B200: Taxable (c5) | C200: c5.66.8 changed from "lower of (c5.1 minus (c5.47 + c5.48 + c5.58i + c5.58k + c5.65 + c5.66 + c5.66.7) and (c5.34a1 + c5.34b + c5.34b1 + c5.34c + c5.34d) minus (c5.45 + c5.58h + c5.58.9 + c5.63))" to "lower of (c5.1 minus (c5.58i + c5.58k + c5.65 + c5.66 + c5.66.7)) and (c5.36 minus (c5.58h + c5.58.9 + c5.63))"
A201: New Scottish Income Tax Band | B201: Div Cr (10) | C201: c10.17 changed from "c22.3 + c22.6 + c22.9 + c22.12 + c22.15" to "c22.3 + c22.3c + c22.6 + c22.9 + c22.12 + c22.15"
... 229 more rows

Sheet Read me
B1: The Tester | C1: Version E3.2.1 This is a standalone version and has been updated to included the input boxes referred to in Annex C in document "Tax and NIC calculation version 2.3.1" to demonstrate the calculation of box CGT51 for disposals on or after 30 October 2024
B2: The Test Case Generator (Tester) supports the testing of the tax calculation, resulting from the successful capture of
B3: ="a "&tax_year&" Main Tax Return (MTR), and can be used in 3 ways." -> a 2024-25 Main Tax Return (MTR), and can be used in 3 ways.
B5: 1. As a stand-alone tax calculator.
B6: Select the sheets on 'Add pages' that correspond to questions on the Return.
B7: The sheets for the core Return (INC(1), INC(2) and REL) are always visible, others appear when selected.
B8: Enter, the sub-set of Return data required by the tax calculation and
B9: press the 'Calculate Now' button on 'Add pages' to reveal the outputs (see below).
B10: Note: The ‘Reset calculation’ button on the 'Add pages' sheet should used between tests to avoid residual entries
B11: corrupting the expected results.
B13: 2. As a test case generator.
B14: The Tester can auto-populate the input sheets from a number of pre-fabricated test components (see below).
B15: These components can be selected on the 'Selector' and 'More Select' sheets, and the 'Test this case' button will
B16: generate outputs (see below) based on the selection.
B17: The 'Clear selection' button will remove all data from the 'Selector' and 'More Select' sheets, and resets
B18: input sheets and calculation.
B20: 3. As a database of business specified test cases (see below). These are pre-defined full test cases.
B21: Each case is numbered and can be selected by inputting the case number in the box
B22: marked ‘Select test case number to be replayed’ on the 'Test Case index' sheet.
B23: The selected test case can be activated by pressing 'Replay selected case' button on the 'Test Case index' sheet.
B24: This auto-populates the input sheets from the test components that make up the test case, and generates outputs
B25: (see below) based on the selection.
B27: The 'Test case' sheet
B28: When the TCG is used in modes 2 or 3 it will pull together all the data needed for a full Tax Return.
B29: The data appear on the 'Test case' sheet (to the right of the 'Add pages' sheet).
B30: It is important to note that there are differences between the test case and the components used to create it.
B31: Most of the data is supplied by the test components, but some are modified, either to add boxes that are dependant
B32: on other components/data selected, or remove inconstistancies in the selection.
B33: (See 'Adjustments made to produce more realistic cases' for more detail.)
B35: About test components
B36: The Tester is based on a number of pre-fabricated components.
B37: Each component relates to a question or part question on the Main Tax Return.
B38: There are a number of instances of each component, giving a variety of valid MTR entries.
B40: Component | C40: Description | D40: Instances | E40: Worksheet
B41: INC-A | C41: Income boxes INC1 to INC6 (Interest and Dividends) | D41: 15 | E41: C0
B42: INC-B | C42: Income boxes INC7 to INC14 (UK pensions etc. received) | D42: 11 | E42: C0
B43: INC-C | C43: Income boxes INC15 to INC19 (Other UK income) | D43: 6 | E43: C0
B44: REL-A | C44: Tax reliefs boxes REL1 to REL4 (Pension contributions) | D44: 7 | E44: C0
B45: REL-B | C45: Tax reliefs boxes REL5 to REL10 (Charitable giving) | D45: 8 | E45: C0
B46: REL-C | C46: Tax reliefs boxes REL11 to REL14 (Blind Person's Allowance) | D46: 2 | E46: C0
B47: SLR | C47: Student Loans | D47: 6 | E47: C0
B48: CBC | C48: Child Benefit payments | D48: 4 | E48: C0
B49: MAT | C49: Marriage Allowance Transfer | D49: 4 | E49: C0
B50: AOI-A | C50: Additional Information boxes AOI1 to AOI3 (Interest from UK securities) | D50: 3 | E50: C1
B51: AOI-B | C51: Additional Information boxes AOI4 to AOI11 (Life insurance gains) | D51: 9 | E51: C1
B52: AOI-C | C52: Additional Information boxes AOI12 to AOI15 (Stock dividends etc.) | D52: 5 | E52: C1
B53: ASE-A | C53: Additional Information boxes ASE1 to ASE2 (Share schemes) | D53: 3 | E53: C1
B54: ASE-B | C54: Additional Information boxes ASE3 to ASE10 (Lump sum payments) | D54: 3 | E54: C1
B55: ASE-C | C55: Additional Information boxes ASE11 to ASE15 (Other deductions) | D55: 4 | E55: C1
B56: AOR | C56: Additional Information boxes AOR1 to AOR10 (Other tax reliefs) | D56: 10 | E56: C1
B57: MCA | C57: Additional Information boxes MCA1 to MCA11 (Married Couple's Allowance) | D57: 9 | E57: C1
B58: AIL | C58: Additional Information boxes AIL1 to AIL19 (Other Information) | D58: 11 | E58: C1
B59: EMP | C59: Employment | D59: 11 | E59: C2
B60: MOR | C60: Ministers of religion | D60: 6 | E60: C2
B61: SSE | C61: Short self-employment (excluding class 4 NIC) | D61: 8 | E61: C3
B62: FSE | C62: Full self-employment (excluding class 4 NIC) | D62: 9 | E62: C3
B63: LUN | C63: Lloyd's underwriters (excluding class 4 NIC) | D63: 7 | E63: C3
B64: SPS | C64: Short partnership income (excluding class 4 NIC) | D64: 6 | E64: C4
B65: FPS | C65: Full partnership income (excluding class 4 NIC) | D65: 8 | E65: C4
B66: PRO | C66: Income from property | D66: 10 | E66: C5
B67: FOR | C67: ="Foreign income (excluding Foreign Tax Credit Relief - box "&'C6'!C3&")" -> Foreign income (excluding Foreign Tax Credit Relief - box FOR2) | D67: 8 | E67: C6
B68: TRU | C68: Trust income | D68: 4 | E68: C7
B69: CGT | C69: Capital gains | D69: 9 | E69: C8
B70: NRD | C70: Residence, Remittance Basis etc. | D70: 10 | E70: C9
B71: CAL | C71: Tax calculation summary | D71: 18 | E71: C8C9C10
B72: NI2 | C72: Class 2 NIC | D72: 2 | E72: C8C9C10
B73: NI1 | C73: Class 1 NIC | D73: 2 | E73: C8C9C10
B75: Instances of different components can be selected together to produce complete test cases.
B76: In addition to selecting different components, multiple instances of some components can be selected.
B77: (Up to 2 employments, 2 self-employments (1 short & 1 full) and 2 partnerships (1 short & 1 full) .)
B78: Some questions on the core Tax Return and Additional Information pages would require a large number
B79: of components, so have been split (into A, B & C ranges). These can be selected individually or together.
B80: [Whilst all the combinations of components that can be selected will be ‘valid’ in terms of the system, not all will
B81: be ‘realistic’. The generator makes some adjustments to make the case more realistic, but they aren’t
B82: comprehensive.]
B83: The components can be viewed at any time using the ‘Show/Hide Components’ button on the ‘Test’
B84: and ‘More test’ worksheets.
B86: The business specified test cases
B87: ='Add pages'!G2&" of the "&tax_year&" test case generator has a built in database of "&Last_row-1&" test cases." -> Version E2.3.1 of the 2024-25 test case generator has a built in database of 273 test cases.
B88: Details of these can be found on the ‘Test Case index’ worksheet.
B89: Each case is numbered and can be selected by inputting the case number in the box marked
B90: Select test case number to be replayed’. [N.B. After the case number is entered press the 'Enter' key.]
B91: The selected test case can be activated by pressing 'Replay selected case' button on the 'Test case index' sheet.
B92: This auto-populates the input sheets from the test components that make up the test case, and generates outputs
B93: (see below) based on the selection.
B94: Test cases 1 to 25 use identical data to STR test cases 1 to 25, and should produce identical results.
B96: Recording new test cases
B97: New test cases can be quickly added to the existing business test cases.
B98: All new cases will comply with the business validation rules, but may not 'realistic' examples of actual MTRs.
B99: To create a new test case:
C100: 1. Select the required components on the 'Selector' and 'More Select' sheets
C101: 2. Select any required ‘case variable data’ (e.g. date of birth - see note a).
C102: 3. Press the ‘Test this case’ button.
C103: 4. Press the 'Record this case' button on the 'Selector' and 'More Select' sheets
B105: The summary of test components and case specific data needed to re-run this case will be stored in the next
B106: vacant row on the Test Case index' sheet. Once the case is stored it can be 'replayed' as any other test
B107: case.
B108: Note a: The test case generator does not have true date processing capability. There are 5 pre-set dates of birth
B109: and these are the only dates the spreadsheet will recognise.
B111: Amending test cases
B112: Test case data will remain in the input sheets until the ‘Reset calculation’ button on the ‘Add pages’ sheet is
B113: pressed. That data can be amended, by going to the input sheet and over-typing the box entries.
B114: The 'Calculate Now' button on the 'Add pages' sheet will cause certain outputs to be regenerated using the
B115: amended figures.
B116: Note: Where components are being used, amending the input sheets will not change the figures on the
B117: component. The 'test case' sheet is generated from components and will not show the amended figures.
B118: If the test case is recorded the original figures (not amendments) will be stored.
B119: 'Test this case' will remove the amendments and restore the original figures.
B121: Outputs from the Tester
B122: Whatever mode the Tester is used in, the following worksheets are always produced:
B124: SA302 - This is the tax calculation formatted in the style of pages 3/4 of form SA302
B126: Liability - SA110 boxes CAL1 to CAL8
B128: CRC - Shows the tax calculation data required by other processes/systems:
C129: Create Return Charge - the interface to TLI
C130: Student loan income - data required by the Student Loan system.
B132: Additionally, when components are used, the following worksheets appear:
B134: Test case - This combines all the data from the selected components into a complete 'MTR'.
B136: SA302_interface - The tax calculation data required by Issue Revenue Calculation.
B138: The identities of components used appear on all outputs.
B139: All output sheets appear between the 'Add pages' and 'INC(1)' worksheets.
B141: Adjustments made to produce more realistic cases
B142: 1. On the ‘More select’ worksheet there is a tick box to indicate the taxpayer is exempt from paying Class 4 NIC.
B143: This will be set to 'Y' automatically if the taxpayer is aged over 65 or is non-resident.
B144: It will be ignored if no component SSE, FSE, LUN, SPS or FPS is selected.
B145: 2. The value for box FOR2 (Foreign Tax Credit Relief) is not stored in the FOR component. It is calculated for each
B146: test case that uses this component.
B147: 3. Coded underpayment will be ignored if the is no PAYE source (EMP or MOR) selected.
B149: Problem & query reporting
B150: If you have a problem or query you want to refer to HMRC CDIO please quote the
B151: case number (if it involves a business supplied test case) or the components used.
B153: Accessing & Navigating SEES – SA Tax Calculator
B155: Select the 'Additional Information' and 'Additional Pages' from the Return that are required.
B156: Note that the National Insurance page does not equate to a Return page but should be completed
B157: where Class 2 is payable or Class 1 paid affects Class 4 due
B186: Insert the Return entries as shown below
B219: Complete all the Return pages and select 'Add pages'
B250: NI
B251: The Class 2 Reg 21 calculation reduces Class 2 with reference to Class 1 Earnings. There are two new boxes within the 'NI' screen to help calculate the reduced amount when requested from a customer.
B253: The deferment of Class 4 NIC has been removed from 2015-2016 onwards. There are two new boxes within the 'NI' screen in relation to Class 1 Earnings for the Reg100 Clas 4 calculation.
B255: Class 2
B256: Where a person is liable to pay Class 2 National Insurance contributions (NICs), Class 2 NICs are due for each contribution week or part of a week that a person was self-employed.
B257: So, where a person was self-employed and liable to pay Class 2 NICs for part or all of one day in a week, liability arises for one week’s NICs due at the weekly flat rate.
B258: A ‘contribution week’ is defined as a period of seven days beginning with midnight between Saturday and Sunday. The first day of the contribution week is Sunday and Saturday is the last.
B259: The first week of the contribution year starts on the first Sunday after 5 April. Some contribution years will include 53 contribution weeks.
B261: Class 4
B262: Class 4 NI payable with income from employment and self-employment
B263: Annual maximum of Class 4 contributions due under section 15 of the Act
B264: 100.—(1) Where for any year there are payable by or in respect of an earner Class 4 contributions under section 15 of the Act and also primary Class1 or Class2 contributions or both primary Class 1 or Class 2 contributions,
B265: the liability of that earner for such Class 4 contributions for that year shall (without prejudice to his liability in the ﬁrst instance for the full amount payable apart from this regulation) not exceed such amount as, when added to
B266: the amount of such other of those contributions as are ultimately payable by or in respect of him for that year, equals in value the sum of the amount which, but for the provisions of this regulation, would be payable by that earner
B267: on proﬁts or gains equal to the higher of the two money sums speciﬁed in section 15(3) of the Act and, subject to the provisions of section 12 of the Act and regulations 63 to 65, 53 times the amount of a Class2 contribution payable for that year.
B268: 2) For the purpose only of determining the extent of an earner’s liability for Class 4 contributions under paragraph (1), the amount of any primary Class 1 contributions paid at less than the primary percentage speciﬁed in section 8(2) of the Act
B269: shall be treated as equal to the amount of any primary Class 1 contributions payable at that percentage on the same amount of earnings.
B270: So that a person with earnings from both an employment and self-employment does not pay considerably more NI than a person who has a similar level of earnings but from only one employment, the Class 4 NI payable is sometimes restricted.
B271: The objective is to limit the self-employed profits charged at the main 9% rate to the employee-only equivalent, but still leave higher earnings charged at the uncapped 2% rate.
B273: Class 1 Earnings
B275: The two boxes in question are to be filled in if the customer has employment and is also self-employed. They are to be filled in as follows:
B277: =NI!C19&" Earnings from PT to UEL - These are earnings that appear in the column 1c from PT to UEL on the P60 (this was Column 1c + 1d up to 2015-16)." -> EMPCL1 Earnings from PT to UEL - These are earnings that appear in the column 1c from PT to UEL on the P60 (this was Column 1c + 1d up to 2015-16).
B278: =NI!C26&" Earnings from PT to UEL - These are earnings that appear in the column 1c from PT to UEL on the P60 (this was Column 1c + 1d up to 2015-16)." -> MORCL1 Earnings from PT to UEL - These are earnings that appear in the column 1c from PT to UEL on the P60 (this was Column 1c + 1d up to 2015-16).
B280: From 2016-17 the P11ws and P60 were changed so that the columns for 1c and 1d are combined into one column that has earnings from PT to UEL.
B283: On NPS > Employment > P14 Summary take the figures from column 1c and 1d
B284: ="Enter the amounts in the "&NI!C19&"/"&NI!C22&" and/or "&NI!C26&"/"&NI!C29&" boxes." -> Enter the amounts in the EMPCL1/ and/or MORCL1/ boxes.
B314: Select the 'Calculate Now' button to reveal the SA302 tax calculation
B346: The SA302 Calculation – here you can see what the customers SA302 looks like based on the entries you have made
B386: On the 'Add pages' worksheet select the Reset calculation button to clear all entries and close pages before
B387: entering the details for another case
B389: Things to note
B390: Marriage Allowance Transfer
B391: If the Transferor makes a claim on the return and not digitally, a relationship will be created on TBS, but it will not
B392: trigger a digital claim. The fact that they are a Recipient will be stored in the background and when the Recipient
B393: files their SA Return the credit will be given. But where the Recipient's Return cannot be captured or it's an in-year
B394: Return to date of death and the operator needs to do a SEEs calc before adding figures onto SA using CRC then
B395: the MAT_OUT and MAT_IN buttons can be used to replicate the digital claim
B419: FTCR - see the guidance at
B420: http://bg.inrev.gov.uk/tax/actionguides/40100/tax40072_main.htm
B421: http://bg.inrev.gov.uk/tax/helpcards/tax50104.pdf
B441: Non-resident calculation
B442: Section 811 applies to taxpayers who are non-resident for the whole tax year. Certain sources of income (mostly investment income*) are ‘disregarded’. That is no more tax can be charged than has been deducted at source.
B443: The disregarded income is removed from the tax calculation and only the tax deducted at source added to the liability computed on the non-disregarded income.
B444: UK allowances are not given in the section 811 calculation, even if the taxpayer is entitled to claim them. The taxpayer can still claim tax deductions in the section 811 calculation. (Note: Maintenance and alimony payments are a deduction, not an allowance, so any relief claimed is still given in the section 811 calculation.)
B445: As the use of section 811 is optional, two calculations are performed: 1) the ‘standard’ tax calculation including all income and any UK allowances due, 2) the section 811 calculation.
B446: The results of the two calculations are compared and the calculation that produces the better result for the taxpayer is retained.
B448: Income Tax Relief - Losses
B449: The SA tax calculator follows the steps in s23 ITA 2007. Step 1 is to identify total income. Reliefs are deductible at step 2. HMRC introduced the term "limit on income tax reliefs" for step 2 deductions. This includes trade and property losses but there are other reliefs and deductions.
B450: From 2015-16 changes were made to:
B451: - calculate the limit on relief with the correct adjusted total income x 25% where more than £50,000.
B452: - update the SA302 so it included the reliefs, including losses, in the 'income received' section and include them as "Income tax relief" in the 'minus' section below that. "Income tax relief" replaced both "Loan interest payments" and "Losses".
B453: The change to ensure adjusted total income is calculated correctly presents the total income received for the year before losses brought forward from an earlier year and before losses ocurring in the year for other income. The SA302 adds back the brought forward losses to show the total profit for the year and then deducts them as income tax relief.
B454: See Limit on Income Tax reliefs: HS204 Self Assessment helpsheet
B455: https://www.gov.uk/government/publications/limit-on-income-tax-reliefs-hs204-self-assessment-helpsheet
B457: Savings Income
B459: From 06 April 2016 the Personal Savings Allowance (PSA) introduces a new 0% band for Income Tax on income from savings interest.
B461: This will apply up to a maximum of
B463: £1000 for basic rate customers (20%)
B464: £500 for higher rate customers (40%)
B466: - The PSA will not apply to savings income received by additional rate customers (45%).
B467: - Income that is within an individual's savings allowance will still count towards their basic or higher rate limits.
B468: - Higher/Additional rate income is income on which tax is charged, or would be but for the dividend nil rate.
B469: - PSA is in addition to the starter savings rate which allows low income earners to receive up to £5,000 tax free savings interest.
B470: - Interest from Individual Savings Accounts (ISAs) is already tax-free so this will not count towards the Personal Savings Allowance.
... 66 more rows

Sheet Test Case index
C1: ="There are "&Last_row-1&" stored test cases" -> There are 273 stored test cases
C3: 251
G4: Used for
B5: Test reason | D5: Components used | E5: Calc figure | F5: v0.1.0 | G5: HMRC Portal | H5: Comments
A6: 1 | B6: Scottish customer with income from property, loss b/f and LLIR reduced to zero, savings, dividends. MAT out. Allces to non-savings and dividends (STR 1) | D6: Components: YPD INC-A REL-A MAT Emp-A PRO | E6: 137.98 | F6: 137.98 | G6: YES
A7: 2 | B7: Basic rate employment, savings and property, loss b/f and LLIR reduced. MAT in digital claim in place, but disallowed because HR. Small Debt Coded with PAYE Tax to cover (STR 2) | D7: Components: YPD INC-A MAT Emp-A PRO CAL | E7: 9491.12 | F7: 8870.48 | G7: YES
A8: 3 | B8: Scottish customer with Higher rate non-savings; higher rate savings; higher rate dividends; RAR; PPR; Gift Aid; Digital claim to Marriage Allowance Transfer (MAT) in place where customer is recipient, but disallowed because HR; Class 4 NIC + Class 2 NIC treated as paid; Small Debt Coded with PAYE Tax to cover (STR 3) | D8: Components: YPD INC-A REL-A REL-B MAT FIN Emp-A FSE NI2 NI1 CAL | E8: 7476.44 | F8: 6950.94 | G8: YES
A9: 4 | B9: Welsh customer with Non-Savings, Savings and Dividends where more beneficial to have some of PA against Savings to position Savings in nil band that would othreeise be in HR, SL repayment case PT02 & PGL03 (STR 4) | D9: Components: YPD INC-A SLR Emp-A | E9: 6990.61 | F9: 6990.61 | G9: YES
A10: 5 | B10: Scottish Customer with self employment profit, Savings starter rate, Digital claim to Marriage Allowance Transfer (MAT) in place where customer is recipient, Class 4 NIC + Class 2 NIC treated as paid (STR 5) | D10: Components: YPD INC-A REL-A MAT FSE NI2 | E10: 771.44 | F10: 1025.14 | G10: YES
A11: 6 | B11: Welsh customer with Non-Savings, Savings and Dividends where more beneficial to have some of PA against Dividends before Non-Savings/Savings (STR 6) | D11: Components: YPD INC-A INC-B MAT | E11: 6678.91 | F11: 6351.66 | G11: YES
A12: 7 | B12: Employment, RAR, Lower income spouse claiming Married Couples Allowance MCA, in year marriage (STR 7) | D12: Components: YPD INC-B REL-A MCA Emp-A CAL | E12: 68.3 | F12: 68.3 | G12: YES
A13: 8 | B13: Self employed, state pension (DOB spouse post 1935) MCA in year marriage (STR 8) | D13: Components: YPD INC-A INC-B MCA FSE NicEx | E13: 1059.38 | F13: 1059.38 | G13: YES
A14: 9 | B14: Scottish customer with Self employment, property, savings, dividends, gift aid. Non savings income 'covered' by PA, Savings Starting rate, PSA, Dividend Allowance (DA), Gift Aid, Landlords Loan Interest Relief LLIR reduced to max allowable, additional tax due on gift aid SL repayment case PT 01 & PGL 03. (STR 9) | D14: Components: YPD INC-A INC-C REL-B SLR SSE NI2 NI1 NIC2Vol NicEx PRO | E14: 190.92 | F14: 190.92 | G14: YES
A15: 10 | B15: BR Non savings, Savings BR, Dividends HR, Gift Aid. Beneficial ordering of reliefs and allowances considered - PA set against pension in preference to dividends at HR. This introduced more savings starting rate. (STR 10) | D15: Components: YPD INC-A INC-B REL-B | E15: 4379.99 | F15: 4379.99 | G15: YES
A16: 11 | B16: Scottish customer with Starter, basic & Intermediate rate. PA to Non savings. PSA and DA. Divs in BR, PPR, Gift Aid, LLIR, (STR11) | D16: Components: YPD INC-A INC-B REL-A REL-B Emp-A PRO CAL | E16: 4191.86 | F16: 4191.86 | G16: YES
A17: 12 | B17: Allowances to savings, dividends and non savings. Divs in HR (STR 12) | D17: Components: YPD INC-A INC-B INC-C | E17: 6999.94 | F17: 6999.94 | G17: YES
A18: 13 | B18: Kitchen sink with in year MCA to wife (reduced to minimum amount); NIC exempt (STR 13) | D18: Components: YPD INC-A INC-B INC-C REL-A REL-B FIN MCA Emp-A SSE NI1 NicEx PRO CAL | E18: 18445.08 | F18: 18445.08 | G18: YES
A19: 14 | B19: Employment, savings, dividends. PA to non-savings up to basic rate limit and savings to ensure Savings in nil band would otherwise be in higher rate band. Student Loan SL repayment case Plan 02, Basic rate employment, DA, DOR, (STR 14) | D19: Components: YPD INC-A SLR Emp-A CAL | E19: 7235.17 | F19: 7235.17 | G19: YES
A20: 15 | B20: Student Loan SL repayment case Plan 01, RAR, BR self employment, SAV SR, DA, DOR, Class 4 NIC + Class 2 NIC (STR 15) | D20: Components: YPD INC-A REL-A SLR FSE NI2 | E20: 10649.15 | F20: 10878.32 | G20: YES
A21: 16 | B21: Scottish Customer with PRO loss B/F. Reduced PA. SSR, SBR, SIR, SHR, Pension/PRO income, PSA (HR), SAV HR, DA, Dividend Upper Rate DUR, LLIR reduced | D21: Components: YPD INC-A INC-B REL-C PRO | E21: 16034.83 | F21: 16034.83 | G21: YES
A22: 17 | B22: Welsh, Student Loan SL repayment case PGL Plan 03, PPR, BR Employment/PRO, PSA (HR), DA, DUR, LLIR to max allowable, Small Debt Coded with PAYE Tax to cover (STR 17) | D22: Components: YPD INC-A REL-A SLR Emp-A PRO CAL | E22: 25254.11 | F22: 25254.11 | G22: YES
A23: 18 | B23: Welsh. Allcs set against NS, Sav & Div. BR Employment. Underpaid Tax for earlier years, Underpaid tax included in CY tax code. (STR 18) | D23: Components: YPD INC-A Emp-A CAL | E23: 3236.81 | F23: 3236.81 | G23: YES
A24: 19 | B24: BR/Employment/ Pension, SAV SR, PSA (HR), SAV BR, DA, DOR, DUR, Small debt coded no PAYE Tax (STR19) | D24: Components: YPD INC-A INC-B REL-B Emp-A | E24: 831.33 | F24: 831.33 | G24: YES
A25: 20 | B25: SAV SR, PSA (HR), SAV BR, DA, DOR, DUR, Tax deducted on interest ( STR 20) | D25: Components: YPD INC-A REL-A MAT Emp-A | E25: 2700.85 | F25: 2700.85 | G25: YES
A26: 21 | B26: BR employment, SAV SR, PSA (HR), SAV BR, SAV HR, DA, DUR, Tax deducted on interest ( STR 21) | D26: Components: YPD INC-A SLR Emp-A | E26: 15160.22 | F26: 15160.22 | G26: YES
A27: 22 | B27: BR Self employment, PSA, SAV BR, DA, Class 4 NIC + Class 2 NIC, Tax deducted on interest ( STR 22) | D27: Components: YPD INC-A Emp-A SSE NI2 NI1 | E27: 14065.41 | F27: 14244.81 | G27: YES
A28: 23 | B28: Higher Rate (HR)BR employment/PRO, PSA (HR), DA, DOR, DUR, Marriage Allowance Transfer (MAT) Digital Claim (out) not allowed as HR, Small Debt Coded with PAYE Tax to cover (STR 23) | D28: Components: YPD INC-A REL-A MAT Emp-A FSE NI2 PRO CAL | E28: 6818.63 | F28: 6818.63 | G28: YES
A29: 24 | B29: Scottish customer with BPR, Pension/OI, SSR, SBR, SIR, PSA (HR), DA, DOR, DUR, Tax deducted on interest (STR 24) | D29: Components: YPD INC-A INC-B INC-C REL-C | E29: 2230.42 | F29: 1883.01 | G29: YES
A30: 25 | B30: BR Employment/self employment/PRO/Pension/OI, PSA (HR), DA, DOR, DUR ,LLIR reduced to max allowable, Class 4 NIC + Class 2 NIC (STR 25) | D30: Components: YPD INC-A INC-B INC-C MAT Emp-A SSE FSE NI2 NI1 PRO | E30: 3952.09 | F30: 3383.86 | G30: YES
A31: 26 | B31: Welsh, MAT_IN with Gift Aid payments where beneficial to allocate PA £997 to dividends which is less beneficial than set against non-savings but retains MAT_IN (STR26) | D31: Components: YPD INC-A REL-B MAT Emp-A | E31: -652.6 | F31: -652.6 | G31: YES
A32: 27 | B32: Scottish, PA + BPR, MAT_IN with Gift Aid payments where taxable at SIR_band rate (STR27) | D32: Components: YPD INC-A REL-B REL-C MAT Emp-A FSE PRO | E32: 5683.93 | F32: 5683.93 | G32: YES
A33: 28 | B33: PA to non-savings and savings but no different if all PA to non-savings (STR28) | D33: Components: YPD INC-A INC-B REL-B | E33: 7457.65 | F33: 7457.65 | G33: YES
A34: 29 | B34: Scottish Additional Rate customer (STR29) | D34: Components: YPD INC-A INC-C REL-A SLR Emp-A | E34: 25955.93 | F34: 25955.93 | G34: YES
A35: 30 | B35: Welsh Additional Rate customer (STR30) | D35: Components: YPD INC-A REL-A Emp-A FSE NI2 NI1 CAL | E35: 36014 | F35: 36083 | G35: YES
A36: 31 | B36: Scottish customer with SSL | D36: Components: YPD INC-B REL-A SLR Emp-A SSE NI2 | E36: 342.31 | F36: 342.31 | G36: YES
A37: 32 | B37: rUK customer with SSL | D37: Components: YPD INC-A REL-A REL-B SLR AOR Emp-A FSE NI2 NI1 | E37: 11161.15 | F37: 11161.15 | G37: YES
A38: 33 | B38: Welsh customer with SSL, PGL | D38: Components: YPD INC-A SLR Emp-A FSE NI2 PRO | E38: 9188.8 | F38: 9188.8 | G38: YES
A39: 34 | B39: Scottish customer, Employment, Int, Divs, RAR, coded debt | D39: Components: YPD INC-A REL-A Emp-A CAL | E39: 42696.67 | F39: 42696.67 | G39: YES
A40: 35 | B40: Employment, self-employment, other inc, savings in SR band | D40: Components: YPD INC-A INC-C AOI-B Emp-A FSE NI2 NIC2Vol | E40: 768.45 | F40: 428.45 | G40: YES
A41: 36 | B41: Property income, savings, pension , MCA, relief for finance costs | D41: Components: YPD INC-A INC-B MCA FSE PRO | E41: 4651.9 | F41: 4651.9 | G41: YES
A42: 37 | B42: Property income, savings dividends, pensions, MAT, gift aid charge | D42: Components: YPD INC-A INC-B INC-C REL-B MAT PRO | E42: 344.2 | F42: 344.2 | G42: YES
A43: 38 | B43: Employment, self-employment, gift aid charge | D43: Components: YPD INC-A REL-B FIN Emp-A FSE NI2 | E43: 9660.42 | F43: 8882.72 | G43: YES
A44: 39 | B44: Employment, RAR, reduced PA | D44: Components: YPD INC-A REL-A Emp-A PRO | E44: 21146.11 | F44: 21146.11 | G44: YES
A45: 40 | B45: Employment, savings, dividends,pensions, reduced PA | D45: Components: YPD INC-A INC-B REL-B Emp-A PRO | E45: 15728.63 | F45: 15728.63 | G45: YES
A46: 41 | B46: Employment, Other income, Savings, Student Loan repayment (plan 01) SL, Chargeable Event Gains CEG, Top Slicing Relief TSR, Additional rate | D46: Components: YPD INC-A INC-C REL-A SLR AOI-B Emp-A Emp-B PRO | E46: 54375 | F46: 54375 | G46: YES
A47: 42 | B47: employment, Savings, Dividends, Losses from SSE set against other income + Marriage Allowance Transfer transferred (MAT_OUT) Voluntary Class 2 | D47: Components: YPD INC-A MAT Emp-A SSE NI2 NI1 NIC2Vol | E47: 337.75 | F47: 337.75 | G47: YES
A48: 43 | B48: Employment income over £100,000, Savings and dividends, no PA, Blind Person Relief BPR due, CGT | D48: Components: YPD INC-A REL-C MAT Emp-A CGT | E48: 26797.98 | F48: 26797.98 | G48: YES
A49: 44 | B49: Self employed, Trusts, Student Loan repayment SL (Plan 01), S/E Losses set against other income. CIS deductions, | D49: Components: YPD SLR MAT SSE FSE NI2 TRU | E49: -868.46 | F49: -4.45 | G49: NO
A50: 45 | B50: Property income, Relief for Finance Costs (Landlord Loan Savings Relief), UK and Foreign Chargeable Event Gains CEG, Top Slicing Relief TSR due; Notional tax; Basic MCA , 50% to partner. | D50: Components: YPD AOI-B MCA PRO FOR | E50: 3711.81 | F50: 3711.81 | G50: YES
A51: 46 | B51: Pension, Savings and dividends. Non-UK Resident, 'normal' s23 calculation more beneficial (s811) | D51: Components: YPD INC-A INC-B NRD | E51: -91.25 | F51: -91.25 | G51: NO
A52: 47 | B52: Propert Income, Pensions, Dividends. Non-UK Resident, non resident calculation more beneficial (s811 disregarded income).Relief for Finance Costs (Landlord Loan Savings Relief) | D52: Components: YPD INC-A INC-B PRO CGT NRD | E52: 5749 | F52: 7189 | G52: NO
A53: 48 | B53: Property Income, Pensions and Dividends.Non-UK Resident, non resident calculation more beneficial (s811 disregarded income); MAT_IN but removed from calculation; Relief for Finance Costs (Landlord Loan Savings Relief) | D53: Components: YPD INC-A INC-B MAT PRO NRD | E53: 5217 | F53: 5217 | G53: NO
A54: 49 | B54: Multiple employment and share scheme. Box Fin1, CAL7/8 completed, Income over £100,000 PA reduced to Nil, Enterprise Investment Scheme relief EIS, & Social Investment Tax Relief SITR | D54: Components: YPD FIN ASE-A AOR Emp-A Emp-B CAL | E54: 22345 | F54: 22345 | G54: YES
A55: 50 | B55: Employment, Foreign and Partnership income. Losses from FPS20 set against other income; balance BR to CGT; FPS Relief for Finance Costs (Landlord Loan Savings Relief).Voluntary Class 2, CGT. | D55: Components: YPD Emp-A Emp-B FPS NI2 NI1 NIC2Vol FOR TCR CGT | E55: 8826.42 | F55: 8826.42 | G55: YES
A56: 51 | B56: Partnership, Foreign Income, Foreign Dividends, Trust Income, RAR, Annuities, trade union death benefit, widows and orphan relief.Class 2. FOR Relief for Finance Costs (Landlord Loan Savings Relief). | D56: Components: YPD REL-A SLR ASE-B AOR Emp-A SPS FPS NI2 FOR TCR TRU | E56: 18249.08 | F56: 19081.83 | G56: NO
A57: 52 | B57: Kitchen sink, multiple sources, PA reduced to Nil,Losses, RAR, TRU & FOR Relief for Finance Costs (Landlord Loan Savings Relief), CEG, MCA, CGT | D57: Components: YPD INC-A INC-B INC-C REL-A REL-B FIN AOI-A AOI-B AOI-C ASE-A ASE-B ASE-C AOR MCA Emp-A Emp-B SSE SPS FPS NI2 NI1 PRO FOR TCR TRU CGT | E57: 102356.02 | F57: 102356.02 | G57: NO
A58: 53 | B58: Self employment, Savings, Dividends, Lump Sum income. Class 2, No Class 4 due. Student Loan Undergraduate and Postgraduate Loans Plan Types 02 and 03. | D58: Components: YPD INC-A SLR ASE-B Emp-A SSE NI2 | E58: 7142.06 | F58: 7142.06 | G58: YES
A59: 54 | B59: Higher rate Scottish taxpayer with non-savings and savings income with pension payments with relief at source increasing Scottish and English & NI basic rates | D59: Components: YPD INC-A REL-A SLR Emp-A Emp-B | E59: 10970.49 | F59: 10970.49 | G59: YES
A60: 55 | B60: Pension, savings, and dividend income with Chargeable Event Gain, Stock Dividends and taxable short service refund (overseas schemes) and Capital Gains. More beneficial to have CEG in HRNilBand than savings in BRNilBand | D60: Components: YPD INC-A INC-B REL-B AOI-B CGT | E60: 8660.22 | F60: 8660.22 | G60: YES
A61: 56 | B61: Pay, Dividends and Chargeable Event Gains ensuring no Allcs allocated to CEG | D61: Components: YPD INC-A AOI-B Emp-A NicEx | E61: 4.37 | F61: 4.37 | G61: YES
A62: 57 | B62: EX121 Employment, Savings and Dividend income and Qualifying Loan Interest Payments | D62: Components: YPD INC-A REL-B AOR Emp-A Emp-B NI2 | E62: 1681.95 | F62: 1681.95 | G62: YES
A63: 58 | B63: Self employment, Foreign income and Foreign Dividends. Class 4 and Class 2 NIC, Reduced PA and Losses. FOR Relief for Finance Costs (Landlord Loan Savings Relief) | D63: Components: YPD FSE NI2 FOR TCR | E63: 33443.55 | F63: 34376.95 | G63: YES
A64: 59 | B64: Non-UK resident with Taxed Savings, Property income, and Venture Capital Trust subcriptions | D64: Components: YPD INC-A AOR PRO NRD | E64: 0 | F64: 0 | G64: NO
A65: 60 | B65: Trust, Savings, Dividends and CEG,TSR not due | D65: Components: YPD INC-A REL-B AOI-B TRU | E65: -6310.97 | F65: -6310.97 | G65: NO
A66: 61 | B66: Employment, Pension Savings and CEG, top slicing relief due, State pension lump sum. | D66: Components: YPD INC-A INC-B AOI-B Emp-A | E66: 2311.5 | F66: 2311.5 | G66: YES
A67: 62 | B67: Pension Foreign Dividends and Savings. In year MCA claim and gift aid. | D67: Components: YPD INC-A INC-B REL-B MCA | E67: -2834.79 | F67: -2834.79 | G67: YES
A68: 63 | B68: Employment, Savings and Dividends. PA reduced to nil BPA claim, FIN1 entry, Deficiency relief, EIS, relief for qualifying distribution. | D68: Components: YPD INC-A REL-C FIN AOI-B AOR Emp-A | E68: 306780.01 | F68: 306780.01 | G68: YES
A69: 64 | B69: Self employed, Pension and other income. Gift aid, CGT chargeable at more than one CGT rate | D69: Components: YPD INC-B INC-C REL-B COV FSE NicEx CGT | E69: 4972 | F69: 4972 | G69: YES
A70: 65 | B70: Pension, Other income, Savings and Dividends. | D70: Components: YPD INC-A INC-B INC-C COV | E70: 10332.57 | F70: 10332.57 | G70: YES
A71: 66 | B71: Pension, Other income, Savings, Dividends and Gift Aid | D71: Components: YPD INC-A INC-B INC-C REL-B | E71: -202.13 | F71: -202.13 | G71: YES
A72: 67 | B72: Employment, Pension, Other income, Dividends, Foreign Dividends and Savings. | D72: Components: YPD INC-A INC-B INC-C AOI-C Emp-A | E72: 1144.85 | F72: 1144.85 | G72: YES
A73: 68 | B73: EX121 Property income, Dividends and CGT. | D73: Components: YPD INC-A PRO CGT | E73: 20422.48 | F73: 20422.48 | G73: YES
A74: 69 | B74: Pension, Other income, Savings, Dividends, Gift Aid and CGT | D74: Components: YPD INC-A INC-B INC-C REL-B AOI-A CGT | E74: 4778.85 | F74: 4778.85 | G74: YES
A75: 70 | B75: Self employment, Pension, Property income and Savings. MCA. | D75: Components: YPD INC-A INC-B MCA SSE NicEx PRO | E75: 0 | F75: 0 | G75: YES
A76: 71 | B76: Savings and Dividends. MCA. CGT | D76: Components: YPD INC-A MCA CGT | E76: 2608.75 | F76: 2608.75 | G76: YES
A77: 72 | B77: Property income, Other income, Pension, Savings and Dividends. Losses and MCA reduced due to Age related income limits. | D77: Components: YPD INC-A INC-B INC-C MCA PRO | E77: -697.53 | F77: -697.53 | G77: YES
A78: 73 | B78: Pension, Savings, Dividends and Gift Aid, Tax due on Gift Aid more than tax paid by individual | D78: Components: YPD INC-A INC-B REL-B MCA FSE | E78: 600 | F78: 600 | G78: YES
A79: 74 | B79: Pension and CGT including entreprenueral gains | D79: Components: YPD INC-A INC-B REL-B CGT | E79: 3167.41 | F79: 3167.41 | G79: YES
A80: 75 | B80: Pension, Savings, Dividends and In year MCA claim. | D80: Components: YPD INC-A INC-B MCA | E80: 0 | F80: 0 | G80: YES
A81: 76 | B81: Employment, Savings and Dividend income and Qualifying Loan Interest Payments & Qualifying loan interest payable in the year | D81: Components: YPD INC-A REL-B AOR SSE FSE FPS NI2 PRO FOR | E81: 155372.13 | F81: 143309.56 | G81: YES
A82: 77 | B82: Property income, Trust and CEG. Losses, Relief for Finance Costs (Landlord Loan Savings Relief) and CITR claimed. | D82: Components: YPD REL-A AOI-B AOR FPS PRO TRU | E82: 193308.97 | F82: 219033.4931 | G82: NO
A83: 78 | B83: Employment, Pension and Property income. Gift Aid including carry back gift aid, MCA and CGT. | C83: , | D83: Components: YPD INC-B REL-B Emp-A FSE FPS PRO CGT | E83: 45554.26 | F83: 45721.31922 | G83: YES
A84: 79 | B84: Employment income, PPR | D84: Components: YPD REL-A AIL Emp-A Emp-B FPS | E84: -6335.8 | F84: -8126 | G84: YES
A85: 80 | B85: Employment, Self employment, Pension, Savings and Dividends. RAR, in year MCA reduced due to income limits. | D85: Components: YPD INC-A INC-B REL-A MCA Emp-A FSE NI1 NicEx | E85: 351989.01 | F85: 351989.01 | G85: YES
A86: 81 | B86: Incapacity Benefit, BPA. Gift Aid with no tax paid. | D86: Components: YPD INC-A INC-B REL-B REL-C FPS | E86: 1351.35 | F86: 2146.32998 | G86: YES
A87: 82 | B87: Employment, Self employment, Pension, Property and Dividends income. In year MCA claimed reduced due to income limits and RAR. | D87: Components: YPD INC-A INC-B INC-C REL-A REL-B FIN MCA Emp-A FSE FPS NI1 NicEx PRO | E87: 26218.77 | F87: 23825.57 | G87: YES
A88: 83 | B88: Employment, Partnership, Pension, Property and Dividends income with state pension Lump Sum. Losses, Relief for Finance Costs (Landlord Loan Savings Relief) and Community investment relief. | D88: Components: YPD INC-A INC-B REL-B AOI-A AOR MOR SSE SPS FPS NicEx PRO CAL | E88: 83736.78 | F88: 16640.84 | G88: NO
A89: 84 | B89: Foreign Income, Foreign Dividends, Divenden and Savings. CEG, Non-Resident, Remittance basis charge for Non Dom and TSR = 0 (previously incorrectly £0.02) | D89: Components: YPD INC-A AOI-B FOR NRD | E89: 67375.63 | F89: 67375.63 | G89: NO
A90: 85 | B90: Partnership, Pension, Savings and Dividend income. In year Repayment results in underpaid amount on SA302. Beneficial ordering in calc with transition profit | D90: Components: YPD INC-A INC-B COV FIN FSE FPS | E90: 13079.15 | F90: 11826.7502 | G90: YES
A91: 86 | B91: Self employment, Savings and Dividends. RAR, PPR Losses, Gifts of property to charity, Disguised Remuneration DR AIL22. | D91: Components: YPD INC-A REL-A REL-B AIL FSE NI2 | E91: 20780.56 | F91: 21713.96008 | G91: YES
A92: 87 | B92: Pension, Other income and State Pension lump sum. RAR, Gift Aid and gift aid relief backdated (REL8) | D92: Components: YPD INC-B INC-C REL-A REL-B FSE | E92: -1465.54 | F92: 1264.039766 | G92: YES
A93: 88 | B93: Employment and Dividend income. RAR and Pension taxable short service refund, stock dividends | D93: Components: YPD REL-A AOI-C AIL Emp-A Emp-B FSE | E93: 130349.95 | F93: 1287.2 | G93: YES
A94: 89 | B94: Employment income, Self employment Losses set off against other income + no digital claim to Marriage Allowance Transfer (MAT_OUT) but MAT claimed on Return. Class 2 NIC | D94: Components: YPD MAT Emp-A SSE FSE NI2 NI1 NIC2Vol | E94: -1148.5 | F94: -1148.5 | G94: YES
A95: 90 | B95: Self employment, Pension and other Income. State pension lump sum. | D95: Components: YPD INC-A INC-B INC-C SSE FSE FPS NicEx | E95: 82326.48 | F95: 79238.16 | G95: YES
A96: 91 | B96: Scottish, Employment and Property income. Seafarers deduction ASE11. Pension taxf charge AIL10. Relief for Finance Costs (Landlord Loan Savings Relief). | D96: Components: YPD REL-B ASE-B ASE-C AIL Emp-A PRO CGT | E96: 1164.14 | F96: 1164.14 | G96: YES
A97: 92 | B97: Scottish Customer, Self employment, Property income, Savings and Dividends. Property losses from FL to c/f to lettings inc (PRO17), Deficiency relief on both savings and dividends. | D97: Components: YPD INC-A REL-A REL-B AOI-B AOR FSE NI2 PRO | E97: 370713.64 | F97: 372670.28 | G97: YES
A98: 93 | B98: Self employment, Property income, Savings and Dividends. RAR, S/E Losses, Annuity, Gift Aid to charity.Deficiency relief on both savings and dividends. Class 4 and Class 2 NIC. | D98: Components: YPD INC-A REL-A REL-B AOI-B AOR FSE NI2 PRO | E98: 367377.73 | F98: 368311.13 | G98: YES
A99: 94 | B99: MOR, Property income, Foreign income, Foreign Dividends Other income, CEG, Savings and Dividens. RAR. PPR, Gift Aid. CGT. Tests TSR change | D99: Components: YPD INC-A INC-C REL-A REL-B FIN AOI-B AOI-C MOR PRO FOR TCR CGT CAL | E99: 40155.37 | F99: 40155.37 | G99: NO
A100: 95 | B100: Self employment, Savings and Dividends. RAR, S/E Losses. Cash basis adjustment FSE70 and Class 4 NIC adjustment FSE101, Class 2 NIC | D100: Components: YPD REL-A FIN AOI-A AOI-C FSE NI2 | E100: 55924.04 | F100: 56857.44 | G100: YES
A101: 96 | B101: Employment, Self employment, Pension, Savings and Dividend income, RAR, Property Losses and Relief for Finance Costs (Landlord Loan Savings Relief), including AOR12. Class 2 and 4 NIC. | D101: Components: YPD INC-B REL-A REL-B FIN AOI-A AOI-C ASE-C AOR Emp-A FSE NI2 NI1 PRO | E101: 66410.89 | F101: 66520.4 | G101: YES
A102: 97 | B102: Partnership, Other income and Savings. Basis adjustment SPS9, tax deducted partnerships SPS27 and SPS29. EIS releif. Class 2 and 4 NIC. | D102: Components: YPD INC-C REL-A REL-B FIN AOI-A AOR SPS NI2 | E102: 14601.07 | F102: 15534.47 | G102: YES
A103: 98 | B103: Partnership, Other income, Pension, CEG, Savings and Dividends. State Pension Lump Sum. Voluntary Class 2 NIC | D103: Components: YPD INC-A INC-B INC-C AOI-A AOI-B SPS NI2 NIC2Vol | E103: 913.54 | F103: 913.54 | G103: YES
A104: 99 | B104: Partnership, Intersest and Foreign Dividends. RAR, Losses from property on partnerships, Deficiency Relief. Gift Aid to Charity and BPA. | D104: Components: YPD INC-A REL-A REL-B REL-C AOI-B FPS NI2 | E104: 11366.72 | F104: 10642.62 | G104: YES
A105: 100 | B105: Partnership, Property and Dividend income. Partnership and Property Losses. FPS Relief for Finance Costs (Landlord Loan Savings Relief). No PA. | D105: Components: YPD INC-A REL-B FPS NI2 PRO | E105: 92573.42 | F105: 93484.92 | G105: YES
A106: 101 | B106: Partnership, Property, Dividends and CEG. Gift Aid, Losses, FPS Relief for Finance Costs (Landlord Loan Savings Relief). Class 2 and 4 NIC. CGT. | D106: Components: YPD INC-A REL-B AOI-B AOI-C AOR FPS NI2 PRO CGT | E106: 99893.16 | F106: 100804.66 | G106: YES
A107: 102 | B107: Employment income, Savings, Divendends and Foreign Dividends. Student Loan SL (plan 1). | D107: Components: YPD INC-A REL-B SLR Emp-A Emp-B CAL | E107: -99405.84 | F107: -99405.84 | G107: YES
A108: 103 | B108: Self employment, Property income and CEG. Income over £150,000, Property and S/E losses, Gift Aid.CGT, VCT, EIS and SEIS | D108: Components: YPD REL-B FIN AOI-B AOR FSE NI2 PRO CGT | E108: 52634.94 | F108: 53568.34 | G108: YES
A109: 104 | B109: Employment, Self employment, Partnership income and CEG. TSR and gift aid | D109: Components: YPD REL-B AOI-B Emp-A SSE SPS NI2 | E109: 7102.4 | F109: 7626.8 | G109: YES
A110: 105 | B110: Employment, Pension, Property, Savings and CEG. Relief for Finance Costs (Landlord Loan Savings Relief). | D110: Components: YPD INC-A INC-B COV AOI-B Emp-A | E110: 523.91 | F110: 523.91 | G110: YES
A111: 106 | B111: Employment income, Redundancy Lump sum, Dividends and CEG. | D111: Components: YPD INC-A AOI-B ASE-B Emp-A | E111: 2152.55 | F111: 2152.55 | G111: YES
A112: 107 | B112: Partnership, Savings, Dividends and CEG income. CGT and PPR. Class 2 and 4 NIC. | D112: Components: YPD INC-A REL-A AOI-B SPS NI2 CGT | E112: 10996.47 | F112: 11328.87 | G112: YES
A113: 108 | B113: Property income, Trust income, Pension, Savings and Dividends. Losses, Relief for Finance Costs (Landlord Loan Savings Relief) and CITR. Test TSR change | D113: Components: YPD INC-B AOI-A AOI-B AOI-C AOR FPS NicEx TRU | E113: -56.04 | F113: -56.04 | G113: NO
A114: 109 | B114: Employment, Pension, Dividends, Foreign income and Foreign dividends. Losses, Relief for Finance Costs (Landlord Loan Savings Relief) and Community investment relief. | D114: Components: YPD INC-B AOI-C AOR Emp-A Emp-B PRO FOR TCR | E114: -876.2 | F114: -108.15 | G114: YES
A115: 110 | B115: Self employment, Partnership and Trust income. Student Loan (plan2) SL, CGT, Income over £100000 with losses, RAR, PPR and Gift Aid. VCT, SEISR and EIS | D115: Components: YPD REL-A REL-B SLR FIN AOR FSE FPS NI2 TRU CGT | E115: 114545.06 | F115: 111349.21 | G115: NO
A116: 111 | B116: MOR, Employments and Trusts income. | D116: Components: YPD Emp-A MOR TRU CAL | E116: -1724.25 | F116: -1724.25 | G116: NO
A117: 112 | B117: Employment income, Savings. Relief for Finance Costs (Landlord Loan Savings Relief). Lump sum, CAL7/8, PA reduced to Nil | D117: Components: YPD INC-A ASE-B Emp-A Emp-B PRO CAL | E117: 22079.7 | F117: 22079.7 | G117: YES
A118: 113 | B118: Partnership, Property, Trusts, Other income, Savings, Dividends, Foreign income and Foreign Dividends. Losses, PA reduced to Nil, gifts to charity, Relief for Finance Costs (Landlord Loan Savings Relief), CGT. Class 2 and 4 NIC. | D118: Components: YPD INC-A INC-C REL-B SPS FPS NI2 PRO FOR TCR TRU CGT | E118: 47979.33 | F118: 45394.88 | G118: NO
A119: 114 | B119: Self Employment and Share Schemes. Class 2 and 4 NIC. | D119: Components: YPD ASE-A SSE NI2 | E119: 5264.5 | F119: 5802.4 | G119: YES
A120: 115 | B120: Pension income, S/E Losses. CGT. | D120: Components: YPD INC-B SSE FSE NI2 CGT | E120: 13630 | F120: 13630 | G120: YES
A121: 116 | B121: Employment income, Lloyds Underwriters, Lump Sums, savings and Dividends. Losses and Class 2 NIC. | D121: Components: YPD INC-A INC-B AOI-B | E121: 5021.25 | F121: 5021.25 | G121: NO
A122: 117 | B122: Lloyds Underwriters, Trust and savings. Foreign tax on estates. Class 2 and 4 NIC. CIS deductions. | D122: Components: YPD INC-A INC-C AOI-B | E122: 3004 | F122: 3004 | G122: NO
A123: 118 | B123: Foreign Tax on Estates, income from Property, Trusts, savings and Dividends. AHR and Ahdiv rates PA reduced to Nil. Relief for Finance Costs (Landlord Loan savings Relief) | D123: Components: YPD INC-A PRO TRU | E123: 23102.83 | F123: 23102.83 | G123: NO
A124: 119 | B124: savings and Dividends. Remittance basis for non-dom. BPA and MCA not due as taxpayer is Non resident | D124: Components: YPD INC-A REL-C MCA NRD | E124: 59919.75 | F124: 59919.75 | G124: NO
A125: 120 | B125: Employment, Dividends, Foreign Income. Remitted Basis - income less than £2000 tick box. | D125: Components: YPD INC-A Emp-A FOR TCR NRD | E125: 19785.23 | F125: 19785.23 | G125: NO
A126: 121 | B126: Employment, Partnership savings income. Student Loan (Plan 1) SL box EMP8 entry, eligible income below £15795 | D126: Components: YPD INC-A SLR Emp-A SPS NI2 CAL | E126: 590.5 | F126: 590.5 | G126: YES
A127: 122 | B127: Employment, Pension and Share Schemes. Student Loan (plan 1). | D127: Components: YPD INC-B SLR ASE-A Emp-A SSE | E127: 14512.8 | F127: 14512.8 | G127: YES
A128: 123 | B128: Pension, savings and Dividends. State pension lump sum 0%. MCA claimed husband, Relief for Finance Costs (Landlord Loan savings Relief). Losses | D128: Components: YPD INC-A INC-B REL-B MCA AIL PRO | E128: -3515 | F128: -3515 | G128: YES
A129: 124 | B129: Self employment, savings, Dividends and Foreign Dividends. MCA ( half basic to wife ). | D129: Components: YPD INC-A MCA SSE NicEx | E129: 0 | F129: 0 | G129: YES
A130: 125 | B130: savings and Dividends. In year MCA claim. | D130: Components: YPD INC-A AOI-C MCA | E130: -91.25 | F130: -91.25 | G130: YES
A131: 126 | B131: Pension, Other and shares income, MCA claim with basic MCA to wife | D131: Components: YPD INC-B INC-C ASE-A MCA | E131: -1400 | F131: -1400 | G131: YES
A132: 127 | B132: Ministers of Religion, Employment and Self Employment. | D132: Components: YPD INC-B Emp-A MOR | E132: 9986.26 | F132: 398.6 | G132: NO
A133: 128 | B133: Ministers of Religion employment, savings and Dividends, Gift Aid. | D133: Components: YPD INC-A REL-B MOR | E133: -102.65 | F133: -102.65 | G133: NO
A134: 129 | B134: Ministers of Religion employment, Other income and Dividends AHR. | D134: Components: YPD INC-A INC-C MOR | E134: 326811.64 | F134: 326811.64 | G134: NO
A135: 130 | B135: Employment and Self Employment. CGT | D135: Components: YPD Emp-A SSE NI1 NicEx CGT | E135: 16898.4 | F135: 16898.4 | G135: YES
A136: 131 | B136: Employment, Other income. S/E losses reduced PA , CEG and Class 2 NIC. | D136: Components: YPD INC-C Emp-A Emp-B SSE NI2 NI1 NIC2Vol CGT | E136: 14029 | F136: 14029 | G136: YES
A137: 132 | B137: Self Employment, Foreign Dividends, savings and Dividends. Class 4 and 2 NIC. | D137: Components: YPD INC-A FSE NI2 | E137: 573.03 | F137: 781.5 | G137: YES
A138: 133 | B138: Employment income and voluntary Class 2 NIC. CGT. | D138: Components: YPD Emp-A FSE NI2 NI1 NIC2Vol FOR CGT | E138: 14201.2 | F138: 14201.2 | G138: YES
A139: 134 | B139: Employment, Partnership income, savings and Dividends. Losses, Class 1 NIC contributions reducing Class 4 NIC due and voluntary Class 2. | D139: Components: YPD INC-A FIN Emp-A FPS NI2 NI1 CGT | E139: 12418.02 | F139: 12597.42 | G139: YES
A140: 135 | B140: Employment, Self employment and Partnership. Losses. PA reduced to nil. | D140: Components: YPD Emp-A FSE FPS NI1 NicEx | E140: 38284.7 | F140: 37392.8 | G140: YES
A141: 136 | B141: Partnership, COV1/2, Scottish Customer, Employment, Income from Property and CEG. | D141: Components: YPD COV AOI-B Emp-A SPS PRO | E141: 5866.5 | F141: 6017 | G141: YES
A142: 137 | B142: Partnership, COV1/2, Employment and Dividend income. Student Loan (plan 1) SL. investment income >2000, SL repayments via empt | D142: Components: YPD INC-A SLR COV Emp-A SPS | E142: 5312.75 | F142: 5396.49 | G142: YES
A143: 138 | B143: Scottish Customer, Employment, and other income. Interest and dividends. Pension tax charges (AIL10) | D143: Components: YPD INC-A INC-C SLR AIL Emp-A | E143: 80136.26 | F143: 90528.13 | G143: YES
A144: 139 | B144: Scottish Customer. Self employment. Losses, Class 2 and 4 NIC. Pension tax charges (AIL10) | D144: Components: YPD AIL FSE NI2 | E144: 36376.32 | F144: 37759.72 | G144: YES
A145: 140 | B145: Scottish Customer. Self employment and Income from Property. Losses, Relief for Finance Costs (Landlord Loan savings Relief), Pension tax charges (AIL10) and Voluntary Class 2 NIC. | D145: Components: YPD AIL SSE NI2 NIC2Vol PRO | E145: 5699.48 | F145: 4253.41 | G145: YES
A146: 141 | B146: Scottish Customer. Employment, Foreign income and Foreign Dividends. Overseas pension charge; Relief for Finance Costs (Landlord Loan savings Relief). PA reduced to nil. | D146: Components: YPD AIL Emp-A FOR | E146: 227221.53 | F146: 227221.53 | G146: YES
A147: 142 | B147: Scottish Customer. Employment. Reduced PA. Pension tax charges for AIL 7,8 and 9 | D147: Components: YPD AIL Emp-A | E147: 98241.98 | F147: 47730.86 | G147: YES
A148: 143 | B148: Lloyds underwriter and savings. | D148: Components: YPD INC-A LUN NI2 | E148: -358.5 | F148: -358.5 | G148: NO
A149: 144 | B149: Scottish Customer, Lloyds underwriter, Losses, class 4 NIC, voluntary Class 2 NIC and CGT. | D149: Components: YPD LUN NI2 CGT | E149: 20173.87 | F149: 20715.91 | G149: NO
A150: 145 | B150: Scottish customer, Lloyds underwriter. Losses, aged over 65 Nic exempt | D150: Components: YPD LUN NicEx | E150: 3642.75 | F150: 3642.75 | G150: NO
A151: 146 | B151: Scottish Customer. Lloyds underwriter, Pension and CEG with TSR | D151: Components: YPD INC-B AOI-B LUN NicEx | E151: 5133.67 | F151: 5133.67 | G151: NO
A152: 147 | B152: Scottish Customer, Lloyds underwriter losses set off against income from property and Voluntary Class 2 | D152: Components: YPD LUN NI2 NIC2Vol PRO | E152: 2011.34 | F152: 2486.34 | G152: NO
A153: 148 | B153: Lloyds underwriter, Losses income with pension savings and capital gains, balance BR to gains | D153: Components: YPD AIL LUN NicEx CGT | E153: 5415 | F153: 5415 | G153: NO
A154: 149 | B154: Lloyds underwriter with Trust income and Student Loan (plan 1) repayments | D154: Components: YPD SLR LUN NI2 TRU | E154: -4976.85 | F154: -4976.85 | G154: NO
A155: 150 | B155: Lloyds underwriter with Foreign Income and Foreign Dividends. Losses. Class 2 and 4 NIC | D155: Components: YPD REL-B LUN NI2 FOR TCR | E155: 4862.48 | F155: 5404.52 | G155: NO
A156: 151 | B156: Lloyds underwriter with Self Employment Income. Losses Class 2 and 4 NIC. CGT | D156: Components: YPD FSE LUN NI2 CGT | E156: 37064.18 | F156: 37997.58 | G156: NO
A157: 152 | B157: Lloyds underwriter with employment income. Losses and voluntary Class 2 NIC. | D157: Components: YPD Emp-A LUN NI2 | E157: 1261.2 | F157: 1261.2 | G157: NO
A158: 153 | B158: Lloyds underwriter, employment income with Lump Sum , Partnership, savings, Dividends and Other Income, PA reduced to Nil. PPR | D158: Components: YPD INC-A INC-C REL-A ASE-B LUN FPS NI2 CGT | E158: 64105.52 | F158: 63078.66 | G158: NO
A159: 154 | B159: Scottish Customer, Minister of Religion, Pension income. In year marriage. | D159: Components: YPD INC-B MCA MOR | E159: 1957.92 | F159: 1957.92 | G159: NO
A160: 155 | B160: Scottish Customer, Employment, Other Income, savings and Foreign income. | D160: Components: YPD INC-A INC-C ASE-B AOR Emp-A | E160: -1538.15 | F160: -1538.15 | G160: YES
A161: 156 | B161: Scottish Customer. Employment income, Partnership Foreign Income savings and other income. Reduced PA. Voluntary Class 2 NIC | D161: Components: YPD INC-A INC-C Emp-A SPS NI2 NI1 NIC2Vol | E161: 13947.16 | F161: 13947.16 | G161: YES
A162: 157 | B162: Self employment, savings and Dividends below Personal Alowance. CGT and Voluntary Class 2 | D162: Components: YPD INC-A SSE NI2 NIC2Vol CGT | E162: 13710.4 | F162: 13710.4 | G162: YES
A163: 158 | B163: Scottish Customer. Self emaployment, Partnership, Property Income, Other income, savings and Dividends. CGT, Class 2 and 4 NIC. | D163: Components: YPD INC-A INC-C FSE SPS NI2 PRO CGT | E163: 31717.5 | F163: 32550.25 | G163: YES
A164: 159 | B164: Employment income, savings and Dividends. Voluntary Class 2 NIC. Ent Gains plus other gains. AEA, loss and balance BR band to other gains | D164: Components: YPD INC-A SSE NI2 NIC2Vol CGT | E164: 2780.4 | F164: 2780.4 | G164: YES
A165: 160 | B165: Scottish Customer. Self employment, savings and Dividends. Losses. Class 2 and 4 NIC. ENT Gains plus other gains. | D165: Components: YPD INC-A FIN SSE FSE NI2 CGT | E165: 69822.16 | F165: 70736.81 | G165: YES
A166: 161 | B166: Partnership, Voluntary Class 2, CGT. | D166: Components: YPD SPS NI2 NIC2Vol CGT | E166: 5708.75 | F166: 5708.75 | G166: YES
A167: 162 | B167: Scottish customer, Partnership, Gift Aid charge. CGT. | D167: Components: YPD REL-B SPS NI2 NicEx CGT | E167: 4837.94 | F167: 4837.94 | G167: YES
A168: 163 | B168: Scottish Customer, Partnership. Losses, FPS Relief for Finance Costs (Landlord Loan savings Relief). Class 2 and 4 NIC. CGT | D168: Components: YPD FPS NI2 CGT | E168: 91969.48 | F168: 92880.98 | G168: YES
A169: 164 | B169: CEG and other income. CGT. | D169: Components: YPD INC-C AOI-B CGT | E169: 996 | F169: 996 | G169: YES
A170: 165 | B170: Employment income, CEG and CGT. Reduced PA. Ex115 | D170: Components: YPD INC-A REL-B AOI-B Emp-A CGT | E170: 32973.25 | F170: 32973.25 | G170: YES
A171: 166 | B171: Employment income. CGT with Deficiency Relief | D171: Components: YPD AOI-B Emp-A CGT | E171: 14743 | F171: 14743 | G171: YES
A172: 167 | B172: Scottish Customer. Employment income. CGT with Deficiency Relief. | D172: Components: YPD AOI-B Emp-A CGT | E172: 19460.31 | F172: 14890.95 | G172: YES
A173: 168 | B173: Scottish, Employment income, Savings income & loss relief. CGT without deficiency. | D173: Components: YPD INC-A AOR Emp-A SSE CGT | E173: 60075.38 | F173: 60075.38 | G173: YES
A174: 169 | B174: Employment, savings and dividend income. AIL 16. | D174: Components: YPD INC-A AIL Emp-A | E174: 222.95 | F174: 222.95 | G174: YES
A175: 170 | B175: Employment income including Lump Sum and Chargeable event gain. | D175: Components: YPD AOI-B ASE-B | E175: 6185 | F175: 6185 | G175: YES
A176: 171 | B176: Gift aid charge reduced by notional tax | D176: Components: YPD INC-B REL-A REL-B AOI-B | E176: -499.2 | F176: -499.2 | G176: YES
A177: 172 | B177: Property Income, Dividends and Pension. Losses. Relief for Finance Costs (Landlord Loan savings Relief). Non Resident with AOI12 | D177: Components: YPD INC-A INC-B AOI-C PRO NRD | E177: 4292.380078 | F177: 4292.380078 | G177: NO
A178: 173 | B178: Property Income, Dividends and Pension. Losses. Relief for Finance Costs (Landlord Loan savings Relief). Non resident with AOI13 | D178: Components: YPD INC-A INC-B AOI-C PRO NRD | E178: 4263.869805 | F178: 4263.869805 | G178: NO
A179: 174 | B179: Non resident, Partnership, Pension, Property, savings and Dividend income. | D179: Components: YPD INC-A INC-B FPS NI2 NicEx PRO NRD | E179: 19308.09992 | F179: 19308.09992 | G179: NO
A180: 175 | B180: Employment, Trust, savings and Dividend income. Test for TRU18. | D180: Components: YPD INC-A AOI-B Emp-A TRU | E180: 13518.06 | F180: 13518.06 | G180: NO
A181: 176 | B181: Proerty Income, savings and Dividends. AIL16 over £20,000 | D181: Components: YPD INC-A AIL PRO | E181: 77733 | F181: 77733 | G181: YES
A182: 177 | B182: Pension, Other income and savings. MCA | D182: Components: YPD INC-A INC-B INC-C AOI-C MCA CAL | E182: -1400 | F182: -1400 | G182: YES
A183: 178 | B183: Pension, Other income and savings. MCA1, half basic to partner | D183: Components: YPD INC-A INC-B INC-C MCA | E183: 1896.04 | F183: 1896.04 | G183: YES
A184: 179 | B184: Pension, Other income and savings. MCA, all basic to partner | D184: Components: YPD INC-A INC-B INC-C MCA | E184: -1400 | F184: -1400 | G184: YES
A185: 180 | B185: Pension, Other income and savings. MCA claim lower income partner | D185: Components: YPD INC-A INC-B INC-C MCA | E185: -1156.9 | F185: -1156.9 | G185: YES
A186: 181 | B186: Employment, Foreign Income and savings. Student Loan repayments (plan 1) SL, CAL7 and CAL 8 entries. | D186: Components: YPD INC-A SLR AOR Emp-A Emp-B CAL | E186: 0 | F186: 6194.4 | G186: YES
A187: 182 | B187: Employment income, Student loan repayments (plan 1) SL, EMP8 entry, PT Teacher earnings > SL limit but PT teacher earnings on own < SL limit | D187: Components: YPD Emp-A Emp-B FSE | E187: 2569 | F187: 2569 | G187: YES
A188: 183 | B188: Property Income from both EEA and UK lettings. Pension CEG, savings and Dividends. | D188: Components: YPD INC-A INC-B AOI-B PRO | E188: 4833.47 | F188: 4833.47 | G188: YES
A189: 184 | B189: Employment income, Property Income from EEA and UK lettings, Foreign land and property income and Foreign Dividends. FOR Relief for Finance Costs (Landlord Loan savings Relief). PA reduced to Nil. | D189: Components: YPD Emp-A PRO FOR TCR | E189: 23142.53 | F189: 23142.53 | G189: YES
A190: 185 | B190: Property and Trust income, savings and Dividends, CEG. Income over £100,000 reduced PA. Student Loan repayments (plan 1) | D190: Components: YPD INC-A SLR AOI-B PRO TRU | E190: 16297.88 | F190: 16297.88 | G190: NO
A191: 186 | B191: Pension, savings, Dividends and Foreign Dividends. Lifetime allowance charge (lump sum amount) | D191: Components: YPD INC-A INC-B AOI-C AIL | E191: -1257.94 | F191: -1187.94 | G191: YES
A192: 187 | B192: Self employment, Pension. Lifetime allowance charge -further tax due (lump sum and pension amounts) | D192: Components: YPD INC-B AIL SSE NI2 NicEx | E192: -42.2 | F192: 30662.7 | G192: YES
A193: 188 | B193: Self employment, Property Income, Other income, savings and Dividends, CRG. Annual allowance charge and unauthorised payment charge (@40% and 55%). Reduced PA | D193: Components: YPD INC-A INC-C AOI-B AOI-C AIL FSE NI2 NicEx PRO | E193: 184667.48 | F193: 183329.63 | G193: YES
A194: 189 | B194: Employment income. Small Debt coded but not enough PAYE tax to cover. CEG. | D194: Components: YPD Emp-A CGT CAL | E194: 7774.7 | F194: 7918.5 | G194: YES
A195: 190 | B195: Partnership, Other income and savings. PPR and Gift Aid. Losses. Class 4 and Voluntary Class 2. AOR9 | D195: Components: YPD INC-C REL-A REL-B AOI-A AOR SPS NI2 | E195: 15333.07 | F195: 16266.47 | G195: YES
A196: 191 | B196: Partnership, Other income and savings. PPR and Gift Aid. Losses. Class 4 and Voluntary Class 2. EIS and AOR9. | D196: Components: YPD INC-C REL-A REL-B AOI-A AOR SPS NI2 | E196: 12333.07 | F196: 13266.47 | G196: YES
A197: 192 | B197: Self employment adjusted loss reduced by transition profit, savings, dividneds and HICBC. Voluntary Class 2. | D197: Components: YPD INC-A CBC FSE NI2 | E197: 5292.02 | F197: 8842.02 | G197: YES
A198: 193 | B198: Employment, Self employment and savings. Losses. HICBC. Class 4 and Voluntary Class 2 NIC. | D198: Components: YPD INC-A CBC Emp-A SSE NI2 NI1 | E198: 12132.82 | F198: 12117.98 | G198: YES
A199: 194 | B199: Employment, savings and Dividends. HICBC. AOR6.1 | D199: Components: YPD INC-A CBC AOR Emp-A | E199: 13703.37 | F199: 13703.37 | G199: YES
A200: 195 | B200: Employment, Self employment. Losses. HICBC. Gift Aid. Class 4 and Voluntary Class 2 NIC. | D200: Components: YPD REL-B CBC Emp-A SSE NI2 NI1 | E200: 1274.79 | F200: 2766.83 | G200: YES
A201: 196 | B201: Employment income, savings and Dividends. PPR. HICBC. | D201: Components: YPD INC-A REL-A CBC AOI-C Emp-A CAL | E201: 714.47 | F201: 714.47 | G201: YES
... 77 more rows

Sheet Selector
A1: - | D1: Select the components from the Core Tax Return and Additional Information pages to test
A2: 1 | C2: Core Tax Return
A3: 2
A4: 3 | C4: Taxpayer's date of birth | E4: Test case reference | G4: ='REL(2)'!C43&" ("&FIN&'REL(2)'!C45&")" -> Tax refunded (FIN1)
A5: 4
A6: 5 | C6: Income
A7: 6 | C7: UK interest and dividends | E7: UK pensions received | G7: Other UK income
A8: 7 | C8: =C0!C11&" ("&C0!C12&" to "&C0!C18&")" -> INC-A (INC1 to INC7) | E8: =C0!C20&" ("&C0!C21&" to "&C0!C28&")" -> INC-B (INC8 to INC15) | G8: =C0!C31&" ("&C0!C32&" to "&C0!C36&")" -> INC-C (INC17 to INC21)
A9: 8
A10: 9 | C10: Tax Reliefs
A11: 10 | C11: Paying personal pensions | E11: Charitable giving | G11: Blind Person's Allowance
A12: 11 | C12: =C0!C38&" ("&C0!C39&" to "&C0!C43&")" -> REL-A (REL1 to REL4) | E12: =C0!C45&" ("&C0!C46&" to "&C0!C51&")" -> REL-B (REL5 to REL10) | G12: =C0!C55&" ("&C0!C56&" to "&C0!C59&")" -> REL-C (REL13 to REL16) | J12: =" Components are currently "&IF(A34,"visible","hidden") -> Components are currently hidden
A13: 12
A14: 13 | C14: Student Loan Repayments | E14: High Income Child Benefit Charge | G14: Marriage Allowance Transfer
A15: 14 | C15: Student Loan Repayments | E15: Child Benefit | G15: Allowance Transfer
A16: 15 | C16: =C0!C61&" ("&C0!C65&" to "&C0!C62&")" -> SLR (SLR2 to SLR1) | E16: =C0!C68&" ("&C0!C69&" to "&C0!C71&")" -> CBC (CBC1 to CBC3) | G16: =C0!C74&" ("&C0!C75&" to "&C0!C80&")" -> MAT (MAT1-5 to MAT5)
A17: 16
A18: 17
A19: 18 | C19: Additional information
A20: 19 | C20: Gilt edged securities | E20: Life insurance gains | G20: Stock dividends
A21: 20 | C21: ='C1'!C3&" ("&'C1'!C4&" to "&'C1'!C6&")" -> AOI-A (AOI1 to AOI3) | E21: ='C1'!C9&" ("&'C1'!C10&" to "&'C1'!C17&")" -> AOI-B (AOI4 to AOI11) | G21: ='C1'!C20&" ("&'C1'!C21&" to "&'C1'!C25&")" -> AOI-C (AOI12 to AOI15)
A23: DoB | C23: ='C1'!C27 -> Share schemes | E23: ='C1'!C31 -> Lump Sums | G23: ='C1'!C42 -> Other deductions
A24: 7 | C24: ='C1'!C28&" ("&'C1'!C29&")" -> ASE-A (ASE1) | E24: ='C1'!C32&" ("&'C1'!C33&" to "&'C1'!C40&")" -> ASE-B (ASE3 to ASE10) | G24: ='C1'!C43&" ("&'C1'!C44&" to "&'C1'!C48&")" -> ASE-C (ASE11 to ASE15)
A25: ="03/06/"&MCA_year-1 -> 03/06/1934
A26: ="22/02/"&MCA_year+1 -> 22/02/1936 | C26: =AOR!C3 -> Other tax reliefs | E26: =MCA!C2 -> Married couple's allowance | G26: =AIL!C3 -> Other Income Tax losses
A27: ="05/03/"&Tax_year_end-75 -> 05/03/1950 | C27: ='C1'!C50&" ("&'C1'!C51&" to "&'C1'!C60&")" -> AOR (AOR1 to AOR9) | E27: ='C1'!C74&" ("&'C1'!C75&" to "&'C1'!C85&")" -> MCA (MCA1 to MCA11) | G27: ='C1'!C88 -> AIL1
A28: ="03/01/"&Tax_year_end-63 -> 03/01/1962
A29: ="17/11/"&Tax_year_end-40 -> 17/11/1985
A30: ="02/05/"&Tax_year_end-15 -> 02/05/2010
A31: not present
A32: =IF(A24=1,A25,IF(A24=2,A26,IF(A24=3,A27,IF(A24=4,A28,IF(A24=5,A29,IF(A24=6,A30,A31)))))) -> not present
A33: Components Visible
A34: FALSE

Sheet More Select
A1: - | E1: Select the components from the additional pages to test
A2: 1
A3: 2 | C3: Employment
A4: 3 | C4: Employment 1 | E4: Employment 2 | H4: Ministers
A5: 4 | C5: ='C2'!B2 -> selected 0 | E5: EMP-B | H5: of Religion
A6: 5 | C6: ="("&'C2'!C3&" to "&'C2'!C25&")" -> (EMP1 to EMP20) | E6: ="("&'C2'!C3&" to "&'C2'!C25&")" -> (EMP1 to EMP20) | H6: ="("&'C2'!C53&" to "&'C2'!C93&")" -> (MOR1 to MOR39)
A7: 6
A8: 7 | C8: Self Employment
A9: 8 | C9: Short Self Employment | E9: Full Self Employment | H9: Lloyds Underwriter | K9: ="Components are currently "&IF(Selector!A34,"visible","hidden") -> Components are currently hidden
A10: 9 | C10: ="("&'C3'!C3&" to "&'C3'!C44&")" -> (SSE1 to SSE38) | E10: ="("&'C3'!C47&" to "&'C3'!C154&")" -> (FSE1 to FSE103)
A11: 10
A12: 11 | C12: Short Partnership | E12: Full Partnership
A13: 12 | C13: ="("&'C4'!C3&" to "&'C4'!C28&")" -> (SPS1 to SPS32) | E13: ="("&'C4'!C31&" to "&'C4'!C119&")" -> (FPS1 to FPS80)
A14: 13
A15: 14
A16: 15 | C16: Income from Property | E16: Foreign income | H16: Trust income
A17: 16 | C17: ="("&'C5'!C2&" to "&'C5'!C74&")" -> (PRO1 to PRO45) | E17: ="("&'C6'!C2&" to "&'C6'!C154&")" -> (FOR1 to FOR46) | H17: ="("&'C7'!C2&" to "&'C7'!C27&")" -> (TRU1 to TRU26)
A18: 17
A19: 18 | C19: Capital Gains | E19: Residence etc. | H19: Tax calculation summary
A20: NIC exempt set | C20: ="("&'C8C9C10'!C3&" to "&'C8C9C10'!C87&")" -> (CGT1 to CGT54) | E20: ="("&'C8C9C10'!C90&" to "&'C8C9C10'!C134&")" -> (NRD1 to NRD40) | H20: ="("&'C8C9C10'!C145&" to "&'C8C9C10'!C155&")" -> (CAL7 to CAL17)
A21: FALSE
A22: NIC2_Vol | E22: Class 2 NIC | H22: Class 1 NIC
A23: FALSE
A24: Remit set
A25: FALSE

Sheet tc_template (hidden)
B1: =IF(Selector!F4="","","Test case "&Selector!F4) -> 
C2: SA100 | I2: SA101 | N2: SA102 | Q2: SA102M | T2: SA103S | X2: SA103F | AD2: SA103L | AI2: SA104S | AM2: SA104F | AR2: SA105 | AV2: SA106 | BA2: SA107 | BD2: SA108 | BG2: SA109 | BJ2: SA110
A3: YPD | D3: REL | E3: ="Selected = "&REL_A_IND-1&"/"&REL_B_IND-1&"/"&REL_C_IND-1 -> Selected = 0/0/0 | G3: AOI | H3: ="Selected = "&AOI_A_IND-1&"/"&AOI_B_IND-1&"/"&AOI_C_IND-1 -> Selected = 0/0/0 | J3: MCA | K3: ="Selected = "&MCA_IND-1 -> Selected = 0 | M3: EMP-A | N3: ="Selected = "&EMP_A_IND-1 -> Selected = 0 | P3: MOR | Q3: ="Selected = "&MOR_IND-1 -> Selected = 0 | S3: SSE | T3: ="Selected = "&SE_A_IND-1 -> Selected = 0 | V3: FSE | W3: ="Selected = "&SE_B_IND-1 -> Selected = 0 | Y3: FSE | Z3: ="Selected = "&SE_B_IND-1 -> Selected = 0 | AB3: LUN | AC3: ="Selected = "&LUN_IND-1 -> Selected = 0 | AE3: LUN | AF3: ="Selected = "&LUN_IND-1 -> Selected = 0 | AH3: SPS | AI3: ="Selected = "&PS_A_IND-1 -> Selected = 0 | AK3: FPS | AL3: ="Selected = "&PS_B_IND-1 -> Selected = 0 | AN3: FPS | AO3: ="Selected = "&PS_B_IND-1 -> Selected = 0 | AQ3: PRO | AR3: ="Selected = "&PRO_IND-1 -> Selected = 251 | AT3: FOR | AU3: ="Selected = "&FOR_IND-1 -> Selected = 0 | AW3: FOR | AX3: ="Selected = "&FOR_IND-1 -> Selected = 0 | AZ3: TRU | BA3: ="Selected = "&TRU_IND-1 -> Selected = 0 | BC3: CGT | BD3: ="Selected = "&CGT_IND-1 -> Selected = 251 | BF3: NRD | BG3: ="Selected = "&NRD_IND-1 -> Selected = 0 | BI3: CAL | BJ3: ="Selected = "&CAL_IND-1 -> Selected = 0
A4: 1 | B4: =IF(C0!B4<>"",C0!B4,"") -> not present | D4: 1 | E4: =IF(C0!B39<>"",C0!B39,"") ->  | G4: 1 | H4: =IF('C1'!B4<>"",'C1'!B4,"") ->  | J4: 1 | K4: =IF('C1'!B75<>0,'C1'!B75,"") ->  | M4: 1 | N4: =IF('C2'!B3<>0,'C2'!B3,"") ->  | P4: 1 | Q4: =IF('C2'!B53<>0,'C2'!B53,"") ->  | S4: 1 | T4: =IF('C3'!B3<>0,'C3'!B3,"") ->  | V4: 1 | W4: =IF('C3'!B47<>0,'C3'!B47,"") ->  | Y4: 53 | Z4: =IF('C3'!B101<>0,'C3'!B101,"") ->  | AB4: 1 | AC4: =IF('C3'!B157<>0,'C3'!B157,"") ->  | AE4: 51 | AF4: =IF('C3'!B204<>0,'C3'!B204,"") ->  | AH4: 1 | AI4: =IF('C4'!B3<>0,'C4'!B3,"") ->  | AK4: 1 | AL4: =IF('C4'!B31<>0,'C4'!B31,"") ->  | AN4: 52 | AO4: =IF('C4'!B88<>0,'C4'!B88,"") ->  | AQ4: 1 | AR4: =IF('C5'!B2<>0,'C5'!B2,"") -> 26 | AT4: 1 | AU4: =IF('C6'!B2<>0,'C6'!B2,"") ->  | AW4: 13.1 | AX4: =IF('C6'!B91<>0,'C6'!B91,"") ->  | AZ4: 1 | BA4: =IF('C7'!B2<>0,'C7'!B2,"") ->  | BC4: 1 | BD4: =IF('C8C9C10'!B3<>0,'C8C9C10'!B3,"") ->  | BF4: 1 | BG4: =IF('C8C9C10'!B90<>"",'C8C9C10'!B90,"") ->  | BI4: 1 | BJ4: =IF(box_18_3<0,"",box_18_3) -> 0
A5: 2 | D5: 1.1 | E5: =IF(C0!B40<>"",C0!B40,"") ->  | G5: 2 | H5: =IF('C1'!B5<>"",'C1'!B5,"") ->  | J5: 2 | K5: =IF('C1'!B76<>0,'C1'!B76,"") ->  | M5: 1.1 | N5: =IF('C2'!B4<>0,'C2'!B4,"") ->  | P5: 2 | Q5: =IF('C2'!B54<>0,'C2'!B54,"") ->  | S5: 2 | T5: =IF('C3'!B4<>0,'C3'!B4,"") ->  | V5: 2 | W5: =IF('C3'!B48<>0,'C3'!B48,"") ->  | Y5: 53.1 | Z5: =IF('C3'!B102<>0,'C3'!B102,"") ->  | AB5: 2 | AC5: =IF('C3'!B158<>0,'C3'!B158,"") ->  | AE5: 52 | AF5: =IF('C3'!B205<>0,'C3'!B205,"") ->  | AH5: 2 | AI5: =IF('C4'!B4<>0,'C4'!B4,"") ->  | AK5: 2 | AL5: =IF('C4'!B32<>0,'C4'!B32,"") ->  | AN5: 53 | AO5: =IF('C4'!B89<>0,'C4'!B89,"") ->  | AQ5: 2 | AR5: =IF('C5'!B3<>"",'C5'!B3,"") ->  | AT5: 2 | AU5: =IF('C6'!B3<>0,'C6'!B3,"") ->  | AW5: 13.2 | AX5: =IF('C6'!B92<>0,'C6'!B92,"") ->  | AZ5: 2 | BA5: =IF('C7'!B3<>0,'C7'!B3,"") ->  | BC5: 2 | BD5: =IF('C8C9C10'!B4<>0,'C8C9C10'!B4,"") ->  | BF5: 2 | BG5: =IF('C8C9C10'!B91<>"",'C8C9C10'!B91,"") ->  | BI5: 2 | BJ5: =IF(box_18_3<0,-1*box_18_3,"") -> 
A6: 3 | D6: 2 | E6: =IF(C0!B41<>"",C0!B41,"") ->  | G6: 3 | H6: =IF('C1'!B6<>"",'C1'!B6,"") ->  | J6: 3 | K6: =IF('C1'!B77<>0,'C1'!B77,"") ->  | M6: 2 | N6: =IF('C2'!B5<>0,'C2'!B5,"") ->  | P6: 2.1 | Q6: =IF('C2'!B55<>0,'C2'!B55,"") ->  | S6: 3 | T6: =IF('C3'!B5<>0,'C3'!B5,"") ->  | V6: 3 | W6: =IF('C3'!B49<>0,'C3'!B49,"") ->  | Y6: 54 | Z6: =IF('C3'!B103<>0,'C3'!B103,"") ->  | AB6: 3 | AC6: =IF('C3'!B159<>0,'C3'!B159,"") ->  | AE6: 53 | AF6: =IF('C3'!B206<>0,'C3'!B206,"") ->  | AH6: 3 | AI6: =IF('C4'!B5<>0,'C4'!B5,"") ->  | AK6: 3 | AL6: =IF('C4'!B33<>0,'C4'!B33,"") ->  | AN6: 54 | AO6: =IF('C4'!B90<>0,'C4'!B90,"") ->  | AQ6: 3 | AR6: =IF('C5'!B4<>"",'C5'!B4,"") ->  | AT6: A_1 | AU6: =IF('C6'!B4<>0,'C6'!B4,"") ->  | AW6: 14 | AX6: =IF('C6'!B93<>0,'C6'!B93,"") ->  | AZ6: 3 | BA6: =IF('C7'!B4<>0,'C7'!B4,"") ->  | BC6: 3 | BD6: =IF('C8C9C10'!B5<>0,'C8C9C10'!B5,"") -> 3 | BF6: 3 | BG6: =IF('C8C9C10'!B92<>"",'C8C9C10'!B92,"") ->  | BI6: 3 | BJ6: =IF(AND(C0!B62="Y",'Tax due (c12)'!J61>0),'Tax due (c12)'!J61,"") -> 
A7: 4 | D7: 3 | E7: =IF(C0!B42<>"",C0!B42,"") ->  | G7: 4 | H7: =IF('C1'!B10<>"",'C1'!B10,"") ->  | J7: 4 | K7: =IF('C1'!B78<>0,'C1'!B78,"") ->  | M7: 3 | N7: =IF('C2'!B6<>0,'C2'!B6,"") ->  | P7: 3 | Q7: =IF('C2'!B56<>0,'C2'!B56,"") ->  | S7: 4 | T7: =IF('C3'!B6<>0,'C3'!B6,"") ->  | V7: 4 | W7: =IF('C3'!B50<>0,'C3'!B50,"") ->  | Y7: 55 | Z7: =IF('C3'!B104<>0,'C3'!B104,"") ->  | AB7: 4 | AC7: =IF('C3'!B160<>0,'C3'!B160,"") ->  | AE7: 54 | AF7: =IF('C3'!B207<>0,'C3'!B207,"") ->  | AH7: 4 | AI7: =IF('C4'!B6<>0,'C4'!B6,"") ->  | AK7: 4 | AL7: =IF('C4'!B34<>0,'C4'!B34,"") ->  | AN7: 55 | AO7: =IF('C4'!B91<>0,'C4'!B91,"") ->  | AQ7: 4 | AR7: =IF('C5'!B5<>"",'C5'!B5,"") ->  | AT7: B_1 | AU7: =IF('C6'!B5<>0,'C6'!B5,"") ->  | AW7: 14.1 | AX7: =IF('C6'!B94<>0,'C6'!B94,"") ->  | AZ7: 4 | BA7: =IF('C7'!B5<>0,'C7'!B5,"") ->  | BC7: 4 | BD7: =IF(CGT_IND-1>0,'C8C9C10'!B6,"") -> 172570 | BF7: 3.1 | BG7: =IF('C8C9C10'!B93<>"",'C8C9C10'!B93,"") ->  | BI7: 3.1 | BJ7: =IF(AND(C0!B62="Y",'Tax due (c12)'!J64>0),'Tax due (c12)'!J64,"") -> 
A8: TR | B8: =IF(C0!B9<>"",C0!B9,"") -> 1 | D8: 4 | E8: =IF(C0!B43<>"",C0!B43,"") ->  | G8: 5 | H8: =IF('C1'!B11<>"",'C1'!B11,"") ->  | J8: 5 | K8: =IF('C1'!B79<>0,'C1'!B79,"") ->  | M8: 3.1 | N8: =IF('C2'!B7<>0,'C2'!B7,"") ->  | P8: 4 | Q8: =IF('C2'!B57<>0,'C2'!B57,"") ->  | S8: 5 | T8: =IF('C3'!B7<>0,'C3'!B7,"") ->  | V8: 5 | W8: =IF('C3'!B51<>0,'C3'!B51,"") ->  | Y8: 56 | Z8: =IF('C3'!B105<>0,'C3'!B105,"") ->  | AB8: 5 | AC8: =IF('C3'!B161<>0,'C3'!B161,"") ->  | AE8: 55 | AF8: =IF('C3'!B208<>0,'C3'!B208,"") ->  | AH8: 5 | AI8: Box not in use | AK8: 5 | AL8: Box not in use | AN8: 56 | AO8: =IF('C4'!B92<>"",'C4'!B92,"") ->  | AQ8: 5 | AR8: =IF('C5'!B6<>0,'C5'!B6,"") ->  | AT8: C_1 | AU8: =IF('C6'!B6<>0,'C6'!B6,"") ->  | AW8: 14.2 | AX8: =IF('C6'!B95<>"",'C6'!B95,"") ->  | AZ8: 5 | BA8: =IF('C7'!B6<>0,'C7'!B6,"") ->  | BC8: 5 | BD8: =IF('C8C9C10'!B7<>0,'C8C9C10'!B7,"") -> 116677 | BF8: 4 | BG8: =IF('C8C9C10'!B94<>"",'C8C9C10'!B94,"") ->  | BI8: 4 | BJ8: ='Tax due (c12)'!J39 -> 0
D9: 5 | E9: =IF(C0!B46<>"",C0!B46,"") ->  | G9: 6 | H9: =IF('C1'!B12<>"",'C1'!B12,"") ->  | J9: 6 | K9: =IF('C1'!B80<>0,'C1'!B80,"") ->  | M9: 4 | N9: =IF('C2'!B8<>0,'C2'!B8,"") ->  | P9: 4.1 | Q9: =IF('C2'!B58<>0,'C2'!B58,"") ->  | S9: 6 | T9: =IF('C3'!B8<>0,'C3'!B8,"") ->  | V9: 6 | W9: =IF('C3'!B52<>0,'C3'!B52,"") ->  | Y9: 57 | Z9: =IF('C3'!B106<>0,'C3'!B106,"") ->  | AB9: 6 | AC9: =IF('C3'!B162<>0,'C3'!B162,"") ->  | AE9: 56 | AF9: =IF('C3'!B209<>0,'C3'!B209,"") ->  | AH9: 6 | AI9: Box not in use | AK9: 6 | AL9: Box not in use | AN9: 57 | AO9: =IF('C4'!B93<>0,'C4'!B93,"") ->  | AQ9: 5.1 | AR9: =IF('C5'!B7<>0,'C5'!B7,"") ->  | AT9: 3D_1 | AU9: =IF('C6'!B7<>0,'C6'!B7,"") ->  | AW9: 15 | AX9: =IF('C6'!B96<>0,'C6'!B96,"") ->  | AZ9: 6 | BA9: =IF('C7'!B7<>0,'C7'!B7,"") ->  | BC9: 6 | BD9: =IF('C8C9C10'!B8<>0,'C8C9C10'!B8,"") -> 55893 | BF9: 5 | BG9: =IF('C8C9C10'!B95<>"",'C8C9C10'!B95,"") ->  | BI9: 4.1 | BJ9: ='Tax due (c12)'!J47 -> 0
A10: INC | B10: ="Selected = "&INC_A_IND-1&"/"&INC_B_IND-1&"/"&INC_C_IND-1 -> Selected = 0/251/0 | D10: 6 | E10: =IF(C0!B47<>"",C0!B47,"") ->  | G10: 7 | H10: =IF('C1'!B13<>"",'C1'!B13,"") ->  | J10: 7 | K10: =IF('C1'!B81<>0,'C1'!B81,"") ->  | M10: 5 | N10: =IF('C2'!B9<>0,'C2'!B9,"") ->  | P10: 5 | Q10: =IF('C2'!B59<>0,'C2'!B59,"") ->  | S10: 7 | T10: =IF('C3'!B9<>0,'C3'!B9,"") ->  | V10: 7 | W10: =IF('C3'!B53<>0,'C3'!B53,"") ->  | Y10: 58 | Z10: Box not in use | AB10: 7 | AE10: 57 | AF10: =IF('C3'!B210<>0,'C3'!B210,"") ->  | AH10: 7 | AI10: Box not in use | AK10: 7 | AL10: Box not in use | AN10: 58 | AO10: =IF('C4'!B94<>"",'C4'!B94,"") ->  | AQ10: 5.2 | AR10: =IF('C5'!B8<>"",'C5'!B8,"") ->  | AT10: E_1 | AU10: =IF('C6'!B8<>0,'C6'!B8,"") ->  | AW10: 16 | AX10: =IF('C6'!B97<>0,'C6'!B97,"") ->  | AZ10: 7 | BA10: =IF('C7'!B8<>0,'C7'!B8,"") ->  | BC10: 7 | BD10: =IF('C8C9C10'!B9<>0,'C8C9C10'!B9,"") ->  | BF10: 6 | BG10: =IF('C8C9C10'!B96<>"",'C8C9C10'!B96,"") ->  | BI10: 5 | BJ10: =IF('Tax due (c12)'!J95>0,'Tax due (c12)'!J95,"") -> 
A11: 1 | B11: =IF(C0!B12<>"",C0!B12,"") ->  | D11: 7 | E11: =IF(C0!B48<>"",C0!B48,"") ->  | G11: 8 | H11: =IF('C1'!B14<>"",'C1'!B14,"") ->  | J11: 8 | K11: =IF('C1'!B82<>0,'C1'!B82,"") ->  | M11: 6 | N11: =IF('C2'!B10<>0,'C2'!B10,"") ->  | P11: 6 | Q11: =IF('C2'!B60<>0,'C2'!B60,"") ->  | S11: 8 | T11: =IF('C3'!B10<>0,'C3'!B10,"") ->  | V11: 8 | W11: =IF('C3'!B54<>0,'C3'!B54,"") ->  | Y11: 59 | Z11: =IF('C3'!B107<>0,'C3'!B107,"") ->  | AB11: 8 | AC11: =IF('C3'!B163<>0,'C3'!B163,"") ->  | AE11: 58 | AF11: =IF('C3'!B211<>0,'C3'!B211,"") ->  | AH11: 8 | AI11: =IF('C4'!B8<>0,'C4'!B8,"") ->  | AK11: 8 | AL11: =IF('C4'!B38<>"",'C4'!B38,"") ->  | AN11: 59 | AO11: =IF('C4'!B95<>0,'C4'!B95,"") ->  | AQ11: 6 | AR11: =IF('C5'!B9<>0,'C5'!B9,"") ->  | AT11: 4F_1 | AU11: =IF('C6'!B9<>0,'C6'!B9,"") ->  | AW11: 17 | AX11: =IF('C6'!B98<>0,'C6'!B98,"") ->  | AZ11: 8 | BA11: =IF('C7'!B9<>0,'C7'!B9,"") ->  | BC11: 8 | BD11: =IF('C8C9C10'!B10<>0,'C8C9C10'!B10,"") ->  | BF11: 7 | BG11: =IF('C8C9C10'!B97<>"",'C8C9C10'!B97,"") ->  | BI11: 6 | BJ11: =IF('Tax adj (c9)'!J161>0,'Tax adj (c9)'!J161,"") -> 
A12: 2 | B12: =IF(C0!B13<>"",C0!B13,"") ->  | D12: 8 | E12: =IF(C0!B49<>"",C0!B49,"") ->  | G12: 9 | H12: =IF('C1'!B15<>"",'C1'!B15,"") ->  | J12: 9 | K12: =IF('C1'!B83<>0,'C1'!B83,"") ->  | M12: 6.1 | N12: =IF('C2'!B11<>0,'C2'!B11,"") ->  | P12: 7 | Q12: =IF('C2'!B61<>0,'C2'!B61,"") ->  | S12: 9 | T12: =IF('C3'!B11<>0,'C3'!B11,"") ->  | V12: 9 | W12: =IF('C3'!B55<>0,'C3'!B55,"") ->  | Y12: 60 | Z12: =IF('C3'!B108<>0,'C3'!B108,"") ->  | AB12: 9 | AC12: =IF('C3'!B164<>0,'C3'!B164,"") ->  | AE12: 59 | AF12: =IF('C3'!B212<>0,'C3'!B212,"") ->  | AH12: 9 | AI12: =IF('C4'!B9<>0,'C4'!B9,"") ->  | AK12: 9 | AL12: =IF('C4'!B39<>"",'C4'!B39,"") ->  | AN12: 60 | AO12: =IF('C4'!B96<>0,'C4'!B96,"") ->  | AQ12: 7 | AR12: =IF('C5'!B10<>0,'C5'!B10,"") ->  | AT12: A_2 | AU12: =IF('C6'!B10<>0,'C6'!B10,"") ->  | AW12: 18 | AX12: =IF('C6'!B99<>0,'C6'!B99,"") ->  | AZ12: 9 | BA12: =IF('C7'!B10<>0,'C7'!B10,"") ->  | BC12: 9 | BD12: =IF('C8C9C10'!B11<>0,'C8C9C10'!B11,"") ->  | BF12: 8 | BG12: =IF('C8C9C10'!B98<>"",'C8C9C10'!B98,"") ->  | BI12: 7 | BJ12: =IF('C8C9C10'!B145<>0,'C8C9C10'!B145,"") -> 
A13: 3 | B13: =IF(C0!B14<>"",C0!B14,"") ->  | D13: 9 | E13: =IF(C0!B50<>"",C0!B50,"") ->  | G13: 10 | H13: =IF('C1'!B16<>"",'C1'!B16,"") ->  | J13: 10 | K13: =IF('C1'!B84<>0,'C1'!B84,"") ->  | M13: 7 | N13: =IF('C2'!B12<>0,'C2'!B12,"") ->  | P13: 8 | Q13: =IF('C2'!B62<>0,'C2'!B62,"") ->  | S13: 10 | T13: =IF('C3'!B12<>0,'C3'!B12,"") ->  | V13: 10 | W13: =IF('C3'!B56<>0,'C3'!B56,"") ->  | Y13: 61 | Z13: =IF('C3'!B109<>0,'C3'!B109,"") ->  | AB13: 10 | AC13: Box not in use | AE13: 60 | AF13: =IF('C3'!B213<>0,'C3'!B213,"") ->  | AH13: 9.1 | AI13: Box not in use | AK13: 9.1 | AL13: Box not in use | AN13: 61 | AO13: =IF('C4'!B97<>0,'C4'!B97,"") ->  | AQ13: 8 | AR13: =IF('C5'!B11<>0,'C5'!B11,"") ->  | AT13: B_2 | AU13: =IF('C6'!B11<>0,'C6'!B11,"") ->  | AW13: 19 | AX13: =IF('C6'!B100<>0,'C6'!B100,"") ->  | AZ13: 10 | BA13: =IF('C7'!B11<>0,'C7'!B11,"") ->  | BC13: 10 | BD13: =IF('C8C9C10'!B12<>0,'C8C9C10'!B12,"") ->  | BF13: 9 | BG13: =IF('C8C9C10'!B99<>"",'C8C9C10'!B99,"") ->  | BI13: 8 | BJ13: =IF('C8C9C10'!B146<>0,'C8C9C10'!B146,"") -> 
A14: 4 | B14: =IF(C0!B15<>"",C0!B15,"") ->  | D14: 10 | E14: =IF(C0!B51<>"",C0!B51,"") ->  | G14: 11 | H14: =IF('C1'!B17<>"",'C1'!B17,"") ->  | J14: 11 | K14: =IF('C1'!B85<>0,'C1'!B85,"") ->  | M14: 8 | N14: =IF('C2'!B13<>0,'C2'!B13,"") ->  | P14: 9 | Q14: =IF('C2'!B63<>0,'C2'!B63,"") ->  | S14: 10.1 | T14: =IF('C3'!B13<>0,'C3'!B13,"") ->  | V14: 11 | W14: =IF('C3'!B57<>0,'C3'!B57,"") ->  | Y14: 62 | Z14: =IF('C3'!B110<>0,'C3'!B110,"") ->  | AB14: 11 | AC14: =IF('C3'!B165<>0,'C3'!B165,"") ->  | AE14: 61 | AF14: =IF('C3'!B214<>0,'C3'!B214,"") ->  | AH14: 10 | AI14: =IF('C4'!B10<>0,'C4'!B10,"") ->  | AK14: 10 | AL14: =IF('C4'!B40<>0,'C4'!B40,"") ->  | AN14: 62 | AO14: =IF('C4'!B98<>0,'C4'!B98,"") ->  | AQ14: 9 | AR14: =IF('C5'!B12<>0,'C5'!B12,"") ->  | AT14: C_2 | AU14: =IF('C6'!B12<>0,'C6'!B12,"") ->  | AW14: 20 | AX14: =IF('C6'!B101<>0,'C6'!B101,"") ->  | AZ14: 11 | BA14: =IF('C7'!B12<>0,'C7'!B12,"") ->  | BC14: 11 | BD14: =IF('C8C9C10'!B13<>0,'C8C9C10'!B13,"") ->  | BF14: 10 | BG14: =IF('C8C9C10'!B100<>"",'C8C9C10'!B100,"") ->  | BI14: 9 | BJ14: =IF('C8C9C10'!B147<>0,'C8C9C10'!B147,"") -> 
A15: 5 | B15: =IF(C0!B16<>"",C0!B16,"") ->  | D15: 11 | E15: Box not in use | G15: 12 | H15: =IF('C1'!B21<>"",'C1'!B21,"") ->  | M15: 8.1 | N15: Box not in use | P15: 10 | Q15: =IF('C2'!B64<>0,'C2'!B64,"") ->  | S15: 11 | T15: =IF('C3'!B14<>0,'C3'!B14,"") ->  | V15: 12 | W15: =IF('C3'!B58<>0,'C3'!B58,"") ->  | Y15: 63 | Z15: =IF('C3'!B111<>0,'C3'!B111,"") ->  | AB15: 12 | AC15: =IF('C3'!B166<>0,'C3'!B166,"") ->  | AE15: 62 | AF15: =IF('C3'!B215<>0,'C3'!B215,"") ->  | AH15: 11 | AI15: =IF('C4'!B11<>0,'C4'!B11,"") ->  | AK15: 11 | AL15: =IF('C4'!B41<>"",'C4'!B41,"") ->  | AN15: 63 | AO15: =IF('C4'!B99<>0,'C4'!B99,"") ->  | AQ15: 10 | AR15: =IF('C5'!B13<>0,'C5'!B13,"") ->  | AT15: 3D_2 | AU15: =IF('C6'!B13<>0,'C6'!B13,"") ->  | AW15: 21 | AX15: =IF('C6'!B102<>0,'C6'!B102,"") ->  | AZ15: 12 | BA15: =IF('C7'!B13<>0,'C7'!B13,"") ->  | BC15: 12 | BD15: =IF('C8C9C10'!B14<>0,'C8C9C10'!B14,"") ->  | BF15: 11 | BG15: =IF('C8C9C10'!B101<>"",'C8C9C10'!B101,"") ->  | BI15: 10 | BJ15: =IF('C8C9C10'!B148<>0,'C8C9C10'!B148,"") -> 
A16: 6 | B16: =IF(C0!B17<>"",C0!B17,"") ->  | D16: 12 | E16: Box not in use | G16: 13 | H16: =IF('C1'!B22<>"",'C1'!B22,"") ->  | J16: AIL | K16: ="Selected = "&AIL_IND-1 -> Selected = 0 | M16: 9 | N16: =IF('C2'!B14<>0,'C2'!B14,"") ->  | P16: 11 | Q16: =IF('C2'!B65<>0,'C2'!B65,"") ->  | S16: 12 | T16: =IF('C3'!B15<>0,'C3'!B15,"") ->  | V16: 13 | W16: =IF('C3'!B59<>0,'C3'!B59,"") ->  | Y16: 64 | Z16: =IF('C3'!B112<>0,'C3'!B112,"") ->  | AB16: 13 | AC16: =IF('C3'!B167<>0,'C3'!B167,"") ->  | AE16: 63 | AF16: =IF('C3'!B216<>0,'C3'!B216,"") ->  | AH16: 12 | AI16: =IF('C4'!B12<>0,'C4'!B12,"") ->  | AK16: 12 | AL16: =IF('C4'!B42<>0,'C4'!B42,"") ->  | AN16: 63.1 | AO16: =IF('C4'!B100<>0,'C4'!B100,"") ->  | AQ16: 11 | AR16: =IF('C5'!B14<>0,'C5'!B14,"") ->  | AT16: E_2 | AU16: =IF('C6'!B14<>0,'C6'!B14,"") ->  | AW16: 21.1 | AX16: =IF('C6'!B103<>0,'C6'!B103,"") ->  | AZ16: 13 | BA16: =IF('C7'!B14<>0,'C7'!B14,"") ->  | BC16: 13 | BD16: =IF('C8C9C10'!B15<>0,'C8C9C10'!B15,"") ->  | BF16: 11.1 | BG16: =IF('C8C9C10'!B102<>"",'C8C9C10'!B102,"") ->  | BI16: 11 | BJ16: =IF('C8C9C10'!B149<>0,'C8C9C10'!B149,"") -> 
A17: 7 | B17: =IF(C0!B18<>"",C0!B18,"") ->  | D17: 13 | E17: =IF(C0!B56<>"",C0!B56,"") ->  | G17: 13.1 | H17: =IF('C1'!B23<>"",'C1'!B23,"") ->  | J17: 1 | K17: =IF('C1'!B88<>0,'C1'!B88,"") ->  | M17: 10 | N17: =IF('C2'!B15<>0,'C2'!B15,"") ->  | P17: 12 | Q17: =IF('C2'!B66<>0,'C2'!B66,"") ->  | S17: 13 | T17: =IF('C3'!B16<>0,'C3'!B16,"") ->  | V17: 14 | W17: =IF('C3'!B60<>0,'C3'!B60,"") ->  | Y17: 65 | Z17: =IF('C3'!B113<>0,'C3'!B113,"") ->  | AB17: 14 | AC17: =IF('C3'!B168<>0,'C3'!B168,"") ->  | AE17: 64 | AF17: =IF('C3'!B217<>0,'C3'!B217,"") ->  | AH17: 13 | AI17: Box not in use | AK17: 13 | AL17: Box not in use | AN17: 63.2 | AO17: =IF('C4'!B101<>0,'C4'!B101,"") ->  | AQ17: 11.1 | AR17: =IF('C5'!B15<>0,'C5'!B15,"") ->  | AT17: 4F_2 | AU17: =IF('C6'!B15<>0,'C6'!B15,"") ->  | AW17: 22 | AX17: =IF('C6'!B104<>0,'C6'!B104,"") ->  | AZ17: 14 | BA17: =IF('C7'!B15<>0,'C7'!B15,"") ->  | BC17: 13A | BD17: =IF('C8C9C10'!B16<>0,'C8C9C10'!B16,"") ->  | BF17: 12 | BG17: =IF('C8C9C10'!B103<>"",'C8C9C10'!B103,"") ->  | BI17: 12 | BJ17: =IF('C8C9C10'!B150<>0,'C8C9C10'!B150,"") -> 
A18: 8 | B18: =IF(C0!B21<>"",C0!B21,"") -> 6867 | D18: 14 | E18: =IF(C0!B57<>"",C0!B57,"") ->  | G18: 14 | H18: =IF('C1'!B24<>"",'C1'!B24,"") ->  | J18: 2 | K18: =IF('C1'!B89<>0,'C1'!B89,"") ->  | M18: 11 | N18: =IF('C2'!B16<>0,'C2'!B16,"") ->  | P18: 13 | Q18: =IF('C2'!B67<>0,'C2'!B67,"") ->  | S18: 14 | T18: =IF('C3'!B17<>0,'C3'!B17,"") ->  | V18: 15 | W18: =IF('C3'!B61<>0,'C3'!B61,"") ->  | Y18: 66 | Z18: Box not in use | AB18: 15 | AC18: =IF('C3'!B169<>0,'C3'!B169,"") ->  | AE18: 65 | AF18: =IF('C3'!B218<>0,'C3'!B218,"") ->  | AH18: 14 | AI18: Box not in use | AK18: 14 | AL18: Box not in use | AN18: AF2 | AO18: =IF('C4'!B102<>0,'C4'!B102,"") ->  | AQ18: 11.2 | AR18: =IF('C5'!B16<>0,'C5'!B16,"") ->  | AT18: 3 | AU18: =IF('C6'!B16<>0,'C6'!B16,"") ->  | AW18: 22.1 | AX18: =IF('C6'!B105<>0,'C6'!B105,"") ->  | AZ18: 15 | BA18: =IF('C7'!B16<>0,'C7'!B16,"") ->  | BC18: 13B | BD18: =IF('C8C9C10'!B17<>0,'C8C9C10'!B17,"") ->  | BF18: 13 | BG18: =IF('C8C9C10'!B104<>"",'C8C9C10'!B104,"") ->  | BI18: 13 | BJ18: =IF('C8C9C10'!B151<>0,'C8C9C10'!B151,"") -> 
A19: 9 | B19: =IF(C0!B22<>"",C0!B22,"") ->  | D19: 15 | E19: =IF(C0!B58<>"",C0!B58,"") ->  | G19: 15 | H19: =IF('C1'!B25<>"",'C1'!B25,"") ->  | J19: 3 | K19: =IF('C1'!B90<>0,'C1'!B90,"") ->  | M19: 12 | N19: =IF('C2'!B17<>0,'C2'!B17,"") ->  | P19: 14 | Q19: =IF('C2'!B68<>0,'C2'!B68,"") ->  | S19: 15 | T19: =IF('C3'!B18<>0,'C3'!B18,"") ->  | V19: 16 | W19: =IF('C3'!B62<>0,'C3'!B62,"") ->  | Y19: 67 | Z19: Box not in use | AB19: 16 | AC19: =IF('C3'!B170<>0,'C3'!B170,"") ->  | AE19: 66 | AF19: =IF('C3'!B219<>0,'C3'!B219,"") ->  | AH19: 15 | AI19: Box not in use | AK19: 15 | AL19: Box not in use | AN19: 64 | AO19: Box not in use | AQ19: 12 | AR19: =IF('C5'!B17<>0,'C5'!B17,"") ->  | AT19: 4 | AU19: =IF('C6'!B17<>0,'C6'!B17,"") ->  | AW19: 22.2 | AX19: =IF('C6'!B106<>0,'C6'!B106,"") ->  | AZ19: 16 | BA19: =IF('C7'!B17<>0,'C7'!B17,"") ->  | BC19: 13.1 | BD19: =IF('C8C9C10'!B18<>0,'C8C9C10'!B18,"") ->  | BF19: 14 | BG19: =IF('C8C9C10'!B105<>"",'C8C9C10'!B105,"") ->  | BI19: 14 | BJ19: =IF('C8C9C10'!B152<>0,'C8C9C10'!B152,"") -> 
A20: 10 | B20: =IF(C0!B23<>"",C0!B23,"") ->  | D20: 16 | E20: =IF(C0!B59<>"",C0!B59,"") ->  | J20: 4 | K20: =IF('C1'!B91<>0,'C1'!B91,"") ->  | M20: 13 | N20: =IF('C2'!B18<>0,'C2'!B18,"") ->  | P20: 15 | Q20: =IF('C2'!B69<>0,'C2'!B69,"") ->  | S20: 16 | T20: =IF('C3'!B19<>0,'C3'!B19,"") ->  | V20: 16.1 | W20: =IF('C3'!B63<>0,'C3'!B63,"") ->  | Y20: 68 | Z20: =IF('C3'!B116<>0,'C3'!B116,"") ->  | AB20: 17 | AC20: =IF('C3'!B171<>0,'C3'!B171,"") ->  | AH20: 16 | AI20: =IF('C4'!B13<>0,'C4'!B13,"") ->  | AK20: 16 | AL20: =IF('C4'!B44<>"",'C4'!B44,"") ->  | AN20: 65 | AO20: Box not in use | AQ20: 13 | AR20: =IF('C5'!B18<>0,'C5'!B18,"") ->  | AT20: A_1 | AU20: =IF('C6'!B18<>0,'C6'!B18,"") ->  | AW20: 23 | AX20: =IF('C6'!B107<>0,'C6'!B107,"") ->  | AZ20: 17 | BA20: =IF('C7'!B18<>0,'C7'!B18,"") ->  | BC20: 13.2 | BD20: =IF('C8C9C10'!B19<>0,'C8C9C10'!B19,"") ->  | BF20: 15 | BG20: =IF('C8C9C10'!B106<>"",'C8C9C10'!B106,"") ->  | BI20: 15 | BJ20: =IF('C8C9C10'!B153<>0,'C8C9C10'!B153,"") -> 
A21: 11 | B21: =IF(C0!B24<>"",C0!B24,"") -> 2957 | G21: ASE | H21: ="Selected = "&ASE_A_IND-1&"/"&ASE_B_IND-1&"/"&ASE_C_IND-1 -> Selected = 0/0/0 | J21: 5 | K21: =IF('C1'!B92<>0,'C1'!B92,"") ->  | M21: 14 | N21: =IF('C2'!B19<>0,'C2'!B19,"") ->  | P21: 16 | Q21: =IF('C2'!B70<>0,'C2'!B70,"") ->  | S21: 17 | T21: =IF('C3'!B20<>0,'C3'!B20,"") ->  | V21: 17 | W21: =IF('C3'!B64<>0,'C3'!B64,"") ->  | Y21: 69 | Z21: Box not in use | AB21: 18 | AC21: =IF('C3'!B172<>0,'C3'!B172,"") ->  | AH21: 17 | AI21: =IF('C4'!B14<>0,'C4'!B14,"") ->  | AK21: 16.1 | AL21: Box not in use | AN21: 66 | AO21: Box not in use | AQ21: 14 | AR21: =IF('C5'!B19<>0,'C5'!B19,"") ->  | AT21: B_1 | AU21: =IF('C6'!B19<>0,'C6'!B19,"") ->  | AW21: 24 | AX21: =IF('C6'!B108<>0,'C6'!B108,"") ->  | AZ21: 18 | BA21: =IF('C7'!B19<>0,'C7'!B19,"") ->  | BC21: 13.3 | BD21: =IF('C8C9C10'!B20<>0,'C8C9C10'!B20,"") ->  | BF21: 16 | BG21: =IF('C8C9C10'!B107<>"",'C8C9C10'!B107,"") ->  | BI21: 16 | BJ21: =IF('C8C9C10'!B154<>0,'C8C9C10'!B154,"") -> 
A22: 12 | B22: =IF(C0!B25<>"",C0!B25,"") ->  | D22: FIN | G22: 1 | H22: =IF('C1'!B29<>0,'C1'!B29,"") ->  | J22: 6 | K22: =IF('C1'!B93<>0,'C1'!B93,"") ->  | M22: 15 | N22: =IF('C2'!B20<>0,'C2'!B20,"") ->  | P22: 17 | Q22: =IF('C2'!B71<>0,'C2'!B71,"") ->  | S22: 18 | T22: =IF('C3'!B21<>0,'C3'!B21,"") ->  | V22: 18 | W22: =IF('C3'!B65<>0,'C3'!B65,"") ->  | Y22: 70 | Z22: Box not in use | AB22: 19 | AH22: 18 | AI22: =IF('C4'!B15<>0,'C4'!B15,"") ->  | AK22: 16.2 | AL22: Box not in use | AN22: 67 | AO22: =IF('C4'!B106<>0,'C4'!B106,"") ->  | AQ22: 15 | AR22: =IF('C5'!B20<>0,'C5'!B20,"") ->  | AT22: C_1 | AU22: =IF('C6'!B20<>0,'C6'!B20,"") ->  | AW22: 24.1 | AX22: =IF('C6'!B109<>0,'C6'!B109,"") ->  | AZ22: 18.1 | BA22: =IF('C7'!B20<>0,'C7'!B20,"") ->  | BC22: 13.4 | BD22: =IF('C8C9C10'!B21<>0,'C8C9C10'!B21,"") ->  | BF22: 17 | BG22: =IF('C8C9C10'!B108<>"",'C8C9C10'!B108,"") ->  | BI22: 17
A23: 13 | B23: =IF(C0!B26<>"",C0!B26,"") ->  | D23: 1 | E23: =IF(C0!B85<>"",C0!B85,"") ->  | G23: 2 | J23: 7 | K23: Box not in use | M23: 16 | N23: =IF('C2'!B21<>0,'C2'!B21,"") ->  | P23: 18 | Q23: =IF('C2'!B72<>0,'C2'!B72,"") ->  | S23: 19 | T23: =IF('C3'!B22<>0,'C3'!B22,"") ->  | V23: 19 | W23: =IF('C3'!B66<>0,'C3'!B66,"") ->  | Y23: 70.1 | Z23: Box not in use | AB23: 20 | AC23: =IF('C3'!B173<>0,'C3'!B173,"") ->  | AH23: 19 | AI23: =IF('C4'!B16<>0,'C4'!B16,"") ->  | AK23: 16.3 | AL23: =IF('C4'!B47<>"",'C4'!B47,"") ->  | AN23: 68 | AO23: =IF('C4'!B107<>0,'C4'!B107,"") ->  | AQ23: 16 | AR23: =IF('C5'!B21<>0,'C5'!B21,"") ->  | AT23: 5D_1 | AU23: =IF('C6'!B21<>0,'C6'!B21,"") ->  | AW23: 24.2 | AX23: =IF('C6'!B110<>0,'C6'!B110,"") ->  | AZ23: 19 | BA23: =IF('C7'!B21<>0,'C7'!B21,"") ->  | BC23: 13.4a | BD23: =IF('C8C9C10'!B22<>0,'C8C9C10'!B22,"") ->  | BF23: 18 | BG23: =IF('C8C9C10'!B109<>"",'C8C9C10'!B109,"") -> 
A24: 14 | B24: =IF(C0!B27<>"",C0!B27,"") ->  | D24: 2 | E24: N | G24: 3 | H24: =IF('C1'!B33<>0,'C1'!B33,"") ->  | J24: 8 | K24: Box not in use | M24: 17 | N24: =IF('C2'!B22<>0,'C2'!B22,"") ->  | P24: 19 | Q24: =IF('C2'!B73<>0,'C2'!B73,"") ->  | S24: 20 | T24: =IF('C3'!B23<>0,'C3'!B23,"") ->  | V24: 20 | W24: =IF('C3'!B67<>0,'C3'!B67,"") ->  | Y24: 71 | Z24: =IF('C3'!B118<>0,'C3'!B118,"") ->  | AB24: 21 | AC24: =IF('C3'!B174<>0,'C3'!B174,"") ->  | AH24: 20 | AI24: =IF('C4'!B17<>0,'C4'!B17,"") ->  | AK24: 16.4 | AL24: =IF('C4'!B48<>0,'C4'!B48,"") ->  | AN24: 69 | AO24: =IF('C4'!B108<>0,'C4'!B108,"") ->  | AQ24: 17 | AR24: =IF('C5'!B22<>0,'C5'!B22,"") ->  | AT24: E_1 | AU24: =IF('C6'!B22<>0,'C6'!B22,"") ->  | AW24: A_1 | AX24: =IF('C6'!B111<>0,'C6'!B111,"") ->  | AZ24: 22 | BA24: =IF('C7'!B22<>0,'C7'!B22,"") ->  | BC24: 13.5 | BD24: =IF('C8C9C10'!B23<>0,'C8C9C10'!B23,"") ->  | BF24: 19 | BG24: =IF('C8C9C10'!B110<>"",'C8C9C10'!B110,"") ->  | BJ24: NI
A25: 15 | B25: =IF(C0!B28<>"",C0!B28,"") ->  | D25: 3 | E25: N | G25: 4 | H25: =IF('C1'!B34<>0,'C1'!B34,"") ->  | J25: 9 | K25: Box not in use | M25: 18 | N25: =IF('C2'!B23<>0,'C2'!B23,"") ->  | P25: 20 | Q25: =IF('C2'!B74<>0,'C2'!B74,"") ->  | S25: 21 | T25: =IF('C3'!B24<>0,'C3'!B24,"") ->  | V25: 21 | W25: =IF('C3'!B68<>0,'C3'!B68,"") ->  | Y25: 72 | Z25: =IF('C3'!B119<>0,'C3'!B119,"") ->  | AB25: 22 | AC25: =IF('C3'!B175<>0,'C3'!B175,"") ->  | AH25: 21 | AI25: =IF('C4'!B18<>0,'C4'!B18,"") ->  | AK25: 17 | AL25: =IF('C4'!B49<>0,'C4'!B49,"") ->  | AN25: 70 | AO25: =IF('C4'!B109<>0,'C4'!B109,"") ->  | AQ25: 18 | AR25: =IF('C5'!B23<>0,'C5'!B23,"") ->  | AT25: 6F_1 | AU25: =IF('C6'!B23<>0,'C6'!B23,"") ->  | AW25: 25B_1 | AX25: =IF('C6'!B112<>0,'C6'!B112,"") ->  | AZ25: 23 | BA25: =IF('C7'!B23<>0,'C7'!B23,"") ->  | BC25: 13.6 | BD25: =IF('C8C9C10'!B24<>0,'C8C9C10'!B24,"") ->  | BF25: 20 | BG25: =IF('C8C9C10'!B111<>"",'C8C9C10'!B111,"") ->  | BI25: Class 2 | BJ25: ="Selected = "&NI2_IND-1 -> Selected = 0
A26: 16 | B26: =IF(C0!B29<>"",C0!B29,"") ->  | D26: 4 | G26: 5 | H26: =IF('C1'!B35<>0,'C1'!B35,"") ->  | J26: 10 | K26: =IF('C1'!B97<>0,'C1'!B97,"") ->  | M26: 19 | N26: =IF('C2'!B24<>0,'C2'!B24,"") ->  | P26: 21 | Q26: =IF('C2'!B75<>0,'C2'!B75,"") ->  | S26: 22 | T26: =IF('C3'!B25<>0,'C3'!B25,"") ->  | V26: 22 | W26: =IF('C3'!B69<>0,'C3'!B69,"") ->  | Y26: 73 | Z26: =IF('C3'!B120<>0,'C3'!B120,"") ->  | AB26: 23 | AC26: =IF('C3'!B176<>0,'C3'!B176,"") ->  | AH26: 22 | AI26: =IF('C4'!B19<>0,'C4'!B19,"") ->  | AK26: 18 | AL26: =IF('C4'!B50<>"",'C4'!B50,"") ->  | AN26: 71 | AO26: =IF('C4'!B110<>0,'C4'!B110,"") ->  | AQ26: 19 | AR26: =IF('C5'!B24<>0,'C5'!B24,"") ->  | AT26: A_2 | AU26: =IF('C6'!B24<>0,'C6'!B24,"") ->  | AW26: 28C_1 | AX26: =IF('C6'!B113<>0,'C6'!B113,"") ->  | AZ26: 24 | BA26: =IF('C7'!B24<>0,'C7'!B24,"") ->  | BC26: 13.7 | BD26: =IF('C8C9C10'!B25<>0,'C8C9C10'!B25,"") ->  | BF26: 21 | BG26: =IF('C8C9C10'!B112<>"",'C8C9C10'!B112,"") ->  | BI26: CL2 | BJ26: =IF('C8C9C10'!B159="","",'C8C9C10'!B159) -> 
A27: 17 | B27: =IF(C0!B32<>"",C0!B32,"") ->  | D27: 5 | G27: 6 | H27: =IF('C1'!B36<>0,'C1'!B36,"") ->  | J27: 11 | K27: =IF('C1'!B98<>0,'C1'!B98,"") ->  | M27: 20 | N27: =IF('C2'!B25<>0,'C2'!B25,"") ->  | P27: 22 | Q27: =IF('C2'!B76<>0,'C2'!B76,"") ->  | S27: 23 | T27: =IF('C3'!B26<>0,'C3'!B26,"") ->  | V27: 23 | W27: =IF('C3'!B70<>0,'C3'!B70,"") ->  | Y27: 73.1 | Z27: Box not in use | AB27: 24 | AC27: =IF('C3'!B177<>0,'C3'!B177,"") ->  | AH27: 23 | AI27: =IF('C4'!B20<>0,'C4'!B20,"") ->  | AK27: 19 | AL27: =IF('C4'!B51<>0,'C4'!B51,"") ->  | AN27: 72 | AO27: =IF('C4'!B111<>0,'C4'!B111,"") ->  | AQ27: 5 | AR27: =IF('C5'!B25<>0,'C5'!B25,"") ->  | AT27: B_2 | AU27: =IF('C6'!B25<>0,'C6'!B25,"") ->  | AW27: 29D_1 | AX27: =IF('C6'!B114<>0,'C6'!B114,"") ->  | AZ27: 25 | BA27: =IF('C7'!B25<>0,'C7'!B25,"") ->  | BC27: 13.8 | BD27: =IF('C8C9C10'!B26<>0,'C8C9C10'!B26,"") ->  | BF27: 22 | BG27: =IF('C8C9C10'!B113<>"",'C8C9C10'!B113,"") ->  | BI27: CL2wkamt_Type | BJ27: =IF('C8C9C10'!B160="","",'C8C9C10'!B160) -> 
A28: 18 | B28: =IF(C0!B33<>"",C0!B33,"") ->  | D28: 6 | G28: 7 | H28: =IF('C1'!B37<>0,'C1'!B37,"") ->  | J28: 11.1 | K28: =IF('C1'!B99<>0,'C1'!B99,"") ->  | P28: 23 | Q28: =IF('C2'!B77<>0,'C2'!B77,"") ->  | S28: 24 | T28: =IF('C3'!B27<>0,'C3'!B27,"") ->  | V28: 24 | W28: =IF('C3'!B71<>0,'C3'!B71,"") ->  | Y28: 73.2 | Z28: Box not in use | AB28: 25 | AC28: =IF('C3'!B178<>0,'C3'!B178,"") ->  | AH28: 24 | AI28: =IF('C4'!B21<>0,'C4'!B21,"") ->  | AK28: 20 | AL28: =IF('C4'!B52<>"",'C4'!B52,"") ->  | AN28: 73 | AO28: =IF('C4'!B112<>0,'C4'!B112,"") ->  | AQ28: 5.1 | AR28: =IF('C5'!B26<>0,'C5'!B26,"") ->  | AT28: C_2 | AU28: =IF('C6'!B26<>0,'C6'!B26,"") ->  | AW28: E_1 | AX28: =IF('C6'!B115<>0,'C6'!B115,"") ->  | AZ28: 25.1 | BA28: =IF('C7'!B26<>0,'C7'!B26,"") ->  | BC28: 14 | BD28: =IF('C8C9C10'!B27<>0,'C8C9C10'!B27,"") -> 1 | BF28: 23 | BG28: =IF('C8C9C10'!B114<>"",'C8C9C10'!B114,"") -> 
A29: 19 | B29: =IF(C0!B34<>"",C0!B34,"") ->  | D29: 7 | G29: 8 | H29: =IF('C1'!B38<>0,'C1'!B38,"") ->  | J29: 11.2 | K29: =IF('C1'!B100<>0,'C1'!B100,"") ->  | N29: SA102 | P29: 24 | Q29: =IF('C2'!B78<>0,'C2'!B78,"") ->  | S29: 24.1 | T29: =IF('C3'!B28<>0,'C3'!B28,"") ->  | V29: 25 | W29: =IF('C3'!B72<>0,'C3'!B72,"") ->  | Y29: 73.3 | Z29: =IF('C3'!B123<>"",'C3'!B123,"") ->  | AB29: 26 | AC29: =IF('C3'!B179<>0,'C3'!B179,"") ->  | AH29: 25 | AI29: =IF('C4'!B22<>0,'C4'!B22,"") ->  | AK29: 21 | AL29: =IF('C4'!B53<>"",'C4'!B53,"") ->  | AN29: 74 | AO29: =IF('C4'!B113<>0,'C4'!B113,"") ->  | AQ29: 5.2 | AR29: =IF('C5'!B27<>"",'C5'!B27,"") ->  | AT29: 5D_2 | AU29: =IF('C6'!B27<>0,'C6'!B27,"") ->  | AW29: 30F_1 | AX29: =IF('C6'!B116<>0,'C6'!B116,"") ->  | BC29: 15 | BD29: =IF('C8C9C10'!B28<>0,'C8C9C10'!B28,"") -> 76671 | BF29: 23.1 | BG29: =IF('C8C9C10'!B115<>"",'C8C9C10'!B115,"") ->  | BJ29: NI
A30: 20 | B30: =IF(C0!B35<>"",C0!B35,"") ->  | D30: 8 | G30: 9 | H30: =IF('C1'!B39<>0,'C1'!B39,"") ->  | J30: 12 | K30: =IF('C1'!B101<>0,'C1'!B101,"") ->  | M30: EMP-B | N30: ="Selected = "&EMP_B_IND-1 -> Selected = 0 | P30: 25 | Q30: =IF('C2'!B79<>0,'C2'!B79,"") ->  | S30: 25 | T30: =IF('C3'!B29<>0,'C3'!B29,"") ->  | V30: 26 | W30: =IF('C3'!B73<>0,'C3'!B73,"") ->  | Y30: 73.4 | Z30: =IF('C3'!B124<>0,'C3'!B124,"") ->  | AB30: 27 | AC30: =IF('C3'!B180<>0,'C3'!B180,"") ->  | AH30: 26 | AI30: =IF('C4'!B23<>0,'C4'!B23,"") ->  | AK30: 22 | AL30: =IF('C4'!B54<>0,'C4'!B54,"") ->  | AN30: 75 | AO30: =IF('C4'!B114<>0,'C4'!B114,"") ->  | AQ30: 6 | AR30: =IF('C5'!B28<>0,'C5'!B28,"") ->  | AT30: E_2 | AU30: =IF('C6'!B28<>0,'C6'!B28,"") ->  | AW30: 25 | AX30: =IF('C6'!B117<>0,'C6'!B117,"") ->  | BC30: 16 | BD30: =IF('C8C9C10'!B29<>0,'C8C9C10'!B29,"") -> 18646 | BF30: 23.2 | BG30: =IF('C8C9C10'!B116<>"",'C8C9C10'!B116,"") ->  | BI30: Class 1 | BJ30: ="Selected = "&NI1_IND-1 -> Selected = 0
A31: 21 | B31: =IF(C0!B36<>"",C0!B36,"") ->  | D31: 9 | E31: N | G31: 10 | H31: =IF('C1'!B40<>0,'C1'!B40,"") ->  | J31: 13 | K31: =IF('C1'!B102<>0,'C1'!B102,"") ->  | M31: 1 | N31: =IF('C2'!B28<>0,'C2'!B28,"") ->  | P31: 26 | Q31: =IF('C2'!B80<>0,'C2'!B80,"") ->  | S31: 25.1 | T31: =IF('C3'!B30<>0,'C3'!B30,"") ->  | V31: 27 | W31: =IF('C3'!B74<>0,'C3'!B74,"") ->  | Y31: 74 | Z31: =IF('C3'!B125<>0,'C3'!B125,"") ->  | AB31: 28 | AC31: =IF('C3'!B181<>0,'C3'!B181,"") ->  | AH31: 27 | AI31: =IF('C4'!B24<>0,'C4'!B24,"") ->  | AK31: 23 | AL31: =IF('C4'!B55<>0,'C4'!B55,"") ->  | AN31: 76 | AO31: =IF('C4'!B115<>0,'C4'!B115,"") ->  | AQ31: 7 | AR31: =IF('C5'!B29<>0,'C5'!B29,"") ->  | AT31: 6F_2 | AU31: =IF('C6'!B29<>0,'C6'!B29,"") ->  | AW31: 26 | AX31: =IF('C6'!B118<>0,'C6'!B118,"") ->  | BC31: 17 | BD31: =IF('C8C9C10'!B30<>0,'C8C9C10'!B30,"") -> 58025 | BF31: 23.3 | BG31: =IF('C8C9C10'!B117<>"",'C8C9C10'!B117,"") ->  | BI31: Total Cl1 | BJ31: =IF('C2'!B98="",0,'C2'!B98)+IF('C2'!B101="",0,'C2'!B101) -> 0
D32: 10 | E32: N | G32: 11 | H32: =IF('C1'!B44<>0,'C1'!B44,"") ->  | J32: 14 | K32: =IF('C1'!B103<>0,'C1'!B103,"") ->  | M32: 1.1 | N32: =IF('C2'!B29<>0,'C2'!B29,"") ->  | P32: 27 | Q32: =IF('C2'!B81<>0,'C2'!B81,"") ->  | S32: 25.2 | T32: =IF('C3'!B31<>0,'C3'!B31,"") ->  | V32: 28 | W32: =IF('C3'!B75<>0,'C3'!B75,"") ->  | Y32: 75 | Z32: =IF('C3'!B126<>0,'C3'!B126,"") ->  | AB32: 29 | AC32: =IF('C3'!B182<>0,'C3'!B182,"") ->  | AH32: 28 | AI32: =IF('C4'!B25<>0,'C4'!B25,"") ->  | AK32: 24 | AL32: =IF('C4'!B56<>"",'C4'!B56,"") ->  | AN32: 77 | AO32: =IF('C4'!B116<>0,'C4'!B116,"") ->  | AQ32: 8 | AR32: =IF('C5'!B30<>0,'C5'!B30,"") ->  | AT32: A_3 | AU32: =IF('C6'!B30<>0,'C6'!B30,"") ->  | AW32: 27 | AX32: =IF('C6'!B119<>0,'C6'!B119,"") ->  | BC32: 17a | BD32: =IF('C8C9C10'!B31<>0,'C8C9C10'!B31,"") ->  | BF32: 24 | BG32: =IF('C8C9C10'!B118<>"",'C8C9C10'!B118,"") -> 
A33: SLR | B33: ="Selected = "&SLR_ind-1 -> Selected = 0 | D33: 11 | E33: N | G33: 12 | H33: =IF('C1'!B45<>0,'C1'!B45,"") ->  | J33: 15 | K33: =IF('C1'!B104<>0,'C1'!B104,"") ->  | M33: 2 | N33: =IF('C2'!B30<>0,'C2'!B30,"") ->  | P33: 28 | Q33: =IF('C2'!B82<>0,'C2'!B82,"") ->  | S33: 26 | T33: =IF('C3'!B32<>0,'C3'!B32,"") ->  | V33: 29 | W33: =IF('C3'!B76<>0,'C3'!B76,"") ->  | Y33: 75.1 | Z33: Box not in use | AB33: 30 | AC33: =IF('C3'!B183<>0,'C3'!B183,"") ->  | AH33: 29 | AI33: Box not in use | AK33: 25 | AL33: =IF('C4'!B57<>0,'C4'!B57,"") ->  | AN33: 78 | AO33: =IF('C4'!B117<>0,'C4'!B117,"") ->  | AQ33: 9 | AR33: =IF('C5'!B31<>0,'C5'!B31,"") ->  | AT33: B_3 | AU33: =IF('C6'!B31<>0,'C6'!B31,"") ->  | AW33: 28 | AX33: =IF('C6'!B120<>0,'C6'!B120,"") ->  | BC33: 17.1 | BD33: =IF('C8C9C10'!B32<>0,'C8C9C10'!B32,"") -> 28695 | BF33: 25 | BG33: =IF('C8C9C10'!B119<>"",'C8C9C10'!B119,"") -> 
A34: 1 | B34: =IF(C0!B62<>"",C0!B62,"") ->  | D34: 12 | G34: 13 | H34: =IF('C1'!B46<>0,'C1'!B46,"") ->  | J34: 16 | K34: =IF('C1'!B105<>0,'C1'!B105,"") ->  | M34: 3 | N34: =IF('C2'!B31<>0,'C2'!B31,"") ->  | P34: 29 | Q34: =IF('C2'!B83<>0,'C2'!B83,"") ->  | S34: 27 | T34: =IF('C3'!B33<>0,'C3'!B33,"") ->  | V34: 30 | W34: =IF('C3'!B77<>0,'C3'!B77,"") ->  | Y34: 76 | Z34: =IF('C3'!B120<>0,'C3'!B127,"") ->  | AB34: 31 | AC34: =IF('C3'!B184<>0,'C3'!B184,"") ->  | AH34: 30 | AI34: =IF('C4'!B26<>0,'C4'!B26,"") ->  | AK34: 26 | AL34: =IF('C4'!B58<>0,'C4'!B58,"") ->  | AN34: 79 | AO34: =IF('C4'!B118<>0,'C4'!B118,"") ->  | AQ34: 10 | AR34: =IF('C5'!B32<>0,'C5'!B32,"") ->  | AT34: C_3 | AU34: =IF('C6'!B32<>0,'C6'!B32,"") ->  | AW34: 29 | AX34: =IF('C6'!B121<>0,'C6'!B121,"") ->  | BC34: 17.2 | BD34: =IF('C8C9C10'!B33<>0,'C8C9C10'!B33,"") ->  | BF34: 26 | BG34: =IF('C8C9C10'!B120<>"",'C8C9C10'!B120,"") -> 
A35: PT | B35: =IF(C0!B63<>"",C0!B63,"") ->  | D35: 13 | G35: 14 | H35: =IF('C1'!B47<>0,'C1'!B47,"") ->  | J35: 17 | K35: Box not in use | M35: 3.1 | N35: =IF('C2'!B32<>0,'C2'!B32,"") ->  | P35: 30 | Q35: =IF('C2'!B84<>0,'C2'!B84,"") ->  | S35: 27.1 | T35: Box not in use | V35: 31 | W35: =IF('C3'!B78<>0,'C3'!B78,"") ->  | Y35: 77 | Z35: =IF('C3'!B128<>0,'C3'!B128,"") ->  | AB35: 32 | AC35: =IF('C3'!B185<>0,'C3'!B185,"") ->  | AH35: 31 | AI35: =IF('C4'!B27<>0,'C4'!B27,"") ->  | AK35: 27 | AL35: =IF('C4'!B59<>0,'C4'!B59,"") ->  | AN35: 80 | AO35: =IF('C4'!B119<>0,'C4'!B119,"") ->  | AQ35: 11 | AR35: =IF('C5'!B33<>0,'C5'!B33,"") ->  | AT35: 5D_3 | AU35: =IF('C6'!B33<>0,'C6'!B33,"") ->  | AW35: 30 | AX35: =IF('C6'!B122<>0,'C6'!B122,"") ->  | BC35: 17.3 | BD35: =IF('C8C9C10'!B34<>0,'C8C9C10'!B34,"") ->  | BF35: 27 | BG35: =IF('C8C9C10'!B121<>"",'C8C9C10'!B121,"") -> 
A36: PT | B36: =IF(C0!B64<>"",C0!B64,"") ->  | D36: 14 | G36: 15 | H36: =IF('C1'!B48<>0,'C1'!B48,"") ->  | J36: 18 | K36: =IF('C1'!B106<>0,'C1'!B106,"") ->  | M36: 4 | N36: =IF('C2'!B33<>0,'C2'!B33,"") ->  | P36: 31 | Q36: =IF('C2'!B85<>0,'C2'!B85,"") ->  | S36: 28 | T36: =IF('C3'!B34<>0,'C3'!B34,"") ->  | V36: 32 | W36: =IF('C3'!B79<>0,'C3'!B79,"") ->  | Y36: 78 | Z36: =IF('C3'!B129<>0,'C3'!B129,"") ->  | AB36: 33 | AC36: =IF('C3'!B186<>0,'C3'!B186,"") ->  | AH36: 32 | AI36: =IF('C4'!B28<>0,'C4'!B28,"") ->  | AK36: 28 | AL36: =IF('C4'!B60<>0,'C4'!B60,"") ->  | AQ36: 11.1 | AR36: =IF('C5'!B34<>0,'C5'!B34,"") ->  | AT36: E_3 | AU36: =IF('C6'!B34<>0,'C6'!B34,"") ->  | AW36: 31 | AX36: =IF('C6'!B123<>0,'C6'!B123,"") ->  | BC36: 17.4 | BD36: =IF('C8C9C10'!B35<>0,'C8C9C10'!B35,"") ->  | BF36: 28 | BG36: =IF('C8C9C10'!B122<>"",'C8C9C10'!B122,"") -> 
A37: 2 | B37: =IF(C0!B65<>"",C0!B65,"") ->  | D37: 15 | J37: 19 | K37: =IF('C1'!B107<>0,'C1'!B107,"") ->  | M37: 5 | N37: =IF('C2'!B34<>0,'C2'!B34,"") ->  | P37: 32 | Q37: =IF('C2'!B86<>0,'C2'!B86,"") ->  | S37: 29 | T37: =IF('C3'!B35<>0,'C3'!B35,"") ->  | V37: 33 | W37: =IF('C3'!B80<>0,'C3'!B80,"") ->  | Y37: 79 | Z37: =IF('C3'!B130<>0,'C3'!B130,"") ->  | AB37: 34 | AC37: =IF('C3'!B187<>0,'C3'!B187,"") ->  | AK37: 29 | AL37: =IF('C4'!B61<>"",'C4'!B61,"") ->  | AQ37: 11.2 | AR37: =IF('C5'!B35<>0,'C5'!B35,"") ->  | AT37: 6F_3 | AU37: =IF('C6'!B35<>0,'C6'!B35,"") ->  | AW37: 32 | AX37: =IF('C6'!B124<>0,'C6'!B124,"") ->  | BC37: 18 | BD37: =IF('C8C9C10'!B36<>0,'C8C9C10'!B36,"") ->  | BF37: 29 | BG37: =IF('C8C9C10'!B123<>"",'C8C9C10'!B123,"") -> 
A38: 3 | B38: =IF(C0!B66<>"",C0!B66,"") ->  | D38: 16 | G38: AOR | H38: ="Selected = "&AOR_IND-1 -> Selected = 0 | J38: 20 | K38: =IF('C1'!B108<>0,'C1'!B108,"") ->  | M38: 6 | N38: =IF('C2'!B35<>0,'C2'!B35,"") ->  | P38: 33 | Q38: =IF('C2'!B87<>0,'C2'!B87,"") ->  | S38: 30 | T38: =IF('C3'!B36<>0,'C3'!B36,"") ->  | V38: 34 | W38: =IF('C3'!B81<>0,'C3'!B81,"") ->  | Y38: 80 | Z38: =IF('C3'!B131<>0,'C3'!B131,"") ->  | AB38: 35 | AC38: =IF('C3'!B188<>0,'C3'!B188,"") ->  | AK38: 30 | AL38: =IF('C4'!B62<>"",'C4'!B62,"") ->  | AQ38: 12 | AR38: =IF('C5'!B36<>0,'C5'!B36,"") ->  | AT38: A_4 | AU38: =IF('C6'!B36<>0,'C6'!B36,"") ->  | AW38: A_1 | AX38: =IF('C6'!B125<>0,'C6'!B125,"") ->  | BC38: 19 | BD38: =IF('C8C9C10'!B38<>0,'C8C9C10'!B38,"") ->  | BF38: 30 | BG38: =IF('C8C9C10'!B124<>"",'C8C9C10'!B124,"") -> 
D39: 17 | G39: 1 | H39: =IF('C1'!B51<>0,'C1'!B51,"") ->  | J39: 21 | K39: Box not in use | M39: 6.1 | N39: =IF('C2'!B36<>0,'C2'!B36,"") ->  | P39: 34 | Q39: =IF('C2'!B88<>0,'C2'!B88,"") ->  | S39: 31 | T39: =IF('C3'!B37<>0,'C3'!B37,"") ->  | V39: 35 | W39: =IF('C3'!B82<>0,'C3'!B82,"") ->  | Y39: 81 | Z39: =IF('C3'!B132<>0,'C3'!B132,"") ->  | AB39: 36 | AC39: =IF('C3'!B189<>0,'C3'!B189,"") ->  | AK39: 31 | AL39: =IF('C4'!B63<>0,'C4'!B63,"") ->  | AQ39: 13 | AR39: =IF('C5'!B37<>0,'C5'!B37,"") ->  | AT39: B_4 | AU39: =IF('C6'!B37<>0,'C6'!B37,"") ->  | AW39: C_1 | AX39: =IF('C6'!B126<>0,'C6'!B126,"") ->  | BC39: 20 | BD39: =IF('C8C9C10'!B39<>0,'C8C9C10'!B39,"") ->  | BF39: 31 | BG39: =IF('C8C9C10'!B125<>"",'C8C9C10'!B125,"") -> 
A40: CBC | B40: ="Selected = "&CBC_Ind-1 -> Selected = 0 | D40: 18 | G40: 2 | H40: =IF('C1'!B52<>0,'C1'!B52,"") ->  | J40: 22 | K40: Box not in use | M40: 7 | N40: =IF('C2'!B37<>0,'C2'!B37,"") ->  | P40: 35 | Q40: =IF('C2'!B89<>0,'C2'!B89,"") ->  | S40: 32 | T40: =IF('C3'!B38<>0,'C3'!B38,"") ->  | V40: 36 | W40: =IF('C3'!B83<>0,'C3'!B83,"") ->  | Y40: 82 | Z40: =IF('C3'!B133<>0,'C3'!B133,"") ->  | AB40: 37 | AC40: =IF('C3'!B190<>0,'C3'!B190,"") ->  | AK40: 32 | AL40: =IF('C4'!B64<>"",'C4'!B64,"") ->  | AQ40: 14 | AR40: =IF('C5'!B38<>0,'C5'!B38,"") ->  | AT40: C_4 | AU40: =IF('C6'!B38<>0,'C6'!B38,"") ->  | AW40: E_1 | AX40: =IF('C6'!B127<>0,'C6'!B127,"") ->  | BC40: 21 | BD40: =IF('C8C9C10'!B40<>0,'C8C9C10'!B40,"") ->  | BF40: 32 | BG40: =IF('C8C9C10'!B126<>"",'C8C9C10'!B126,"") -> 
A41: 1 | B41: =IF(C0!B69<>"",C0!B69,"") ->  | D41: 19 | E41: Andrea Gail | G41: 3 | H41: =IF('C1'!B53<>0,'C1'!B53,"") ->  | J41: 23 | K41: Box not in use | M41: 8 | N41: =IF('C2'!B38<>0,'C2'!B38,"") ->  | P41: 36 | Q41: =IF('C2'!B90<>0,'C2'!B90,"") ->  | S41: 33 | T41: =IF('C3'!B39<>0,'C3'!B39,"") ->  | V41: 37 | W41: =IF('C3'!B84<>0,'C3'!B84,"") ->  | Y41: 83 | Z41: =IF('C3'!B134<>0,'C3'!B134,"") ->  | AB41: 38 | AC41: =IF('C3'!B191<>0,'C3'!B191,"") ->  | AK41: 33 | AL41: =IF('C4'!B65<>0,'C4'!B65,"") ->  | AQ41: 15 | AR41: =IF('C5'!B39<>0,'C5'!B39,"") ->  | AT41: 5D_4 | AU41: =IF('C6'!B39<>0,'C6'!B39,"") ->  | AW41: F_1 | AX41: =IF('C6'!B128<>0,'C6'!B128,"") ->  | BC41: 22 | BD41: =IF('C8C9C10'!B41<>0,'C8C9C10'!B41,"") ->  | BF41: 33 | BG41: =IF('C8C9C10'!B127<>"",'C8C9C10'!B127,"") -> 
A42: 2 | B42: =IF(C0!B70<>"",C0!B70,"") ->  | D42: 20 | G42: 4 | H42: =IF('C1'!B54<>0,'C1'!B54,"") ->  | J42: 24 | K42: Box not in use | M42: 8.1 | N42: Box not in use | P42: 37 | Q42: =IF('C2'!B91<>0,'C2'!B91,"") ->  | S42: 34 | T42: =IF('C3'!B40<>0,'C3'!B40,"") ->  | V42: 38 | W42: =IF('C3'!B85<>0,'C3'!B85,"") ->  | Y42: 84 | Z42: =IF('C3'!B135<>0,'C3'!B135,"") ->  | AB42: 39 | AC42: =IF('C3'!B192<>0,'C3'!B192,"") ->  | AK42: 34 | AL42: =IF('C4'!B66<>"",'C4'!B66,"") ->  | AQ42: 16 | AR42: =IF('C5'!B40<>0,'C5'!B40,"") ->  | AT42: E_4 | AU42: =IF('C6'!B40<>0,'C6'!B40,"") ->  | AW42: A_2 | AX42: =IF('C6'!B129<>0,'C6'!B129,"") ->  | BC42: 23 | BD42: =IF('C8C9C10'!B42<>0,'C8C9C10'!B42,"") -> 2 | BF42: 34 | BG42: =IF('C8C9C10'!B128<>"",'C8C9C10'!B128,"") -> 
A43: 3 | B43: =IF(C0!B71<>"",C0!B71,"") ->  | D43: 20.1 | E43: Box not in use | G43: 5 | H43: =IF('C1'!B55<>0,'C1'!B55,"") ->  | M43: 9 | N43: =IF('C2'!B39<>0,'C2'!B39,"") ->  | P43: 38 | Q43: =IF('C2'!B92<>0,'C2'!B92,"") ->  | S43: 35 | T43: =IF('C3'!B41<>0,'C3'!B41,"") ->  | V43: 39 | W43: =IF('C3'!B86<>0,'C3'!B86,"") ->  | Y43: 85 | Z43: =IF('C3'!B136<>0,'C3'!B136,"") ->  | AB43: 40 | AC43: =IF('C3'!B193<>0,'C3'!B193,"") ->  | AK43: 34.1 | AL43: Box not in use | AQ43: 17 | AR43: =IF('C5'!B41<>0,'C5'!B41,"") ->  | AT43: 6F_4 | AU43: =IF('C6'!B41<>0,'C6'!B41,"") ->  | AW43: C_2 | AX43: =IF('C6'!B130<>0,'C6'!B130,"") ->  | BC43: 24 | BD43: =IF('C8C9C10'!B43<>0,'C8C9C10'!B43,"") ->  | BF43: 35 | BG43: =IF('C8C9C10'!B129<>"",'C8C9C10'!B129,"") -> 
D44: 21 | G44: 6 | H44: =IF('C1'!B56<>0,'C1'!B56,"") ->  | M44: 10 | N44: =IF('C2'!B40<>0,'C2'!B40,"") ->  | P44: 39 | Q44: =IF('C2'!B93<>0,'C2'!B93,"") ->  | S44: 36 | T44: =IF('C3'!B42<>0,'C3'!B42,"") ->  | V44: 40 | W44: =IF('C3'!B87<>0,'C3'!B87,"") ->  | Y44: 86 | Z44: =IF('C3'!B137<>0,'C3'!B137,"") ->  | AB44: 41 | AC44: =IF('C3'!B194<>0,'C3'!B194,"") ->  | AK44: 35 | AL44: =IF('C4'!B68<>"",'C4'!B68,"") ->  | AQ44: 18 | AR44: =IF('C5'!B42<>"",'C5'!B42,"") ->  | AT44: A_5 | AU44: =IF('C6'!B42<>0,'C6'!B42,"") ->  | AW44: E_2 | AX44: =IF('C6'!B131<>0,'C6'!B131,"") ->  | BC44: 25 | BD44: =IF('C8C9C10'!B44<>0,'C8C9C10'!B44,"") -> 22000 | BF44: 36 | BG44: =IF('C8C9C10'!B130<>"",'C8C9C10'!B130,"") -> 
A45: MAT | D45: 22 | E45: Y | G45: 6.1 | H45: =IF('C1'!B57<>0,'C1'!B57,"") ->  | M45: 11 | N45: =IF('C2'!B41<>0,'C2'!B41,"") ->  | P45: CL1 | Q45: =IF('C2'!B101="","",'C2'!B101) ->  | S45: 37 | T45: =IF('C3'!B43<>0,'C3'!B43,"") ->  | V45: 41 | W45: =IF('C3'!B88<>0,'C3'!B88,"") ->  | Y45: 87 | Z45: =IF('C3'!B138<>0,'C3'!B138,"") ->  | AB45: 42 | AC45: =IF('C3'!B195<>0,'C3'!B195,"") ->  | AK45: 36 | AL45: =IF('C4'!B69<>"",'C4'!B69,"") ->  | AQ45: 19 | AR45: =IF('C5'!B43<>"",'C5'!B43,"") ->  | AT45: B_5 | AU45: =IF('C6'!B43<>0,'C6'!B43,"") ->  | AW45: F_2 | AX45: =IF('C6'!B132<>0,'C6'!B132,"") ->  | BC45: 26 | BD45: =IF('C8C9C10'!B45<>0,'C8C9C10'!B45,"") ->  | BF45: 37 | BG45: =IF('C8C9C10'!B131<>"",'C8C9C10'!B131,"") -> 
A46: 0 | B46: =IF(C0!B75<>"",C0!B75,"") ->  | D46: 23 | G46: 7 | H46: =IF('C1'!B58<>0,'C1'!B58,"") ->  | M46: 12 | N46: =IF('C2'!B42<>0,'C2'!B42,"") ->  | S46: 38 | T46: =IF('C3'!B44<>0,'C3'!B44,"") ->  | V46: 42 | W46: =IF('C3'!B89<>0,'C3'!B89,"") ->  | Y46: 88 | Z46: =IF('C3'!B139<>0,'C3'!B139,"") ->  | AB46: 43 | AC46: =IF('C3'!B196<>0,'C3'!B196,"") ->  | AK46: 37 | AL46: =IF('C4'!B70<>"",'C4'!B70,"") ->  | AQ46: 20 | AR46: =IF('C5'!B44<>0,'C5'!B44,"") -> 40714 | AT46: C_5 | AU46: =IF('C6'!B44<>0,'C6'!B44,"") ->  | AW46: A_3 | AX46: =IF('C6'!B133<>0,'C6'!B133,"") ->  | BC46: 26a | BD46: =IF('C8C9C10'!B46<>0,'C8C9C10'!B46,"") ->  | BF46: 38 | BG46: =IF('C8C9C10'!B132<>"",'C8C9C10'!B132,"") -> 
A47: 1 | B47: =IF(C0!B76<>"",C0!B76,"") ->  | D47: 24 | G47: 8 | H47: =IF('C1'!B59<>0,'C1'!B59,"") ->  | M47: 13 | N47: =IF('C2'!B43<>0,'C2'!B43,"") ->  | V47: 43 | W47: =IF('C3'!B90<>0,'C3'!B90,"") ->  | Y47: 89 | Z47: =IF('C3'!B140<>0,'C3'!B140,"") ->  | AB47: 44 | AC47: =IF('C3'!B197<>0,'C3'!B197,"") ->  | AK47: 38 | AL47: =IF('C4'!B71<>0,'C4'!B71,"") ->  | AQ47: 20.1 | AR47: =IF('C5'!B45<>0,'C5'!B45,"") ->  | AT47: 5D_5 | AU47: =IF('C6'!B45<>0,'C6'!B45,"") ->  | AW47: C_3 | AX47: =IF('C6'!B134<>0,'C6'!B134,"") ->  | BC47: 27 | BD47: =IF('C8C9C10'!B47<>0,'C8C9C10'!B47,"") -> 22000 | BF47: 39 | BG47: =IF('C8C9C10'!B133<>"",'C8C9C10'!B133,"") -> 
A48: 2 | B48: =IF(C0!B77<>"",C0!B77,"") ->  | D48: 25 | G48: 9 | H48: =IF('C1'!B60<>0,'C1'!B60,"") ->  | M48: 14 | N48: =IF('C2'!B44<>0,'C2'!B44,"") ->  | V48: 44 | W48: =IF('C3'!B91<>0,'C3'!B91,"") ->  | Y48: 90 | Z48: =IF('C3'!B141<>0,'C3'!B141,"") ->  | AB48: 45 | AC48: =IF('C3'!B198<>0,'C3'!B198,"") ->  | AK48: 39 | AL48: =IF('C4'!B72<>0,'C4'!B72,"") ->  | AQ48: 20.2 | AR48: =IF('C5'!B46<>"",'C5'!B46,"") ->  | AT48: E_5 | AU48: =IF('C6'!B46<>0,'C6'!B46,"") ->  | AW48: E_3 | AX48: =IF('C6'!B135<>0,'C6'!B135,"") ->  | BC48: 28 | BD48: =IF('C8C9C10'!B48<>0,'C8C9C10'!B48,"") -> NVC | BF48: 40 | BG48: =IF('C8C9C10'!B134<>"",'C8C9C10'!B134,"") -> 
A49: 3 | B49: =IF(C0!B78<>"",C0!B78,"") ->  | D49: 26 | G49: 10 | H49: =IF('C1'!B61<>0,'C1'!B61,"") ->  | M49: 15 | N49: =IF('C2'!B45<>0,'C2'!B45,"") ->  | V49: 45 | W49: =IF('C3'!B92<>0,'C3'!B92,"") ->  | Y49: 91 | Z49: =IF('C3'!B142<>0,'C3'!B142,"") ->  | AB49: 46 | AC49: =IF('C3'!B199<>0,'C3'!B199,"") ->  | AK49: 40 | AL49: =IF('C4'!B73<>"",'C4'!B73,"") ->  | AQ49: 21 | AR49: =IF('C5'!B47<>0,'C5'!B47,"") ->  | AT49: 6F_5 | AU49: =IF('C6'!B47<>0,'C6'!B47,"") ->  | AW49: F_3 | AX49: =IF('C6'!B136<>0,'C6'!B136,"") ->  | BC49: 29 | BD49: =IF('C8C9C10'!B49<>0,'C8C9C10'!B49,"") -> 
A50: 4 | B50: =IF(C0!B79<>"",C0!B79,"") ->  | G50: 11 | H50: Box not in use | M50: 16 | N50: =IF('C2'!B46<>0,'C2'!B46,"") ->  | V50: 46 | W50: =IF('C3'!B93<>0,'C3'!B93,"") ->  | Y50: 92 | Z50: =IF('C3'!B143<>0,'C3'!B143,"") ->  | AB50: 47 | AC50: =IF('C3'!B200<>0,'C3'!B200,"") ->  | AK50: 41 | AL50: =IF('C4'!B74<>"",'C4'!B74,"") ->  | AQ50: 22 | AR50: =IF('C5'!B48<>0,'C5'!B48,"") ->  | AT50: 5 | AU50: =IF('C6'!B48<>0,'C6'!B48,"") ->  | AW50: A_4 | AX50: =IF('C6'!B137<>0,'C6'!B137,"") ->  | BC50: 30 | BD50: =IF('C8C9C10'!B50<>0,'C8C9C10'!B50,"") -> 
A51: 5 | B51: =IF(C0!B80<>"",C0!B80,"") ->  | G51: 12 | H51: =IF('C1'!B62<>0,'C1'!B62,"") ->  | M51: 17 | N51: =IF('C2'!B47<>0,'C2'!B47,"") ->  | V51: 47 | W51: =IF('C3'!B94<>0,'C3'!B94,"") ->  | Y51: 93 | Z51: =IF('C3'!B144<>0,'C3'!B144,"") ->  | AB51: 48 | AC51: =IF('C3'!B201<>0,'C3'!B201,"") ->  | AK51: 41.1 | AL51: =IF('C4'!B75<>"",'C4'!B75,"") ->  | AQ51: 23 | AR51: =IF('C5'!B49<>0,'C5'!B49,"") ->  | AT51: 6 | AU51: =IF('C6'!B49<>0,'C6'!B49,"") ->  | AW51: C_4 | AX51: =IF('C6'!B138<>0,'C6'!B138,"") ->  | BC51: 31 | BD51: =IF('C8C9C10'!B51<>0,'C8C9C10'!B51,"") -> 
A52: -OUT | B52: =IF(C0!B81<>"",C0!B81,"") ->  | M52: 18 | N52: =IF('C2'!B48<>0,'C2'!B48,"") ->  | V52: 48 | W52: =IF('C3'!B95<>0,'C3'!B95,"") ->  | Y52: 94 | Z52: =IF('C3'!B145<>0,'C3'!B145,"") ->  | AB52: 49 | AC52: =IF('C3'!B202<>0,'C3'!B202,"") ->  | AK52: 41.2 | AL52: =IF('C4'!B76<>"",'C4'!B76,"") ->  | AQ52: 24 | AR52: =IF('C5'!B50<>0,'C5'!B50,"") -> 1516 | AT52: A_1 | AU52: =IF('C6'!B50<>0,'C6'!B50,"") ->  | AW52: E_4 | AX52: =IF('C6'!B139<>0,'C6'!B139,"") ->  | BC52: 32 | BD52: =IF('C8C9C10'!B52<>0,'C8C9C10'!B52,"") -> 
A53: -IN | B53: =IF(C0!B82<>"",C0!B82,"") ->  | M53: 19 | N53: =IF('C2'!B49<>0,'C2'!B49,"") ->  | V53: 49 | W53: =IF('C3'!B96<>0,'C3'!B96,"") ->  | Y53: 95 | Z53: =IF('C3'!B146<>0,'C3'!B146,"") ->  | AB53: 50 | AC53: =IF('C3'!B203<>0,'C3'!B203,"") ->  | AK53: AF1 | AL53: =IF('C4'!B77<>0,'C4'!B77,"") ->  | AQ53: 25 | AR53: =IF('C5'!B51<>0,'C5'!B51,"") -> 12468 | AT53: B_1 | AU53: =IF('C6'!B51<>0,'C6'!B51,"") ->  | AW53: F_4 | AX53: =IF('C6'!B140<>0,'C6'!B140,"") ->  | BC53: 33 | BD53: =IF('C8C9C10'!B53<>0,'C8C9C10'!B53,"") -> 
M54: 20 | N54: =IF('C2'!B50<>0,'C2'!B50,"") ->  | V54: 50 | W54: =IF('C3'!B97<>0,'C3'!B97,"") ->  | Y54: 96 | Z54: =IF('C3'!B147<>0,'C3'!B147,"") ->  | AK54: 42 | AL54: =IF('C4'!B78<>"",'C4'!B78,"") ->  | AQ54: 26 | AR54: =IF('C5'!B52<>0,'C5'!B52,"") -> 12418 | AT54: C_1 | AU54: =IF('C6'!B52<>0,'C6'!B52,"") ->  | AW54: 33 | AX54: =IF('C6'!B141<>0,'C6'!B141,"") ->  | BC54: 34 | BD54: =IF('C8C9C10'!B54<>0,'C8C9C10'!B54,"") -> 
M55: CL1 | N55: =IF('C2'!B98="","",'C2'!B98) ->  | V55: 51 | W55: =IF('C3'!B98<>0,'C3'!B98,"") ->  | Y55: 97 | Z55: =IF('C3'!B148<>0,'C3'!B148,"") ->  | AK55: 43 | AL55: =IF('C4'!B79<>"",'C4'!B79,"") ->  | AQ55: 27 | AR55: =IF('C5'!B53<>0,'C5'!B53,"") -> 4718 | AT55: D_1 | AU55: =IF('C6'!B53<>0,'C6'!B53,"") ->  | AW55: 34 | AX55: =IF('C6'!B142<>0,'C6'!B142,"") ->  | BC55: 34a | BD55: =IF('C8C9C10'!B55<>0,'C8C9C10'!B55,"") -> 
V56: 52 | W56: =IF('C3'!B99<>0,'C3'!B99,"") ->  | Y56: 98 | Z56: =IF('C3'!B149<>0,'C3'!B149,"") ->  | AK56: 44 | AL56: =IF('C4'!B80<>"",'C4'!B80,"") ->  | AQ56: 28 | AR56: =IF('C5'!B54<>0,'C5'!B54,"") ->  | AT56: E_1 | AU56: =IF('C6'!B54<>0,'C6'!B54,"") ->  | AW56: 35 | AX56: =IF('C6'!B143<>0,'C6'!B143,"") ->  | BC56: 35 | BD56: =IF('C8C9C10'!B56<>0,'C8C9C10'!B56,"") -> 
V57: 52.1 | W57: =IF('C3'!B100<>0,'C3'!B100,"") ->  | Y57: 99 | Z57: =IF('C3'!B150<>0,'C3'!B150,"") ->  | AK57: 45 | AL57: =IF('C4'!B81<>0,'C4'!B81,"") ->  | AQ57: 29 | AR57: =IF('C5'!B55<>0,'C5'!B55,"") -> 2147 | AT57: F_1 | AU57: =IF('C6'!B55<>0,'C6'!B55,"") ->  | AW57: 36 | AX57: =IF('C6'!B144<>0,'C6'!B144,"") ->  | BC57: 36 | BD57: =IF('C8C9C10'!B57<>0,'C8C9C10'!B57,"") -> 
Y58: 100 | Z58: =IF('C3'!B151<>0,'C3'!B151,"") ->  | AK58: 46 | AL58: =IF('C4'!B82<>"",'C4'!B82,"") ->  | AQ58: 30 | AR58: =IF('C5'!B56<>0,'C5'!B56,"") ->  | AT58: 7.1 | AU58: =IF('C6'!B56<>0,'C6'!B56,"") ->  | AW58: 37 | AX58: =IF('C6'!B145<>0,'C6'!B145,"") ->  | BC58: 37 | BD58: =IF('C8C9C10'!B58<>0,'C8C9C10'!B58,"") -> 
Y59: 101 | Z59: =IF('C3'!B152<>0,'C3'!B152,"") ->  | AK59: 47 | AL59: =IF('C4'!B83<>"",'C4'!B83,"") ->  | AQ59: 31 | AR59: =IF('C5'!B57<>0,'C5'!B57,"") ->  | AT59: 7.2 | AU59: =IF('C6'!B57<>0,'C6'!B57,"") ->  | AW59: 38 | AX59: =IF('C6'!B146<>0,'C6'!B146,"") ->  | BC59: 38 | BD59: =IF('C8C9C10'!B59<>0,'C8C9C10'!B59,"") -> 
Y60: 102 | Z60: =IF('C3'!B153<>0,'C3'!B153,"") ->  | AK60: 48 | AL60: =IF('C4'!B84<>"",'C4'!B84,"") ->  | AQ60: 32 | AR60: =IF('C5'!B58<>0,'C5'!B58,"") ->  | AT60: A_1 | AU60: =IF('C6'!B58<>0,'C6'!B58,"") ->  | AW60: 39 | AX60: =IF('C6'!B147<>0,'C6'!B147,"") ->  | BC60: 39 | BD60: =IF('C8C9C10'!B60<>0,'C8C9C10'!B60,"") -> 
Y61: 103 | Z61: =IF('C3'!B154<>0,'C3'!B154,"") ->  | AK61: 49 | AL61: =IF('C4'!B85<>0,'C4'!B85,"") ->  | AQ61: 33 | AR61: =IF('C5'!B59<>0,'C5'!B59,"") ->  | AT61: B_1 | AU61: =IF('C6'!B59<>0,'C6'!B59,"") ->  | AW61: 40 | AX61: =IF('C6'!B148<>0,'C6'!B148,"") ->  | BC61: 40 | BD61: =IF('C8C9C10'!B61<>0,'C8C9C10'!B61,"") -> 
AK62: 50 | AL62: =IF('C4'!B86<>"",'C4'!B86,"") ->  | AQ62: 33.1 | AR62: =IF('C5'!B60<>0,'C5'!B60,"") ->  | AT62: C_1 | AU62: =IF('C6'!B60<>0,'C6'!B60,"") ->  | AW62: 41 | AX62: =IF('C6'!B149<>0,'C6'!B149,"") ->  | BC62: 41 | BD62: =IF('C8C9C10'!B62<>0,'C8C9C10'!B62,"") -> 
AK63: 51 | AL63: =IF('C4'!B87<>0,'C4'!B87,"") ->  | AQ63: 33.2 | AR63: =IF('C5'!B61<>0,'C5'!B61,"") ->  | AT63: D_1 | AU63: =IF('C6'!B61<>0,'C6'!B61,"") ->  | AW63: 42 | AX63: =IF('C6'!B150<>0,'C6'!B150,"") ->  | BC63: 42 | BD63: =IF('C8C9C10'!B63<>0,'C8C9C10'!B63,"") -> 
AQ64: 34 | AR64: =IF('C5'!B62<>0,'C5'!B62,"") ->  | AT64: E_1 | AU64: =IF('C6'!B62<>0,'C6'!B62,"") ->  | AW64: 43 | AX64: =IF('C6'!B151<>0,'C6'!B151,"") ->  | BC64: 43 | BD64: =IF('C8C9C10'!B64<>0,'C8C9C10'!B64,"") -> 
AQ65: 34.1 | AR65: =IF('C5'!B63<>0,'C5'!B63,"") ->  | AT65: F_1 | AU65: =IF('C6'!B63<>0,'C6'!B63,"") ->  | AW65: 44 | AX65: =IF('C6'!B152<>0,'C6'!B152,"") ->  | BC65: 44 | BD65: =IF('C8C9C10'!B65<>0,'C8C9C10'!B65,"") -> 
AQ66: 35 | AR66: =IF('C5'!B64<>0,'C5'!B64,"") ->  | AT66: 7.3 | AU66: =IF('C6'!B64<>0,'C6'!B64,"") ->  | AW66: 45 | AX66: =IF('C6'!B153<>0,'C6'!B153,"") ->  | BC66: 45 | BD66: =IF('C8C9C10'!B66<>0,'C8C9C10'!B66,"") -> 
AQ67: 36 | AR67: =IF('C5'!B65<>0,'C5'!B65,"") ->  | AT67: 7.4 | AU67: =IF('C6'!B65<>0,'C6'!B65,"") ->  | AW67: 46 | AX67: =IF('C6'!B154<>0,'C6'!B154,"") ->  | BC67: 46 | BD67: =IF('C8C9C10'!B67<>0,'C8C9C10'!B67,"") -> 
AQ68: 37 | AR68: =IF('C5'!B66<>0,'C5'!B66,"") ->  | AT68: 7.5 | AU68: =IF('C6'!B66<>0,'C6'!B66,"") ->  | BC68: 47 | BD68: =IF('C8C9C10'!B68<>0,'C8C9C10'!B68,"") -> 
AQ69: 38 | AR69: =IF('C5'!B67<>0,'C5'!B67,"") -> 7447 | AT69: A_1 | AU69: =IF('C6'!B67<>0,'C6'!B67,"") ->  | BC69: 48 | BD69: =IF('C8C9C10'!B69<>0,'C8C9C10'!B69,"") -> 
AQ70: 39 | AR70: =IF('C5'!B68<>0,'C5'!B68,"") -> 7447 | AT70: B_1 | AU70: =IF('C6'!B68<>0,'C6'!B68,"") ->  | BC70: 49 | BD70: =IF('C8C9C10'!B70<>0,'C8C9C10'!B70,"") -> 
AQ71: 40 | AR71: =IF('C5'!B69<>0,'C5'!B69,"") ->  | AT71: C_1 | AU71: =IF('C6'!B69<>0,'C6'!B69,"") ->  | BC71: 49a | BD71: =IF('C8C9C10'!B71<>0,'C8C9C10'!B71,"") -> 
AQ72: 41 | AR72: =IF('C5'!B70<>0,'C5'!B70,"") ->  | AT72: 8D_1 | AU72: =IF('C6'!B70<>0,'C6'!B70,"") ->  | BC72: 50 | BD72: =IF('C8C9C10'!B72<>0,'C8C9C10'!B72,"") -> 
AQ73: 42 | AR73: =IF('C5'!B71<>0,'C5'!B71,"") ->  | AT73: E_1 | AU73: =IF('C6'!B71<>0,'C6'!B71,"") ->  | BC73: 50a | BD73: =IF('C8C9C10'!B73<>0,'C8C9C10'!B73,"") -> 
AQ74: 43 | AR74: =IF('C5'!B72<>0,'C5'!B72,"") -> 153921 | AT74: 9F_1 | AU74: =IF('C6'!B72<>0,'C6'!B72,"") ->  | BC74: 50.1 | BD74: =IF('C8C9C10'!B74<>0,'C8C9C10'!B74,"") -> 
AQ75: 44 | AR75: =IF('C5'!B73<>0,'C5'!B73,"") -> 4739 | AT75: 8 | AU75: =IF('C6'!B73<>0,'C6'!B73,"") ->  | BC75: 51 | BD75: =IF('C8C9C10'!B75<>0,'C8C9C10'!B75,"") -> 
AQ76: 45 | AR76: =IF('C5'!B74<>0,'C5'!B74,"") ->  | AT76: 9 | AU76: =IF('C6'!B74<>0,'C6'!B74,"") ->  | BC76: 52 | BD76: =IF('C8C9C10'!B76<>0,'C8C9C10'!B76,"") -> 
AT77: A_1 | AU77: =IF('C6'!B75<>0,'C6'!B75,"") ->  | BC77: 52.1 | BD77: =IF('C8C9C10'!B77<>0,'C8C9C10'!B77,"") -> 34413
AT78: B_1 | AU78: =IF('C6'!B76<>0,'C6'!B76,"") ->  | BC78: 52.2 | BD78: =IF('C8C9C10'!B78<>0,'C8C9C10'!B78,"") -> 35767
AT79: C_1 | AU79: =IF('C6'!B77<>0,'C6'!B77,"") ->  | BC79: 52.2a | BD79: =IF('C8C9C10'!B79<>0,'C8C9C10'!B79,"") -> 22370
AT80: 10D_1 | AU80: =IF('C6'!B78<>0,'C6'!B78,"") ->  | BC80: 52.3 | BD80: =IF('C8C9C10'!B80<>0,'C8C9C10'!B80,"") -> 
AT81: E_1 | AU81: =IF('C6'!B79<>0,'C6'!B79,"") ->  | BC81: 52.4 | BD81: =IF('C8C9C10'!B81<>0,'C8C9C10'!B81,"") -> 3057
AT82: 11F_1 | AU82: =IF('C6'!B80<>0,'C6'!B80,"") ->  | BC82: 52.5 | BD82: =IF('C8C9C10'!B82<>0,'C8C9C10'!B82,"") -> 5432
AT83: 10 | AU83: =IF('C6'!B81<>0,'C6'!B81,"") ->  | BC83: 52EG | BD83: =IF('C8C9C10'!B83<>0,'C8C9C10'!B83,"") -> 
AT84: 11 | AU84: =IF('C6'!B82<>0,'C6'!B82,"") ->  | BC84: 52QG | BD84: =IF('C8C9C10'!B84<>0,'C8C9C10'!B84,"") -> 
AT85: 13A | AU85: =IF('C6'!B83<>0,'C6'!B83,"") ->  | BC85: 52QL | BD85: =IF('C8C9C10'!B85<>0,'C8C9C10'!B85,"") -> 
AT86: 13B | AU86: =IF('C6'!B84<>0,'C6'!B84,"") ->  | BC86: 53 | BD86: =IF('C8C9C10'!B86<>0,'C8C9C10'!B86,"") -> 
AT87: 13C | AU87: =IF('C6'!B85<>0,'C6'!B85,"") ->  | BC87: 54 | BD87: =IF('C8C9C10'!B87<>0,'C8C9C10'!B87,"") -> computation
AT88: 13D | AU88: =IF('C6'!B86<>0,'C6'!B86,"") -> 
AT89: 13E | AU89: =IF('C6'!B87<>0,'C6'!B87,"") -> 
AT90: 13F | AU90: =IF('C6'!B88<>0,'C6'!B88,"") -> 
AT91: 12 | AU91: =IF('C6'!B89<>0,'C6'!B89,"") -> 
AT92: 13 | AU92: =IF('C6'!B90<>0,'C6'!B90,"") -> 
A94: If this goes beyond this line you will need to change the Range at the end of the 'Sub test_this_case()' as shown below
A95: 'Write Test case sheet
A96: Sheets("tc_template").Range("A1:BJ93").Copy
A97: Worksheets("Test case").Visible = True
A98: Sheets("Test case").Select
A99: Range("A1").Select
A100: Selection.PasteSpecial Paste:=xlValues, Operation:=xlNone, SkipBlanks:= _
A101: False, Transpose:=False
A102: Selection.PasteSpecial Paste:=xlFormats, Operation:=xlNone, SkipBlanks:= _
A103: False, Transpose:=False
A104: Sheets("Test case").Range("A1").Select
A105: Sheets("SA302").Select
A106: End Sub

Sheet target (hidden)
A1: 1 | B1: 2 | C1: 3 | D1: 4 | E1: 5 | F1: 6 | G1: 7 | H1: 8 | I1: 9 | J1: 10 | K1: 11 | L1: 12 | M1: 13 | N1: 14 | O1: 15 | P1: 16 | Q1: 17 | R1: 18 | S1: 19 | T1: 20 | U1: 21 | V1: 22 | W1: 23 | X1: 24 | Y1: 25 | Z1: 26 | AA1: 27 | AB1: 28 | AC1: 29 | AD1: 30 | AE1: 31 | AF1: 32 | AG1: 33 | AH1: 34 | AI1: 35 | AJ1: 36 | AK1: 37 | AL1: 38 | AM1: 39 | AN1: 40 | AO1: 41 | AP1: 42 | AQ1: 43 | AR1: 44 | AS1: 45 | AT1: 46 | AU1: 47 | AV1: 48 | AW1: 49 | AX1: 50 | AY1: 51 | AZ1: 52 | BA1: 53 | BB1: 54 | BC1: 55 | BD1: 56 | BE1: 57 | BF1: 58 | BG1: 59 | BH1: 60 | BI1: 61 | BJ1: 62 | BK1: 63 | BL1: 64 | BM1: 65 | BN1: 66 | BO1: 67 | BP1: 68 | BQ1: 69 | BR1: 70 | BS1: 71
A2: SCH D case | B2: =OR(A97>1,A101>1,A105>1,A109>1,A113>1) -> FALSE
A3: SCH E case | B3: =OR(A85>1,A89>1,A93>1,B16<>"",E16<>"" ) -> TRUE
A4: Coding | B4: FALSE
A5: 252 | B5: =YPD&'INC(1)'!C4 -> YPD1 | C5: =YPD&'INC(1)'!C7 -> YPDTR
A6: INC(1) | B6: I5 | C6: I8
A7: 3 | B7: 2 | C7: 1
B8: =C0!B5 ->  | C8: =C0!B9 -> 1
A9: 1 | B9: =INC&'INC(1)'!C15 -> INC1 | C9: =INC&'INC(1)'!C18 -> INC2 | D9: =INC&'INC(1)'!C21 -> INC3 | E9: =INC&'INC(1)'!I15 -> INC4 | F9: =INC&'INC(1)'!I18 -> INC5 | G9: =INC&'INC(1)'!I21 -> INC6
A10: INC(1) | B10: D16 | C10: D19 | D10: D22 | E10: J16 | F10: J19 | G10: J22
A11: 7 | B11: c | C11: c | D11: c | E11: c | F11: c | G11: c
B12: =C0!B12 ->  | C12: =C0!B13 ->  | D12: =C0!B14 ->  | E12: =C0!B15 ->  | F12: =C0!B16 ->  | G12: =C0!B17 -> 
A13: 252 | B13: =INC&'INC(2)'!C4 -> INC8 | C13: =INC&'INC(2)'!C7 -> INC9 | D13: =INC&'INC(2)'!C10 -> INC10 | E13: =INC&'INC(2)'!C13 -> INC11 | F13: =INC&'INC(2)'!G4 -> INC12 | G13: =INC&'INC(2)'!G7 -> INC13 | H13: =INC&'INC(2)'!G10 -> INC14 | I13: =INC&'INC(2)'!G13 -> INC15 | J13: =INC&'INC(2)'!G16 -> INC16
A14: INC(2) | B14: D5 | C14: D8 | D14: D11 | E14: D14 | F14: H5 | G14: H8 | H14: H11 | I14: H14 | J14: H17
A15: 10 | B15: c | C15: c | D15: c | E15: c | F15: c | G15: c | H15: c | I15: c | J15: c
B16: =C0!B21 -> 6867 | C16: =C0!B22 ->  | D16: =C0!B23 ->  | E16: =C0!B24 -> 2957 | F16: =C0!B25 ->  | G16: =C0!B26 ->  | H16: =C0!B27 ->  | I16: =C0!B28 ->  | J16: =C0!B29 -> 
A17: 1 | B17: =INC&'INC(2)'!C22 -> INC17 | C17: =INC&'INC(2)'!C25 -> INC18 | D17: =INC&'INC(2)'!C28 -> INC19 | E17: =INC&'INC(2)'!G22 -> INC20
A18: INC(2) | B18: D23 | C18: D26 | D18: D29 | E18: H23
A19: 5 | B19: c | C19: c | D19: c | E19: c
B20: =C0!B32 ->  | C20: =C0!B33 ->  | D20: =C0!B34 ->  | E20: =C0!B35 -> 
A21: 1 | B21: =REL&'REL(1)'!C6 -> REL1 | C21: =REL&'REL(1)'!C9 -> REL2 | D21: =REL&'REL(1)'!H6 -> REL3 | E21: =REL&'REL(1)'!H9 -> REL4
A22: REL(1) | B22: D7 | C22: D10 | D22: I7 | E22: I10
A23: 5 | B23: c | C23: c | D23: c | E23: c
B24: =IF(C0!B39=0,"",C0!B39) ->  | C24: =IF(C0!B41=0,"",C0!B41) ->  | D24: =IF(C0!B42=0,"",C0!B42) ->  | E24: =IF(C0!B43=0,"",C0!B43) -> 
A25: 1 | B25: =REL&'REL(1)'!C16 -> REL5 | C25: =REL&'REL(1)'!C22 -> REL7 | D25: =REL&'REL(1)'!H16 -> REL8 | E25: =REL&'REL(1)'!H19 -> REL9 | F25: =REL&'REL(1)'!H22 -> REL10
A26: REL(1) | B26: D17 | C26: D23 | D26: I17 | E26: I20 | F26: I23
A27: 6 | B27: c | C27: c | D27: c | E27: c | F27: c
B28: =IF(C0!B46=0,"",C0!B46) ->  | C28: =IF(C0!B48=0,"",C0!B48) ->  | D28: =IF(C0!B49=0,"",C0!B49) ->  | E28: =IF(C0!B50=0,"",C0!B50) ->  | F28: =IF(C0!B51=0,"",C0!B51) -> 
A29: 1 | B29: =REL&'REL(2)'!C4 -> REL13
A30: REL(2) | B30: N5
A31: 2 | B31: FALSE
B32: =C0!B56="Y" -> FALSE
A33: 1 | B33: =SLR&'REL(2)'!C11 -> SLR1 | C33: =SLR&'REL(2)'!C13 -> SLRPT | D33: =SLR&'REL(2)'!G11 -> SLR2 | E33: =SLR&'REL(2)'!G15 -> SLR3 | F33: =PGLR&'REL(2)'!C17 -> PGLRPT
A34: REL(2) | B34: N12 | C34: N13 | D34: H12 | E34: H16 | F34: N25
A35: 6 | B35: FALSE | C35: 3 | D35: c | E35: c | F35: 2
B36: =C0!B62="Y" -> FALSE | C36: =C0!B63 ->  | D36: =C0!B65 ->  | E36: =C0!B66 ->  | F36: =C0!B64 -> 
A37: 1 | B37: ='REL(2)'!K23&'REL(2)'!C25 -> CBC1
A38: REL(2) | B38: D26
A39: 2 | B39: c
B40: =C0!B69 -> 
A41: 1 | B41: ='REL(2)'!K30&'REL(2)'!C32 -> MAT1-5 | C41: ='REL(2)'!K30&'REL(2)'!C38 -> MATM_O | D41: ='REL(2)'!K30&'REL(2)'!G38 -> MATM_I
A42: REL(2) | B42: N44 | C42: N48 | D42: N49
A43: 4 | B43: FALSE | C43: FALSE | D43: FALSE
B44: =C0!B75="Y" -> FALSE | C44: =C0!B81="Y" -> FALSE | D44: =C0!B82="Y" -> FALSE
A45: 1 | B45: =FIN&'REL(2)'!C45 -> FIN1
A46: REL(2) | B46: D46
A47: 2 | B47: c
B48: =C0!B85 -> 
A49: 1 | B49: =AOI&AOI!C5 -> AOI2 | C49: =AOI&AOI!G7 -> AOI3
A50: AOI | B50: D6 | C50: H8
A51: 3 | B51: c | C51: c
B52: ='C1'!B5 ->  | C52: ='C1'!B6 -> 
A53: 1 | B53: =AOI&AOI!C13 -> AOI4 | C53: =AOI&AOI!C16 -> AOI5 | D53: =AOI&AOI!C19 -> AOI6 | E53: =AOI&AOI!C22 -> AOI7 | F53: =AOI&AOI!G13 -> AOI8 | G53: =AOI&AOI!G16 -> AOI9 | H53: =AOI&AOI!G19 -> AOI10 | I53: =AOI&AOI!G22 -> AOI11
A54: AOI | B54: D14 | C54: D17 | D54: D20 | E54: D23 | F54: H14 | G54: H17 | H54: H20 | I54: H23
A55: 9 | B55: c | C55: c | D55: c | E55: c | F55: c | G55: c | H55: c | I55: c
B56: ='C1'!B10 ->  | C56: ='C1'!B11 ->  | D56: ='C1'!B12 ->  | E56: ='C1'!B13 ->  | F56: ='C1'!B14 ->  | G56: ='C1'!B15 ->  | H56: ='C1'!B16 ->  | I56: ='C1'!B17 -> 
A57: 1 | B57: =AOI&AOI!C28 -> AOI12 | C57: =AOI&AOI!G28 -> AOI13 | D57: =AOI&AOI!G31 -> AOI13.1
A58: AOI | B58: D29 | C58: H29 | D58: H32
A59: 4 | B59: c | C59: c | D59: c
B60: ='C1'!B21 ->  | C60: ='C1'!B22 ->  | D60: ='C1'!B23 -> 
A61: 1 | B61: =ASE&ASE!C5 -> ASE1
A62: ASE | B62: D6
A63: 2 | B63: c
B64: ='C1'!B29 -> 
A65: 1 | B65: =ASE&ASE!C8 -> ASE3 | C65: =ASE&ASE!C11 -> ASE4 | D65: =ASE&ASE!C14 -> ASE5 | E65: =ASE&ASE!C17 -> ASE6
A66: ASE | B66: D9 | C66: D12 | D66: D15 | E66: D18
A67: 5 | B67: c | C67: c | D67: c | E67: c
B68: ='C1'!B33 ->  | C68: ='C1'!B34 ->  | D68: ='C1'!B35 ->  | E68: ='C1'!B36 -> 
A69: 1 | B69: =ASE&ASE!G11 -> ASE11 | C69: =ASE&ASE!G14 -> ASE12 | D69: =ASE&ASE!G17 -> ASE13 | E69: =ASE&ASE!G20 -> ASE15
A70: ASE | B70: H12 | C70: H15 | D70: H18 | E70: H21
A71: 5 | B71: c | C71: c | D71: c | E71: c
B72: ='C1'!B44 ->  | C72: ='C1'!B45 ->  | D72: ='C1'!B46 ->  | E72: ='C1'!B48 -> 
A73: 1 | B73: =AOR&AOR!C5 -> AOR1 | C73: =AOR&AOR!C8 -> AOR2 | D73: =AOR&AOR!C11 -> AOR3 | E73: =AOR&AOR!C14 -> AOR4 | F73: =AOR&AOR!C17 -> AOR5 | G73: =AOR&AOR!C20 -> AOR6 | H73: =AOR&AOR!C23 -> AOR6.1 | I73: =AOR&AOR!G5 -> AOR7 | J73: =AOR&AOR!G8 -> AOR8 | K73: =AOR&AOR!G11 -> AOR9 | L73: =AOR&AOR!G14 -> AOR10 | M73: =AOR&AOR!G17 -> AOR12
A74: AOR | B74: D6 | C74: D9 | D74: D12 | E74: D15 | F74: D18 | G74: D21 | H74: D24 | I74: H6 | J74: H9 | K74: H12 | L74: H15 | M74: H18
A75: 13 | B75: c | C75: c | D75: c | E75: c | F75: c | G75: c | H75: c | I75: c | J75: c | K75: c | L75: c | M75: c
B76: ='C1'!B51 ->  | C76: ='C1'!B52 ->  | D76: ='C1'!B53 ->  | E76: ='C1'!B54 ->  | F76: ='C1'!B55 ->  | G76: ='C1'!B56 ->  | H76: ='C1'!B57 ->  | I76: ='C1'!B58 ->  | J76: ='C1'!B59 ->  | K76: ='C1'!B60 ->  | L76: ='C1'!B61 ->  | M76: ='C1'!B62 -> 
A77: 1 | B77: ="MCA"&MCA!$C$4 -> MCA1 | C77: ="MCA"&MCA!$C$8 -> MCA2 | D77: ="MCA"&MCA!$C$12 -> MCA3 | E77: ="MCA"&MCA!$C$16 -> MCA9
A78: MCA | B78: F5 | C78: F9 | D78: F13 | E78: F17
A79: 5 | B79: 1 | C79: 2 | D79: 1 | E79: 1
B80: =IF(MCA_IND>1,HLOOKUP(MCA_IND-1,MCA_CONTROL_RANGE,2),"") ->  | C80: =IF(MCA_IND>1,HLOOKUP(MCA_IND-1,MCA_CONTROL_RANGE,4),"") ->  | D80: =IF(MCA_IND>1,HLOOKUP(MCA_IND-1,MCA_CONTROL_RANGE,6),"") ->  | E80: =IF(MCA_IND>1,HLOOKUP(MCA_IND-1,MCA_CONTROL_RANGE,8),"") -> 
A81: 1 | B81: =AIL&AIL!C5 -> AIL1 | C81: =AIL&AIL!G5 -> AIL6 | D81: =AIL&AIL!C11 -> AIL10 | E81: =AIL&AIL!C14 -> AIL11 | F81: =AIL&AIL!C17 -> AIL11.1 | G81: =AIL&AIL!C20 -> AIL11.2 | H81: =AIL&AIL!G11 -> AIL13 | I81: =AIL&AIL!G14 -> AIL14 | J81: =AIL&AIL!G17 -> AIL15 | K81: =AIL&AIL!G20 -> AIL16 | L81: =AIL&AIL!G23 -> AIL18
A82: AIL | B82: D6 | C82: H6 | D82: D12 | E82: D15 | F82: D18 | G82: D21 | H82: H12 | I82: H15 | J82: H18 | K82: H21 | L82: H24
A83: 12 | B83: c | C83: c | D83: c | E83: c | F83: c | G83: c | H83: c | I83: c | J83: c | K83: c | L83: c
B84: ='C1'!B88 ->  | C84: ='C1'!B93 ->  | D84: ='C1'!B97 ->  | E84: ='C1'!B98 ->  | F84: ='C1'!B99 ->  | G84: ='C1'!B100 ->  | H84: ='C1'!B102 ->  | I84: ='C1'!B103 ->  | J84: ='C1'!B104 ->  | K84: ='C1'!B105 ->  | L84: ='C1'!B106 -> 
A85: 1 | B85: =EMP&EMP!C4 -> EMP1 | C85: =EMP&EMP!G4 -> EMP1.1 | D85: =EMP&EMP!C7 -> EMP2 | E85: =EMP&EMP!C10 -> EMP3 | F85: =EMP&EMP!G10 -> EMP3.1 | G85: =EMP&EMP!C16 -> EMP9 | H85: =EMP&EMP!C19 -> EMP10 | I85: =EMP&EMP!C22 -> EMP11 | J85: =EMP&EMP!C25 -> EMP12 | K85: =EMP&EMP!G16 -> EMP13 | L85: =EMP&EMP!G19 -> EMP14 | M85: =EMP&EMP!G22 -> EMP15 | N85: =EMP&EMP!G25 -> EMP16 | O85: =EMP&EMP!C30 -> EMP17 | P85: =EMP&EMP!C33 -> EMP18 | Q85: =EMP&EMP!G30 -> EMP19 | R85: =EMP&EMP!G33 -> EMP20
A86: EMP | B86: D5 | C86: H5 | D86: D8 | E86: D11 | F86: H11 | G86: D17 | H86: D20 | I86: D23 | J86: D26 | K86: H17 | L86: H20 | M86: H23 | N86: H26 | O86: D31 | P86: D34 | Q86: H31 | R86: H34
A87: 18 | B87: c | C87: c | D87: c | E87: c | F87: c | G87: c | H87: c | I87: c | J87: c | K87: c | L87: c | M87: c | N87: c | O87: c | P87: c | Q87: c | R87: c
B88: ='C2'!B3 ->  | C88: ='C2'!B4 ->  | D88: ='C2'!B5 ->  | E88: ='C2'!B6 ->  | F88: ='C2'!B7 ->  | G88: ='C2'!B14 ->  | H88: ='C2'!B15 ->  | I88: ='C2'!B16 ->  | J88: ='C2'!B17 ->  | K88: ='C2'!B18 ->  | L88: ='C2'!B19 ->  | M88: ='C2'!B20 ->  | N88: ='C2'!B21 ->  | O88: ='C2'!B22 ->  | P88: ='C2'!B23 ->  | Q88: ='C2'!B24 ->  | R88: ='C2'!B25 -> 
A89: 1 | B89: =EMP&EMP!K4 -> EMP1 | C89: =EMP&EMP!O4 -> EMP1.1 | D89: =EMP&EMP!K7 -> EMP2 | E89: =EMP&EMP!K10 -> EMP3 | F89: =EMP&EMP!O10 -> EMP3.1 | G89: =EMP&EMP!K16 -> EMP9 | H89: =EMP&EMP!K19 -> EMP10 | I89: =EMP&EMP!K22 -> EMP11 | J89: =EMP&EMP!K25 -> EMP12 | K89: =EMP&EMP!O16 -> EMP13 | L89: =EMP&EMP!O19 -> EMP14 | M89: =EMP&EMP!O22 -> EMP15 | N89: =EMP&EMP!O25 -> EMP16 | O89: =EMP&EMP!K30 -> EMP17 | P89: =EMP&EMP!K33 -> EMP18 | Q89: =EMP&EMP!O30 -> EMP19 | R89: =EMP&EMP!O33 -> EMP20
A90: EMP | B90: L5 | C90: P5 | D90: L8 | E90: L11 | F90: P11 | G90: L17 | H90: L20 | I90: L23 | J90: L26 | K90: P17 | L90: P20 | M90: P23 | N90: P26 | O90: L31 | P90: L34 | Q90: P31 | R90: P34
A91: 18 | B91: c | C91: c | D91: c | E91: c | F91: c | G91: c | H91: c | I91: c | J91: c | K91: c | L91: c | M91: c | N91: c | O91: c | P91: c | Q91: c | R91: c
B92: ='C2'!B28 ->  | C92: ='C2'!B29 ->  | D92: ='C2'!B30 ->  | E92: ='C2'!B31 ->  | F92: ='C2'!B32 ->  | G92: ='C2'!B39 ->  | H92: ='C2'!B40 ->  | I92: ='C2'!B41 ->  | J92: ='C2'!B42 ->  | K92: ='C2'!B43 ->  | L92: ='C2'!B44 ->  | M92: ='C2'!B45 ->  | N92: ='C2'!B46 ->  | O92: ='C2'!B47 ->  | P92: ='C2'!B48 ->  | Q92: ='C2'!B49 ->  | R92: ='C2'!B50 -> 
A93: 1 | B93: =MOR&MOR!C8 -> MOR2.1 | C93: =MOR&MOR!C11 -> MOR4.1 | D93: =MOR&MOR!C15 -> MOR6 | E93: =MOR&MOR!C19 -> MOR38 | F93: =MOR&MOR!G11 -> MOR17 | G93: =MOR&MOR!G15 -> MOR19 | H93: =MOR&MOR!G19 -> MOR39
A94: MOR | B94: D9 | C94: D12 | D94: D16 | E94: D20 | F94: H12 | G94: H16 | H94: H20
A95: 8 | B95: c | C95: c | D95: c | E95: c | F95: c | G95: c | H95: c
B96: ='C2'!B55 ->  | C96: ='C2'!B58 ->  | D96: ='C2'!B60 ->  | E96: ='C2'!B92 ->  | F96: ='C2'!B71 ->  | G96: ='C2'!B73 ->  | H96: ='C2'!B93 -> 
A97: 1 | B97: =SSE&SE!C5 -> SSE29 | C97: =SSE&SE!C8 -> SSE31 | D97: =SSE&SE!C11 -> SSE33 | E97: =SSE&SE!C14 -> SSE36 | F97: =SSE&SE!C17 -> SSE37 | G97: =SSE&SE!C20 -> SSE38
A98: SE | B98: D6 | C98: D9 | D98: D12 | E98: L20 | F98: L21 | G98: D21
A99: 7 | B99: c | C99: c | D99: c | E99: FALSE | F99: FALSE | G99: c
B100: ='C3'!B35 ->  | C100: ='C3'!B37 ->  | D100: ='C3'!B39 ->  | E100: ='C3'!B42="Y" -> FALSE | F100: ='C3'!B43="Y" -> FALSE | G100: ='C3'!B44 -> 
A101: 1 | B101: =FSE&SE!G5 -> FSE73.3 | C101: =FSE&SE!G8 -> FSE73.4 | D101: =FSE&SE!G11 -> FSE74 | E101: =FSE&SE!G14 -> FSE76 | F101: =FSE&SE!G17 -> FSE78 | G101: =FSE&SE!G20 -> FSE81 | H101: =FSE&SE!G23 -> FSE82 | I101: =FSE&SE!G26 -> FSE100 | J101: =FSE&SE!G29 -> FSE101 | K101: =FSE&SE!G32 -> FSE102
A102: SE | B102: H6 | C102: H9 | D102: H12 | E102: H15 | F102: H18 | G102: H21 | H102: H24 | I102: M20 | J102: M21 | K102: H33
A103: 11 | B103: c | C103: c | D103: c | E103: c | F103: c | G103: c | H103: c | I103: FALSE | J103: FALSE | K103: c
B104: ='C3'!B123 ->  | C104: ='C3'!B124 ->  | D104: ='C3'!B125 ->  | E104: ='C3'!B127 ->  | F104: ='C3'!B129 ->  | G104: ='C3'!B132 ->  | H104: ='C3'!B133 ->  | I104: ='C3'!B151="Y" -> FALSE | J104: ='C3'!B152="Y" -> FALSE | K104: ='C3'!B153 -> 
A105: 1 | B105: =LUN&LUN!C4 -> LUN4 | C105: =LUN&LUN!C7 -> LUN6 | D105: =LUN&LUN!C13 -> LUN8 | E105: =LUN&LUN!C16 -> LUN9 | F105: =LUN&LUN!G4 -> LUN14 | G105: =LUN&LUN!G7 -> LUN15 | H105: =LUN&LUN!G10 -> LUN16 | I105: =LUN&LUN!G13 -> LUN17 | J105: =LUN&LUN!K4 -> LUN51 | K105: =LUN&LUN!K7 -> LUN52 | L105: =LUN&LUN!K10 -> LUN56 | M105: =LUN&LUN!K13 -> LUN63 | N105: =LUN&LUN!K16 -> LUN64 | O105: =LUN&LUN!K19 -> LUN65
A106: LUN | B106: D5 | C106: D8 | D106: D14 | E106: D17 | F106: H5 | G106: H8 | H106: H11 | I106: H14 | J106: L5 | K106: L8 | L106: L11 | M106: P19 | N106: P20 | O106: L20
A107: 15 | B107: c | C107: c | D107: c | E107: c | F107: c | G107: c | H107: c | I107: c | J107: c | K107: c | L107: c | M107: FALSE | N107: FALSE | O107: c
B108: ='C3'!B160 ->  | C108: ='C3'!B162 ->  | D108: ='C3'!B163 ->  | E108: ='C3'!B164 ->  | F108: ='C3'!B168 ->  | G108: ='C3'!B169 ->  | H108: ='C3'!B170 ->  | I108: ='C3'!B171 ->  | J108: ='C3'!B204 ->  | K108: ='C3'!B205 ->  | L108: ='C3'!B209 ->  | M108: ='C3'!B216="Y" -> FALSE | N108: ='C3'!B217="Y" -> FALSE | O108: ='C3'!B218 -> 
A109: 1 | B109: =SPS&PS!C4 -> SPS17 | C109: =SPS&PS!C7 -> SPS20 | D109: =SPS&PS!C10 -> SPS22 | E109: =SPS&PS!C13 -> SPS25 | F109: =SPS&PS!C16 -> SPS26 | G109: =SPS&PS!C19 -> SPS27 | H109: =SPS&PS!C22 -> SPS28 | I109: =SPS&PS!C25 -> SPS30 | J109: =SPS&PS!C28 -> SPS31
A110: PS | B110: D5 | C110: D8 | D110: D11 | E110: R19 | F110: R20 | G110: D20 | H110: D23 | I110: D26 | J110: D29
A111: 10 | B111: c | C111: c | D111: c | E111: FALSE | F111: FALSE | G111: c | H111: c | I111: c | J111: c
B112: ='C4'!B14 ->  | C112: ='C4'!B17 ->  | D112: ='C4'!B19 ->  | E112: ='C4'!B22="Y" -> FALSE | F112: ='C4'!B23="Y" -> FALSE | G112: ='C4'!B24 ->  | H112: ='C4'!B25 ->  | I112: ='C4'!B26 ->  | J112: ='C4'!B27 -> 
A113: 1 | B113: =FPS&PS!G4 -> FPS16.3 | C113: =FPS&PS!G7 -> FPS16.4 | D113: =FPS&PS!J4 -> FPS17 | E113: =FPS&PS!J7 -> FPS20 | F113: =FPS&PS!G11 -> FPS22 | G113: =FPS&PS!G14 -> FPS25 | H113: =FPS&PS!J14 -> FPS26 | I113: =FPS&PS!M14 -> FPS27 | J113: =FPS&PS!G17 -> FPS35 | K113: =FPS&PS!G20 -> FPS38 | L113: =FPS&PS!J20 -> FPS39 | M113: FPS41 | N113: FPS41.1 | O113: FPS41.2 | P113: =FPS&PS!G29 -> FPS47 | Q113: =FPS&PS!G32 -> FPS58 | R113: FPS60 | S113: FPS63.1 | T113: FPS63.2 | U113: =FPS&PS!G42 -> FPS70 | V113: =FPS&PS!J48 -> FPS73 | W113: =FPS&PS!G45 -> FPS76 | X113: =FPS&PS!G48 -> FPS77 | Y113: =FPS&PS!G51 -> FPS78 | Z113: =FPS&PS!J51 -> FPS79 | AA113: =FPS&PS!M26 -> FPSAF1 | AB113: =FPS&PS!M38 -> FPSAF2
A114: PS | B114: H5 | C114: H8 | D114: K5 | E114: K8 | F114: H12 | G114: S19 | H114: S20 | I114: N15 | J114: H18 | K114: H21 | L114: K21 | M114: H24 | N114: K24 | O114: N24 | P114: H30 | Q114: H33 | R114: H36 | S114: K36 | T114: N36 | U114: H43 | V114: K49 | W114: H46 | X114: H49 | Y114: H52 | Z114: K52 | AA114: N27 | AB114: N39
A115: 28 | B115: c | C115: c | D115: c | E115: c | F115: c | G115: FALSE | H115: FALSE | I115: c | J115: c | K115: c | L115: c | M115: c | N115: c | O115: c | P115: c | Q115: c | R115: c | S115: c | T115: c | U115: c | V115: c | W115: c | X115: c | Y115: c | Z115: c | AA115: c | AB115: c
B116: ='C4'!B47 ->  | C116: ='C4'!B48 ->  | D116: ='C4'!B49 ->  | E116: ='C4'!B52 ->  | F116: ='C4'!B54 ->  | G116: ='C4'!B57="Y" -> FALSE | H116: ='C4'!B58="Y" -> FALSE | I116: ='C4'!B59 ->  | J116: ='C4'!B68 ->  | K116: ='C4'!B71 ->  | L116: ='C4'!B72 ->  | M116: ='C4'!B74 ->  | N116: ='C4'!B75 ->  | O116: ='C4'!B76 ->  | P116: ='C4'!B83 ->  | Q116: ='C4'!B94 ->  | R116: ='C4'!B96 ->  | S116: ='C4'!B100 ->  | T116: ='C4'!B101 ->  | U116: ='C4'!B109 ->  | V116: ='C4'!B112 ->  | W116: ='C4'!B115 ->  | X116: ='C4'!B116 ->  | Y116: ='C4'!B117 ->  | Z116: ='C4'!B118 ->  | AA116: ='C4'!B77 ->  | AB116: ='C4'!B102 -> 
A117: 1 | B117: CL2A | C117: CL2amt | D117: CL2wkamt
A118: NI | B118: D8 | C118: D12 | D118: O23
A119: 4 | B119: c | C119: c | D119: 2
B120: ='C8C9C10'!B159 ->  | C120: ='C8C9C10'!B159 ->  | D120: ='C8C9C10'!B160 -> 
A121: 1 | B121: EMPCL1 | C121: MORCL1
A122: NI | B122: D20 | C122: D27
A123: 3 | B123: c | C123: c
B124: ='C2'!B98 ->  | C124: ='C2'!B101 -> 
A125: 1 | B125: NI2_Vol
A126: NI | B126: O24
A127: 2 | B127: FALSE
B128: ='C8C9C10'!B163="Y" -> FALSE
A129: 1 | B129: NI4_Ex
A130: NI | B130: O25
A131: 2 | B131: FALSE
B132: ='C8C9C10'!B166="Y" -> FALSE
A133: 252 | B133: =PRO&PRO!C7 -> PRO13 | C133: =PRO&PRO!C14 -> PRO13 | D133: =PRO&PRO!C10 -> PRO14 | E133: =PRO&PRO!C17 -> PRO14 | F133: =PRO&PRO!G10 -> PRO15 | G133: =PRO&PRO!G17 -> PRO15 | H133: =PRO&PRO!C21 -> PRO21 | I133: =PRO&PRO!G21 -> PRO22 | J133: =PRO&PRO!G24 -> PRO33 | K133: =PRO&PRO!G27 -> PRO38 | L133: =PRO&PRO!G30 -> PRO39 | M133: =PRO&PRO!G33 -> PRO40 | N133: =PRO&PRO!G36 -> PRO42 | O133: =PRO&PRO!G39 -> PRO44 | P133: =PRO&PRO!G42 -> PRO45
A134: PRO | B134: D8 | C134: D15 | D134: D11 | E134: D18 | F134: H11 | G134: H18 | H134: D22 | I134: H22 | J134: H25 | K134: H28 | L134: H31 | M134: H34 | N134: H37 | O134: H40 | P134: H43
A135: 16 | B135: c | C135: c | D135: c | E135: c | F135: c | G135: c | H135: c | I135: c | J135: c | K135: c | L135: c | M135: c | N135: c | O135: c | P135: c
B136: ='C5'!B18 ->  | C136: ='C5'!B37 ->  | D136: ='C5'!B19 ->  | E136: ='C5'!B38 ->  | F136: ='C5'!B20 ->  | G136: ='C5'!B39 ->  | H136: ='C5'!B47 ->  | I136: ='C5'!B48 ->  | J136: ='C5'!B59 ->  | K136: ='C5'!B67 -> 7447 | L136: ='C5'!B68 -> 7447 | M136: ='C5'!B69 -> 0 | N136: ='C5'!B71 ->  | O136: ='C5'!B73 -> 4739 | P136: ='C5'!B74 -> 
A137: 1 | B137: =FOR&FOR!C10 -> FOR2 | C137: =FOR&FOR!C19 -> FOR3 | D137: =FOR&FOR!G19 -> FOR4 | E137: =FOR&FOR!C22 -> FOR5 | F137: =FOR&FOR!G22 -> FOR6 | G137: =FOR&FOR!C30 -> FOR7.1 | H137: =FOR&FOR!G30 -> FOR7.2 | I137: =FOR&FOR!C33 -> FOR7.3 | J137: =FOR&FOR!G33 -> FOR7.4 | K137: =FOR&FOR!G37 -> FOR7.5 | L137: =FOR&FOR!C40 -> FOR8 | M137: =FOR&FOR!G40 -> FOR9 | N137: =FOR&FOR!C43 -> FOR10 | O137: =FOR&FOR!G43 -> FOR11 | P137: =FOR&FOR!C46 -> FOR12 | Q137: =FOR&FOR!G46 -> FOR13 | R137: =FOR&FOR!C50 -> FOR13.1 | S137: =FOR&FOR!G50 -> FOR13.2 | T137: =FOR&FOR!K5 -> FOR24 | U137: =FOR&FOR!O5 -> FOR24.1 | V137: =FOR&FOR!O8 -> FOR24.2 | W137: =FOR&FOR!K10 -> FOR26 | X137: =FOR&FOR!O11 -> FOR27 | Y137: =FOR&FOR!K15 -> FOR29 | Z137: =FOR&FOR!O15 -> FOR30 | AA137: =FOR&FOR!K19 -> FOR31 | AB137: =FOR&FOR!O19 -> FOR32 | AC137: =FOR&FOR!K25 -> FOR39 | AD137: =FOR&FOR!O25 -> FOR40 | AE137: =FOR&FOR!K33 -> FOR41 | AF137: =FOR&FOR!K37 -> FOR42 | AG137: =FOR&FOR!K40 -> FOR43 | AH137: =FOR&FOR!O33 -> FOR44 | AI137: =FOR&FOR!O37 -> FOR45 | AJ137: Swiss
A138: FOR | B138: D11 | C138: D20 | D138: H20 | E138: D23 | F138: H23 | G138: D31 | H138: H31 | I138: D34 | J138: H34 | K138: H38 | L138: D41 | M138: H41 | N138: D44 | O138: H44 | P138: D47 | Q138: H47 | R138: D51 | S138: H51 | T138: L6 | U138: P6 | V138: P9 | W138: L11 | X138: P12 | Y138: L16 | Z138: P16 | AA138: L20 | AB138: P20 | AC138: L26 | AD138: P26 | AE138: L34 | AF138: L38 | AG138: L41 | AH138: P34 | AI138: P38 | AJ138: S20
A139: 36 | B139: c | C139: c | D139: c | E139: c | F139: c | G139: c | H139: c | I139: c | J139: c | K139: c | L139: c | M139: c | N139: c | O139: c | P139: c | Q139: c | R139: c | S139: c | T139: c | U139: c | V139: c | W139: c | X139: c | Y139: c | Z139: c | AA139: c | AB139: c | AC139: c | AD139: c | AE139: c | AF139: c | AG139: c | AH139: c | AI139: c | AJ139: FALSE
B140: ='C6'!B3 ->  | C140: ='C6'!B16 ->  | D140: ='C6'!B17 ->  | E140: ='C6'!B48 ->  | F140: ='C6'!B49 ->  | G140: ='C6'!B56 ->  | H140: ='C6'!B57 ->  | I140: ='C6'!B64 ->  | J140: ='C6'!B65 ->  | K140: ='C6'!B66 ->  | L140: ='C6'!B73 ->  | M140: ='C6'!B74 ->  | N140: ='C6'!B81 ->  | O140: ='C6'!B82 ->  | P140: ='C6'!B89 ->  | Q140: ='C6'!B90 ->  | R140: ='C6'!B91 ->  | S140: ='C6'!B92 ->  | T140: ='C6'!B108 ->  | U140: ='C6'!B109 ->  | V140: ='C6'!B110 ->  | W140: ='C6'!B118 ->  | X140: ='C6'!B119 ->  | Y140: ='C6'!B121 ->  | Z140: ='C6'!B122 ->  | AA140: ='C6'!B123 ->  | AB140: ='C6'!B124 ->  | AC140: ='C6'!B147 ->  | AD140: ='C6'!B148 ->  | AE140: ='C6'!B149 ->  | AF140: ='C6'!B150 ->  | AG140: ='C6'!B151 ->  | AH140: ='C6'!B152 ->  | AI140: ='C6'!B153 -> 
A141: 1 | B141: item 1 country | C141: item 1 type | D141: item 1 rate | E141: item 1 inc | F141: item 1 tax | G141: item 1 dedn | H141: item 1 ftcr | I141: item 2 country | J141: item 2 type | K141: item 2 rate | L141: item 2 inc | M141: item 2 tax | N141: item 2 dedn | O141: item 2 ftcr | P141: item 3 country | Q141: item 3 type | R141: item 3 rate | S141: item 3 inc | T141: item 3 tax | U141: item 3 dedn | V141: item 3 ftcr | W141: item 4 country | X141: item 4 type | Y141: item 4 rate | Z141: item 4 inc | AA141: item 4 tax | AB141: item 4 dedn | AC141: item 4 ftcr | AD141: item 5 country | AE141: item 5 type | AF141: item 5 rate | AG141: item 5 inc | AH141: item 5 tax | AI141: item 5 dedn | AJ141: item 5 ftcr | AK141: item 6 country | AL141: item 6 type | AM141: item 6 rate | AN141: item 6 inc | AO141: item 6 tax | AP141: item 6 dedn | AQ141: item 6 ftcr | AR141: item 7 country | AS141: item 7 type | AT141: item 7 rate | AU141: item 7 inc | AV141: item 7 tax | AW141: item 7 dedn | AX141: item 7 ftcr | AY141: item 8 country | AZ141: item 8 type | BA141: item 8 rate | BB141: item 8 inc | BC141: item 8 tax | BD141: item 8 dedn | BE141: item 8 ftcr | BF141: item 9 country | BG141: item 9 type | BH141: item 9 rate | BI141: item 9 inc | BJ141: item 9 tax | BK141: item 9 dedn | BL141: item 9 ftcr | BM141: item 10 country | BN141: item 10 type | BO141: item 10 rate | BP141: item 10 inc | BQ141: item 10 tax | BR141: item 10 dedn | BS141: item 10 ftcr
A142: FTCR | B142: E10 | C142: R11 | D142: T11 | E142: G10 | F142: I10 | G142: M10 | H142: I12 | I142: E14 | J142: R12 | K142: T12 | L142: G14 | M142: I14 | N142: M14 | O142: I16 | P142: E18 | Q142: R13 | R142: T13 | S142: G18 | T142: I18 | U142: M18 | V142: I20 | W142: E22 | X142: R14 | Y142: T14 | Z142: G22 | AA142: I22 | AB142: M22 | AC142: I24 | AD142: E26 | AE142: R15 | AF142: T15 | AG142: G26 | AH142: I26 | AI142: M26 | AJ142: I28 | AK142: E30 | AL142: R16 | AM142: T16 | AN142: G30 | AO142: I30 | AP142: M30 | AQ142: I32 | AR142: E34 | AS142: R17 | AT142: T17 | AU142: G34 | AV142: I34 | AW142: M34 | AX142: I36 | AY142: E38 | AZ142: R18 | BA142: T18 | BB142: G38 | BC142: I38 | BD142: M38 | BE142: I40 | BF142: E42 | BG142: R19 | BH142: T19 | BI142: G42 | BJ142: I42 | BK142: M42 | BL142: I44 | BM142: E46 | BN142: R20 | BO142: T20 | BP142: G46 | BQ142: I46 | BR142: M46 | BS142: I48
A143: 71 | B143: c | C143: 1 | D143: 1 | E143: c | F143: c | G143: c | H143: c | I143: c | J143: 1 | K143: 1 | L143: c | M143: c | N143: c | O143: c | P143: c | Q143: 1 | R143: 1 | S143: c | T143: c | U143: c | V143: c | W143: c | X143: 1 | Y143: 1 | Z143: c | AA143: c | AB143: c | AC143: c | AD143: c | AE143: 1 | AF143: 1 | AG143: c | AH143: c | AI143: c | AJ143: c | AK143: c | AL143: 1 | AM143: 1 | AN143: c | AO143: c | AP143: c | AQ143: c | AR143: c | AS143: 1 | AT143: 1 | AU143: c | AV143: c | AW143: c | AX143: c | AY143: c | AZ143: 1 | BA143: 1 | BB143: c | BC143: c | BD143: c | BE143: c | BF143: c | BG143: 1 | BH143: 1 | BI143: c | BJ143: c | BK143: c | BL143: c | BM143: c | BN143: 1 | BO143: 1 | BP143: c | BQ143: c | BR143: c | BS143: c
B144: ='C6'!B166 ->  | C144: ='C6'!B164 ->  | D144: ='C6'!B165 ->  | E144: ='C6'!B167 ->  | F144: ='C6'!B168 ->  | I144: ='C6'!B171 ->  | J144: ='C6'!B169 ->  | K144: ='C6'!B170 ->  | L144: ='C6'!B172 ->  | M144: ='C6'!B173 ->  | P144: ='C6'!B176 ->  | Q144: ='C6'!B174 ->  | R144: ='C6'!B175 ->  | S144: ='C6'!B177 ->  | T144: ='C6'!B178 ->  | W144: ='C6'!B181 ->  | X144: ='C6'!B179 ->  | Y144: ='C6'!B180 ->  | Z144: ='C6'!B182 ->  | AA144: ='C6'!B183 ->  | AD144: ='C6'!B186 ->  | AE144: ='C6'!B184 ->  | AF144: ='C6'!B185 ->  | AG144: ='C6'!B187 ->  | AH144: ='C6'!B188 ->  | AK144: ='C6'!B191 ->  | AL144: ='C6'!B189 ->  | AM144: ='C6'!B190 ->  | AN144: ='C6'!B192 ->  | AO144: ='C6'!B193 ->  | AR144: ='C6'!B196 ->  | AS144: ='C6'!B194 ->  | AT144: ='C6'!B195 ->  | AU144: ='C6'!B197 ->  | AV144: ='C6'!B198 ->  | AY144: ='C6'!B201 ->  | AZ144: ='C6'!B199 ->  | BA144: ='C6'!B200 ->  | BB144: ='C6'!B202 ->  | BC144: ='C6'!B203 ->  | BF144: ='C6'!B206 ->  | BG144: ='C6'!B204 ->  | BH144: ='C6'!B205 ->  | BI144: ='C6'!B207 ->  | BJ144: ='C6'!B208 ->  | BM144: ='C6'!B211 ->  | BN144: ='C6'!B209 ->  | BO144: ='C6'!B210 ->  | BP144: ='C6'!B212 ->  | BQ144: ='C6'!B213 -> 
A145: 1 | B145: =TRU&TRU!C6 -> TRU1 | C145: =TRU&TRU!G6 -> TRU2 | D145: =TRU&TRU!C11 -> TRU3 | E145: =TRU&TRU!C15 -> TRU4 | F145: =TRU&TRU!G11 -> TRU5 | G145: =TRU&TRU!C20 -> TRU7 | H145: =TRU&TRU!C24 -> TRU8 | I145: =TRU&TRU!C28 -> TRU9 | J145: =TRU&TRU!C32 -> TRU10 | K145: =TRU&TRU!G20 -> TRU11 | L145: =TRU&TRU!G24 -> TRU12 | M145: =TRU&TRU!G28 -> TRU13 | N145: =TRU&TRU!G32 -> TRU14 | O145: =TRU&TRU!G36 -> TRU15 | P145: =TRU&TRU!K6 -> TRU16 | Q145: =TRU&TRU!K11 -> TRU17 | R145: =TRU&TRU!K15 -> TRU18 | S145: =TRU&TRU!K20 -> TRU18.1 | T145: =TRU&TRU!O6 -> TRU19 | U145: =TRU&TRU!K28 -> TRU22 | V145: =TRU&TRU!O28 -> TRU23 | W145: =TRU&TRU!K35 -> TRU24 | X145: TRU25 | Y145: TRU25.1
A146: TRU | B146: D7 | C146: H7 | D146: D12 | E146: D16 | F146: H12 | G146: D21 | H146: D25 | I146: D29 | J146: D33 | K146: H21 | L146: H25 | M146: H29 | N146: H33 | O146: H37 | P146: L7 | Q146: L12 | R146: L16 | S146: L21 | T146: P7 | U146: L29 | V146: P29 | W146: L36 | X146: L41 | Y146: P44
A147: 25 | B147: c | C147: c | D147: c | E147: c | F147: c | G147: c | H147: c | I147: c | J147: c | K147: c | L147: c | M147: c | N147: c | O147: c | P147: c | Q147: c | R147: c | S147: c | T147: c | U147: c | V147: c | W147: c | X147: c | Y147: c
B148: ='C7'!B2 ->  | C148: ='C7'!B3 ->  | D148: ='C7'!B4 ->  | E148: ='C7'!B5 ->  | F148: ='C7'!B6 ->  | G148: ='C7'!B8 ->  | H148: ='C7'!B9 ->  | I148: ='C7'!B10 ->  | J148: ='C7'!B11 ->  | K148: ='C7'!B12 ->  | L148: ='C7'!B13 ->  | M148: ='C7'!B14 ->  | N148: ='C7'!B15 ->  | O148: ='C7'!B16 ->  | P148: ='C7'!B17 ->  | Q148: ='C7'!B18 ->  | R148: ='C7'!B19 ->  | S148: ='C7'!B20 ->  | T148: ='C7'!B21 ->  | U148: ='C7'!B22 ->  | V148: ='C7'!B23 ->  | W148: ='C7'!B24 ->  | X148: ='C7'!B25 ->  | Y148: ='C7'!B26 -> 
A149: 252 | B149: =CGT&CGT!C4 -> CGT6 | C149: =CGT&CGT!C7 -> CGT7 | D149: =CGT&CGT!G4 -> CGT10 | E149: =CGT&CGT!G7 -> CGT12 | F149: =CGT&CGT!C10 -> CGT13B | G149: =CGT&CGT!C15 -> CGT13.4 | H149: =CGT&CGT!C18 -> CGT13.4a | I149: =CGT&CGT!C21 -> CGT13.5 | J149: =CGT&CGT!G15 -> CGT13.8 | K149: =CGT&CGT!C26 -> CGT17 | L149: =CGT&CGT!C29 -> CGT17a | M149: =CGT&CGT!C33 -> CGT18 | N149: ="CGT"&CGT!C36 -> CGT18a | O149: =CGT&CGT!G26 -> CGT19 | P149: =CGT&CGT!G36 -> CGT22 | Q149: =CGT&CGT!C40 -> CGT26 | R149: =CGT&CGT!C43 -> CGT26a | S149: =CGT&CGT!G40 -> CGT27 | T149: =CGT&CGT!G43 -> CGT30 | U149: =CGT&CGT!C47 -> CGT34 | V149: ="CGT"&CGT!C50 -> CGT34a | W149: =CGT&CGT!C53 -> CGT35 | X149: =CGT&CGT!G53 -> CGT38 | Y149: =CGT&CGT!C56 -> CGT41 | Z149: =CGT&CGT!C59 -> CGT42 | AA149: =CGT&CGT!G59 -> CGT43 | AB149: =CGT&CGT!L4 -> CGT45 | AC149: =CGT&CGT!P4 -> CGT46 | AD149: =CGT&CGT!P8 -> CGT48 | AE149: =CGT&CGT!P11 -> CGT49 | AF149: ="CGT"&CGT!P14 -> CGT49a | AG149: =CGT&CGT!P18 -> CGT50 | AH149: ="CGT"&CGT!P21 -> CGT50a | AI149: =CGT&CGT!L25 -> CGT51 | AJ149: =CGT&CGT!P25 -> CGT52 | AK149: =CGT&CGT!L33 -> CGT52.1 | AL149: =CGT&CGT!L41 -> CGT52.2 | AM149: ="CGT"&CGT!L44 -> CGT52.2a | AN149: =CGT&CGT!P33 -> CGT52.3 | AO149: =CGT&CGT!P37 -> CGT52.4 | AP149: =CGT&CGT!P41 -> CGT52.5
A150: CGT | B150: D5 | C150: D8 | D150: H5 | E150: H8 | F150: D11 | G150: D16 | H150: D19 | I150: D22 | J150: H16 | K150: D27 | L150: D30 | M150: D34 | N150: D37 | O150: H27 | P150: H37 | Q150: D41 | R150: D44 | S150: H41 | T150: H44 | U150: D48 | V150: D51 | W150: D54 | X150: H54 | Y150: D57 | Z150: D60 | AA150: H60 | AB150: M5 | AC150: Q5 | AD150: Q9 | AE150: Q12 | AF150: Q15 | AG150: Q19 | AH150: Q22 | AI150: M26 | AJ150: Q26 | AK150: M34 | AL150: M42 | AM150: M45 | AN150: W31 | AO150: Q38 | AP150: Q42
A151: 42 | B151: c | C151: c | D151: c | E151: c | F151: c | G151: c | H151: c | I151: c | J151: c | K151: c | L151: c | M151: c | N151: c | O151: c | P151: c | Q151: c | R151: c | S151: c | T151: c | U151: c | V151: c | W151: c | X151: c | Y151: c | Z151: c | AA151: c | AB151: c | AC151: c | AD151: c | AE151: c | AF151: c | AG151: c | AH151: c | AI151: c | AJ151: c | AK151: c | AL151: c | AM151: c | AN151: FALSE | AO151: c | AP151: c
B152: ='C8C9C10'!B8 -> 55893 | C152: ='C8C9C10'!B9 ->  | D152: ='C8C9C10'!B12 ->  | E152: ='C8C9C10'!B14 ->  | F152: ='C8C9C10'!B17 ->  | G152: ='C8C9C10'!B21 ->  | H152: ='C8C9C10'!B22 ->  | I152: ='C8C9C10'!B23 ->  | J152: ='C8C9C10'!B26 ->  | K152: ='C8C9C10'!B30 -> 58025 | L152: ='C8C9C10'!B31 ->  | M152: ='C8C9C10'!B36 ->  | N152: ='C8C9C10'!B37 ->  | O152: ='C8C9C10'!B38 ->  | P152: ='C8C9C10'!B41 ->  | Q152: ='C8C9C10'!B45 -> 0 | R152: ='C8C9C10'!B46 ->  | S152: ='C8C9C10'!B47 -> 22000 | T152: ='C8C9C10'!B50 ->  | U152: ='C8C9C10'!B54 ->  | V152: ='C8C9C10'!B55 ->  | W152: ='C8C9C10'!B56 ->  | X152: ='C8C9C10'!B59 ->  | Y152: ='C8C9C10'!B62 ->  | Z152: ='C8C9C10'!B63 ->  | AA152: ='C8C9C10'!B64 ->  | AB152: ='C8C9C10'!B66 ->  | AC152: ='C8C9C10'!B67 ->  | AD152: ='C8C9C10'!B69 ->  | AE152: ='C8C9C10'!B70 ->  | AF152: ='C8C9C10'!B71 ->  | AG152: ='C8C9C10'!B72 ->  | AH152: ='C8C9C10'!B73 ->  | AI152: ='C8C9C10'!B75 ->  | AJ152: ='C8C9C10'!B76 ->  | AK152: ='C8C9C10'!B77 -> 34413 | AL152: ='C8C9C10'!B78 -> 35767 | AM152: ='C8C9C10'!B79 -> 22370 | AN152: ='C8C9C10'!B80="Y" -> FALSE | AO152: ='C8C9C10'!B81 -> 3057 | AP152: ='C8C9C10'!B82 -> 5432
A153: 1 | B153: =NRD&NRD!C5 -> NRD1 | C153: =NRD&NRD!C9 -> NRD15 | D153: =NRD&NRD!C12 -> NRD16 | E153: =NRD&NRD!D16 -> NRD20 | F153: =NRD&NRD!D19 -> NRD21 | G153: =NRD&NRD!D22 -> NRD22 | H153: NRCAL | I153: =NRD&NRD!H5 -> NRD28 | J153: =NRD&NRD!H8 -> NRD29 | K153: =NRD&NRD!H11 -> NRD30 | L153: =NRD&NRD!H14 -> NRD31 | M153: =NRD&NRD!H17 -> NRD32 | N153: =NRD&NRD!H20 -> NRD33 | O153: =NRD&NRD!K20 -> NRD34 | P153: =NRD&NRD!H23 -> NRD35 | Q153: =NRD&NRD!K23 -> NRD36
A154: NRD | B154: Q4 | C154: Q8 | D154: Q9 | E154: E17 | F154: E20 | G154: E23 | H154: Q6 | I154: Q10 | J154: Q11 | K154: Q12 | L154: Q13 | M154: Q14 | N154: Q15 | O154: L21 | P154: I24 | Q154: L24
A155: 17 | B155: FALSE | C155: FALSE | D155: FALSE | E155: c | F155: c | G155: c | H155: FALSE | I155: FALSE | J155: FALSE | K155: FALSE | L155: FALSE | M155: FALSE | N155: FALSE | O155: c | P155: c | Q155: c
B156: ='C8C9C10'!B90="Y" -> FALSE | C156: ='C8C9C10'!B106="Y" -> FALSE | D156: ='C8C9C10'!B107="Y" -> FALSE | E156: ='C8C9C10'!B111 ->  | F156: ='C8C9C10'!B112 ->  | G156: ='C8C9C10'!B113 ->  | H156: FALSE | I156: ='C8C9C10'!B122="Y" -> FALSE | J156: ='C8C9C10'!B123="Y" -> FALSE | K156: ='C8C9C10'!B124="Y" -> FALSE | L156: ='C8C9C10'!B125="Y" -> FALSE | M156: ='C8C9C10'!B126="Y" -> FALSE | N156: ='C8C9C10'!B127="Y" -> FALSE | O156: ='C8C9C10'!B128 ->  | P156: ='C8C9C10'!B129 ->  | Q156: ='C8C9C10'!B130 -> 
A157: 1 | B157: =CAL&CAL!C6 -> CAL7 | C157: =CAL&CAL!C9 -> CAL8 | D157: =CAL&CAL!G9 -> CAL9 | E157: =CAL&CAL!C14 -> CAL10 | F157: =CAL&CAL!G14 -> CAL11 | G157: =CAL&CAL!C19 -> CAL12 | H157: =CAL&CAL!G19 -> CAL13 | I157: =CAL&CAL!C22 -> CAL14 | J157: =CAL&CAL!G22 -> CAL15 | K157: =CAL&CAL!G25 -> CAL16
A158: CAL | B158: D7 | C158: D10 | D158: H10 | E158: K15 | F158: H15 | G158: D20 | H158: H20 | I158: D23 | J158: H23 | K158: H26
A159: 11 | B159: c | C159: c | D159: c | E159: FALSE | F159: c | G159: c | H159: c | I159: c | J159: c | K159: c
B160: ='C8C9C10'!B145 ->  | C160: ='C8C9C10'!B146 ->  | D160: ='C8C9C10'!B147 ->  | E160: ='C8C9C10'!B148 ->  | F160: ='C8C9C10'!B149 ->  | G160: ='C8C9C10'!B150 ->  | H160: ='C8C9C10'!B151 ->  | I160: ='C8C9C10'!B152 ->  | J160: ='C8C9C10'!B153 ->  | K160: ='C8C9C10'!B154 -> 
I161: SA151 | J161: In-Year | K161: EMP | L161: MOR | M161: SE | N161: LUN | O161: PS | P161: NI | Q161: PRO | R161: FOR | S161: FTCR | T161: TRU | U161: CGT | V161: NRD | W161: CAL | X161: AOI | Y161: ASE | Z161: AOR | AA161: MCA | AB161: AIL
A162: Add pages | B162: C4 | C162: C5 | D162: C6 | E162: C7 | F162: G5 | G162: I5 | H162: I36 | I162: M24 | J162: M35 | K162: N7 | L162: N8 | M162: N9 | N162: N10 | O162: N11 | P162: N12 | Q162: P7 | R162: P8 | S162: P8 | T162: P9 | U162: P10 | V162: P11 | W162: P12 | X162: R7 | Y162: R8 | Z162: R9 | AA162: R10 | AB162: R11
A163: 28 | B163: c | C163: c | D163: c | E163: c | F163: c | G163: c | H163: c | I163: FALSE | J163: FALSE | K163: FALSE | L163: FALSE | M163: FALSE | N163: FALSE | O163: FALSE | P163: FALSE | Q163: FALSE | R163: FALSE | S163: FALSE | T163: FALSE | U163: FALSE | V163: FALSE | W163: FALSE | X163: FALSE | Y163: FALSE | Z163: FALSE | AA163: FALSE | AB163: FALSE
K164: =OR(EMP_A_IND>1, EMP_B_IND>1) -> FALSE | L164: =MOR_IND>1 -> FALSE | M164: =OR(SE_A_IND>1,SE_B_IND>1) -> FALSE | N164: =LUN_IND>1 -> FALSE | O164: =OR(PS_A_IND>1,PS_B_IND>1) -> FALSE | P164: =OR(NI2_IND>1,NI1_IND>1,NI2Vol_IND>1,NI4Ex_IND>1) -> FALSE | Q164: =PRO_IND>1 -> TRUE | R164: =FOR_IND>1 -> FALSE | S164: =TCR_IND>1 -> FALSE | T164: =TRU_IND>1 -> FALSE | U164: =CGT_IND>1 -> TRUE | V164: =NRD_IND>1 -> FALSE | W164: =CAL_IND>1 -> FALSE | X164: =OR(AOI_A_IND>1,AOI_B_IND> 1,AOI_C_IND> 1) -> FALSE | Y164: =OR(ASE_A_IND>1,ASE_B_IND> 1,ASE_C_IND> 1) -> FALSE | Z164: =AOR_IND>1 -> FALSE | AA164: =MCA_IND>1 -> FALSE | AB164: =AIL_IND>1 -> FALSE
B165: DoB | C165: View | D165: TC ref | E165: FIN1
A166: Selector | B166: A24 | C166: A34 | D166: F4 | E166: H4
A167: 5 | B167: 7 | C167: FALSE | D167: c | E167: c
B169: Nic X | C169: NIC2 Vol
A170: More Select | B170: A21 | C170: A23
A171: 3 | B171: FALSE | C171: FALSE

Sheet C0 (hidden)
E1: 1 | F1: 2 | G1: 3 | H1: 4 | I1: 5 | J1: 6 | K1: 7 | L1: 8 | M1: 9 | N1: 10 | O1: 11 | P1: 12 | Q1: 13 | R1: 14 | S1: 15 | T1: 16 | U1: 17 | V1: 18 | W1: 19 | X1: 20 | Y1: 21 | Z1: 22 | AA1: 23 | AB1: 24 | AC1: 25 | AD1: 26 | AE1: 27 | AF1: 28 | AG1: 29 | AH1: 30 | AI1: 31 | AJ1: 32 | AK1: 33 | AL1: 34 | AM1: 35 | AN1: 36 | AO1: 37 | AP1: 38 | AQ1: 39 | AR1: 40 | AS1: 41 | AT1: 42 | AU1: 43 | AV1: 44 | AW1: 45 | AX1: 46 | AY1: 47 | AZ1: 48 | BA1: 49 | BB1: 50 | BC1: 51 | BD1: 52 | BE1: 53 | BF1: 54 | BG1: 55 | BH1: 56 | BI1: 57 | BJ1: 58 | BK1: 59 | BL1: 60 | BM1: 61 | BN1: 62 | BO1: 63 | BP1: 64 | BQ1: 65 | BR1: 66 | BS1: 67 | BT1: 68 | BU1: 69 | BV1: 70 | BW1: 71 | BX1: 72 | BY1: 73 | BZ1: 74 | CA1: 75 | CB1: 76 | CC1: 77 | CD1: 78 | CE1: 79 | CF1: 80 | CG1: 81 | CH1: 82 | CI1: 83 | CJ1: 84 | CK1: 85 | CL1: 86 | CM1: 87 | CN1: 88 | CO1: 89 | CP1: 90 | CQ1: 91 | CR1: 92 | CS1: 93 | CT1: 94 | CU1: 95 | CV1: 96 | CW1: 97 | CX1: 98 | CY1: 99 | CZ1: 100 | DA1: 101 | DB1: 102 | DC1: 103 | DD1: 104 | DE1: 105 | DF1: 106 | DG1: 107 | DH1: 108 | DI1: 109 | DJ1: 110 | DK1: 111 | DL1: 112 | DM1: 113 | DN1: 114 | DO1: 115 | DP1: 116 | DQ1: 117 | DR1: 118 | DS1: 119 | DT1: 120 | DU1: 121 | DV1: 122 | DW1: 123 | DX1: 124 | DY1: 125 | DZ1: 126 | EA1: 127 | EB1: 128 | EC1: 129 | ED1: 130 | EE1: 131 | EF1: 132 | EG1: 133 | EH1: 134 | EI1: 135 | EJ1: 136 | EK1: 137 | EL1: 138 | EM1: 139 | EN1: 140 | EO1: 141 | EP1: 142 | EQ1: 143 | ER1: 144 | ES1: 145 | ET1: 146 | EU1: 147 | EV1: 148 | EW1: 149 | EX1: 150 | EY1: 151 | EZ1: 152 | FA1: 153 | FB1: 154 | FC1: 155 | FD1: 156 | FE1: 157 | FF1: 158 | FG1: 159 | FH1: 160 | FI1: 161 | FJ1: 162 | FK1: 163 | FL1: 164 | FM1: 165 | FN1: 166 | FO1: 167 | FP1: 168 | FQ1: 169 | FR1: 170 | FS1: 171 | FT1: 172 | FU1: 173 | FV1: 174 | FW1: 175 | FX1: 176 | FY1: 177 | FZ1: 178 | GA1: 179 | GB1: 180 | GC1: 181 | GD1: 182 | GE1: 183 | GF1: 184 | GG1: 185 | GH1: 186 | GI1: 187 | GJ1: 188 | GK1: 189 | GL1: 190 | GM1: 191 | GN1: 192 | GO1: 193 | GP1: 194 | GQ1: 195 | GR1: 196 | GS1: 197 | GT1: 198 | GU1: 199 | GV1: 200 | GW1: 201 | GX1: 202 | GY1: 203 | GZ1: 204 | HA1: 205 | HB1: 206 | HC1: 207 | HD1: 208 | HE1: 209 | HF1: 210 | HG1: 211 | HH1: 212 | HI1: 213 | HJ1: 214 | HK1: 215 | HL1: 216 | HM1: 217 | HN1: 218 | HO1: 219 | HP1: 220 | HQ1: 221 | HR1: 222 | HS1: 223 | HT1: 224 | HU1: 225 | HV1: 226 | HW1: 227 | HX1: 228 | HY1: 229 | HZ1: 230 | IA1: 231 | IB1: 232 | IC1: 233 | ID1: 234 | IE1: 235 | IF1: 236 | IG1: 237 | IH1: 238 | II1: 239 | IJ1: 240 | IK1: 241 | IL1: 242 | IM1: 243 | IN1: 244 | IO1: 245 | IP1: 246 | IQ1: 247 | IR1: 248 | IS1: 249 | IT1: 250 | IU1: 251 | IV1: 252 | IW1: 253 | IX1: 254 | IY1: 255 | IZ1: 256 | JA1: 257 | JB1: 258 | JC1: 259 | JD1: 260 | JE1: 261 | JF1: 262 | JG1: 263 | JH1: 264 | JI1: 265 | JJ1: 266 | JK1: 267 | JL1: 268 | JM1: 269 | JN1: 270 | JO1: 271 | JP1: 272 | JQ1: 273 | JS1: Validation | JT1: Type
C2: Your personal details | JS2: Validation
A3: row | B3: ="selected "&YPD_IND-1 -> selected 251 | C3: YPD | E3: 1 | F3: 2 | G3: 3 | H3: 4 | I3: 5 | J3: 6 | K3: 7 | L3: 8 | M3: 9 | N3: 10 | O3: 11 | P3: 12 | Q3: 13 | R3: 14 | S3: 15 | T3: 16 | U3: 17 | V3: 18 | W3: 19 | X3: 20 | Y3: 21 | Z3: 22 | AA3: 23 | AB3: 24 | AC3: 25 | AD3: 26 | AE3: 27 | AF3: 28 | AG3: 29 | AH3: 30 | AI3: 31 | AJ3: 32 | AK3: 33 | AL3: 34 | AM3: 35 | AN3: 36 | AO3: 37 | AP3: 38 | AQ3: 39 | AR3: 40 | AS3: 41 | AT3: 42 | AU3: 43 | AV3: 44 | AW3: 45 | AX3: 46 | AY3: 47 | AZ3: 48 | BA3: 49 | BB3: 50 | BC3: 51 | BD3: 52 | BE3: 53 | BF3: 54 | BG3: 55 | BH3: 56 | BI3: 57 | BJ3: 58 | BK3: 59 | BL3: 60 | BM3: 61 | BN3: 62 | BO3: 63 | BP3: 64 | BQ3: 65 | BR3: 66 | BS3: 67 | BT3: 68 | BU3: 69 | BV3: 70 | BW3: 71 | BX3: 72 | BY3: 73 | BZ3: 74 | CA3: 75 | CB3: 76 | CC3: 77 | CD3: 78 | CE3: 79 | CF3: 80 | CG3: 81 | CH3: 82 | CI3: 83 | CJ3: 84 | CK3: 85 | CL3: 86 | CM3: 87 | CN3: 88 | CO3: 89 | CP3: 90 | CQ3: 91 | CR3: 92 | CS3: 93 | CT3: 94 | CU3: 95 | CV3: 96 | CW3: 97 | CX3: 98 | CY3: 99 | CZ3: 100 | DA3: 101 | DB3: 102 | DC3: 103 | DD3: 104 | DE3: 105 | DF3: 106 | DG3: 107 | DH3: 108 | DI3: 109 | DJ3: 110 | DK3: 111 | DL3: 112 | DM3: 113 | DN3: 114 | DO3: 115 | DP3: 116 | DQ3: 117 | DR3: 118 | DS3: 119 | DT3: 120 | DU3: 121 | DV3: 122 | DW3: 123 | DX3: 124 | DY3: 125 | DZ3: 126 | EA3: 127 | EB3: 128 | EC3: 129 | ED3: 130 | EE3: 131 | EF3: 132 | EG3: 133 | EH3: 134 | EI3: 135 | EJ3: 136 | EK3: 137 | EL3: 138 | EM3: 139 | EN3: 140 | EO3: 141 | EP3: 142 | EQ3: 143 | ER3: 144 | ES3: 145 | ET3: 146 | EU3: 147 | EV3: 148 | EW3: 149 | EX3: 150 | EY3: 151 | EZ3: 152 | FA3: 153 | FB3: 154 | FC3: 155 | FD3: 156 | FE3: 157 | FF3: 158 | FG3: 159 | FH3: 160 | FI3: 161 | FJ3: 162 | FK3: 163 | FL3: 164 | FM3: 165 | FN3: 166 | FO3: 167 | FP3: 168 | FQ3: 169 | FR3: 170 | FS3: 171 | FT3: 172 | FU3: 173 | FV3: 174 | FW3: 175 | FX3: 176 | FY3: 177 | FZ3: 178 | GA3: 179 | GB3: 180 | GC3: 181 | GD3: 182 | GE3: 183 | GF3: 184 | GG3: 185 | GH3: 186 | GI3: 187 | GJ3: 188 | GK3: 189 | GL3: 190 | GM3: 191 | GN3: 192 | GO3: 193 | GP3: 194 | GQ3: 195 | GR3: 196 | GS3: 197 | GT3: 198 | GU3: 199 | GV3: 200 | GW3: 201 | GX3: 202 | GY3: 203 | GZ3: 204 | HA3: 205 | HB3: 206 | HC3: 207 | HD3: 208 | HE3: 209 | HF3: 210 | HG3: 211 | HH3: 212 | HI3: 213 | HJ3: 214 | HK3: 215 | HL3: 216 | HM3: 217 | HN3: 218 | HO3: 219 | HP3: 220 | HQ3: 221 | HR3: 222 | HS3: 223 | HT3: 224 | HU3: 225 | HV3: 226 | HW3: 227 | HX3: 228 | HY3: 229 | HZ3: 230 | IA3: 231 | IB3: 232 | IC3: 233 | ID3: 234 | IE3: 235 | IF3: 236 | IG3: 237 | IH3: 238 | II3: 239 | IJ3: 240 | IK3: 241 | IL3: 242 | IM3: 243 | IN3: 244 | IO3: 245 | IP3: 246 | IQ3: 247 | IR3: 248 | IS3: 249 | IT3: 250 | IU3: 251 | IV3: 252 | IW3: 253 | IX3: 254 | IY3: 255 | IZ3: 256 | JA3: 257 | JB3: 258 | JC3: 259 | JD3: 260 | JE3: 261 | JF3: 262 | JG3: 263 | JH3: 264 | JI3: 265 | JJ3: 266 | JK3: 267 | JL3: 268 | JM3: 269 | JN3: 270 | JO3: 271 | JP3: 272 | JQ3: 273 | JT3: Type
